Workbook

Sheet fnd budget
T1: =VLOOKUP(orderCHA,charterinfo_a,4) -> 409
T2: =VLOOKUP(orderCHA,charterinfo_a,5) -> 201
T3: =VLOOKUP(orderCHA,charterinfo_a,6) -> 94
A6: Massachusetts Department of Elementary and Secondary Education
A7: F Y 1 6 F O U N D A T I O N B U D G E T
A8: =VLOOKUP(orderCHA,charterinfo_a,2) -> 409 - ALMA DEL MAR Charter School - FAIRHAVEN pupils
C9: Items | D9: ---------------------------------------- Base Foundation Components ------------------------------------------------- | O9: --- Incremental Costs Above The Base ---
C10: Adj by | D10: (1) | E10: (2) | F10: (3) | G10: (4) | H10: (5) | I10: (6) | J10: (7) | K10: (8) | L10: (9) | M10: (10) | O10: (11) | P10: (12) | Q10: (13) | R10: (14)
C11: Wage | D11: Pre- | E11: -- Kindergarten -- | G11: Elem- | H11: Jr High/ | I11: High | J11: ELL | K11: ELL | L11: ELL | M11: Voca- | O11: Sped In-school | P11: Sped Out | Q11: -- Low Income --
C12: Fctr = w | D12: School | E12: K Half | F12: K Full | G12: entary | H12: Middle | I12: School | J12: PK | K12: K Half | L12: KF - 12 | M12: tional | O12: (3.75% of total) | P12: of District* | Q12: Elem | R12: Other | T12: TOTAL**
B14: Foundation Enrollment | D14: =VLOOKUP(VLOOKUP(orderCHA,charterinfo_a,3), rate_chafnd,3) -> 0 | E14: =VLOOKUP(VLOOKUP(orderCHA,charterinfo_a,3),rate_chafnd,4) -> 0 | F14: =VLOOKUP(VLOOKUP(orderCHA,charterinfo_a,3),rate_chafnd,5) -> 0 | G14: =VLOOKUP(VLOOKUP(orderCHA,charterinfo_a,3),rate_chafnd,6) -> 2 | H14: =VLOOKUP(VLOOKUP(orderCHA,charterinfo_a,3),rate_chafnd,7) -> 0 | I14: =VLOOKUP(VLOOKUP(orderCHA,charterinfo_a,3),rate_chafnd,8) -> 0 | J14: =VLOOKUP(VLOOKUP(orderCHA,charterinfo_a,3),rate_chafnd,11) -> 0 | K14: =VLOOKUP(VLOOKUP(orderCHA,charterinfo_a,3),rate_chafnd,12) -> 0 | L14: =VLOOKUP(VLOOKUP(orderCHA,charterinfo_a,3),rate_chafnd,13) -> 0 | M14: =VLOOKUP(VLOOKUP(orderCHA,charterinfo_a,3),rate_chafnd,14) -> 0 | O14: =VLOOKUP(VLOOKUP(orderCHA,charterinfo_a,3),rate_chafnd,9) -> 0.075 | P14: =VLOOKUP(VLOOKUP(orderCHA,charterinfo_a,3),rate_chafnd,10) -> 0 | Q14: =VLOOKUP(VLOOKUP(orderCHA,charterinfo_a,3),rate_chafnd,15) -> 2 | R14: =VLOOKUP(VLOOKUP(orderCHA,charterinfo_a,3),rate_chafnd,16) -> 0 | T14: =VLOOKUP(VLOOKUP(orderCHA,charterinfo_a,3),rate_chafnd,17) -> 2
A16: 1 | B16: Administration | C16: w | D16: ='fnd base rates'!$C39*$D$30*D$14 -> 0 | E16: ='fnd base rates'!$C40*$D$30*E$14 -> 0 | F16: ='fnd base rates'!$C41*$D$30*F$14 -> 0 | G16: ='fnd base rates'!$C42*$D$30*G$14 -> 729.6 | H16: ='fnd base rates'!$C43*$D$30*H$14 -> 0 | I16: ='fnd base rates'!$C44*$D$30*I$14 -> 0 | J16: ='fnd base rates'!$C47*$D$30*J$14 -> 0 | K16: ='fnd base rates'!$C48*$D$30*K$14 -> 0 | L16: ='fnd base rates'!$C49*$D$30*L$14 -> 0 | M16: ='fnd base rates'!$C50*$D$30*M$14 -> 0 | O16: ='fnd base rates'!$C45*$D$30*O$14 -> 188.835 | P16: ='fnd base rates'!$C46*$D$30*P$14 -> 0 | Q16: ='fnd base rates'!$C51*$D$30*Q$14 -> 0 | R16: ='fnd base rates'!$C52*$D$30*R$14 -> 0 | T16: =SUM(D16:R16) -> 918.435
A17: 2 | B17: Instructional Leadership | C17: w | D17: ='fnd base rates'!$D39*$D$30*D$14 -> 0 | E17: ='fnd base rates'!$D40*$D$30*E$14 -> 0 | F17: ='fnd base rates'!$D41*$D$30*F$14 -> 0 | G17: ='fnd base rates'!$D42*$D$30*G$14 -> 1317.74 | H17: ='fnd base rates'!$D43*$D$30*H$14 -> 0 | I17: ='fnd base rates'!$D44*$D$30*I$14 -> 0 | J17: ='fnd base rates'!$D47*$D$30*J$14 -> 0 | K17: ='fnd base rates'!$D48*$D$30*K$14 -> 0 | L17: ='fnd base rates'!$D49*$D$30*L$14 -> 0 | M17: ='fnd base rates'!$D50*$D$30*M$14 -> 0 | O17: ='fnd base rates'!$D45*$D$30*O$14 -> 0 | P17: ='fnd base rates'!$D46*$D$30*P$14 -> 0 | Q17: ='fnd base rates'!$D51*$D$30*Q$14 -> 0 | R17: ='fnd base rates'!$D52*$D$30*R$14 -> 0 | T17: =SUM(D17:R17) -> 1317.74
A18: 3 | B18: Classroom and Specialist Teachers | C18: w | D18: ='fnd base rates'!$E39*$D$30*D$14 -> 0 | E18: ='fnd base rates'!$E40*$D$30*E$14 -> 0 | F18: ='fnd base rates'!$E41*$D$30*F$14 -> 0 | G18: ='fnd base rates'!$E42*$D$30*G$14 -> 6042.24 | H18: ='fnd base rates'!$E43*$D$30*H$14 -> 0 | I18: ='fnd base rates'!$E44*$D$30*I$14 -> 0 | J18: ='fnd base rates'!$E47*$D$30*J$14 -> 0 | K18: ='fnd base rates'!$E48*$D$30*K$14 -> 0 | L18: ='fnd base rates'!$E49*$D$30*L$14 -> 0 | M18: ='fnd base rates'!$E50*$D$30*M$14 -> 0 | O18: ='fnd base rates'!$E45*$D$30*O$14 -> 623.10825 | P18: ='fnd base rates'!$E46*$D$30*P$14 -> 0 | Q18: ='fnd base rates'!$E51*$D$30*Q$14 -> 5436.16 | R18: ='fnd base rates'!$E52*$D$30*R$14 -> 0 | T18: 12101.50825
A19: 4 | B19: Other Teaching Services | C19: w | D19: ='fnd base rates'!$F39*$D$30*D$14 -> 0 | E19: ='fnd base rates'!$F40*$D$30*E$14 -> 0 | F19: ='fnd base rates'!$F41*$D$30*F$14 -> 0 | G19: ='fnd base rates'!$F42*$D$30*G$14 -> 1549.72 | H19: ='fnd base rates'!$F43*$D$30*H$14 -> 0 | I19: ='fnd base rates'!$F44*$D$30*I$14 -> 0 | J19: ='fnd base rates'!$F47*$D$30*J$14 -> 0 | K19: ='fnd base rates'!$F48*$D$30*K$14 -> 0 | L19: ='fnd base rates'!$F49*$D$30*L$14 -> 0 | M19: ='fnd base rates'!$F50*$D$30*M$14 -> 0 | O19: ='fnd base rates'!$F45*$D$30*O$14 -> 581.78775 | P19: ='fnd base rates'!$F46*$D$30*P$14 -> 0 | Q19: ='fnd base rates'!$F51*$D$30*Q$14 -> 0 | R19: ='fnd base rates'!$F52*$D$30*R$14 -> 0 | T19: 2131.50775
A20: 5 | B20: Professional Development | C20: w | D20: ='fnd base rates'!$G39*$D$30*D$14 -> 0 | E20: ='fnd base rates'!$G40*$D$30*E$14 -> 0 | F20: ='fnd base rates'!$G41*$D$30*F$14 -> 0 | G20: ='fnd base rates'!$G42*$D$30*G$14 -> 239.12 | H20: ='fnd base rates'!$G43*$D$30*H$14 -> 0 | I20: ='fnd base rates'!$G44*$D$30*I$14 -> 0 | J20: ='fnd base rates'!$G47*$D$30*J$14 -> 0 | K20: ='fnd base rates'!$G48*$D$30*K$14 -> 0 | L20: ='fnd base rates'!$G49*$D$30*L$14 -> 0 | M20: ='fnd base rates'!$G50*$D$30*M$14 -> 0 | O20: ='fnd base rates'!$G45*$D$30*O$14 -> 30.0585 | P20: ='fnd base rates'!$G46*$D$30*P$14 -> 0 | Q20: ='fnd base rates'!$G51*$D$30*Q$14 -> 119.64 | R20: ='fnd base rates'!$G52*$D$30*R$14 -> 0 | T20: 388.8185
A21: 6 | B21: Instructional Equipment & Tech | C21: nw | D21: ='fnd base rates'!$H39*D$14 -> 0 | E21: ='fnd base rates'!$H40*E$14 -> 0 | F21: ='fnd base rates'!$H41*F$14 -> 0 | G21: ='fnd base rates'!$H42*G$14 -> 874.54 | H21: ='fnd base rates'!$H43*H$14 -> 0 | I21: ='fnd base rates'!$H44*I$14 -> 0 | J21: ='fnd base rates'!$H47*J$14 -> 0 | K21: ='fnd base rates'!$H48*K$14 -> 0 | L21: ='fnd base rates'!$H49*L$14 -> 0 | M21: ='fnd base rates'!$H50*M$14 -> 0 | O21: ='fnd base rates'!$H45*O$14 -> 26.2365 | P21: ='fnd base rates'!$H46*P$14 -> 0 | Q21: ='fnd base rates'!$H51*Q$14 -> 0 | R21: ='fnd base rates'!$H52*R$14 -> 0 | T21: 900.7765
A22: 7 | B22: Guidance and Pschological | C22: w | D22: ='fnd base rates'!$I39*$D$30*D$14 -> 0 | E22: ='fnd base rates'!$I40*$D$30*E$14 -> 0 | F22: ='fnd base rates'!$I41*$D$30*F$14 -> 0 | G22: ='fnd base rates'!$I42*$D$30*G$14 -> 439.68 | H22: ='fnd base rates'!$I43*$D$30*H$14 -> 0 | I22: ='fnd base rates'!$I44*$D$30*I$14 -> 0 | J22: ='fnd base rates'!$I47*$D$30*J$14 -> 0 | K22: ='fnd base rates'!$I48*$D$30*K$14 -> 0 | L22: ='fnd base rates'!$I49*$D$30*L$14 -> 0 | M22: ='fnd base rates'!$I50*$D$30*M$14 -> 0 | O22: ='fnd base rates'!$I45*$D$30*O$14 -> 0 | P22: ='fnd base rates'!$I46*$D$30*P$14 -> 0 | Q22: ='fnd base rates'!$I51*$D$30*Q$14 -> 0 | R22: ='fnd base rates'!$I52*$D$30*R$14 -> 0 | T22: 439.68
A23: 8 | B23: Pupil Services | C23: w | D23: ='fnd base rates'!$J39*$D$30*D$14 -> 0 | E23: ='fnd base rates'!$J40*$D$30*E$14 -> 0 | F23: ='fnd base rates'!$J41*$D$30*F$14 -> 0 | G23: ='fnd base rates'!$J42*$D$30*G$14 -> 262.38 | H23: ='fnd base rates'!$J43*$D$30*H$14 -> 0 | I23: ='fnd base rates'!$J44*$D$30*I$14 -> 0 | J23: ='fnd base rates'!$J47*$D$30*J$14 -> 0 | K23: ='fnd base rates'!$J48*$D$30*K$14 -> 0 | L23: ='fnd base rates'!$J49*$D$30*L$14 -> 0 | M23: ='fnd base rates'!$J50*$D$30*M$14 -> 0 | O23: ='fnd base rates'!$J45*$D$30*O$14 -> 0 | P23: ='fnd base rates'!$J46*$D$30*P$14 -> 0 | Q23: ='fnd base rates'!$J51*$D$30*Q$14 -> 0 | R23: ='fnd base rates'!$J52*$D$30*R$14 -> 0 | T23: 262.38
A24: 9 | B24: Operations and Maintenance | C24: w | D24: ='fnd base rates'!$K39*$D$30*D$14 -> 0 | E24: ='fnd base rates'!$K40*$D$30*E$14 -> 0 | F24: ='fnd base rates'!$K41*$D$30*F$14 -> 0 | G24: ='fnd base rates'!$K42*$D$30*G$14 -> 1677.88 | H24: ='fnd base rates'!$K43*$D$30*H$14 -> 0 | I24: ='fnd base rates'!$K44*$D$30*I$14 -> 0 | J24: ='fnd base rates'!$K47*$D$30*J$14 -> 0 | K24: ='fnd base rates'!$K48*$D$30*K$14 -> 0 | L24: ='fnd base rates'!$K49*$D$30*L$14 -> 0 | M24: ='fnd base rates'!$K50*$D$30*M$14 -> 0 | O24: ='fnd base rates'!$K45*$D$30*O$14 -> 210.93825 | P24: ='fnd base rates'!$K46*$D$30*P$14 -> 0 | Q24: ='fnd base rates'!$K51*$D$30*Q$14 -> 839.58 | R24: ='fnd base rates'!$K52*$D$30*R$14 -> 0 | T24: 2728.39825
A25: 10 | B25: Employee Benefits & Fixed Charges | C25: nw | D25: ='fnd base rates'!$L39*D$14 -> 0 | E25: ='fnd base rates'!$L40*E$14 -> 0 | F25: ='fnd base rates'!$L41*F$14 -> 0 | G25: ='fnd base rates'!$L42*G$14 -> 1512.46 | H25: ='fnd base rates'!$L43*H$14 -> 0 | I25: ='fnd base rates'!$L44*I$14 -> 0 | J25: ='fnd base rates'!$L47*J$14 -> 0 | K25: ='fnd base rates'!$L48*K$14 -> 0 | L25: ='fnd base rates'!$L49*L$14 -> 0 | M25: ='fnd base rates'!$L50*M$14 -> 0 | O25: ='fnd base rates'!$L45*O$14 -> 238.96725 | P25: ='fnd base rates'!$L46*P$14 -> 0 | Q25: ='fnd base rates'!$L51*Q$14 -> 551.82 | R25: ='fnd base rates'!$L52*R$14 -> 0 | T25: 2303.24725
A26: 11 | B26: Special Ed Tuition | C26: nw | D26: ='fnd base rates'!$M39*D$14 -> 0 | E26: ='fnd base rates'!$M40*E$14 -> 0 | F26: ='fnd base rates'!$M41*F$14 -> 0 | G26: ='fnd base rates'!$M42*G$14 -> 0 | H26: ='fnd base rates'!$M43*H$14 -> 0 | I26: ='fnd base rates'!$M44*I$14 -> 0 | J26: ='fnd base rates'!$M47*J$14 -> 0 | K26: ='fnd base rates'!$M48*K$14 -> 0 | L26: ='fnd base rates'!$M49*L$14 -> 0 | M26: ='fnd base rates'!$M50*M$14 -> 0 | O26: ='fnd base rates'!$M45*O$14 -> 0 | P26: ='fnd base rates'!$M46*P$14 -> 0 | Q26: ='fnd base rates'!$M51*Q$14 -> 0 | R26: ='fnd base rates'!$M52*R$14 -> 0 | T26: 0
A28: 12 | B28: Total | D28: =SUM(D16:D26) -> 0 | E28: 0 | F28: 0 | G28: 14645.36 | H28: 0 | I28: 0 | J28: 0 | K28: 0 | L28: 0 | M28: 0 | O28: =SUM(O16:O26) -> 1899.9315 | P28: =SUM(P16:P26) -> 0 | Q28: =SUM(Q16:Q26) -> 6947.2 | R28: =SUM(R16:R26) -> 0 | T28: =SUM(T16:T26) -> 23492.4915
A30: 13 | B30: Wage Adjustment Factor | D30: =VLOOKUP(orderCHA,charterinfo_a,8) -> 1 | R30: FOUNDATION RATE: | T30: =IF(T14=0,0,ROUND(T28/T14,0)) -> 11746
A32: * | B32: Charter schools do not send special education pupils to other districts or private programs; this category is removed from the calculation. The in-district special education increment uses an "assumed" enrollment
B33: percentage of 3.75 percent, as stipulated by the Chapter 70 statute.
A35: ** | B35: Total foundation enrollment does not include columns 11 through 14, because those columns are increments. The pupils have already been counted in columns 1 to 10. Pre-kindergarten and half-time kindergarten
B36: pupils count as one-half in total foundation enrollment. Low income headcount is the number of pupils in columns 1 through 10 who are eligible for free or reduced lunch. Each component of the foundation budget
B37: represents the enrollment on line 1 multiplied by the appropriate state-wide foundation allotment. The wage adjustment factor is applied to underlying rates in all functions except instructional equipment, benefits,
B38: and special education. October 2006 pupils are used to generate the FY08 rate. The resulting rate will be applied to the actual number of pupils enrolled during FY08.

Sheet codes (hidden)
E1: =COUNTIF(G10:G100,"=open") -> 70 | G1: =COUNTA(G10:G100) -> 71
A6: 2015-02-10 | B6: code 436 | E6: 2015-04-13 | F6: code cha
G8: Operating
A9: LEA | B9: DISTRICT | C9: op | E9: Lea | F9: Charter | G9: Status
A10: 1 | B10: ABINGTON | C10: 1 | E10: 409 | F10: ALMA DEL MAR | G10: open
A11: 2 | B11: ACTON | C11: 0 | D11: fy15 | E11: 410 | F11: EXCEL ACADEMY | G11: open
A12: 3 | B12: ACUSHNET | C12: 1 | E12: 412 | F12: ACADEMY OF THE PACIFIC RIM | G12: open
A13: 4 | B13: ADAMS | C13: 0 | E13: 413 | F13: FOUR RIVERS | G13: open
A14: 5 | B14: AGAWAM | C14: 1 | E14: 414 | F14: BERKSHIRE ARTS AND TECHNOLOGY | G14: open
A15: 6 | B15: ALFORD | C15: 0 | E15: 416 | F15: BOSTON PREPARATORY | G15: open
A16: 7 | B16: AMESBURY | C16: 1 | E16: 417 | F16: BRIDGE BOSTON | G16: open
A17: 8 | B17: AMHERST | C17: 1 | E17: 418 | F17: CHRISTA MCAULIFFE | G17: open
A18: 9 | B18: ANDOVER | C18: 1 | E18: 419 | F18: HELEN Y. DAVIS LEADERSHIP ACADEMY | G18: open
A19: 10 | B19: ARLINGTON | C19: 1 | E19: 420 | F19: BENJAMIN BANNEKER | G19: open
A20: 11 | B20: ASHBURNHAM | C20: 0 | E20: 426 | F20: COMMUNITY DAY - GATEWAY | G20: open
A21: 12 | B21: ASHBY | C21: 0 | E21: 428 | F21: BROOKE ROSLINDALE | G21: open
A22: 13 | B22: ASHFIELD | C22: 0 | E22: 429 | F22: KIPP ACADEMY LYNN | G22: open
A23: 14 | B23: ASHLAND | C23: 1 | E23: 430 | F23: ADVANCED MATH AND SCIENCE ACADEMY | G23: open
A24: 15 | B24: ATHOL | C24: 0 | E24: 431 | F24: COMMUNITY DAY - R. KINGMAN WEBSTER | G24: open
A25: 16 | B25: ATTLEBORO | C25: 1 | E25: 432 | F25: CAPE COD LIGHTHOUSE | G25: open
A26: 17 | B26: AUBURN | C26: 1 | E26: 435 | F26: INNOVATION ACADEMY | G26: open
A27: 18 | B27: AVON | C27: 1 | E27: 436 | F27: COMMUNITY CS OF CAMBRIDGE | G27: open
A28: 19 | B28: AYER | C28: 0 | D28: fy12 | E28: 437 | F28: CITY ON A HILL - CIRCUIT ST | G28: open
A29: 20 | B29: BARNSTABLE | C29: 1 | E29: 438 | F29: CODMAN ACADEMY | G29: open
A30: 21 | B30: BARRE | C30: 0 | E30: 439 | F30: CONSERVATORY LAB | G30: open
A31: 22 | B31: BECKET | C31: 0 | E31: 440 | F31: COMMUNITY DAY - PROSPECT | G31: open
A32: 23 | B32: BEDFORD | C32: 1 | E32: 441 | F32: SABIS INTERNATIONAL | G32: open
A33: 24 | B33: BELCHERTOWN | C33: 1 | E33: 443 | F33: BROOKE MATTAPAN | G33: open
A34: 25 | B34: BELLINGHAM | C34: 1 | E34: 444 | F34: NEIGHBORHOOD HOUSE | G34: open
A35: 26 | B35: BELMONT | C35: 1 | E35: 445 | F35: ABBY KELLEY FOSTER | G35: open
A36: 27 | B36: BERKLEY | C36: 1 | D36: fy12 | E36: 446 | F36: FOXBOROUGH REGIONAL | G36: open
A37: 28 | B37: BERLIN | C37: 1 | D37: fy14 | E37: 447 | F37: BENJAMIN FRANKLIN CLASSICAL | G37: open
A38: 29 | B38: BERNARDSTON | C38: 0 | E38: 449 | F38: BOSTON COLLEGIATE | G38: open
A39: 30 | B39: BEVERLY | C39: 1 | E39: 450 | F39: HILLTOWN COOPERATIVE | G39: open
A40: 31 | B40: BILLERICA | C40: 1 | E40: 453 | F40: HOLYOKE COMMUNITY | G40: open
A41: 32 | B41: BLACKSTONE | C41: 0 | E41: 454 | F41: LAWRENCE FAMILY DEVELOPMENT | G41: open
A42: 33 | B42: BLANDFORD | C42: 0 | E42: 455 | F42: HILL VIEW MONTESSORI | G42: open
A43: 34 | B43: BOLTON | C43: 0 | E43: 456 | F43: LOWELL COMMUNITY | G43: open
A44: 35 | B44: BOSTON | C44: 1 | E44: 457 | F44: BROOKE EAST BOSTON | G44: open
A45: 36 | B45: BOURNE | C45: 1 | E45: 458 | F45: LOWELL MIDDLESEX ACADEMY | G45: open
A46: 37 | B46: BOXBOROUGH | C46: 0 | D46: fy15 | E46: 463 | F46: KIPP ACADEMY BOSTON | G46: open
A47: 38 | B47: BOXFORD | C47: 1 | E47: 464 | F47: MARBLEHEAD COMMUNITY | G47: open
A48: 39 | B48: BOYLSTON | C48: 1 | D48: fy14 | E48: 466 | F48: MARTHA'S VINEYARD | G48: open
A49: 40 | B49: BRAINTREE | C49: 1 | E49: 469 | F49: MATCH | G49: open
A50: 41 | B50: BREWSTER | C50: 1 | E50: 470 | F50: MYSTIC VALLEY REGIONAL | G50: open
A51: 42 | B51: BRIDGEWATER | C51: 0 | E51: 474 | F51: SIZER SCHOOL, A NORTH CENTRAL CHARTER ESSENTIAL SCHOOL | G51: open
A52: 43 | B52: BRIMFIELD | C52: 1 | E52: 475 | F52: DORCHESTER COLLEGIATE ACADEMY | G52: open
A53: 44 | B53: BROCKTON | C53: 1 | E53: 478 | F53: FRANCIS W. PARKER CHARTER ESSENTIAL | G53: open
A54: 45 | B54: BROOKFIELD | C54: 1 | E54: 479 | F54: PIONEER VALLEY PERFORMING ARTS | G54: open
A55: 46 | B55: BROOKLINE | C55: 1 | E55: 481 | F55: BOSTON RENAISSANCE | G55: open
A56: 47 | B56: BUCKLAND | C56: 0 | E56: 482 | F56: RIVER VALLEY | G56: open
A57: 48 | B57: BURLINGTON | C57: 1 | E57: 483 | F57: RISING TIDE | G57: open
A58: 49 | B58: CAMBRIDGE | C58: 1 | E58: 484 | F58: ROXBURY PREPARATORY | G58: open
A59: 50 | B59: CANTON | C59: 1 | E59: 485 | F59: SALEM ACADEMY | G59: open
A60: 51 | B60: CARLISLE | C60: 1 | E60: 486 | F60: SEVEN HILLS | G60: open
A61: 52 | B61: CARVER | C61: 1 | E61: 487 | F61: PROSPECT HILL ACADEMY | G61: open
A62: 53 | B62: CHARLEMONT | C62: 0 | E62: 488 | F62: SOUTH SHORE | G62: open
A63: 54 | B63: CHARLTON | C63: 0 | E63: 489 | F63: STURGIS | G63: open
A64: 55 | B64: CHATHAM | C64: 0 | D64: fy13 | E64: 491 | F64: ATLANTIS | G64: open
A65: 56 | B65: CHELMSFORD | C65: 1 | E65: 492 | F65: MARTIN LUTHER KING JR CS OF EXCELLENCE | G65: open
A66: 57 | B66: CHELSEA | C66: 1 | E66: 493 | F66: PHOENIX CHARTER ACADEMY | G66: open
A67: 58 | B67: CHESHIRE | C67: 0 | E67: 494 | F67: PIONEER CS OF SCIENCE | G67: open
A68: 59 | B68: CHESTER | C68: 0 | E68: 496 | F68: GLOBAL LEARNING | G68: open
A69: 60 | B69: CHESTERFIELD | C69: 0 | E69: 497 | F69: PIONEER VALLEY CHINESE IMMERSION | G69: open
A70: 61 | B70: CHICOPEE | C70: 1 | E70: 498 | F70: VERITAS PREPARATORY | G70: open
A71: 62 | B71: CHILMARK | C71: 0 | E71: 499 | F71: HAMPDEN CS OF SCIENCE | G71: open
A72: 63 | B72: CLARKSBURG | C72: 1 | E72: 3501 | F72: PAULO FREIRE SOCIAL JUSTICE | G72: open
A73: 64 | B73: CLINTON | C73: 1 | E73: 3502 | F73: BAYSTATE ACADEMY | G73: open
A74: 65 | B74: COHASSET | C74: 1 | E74: 3503 | F74: LOWELL COLLEGIATE | G74: open
A75: 66 | B75: COLRAIN | C75: 0 | E75: 3504 | F75: CITY ON A HILL - DUDLEY SQUARE | G75: open
A76: 67 | B76: CONCORD | C76: 1 | E76: 3506 | F76: PIONEER CS OF SCIENCE II | G76: open
A77: 68 | B77: CONWAY | C77: 1 | E77: 3507 | F77: CITY ON A HILL NEW BEDFORD | G77: open
A78: 69 | B78: CUMMINGTON | C78: 0 | E78: 3508 | F78: PHOENIX CHARTER ACADEMY SPRINGFIELD | G78: open
A79: 70 | B79: DALTON | C79: 0 | E79: 3509 | F79: ARGOSY COLLEGIATE | G79: open
A80: 71 | B80: DANVERS | C80: 1 | E80: 3510 | F80: SPRINGFIELD PREPARATORY | G80: to open
A81: 72 | B81: DARTMOUTH | C81: 1
A82: 73 | B82: DEDHAM | C82: 1
A83: 74 | B83: DEERFIELD | C83: 1
A84: 75 | B84: DENNIS | C84: 0
A85: 76 | B85: DIGHTON | C85: 0
A86: 77 | B86: DOUGLAS | C86: 1
A87: 78 | B87: DOVER | C87: 1
A88: 79 | B88: DRACUT | C88: 1
A89: 80 | B89: DUDLEY | C89: 0
A90: 81 | B90: DUNSTABLE | C90: 0
A91: 82 | B91: DUXBURY | C91: 1
A92: 83 | B92: EAST BRIDGEWATER | C92: 1
A93: 84 | B93: EAST BROOKFIELD | C93: 0
A94: 85 | B94: EASTHAM | C94: 1
A95: 86 | B95: EASTHAMPTON | C95: 1
A96: 87 | B96: EAST LONGMEADOW | C96: 1
A97: 88 | B97: EASTON | C97: 1
A98: 89 | B98: EDGARTOWN | C98: 1
A99: 90 | B99: EGREMONT | C99: 0
A100: 91 | B100: ERVING | C100: 1
A101: 92 | B101: ESSEX | C101: 0
A102: 93 | B102: EVERETT | C102: 1
A103: 94 | B103: FAIRHAVEN | C103: 1
A104: 95 | B104: FALL RIVER | C104: 1
A105: 96 | B105: FALMOUTH | C105: 1
A106: 97 | B106: FITCHBURG | C106: 1
A107: 98 | B107: FLORIDA | C107: 1
A108: 99 | B108: FOXBOROUGH | C108: 1
A109: 100 | B109: FRAMINGHAM | C109: 1
A110: 101 | B110: FRANKLIN | C110: 1
A111: 102 | B111: FREETOWN | C111: 0 | D111: fy12
A112: 103 | B112: GARDNER | C112: 1
A113: 104 | B113: AQUINNAH | C113: 0
A114: 105 | B114: GEORGETOWN | C114: 1
A115: 106 | B115: GILL | C115: 0
A116: 107 | B116: GLOUCESTER | C116: 1
A117: 108 | B117: GOSHEN | C117: 0
A118: 109 | B118: GOSNOLD | C118: 0
A119: 110 | B119: GRAFTON | C119: 1
A120: 111 | B120: GRANBY | C120: 1
A121: 112 | B121: GRANVILLE | C121: 0 | D121: fy13
A122: 113 | B122: GREAT BARRINGTON | C122: 0
A123: 114 | B123: GREENFIELD | C123: 1
A124: 115 | B124: GROTON | C124: 0
A125: 116 | B125: GROVELAND | C125: 0
A126: 117 | B126: HADLEY | C126: 1
A127: 118 | B127: HALIFAX | C127: 1
A128: 119 | B128: HAMILTON | C128: 0
A129: 120 | B129: HAMPDEN | C129: 0
A130: 121 | B130: HANCOCK | C130: 1
A131: 122 | B131: HANOVER | C131: 1
A132: 123 | B132: HANSON | C132: 0
A133: 124 | B133: HARDWICK | C133: 0
A134: 125 | B134: HARVARD | C134: 1
A135: 126 | B135: HARWICH | C135: 0 | D135: fy13
A136: 127 | B136: HATFIELD | C136: 1
A137: 128 | B137: HAVERHILL | C137: 1
A138: 129 | B138: HAWLEY | C138: 0
A139: 130 | B139: HEATH | C139: 0
A140: 131 | B140: HINGHAM | C140: 1
A141: 132 | B141: HINSDALE | C141: 0
A142: 133 | B142: HOLBROOK | C142: 1
A143: 134 | B143: HOLDEN | C143: 0
A144: 135 | B144: HOLLAND | C144: 1
A145: 136 | B145: HOLLISTON | C145: 1
A146: 137 | B146: HOLYOKE | C146: 1
A147: 138 | B147: HOPEDALE | C147: 1
A148: 139 | B148: HOPKINTON | C148: 1
A149: 140 | B149: HUBBARDSTON | C149: 0
A150: 141 | B150: HUDSON | C150: 1
A151: 142 | B151: HULL | C151: 1
A152: 143 | B152: HUNTINGTON | C152: 0
A153: 144 | B153: IPSWICH | C153: 1
A154: 145 | B154: KINGSTON | C154: 1
A155: 146 | B155: LAKEVILLE | C155: 0 | D155: fy12
A156: 147 | B156: LANCASTER | C156: 0
A157: 148 | B157: LANESBOROUGH | C157: 1
A158: 149 | B158: LAWRENCE | C158: 1
A159: 150 | B159: LEE | C159: 1
A160: 151 | B160: LEICESTER | C160: 1
A161: 152 | B161: LENOX | C161: 1
A162: 153 | B162: LEOMINSTER | C162: 1
A163: 154 | B163: LEVERETT | C163: 1
A164: 155 | B164: LEXINGTON | C164: 1
A165: 156 | B165: LEYDEN | C165: 0
A166: 157 | B166: LINCOLN | C166: 1
A167: 158 | B167: LITTLETON | C167: 1
A168: 159 | B168: LONGMEADOW | C168: 1
A169: 160 | B169: LOWELL | C169: 1
A170: 161 | B170: LUDLOW | C170: 1
A171: 162 | B171: LUNENBURG | C171: 1
A172: 163 | B172: LYNN | C172: 1
A173: 164 | B173: LYNNFIELD | C173: 1
A174: 165 | B174: MALDEN | C174: 1
A175: 166 | B175: MANCHESTER | C175: 0
A176: 167 | B176: MANSFIELD | C176: 1
A177: 168 | B177: MARBLEHEAD | C177: 1
A178: 169 | B178: MARION | C178: 1
A179: 170 | B179: MARLBOROUGH | C179: 1
A180: 171 | B180: MARSHFIELD | C180: 1
A181: 172 | B181: MASHPEE | C181: 1
A182: 173 | B182: MATTAPOISETT | C182: 1
A183: 174 | B183: MAYNARD | C183: 1
A184: 175 | B184: MEDFIELD | C184: 1
A185: 176 | B185: MEDFORD | C185: 1
A186: 177 | B186: MEDWAY | C186: 1
A187: 178 | B187: MELROSE | C187: 1
A188: 179 | B188: MENDON | C188: 0
A189: 180 | B189: MERRIMAC | C189: 0
A190: 181 | B190: METHUEN | C190: 1
A191: 182 | B191: MIDDLEBOROUGH | C191: 1
A192: 183 | B192: MIDDLEFIELD | C192: 0
A193: 184 | B193: MIDDLETON | C193: 1
A194: 185 | B194: MILFORD | C194: 1
A195: 186 | B195: MILLBURY | C195: 1
A196: 187 | B196: MILLIS | C196: 1
A197: 188 | B197: MILLVILLE | C197: 0
A198: 189 | B198: MILTON | C198: 1
A199: 190 | B199: MONROE | C199: 0
A200: 191 | B200: MONSON | C200: 1
A201: 192 | B201: MONTAGUE | C201: 0
A202: 193 | B202: MONTEREY | C202: 0
A203: 194 | B203: MONTGOMERY | C203: 0
A204: 195 | B204: MOUNT WASHINGTON | C204: 0
A205: 196 | B205: NAHANT | C205: 1
... 244 more rows

Sheet charterinfo (hidden)
A1: chalocsend from 16 - PROJc fnd enro.xls | C1: Input fnd enro chalocsend | I1: 1
A7: Order | D7: Cha | E7: Campus | F7: Send | G7: # of District/ | H7: Wage | I7: Above | J7: Found | K7: Above | L7: Fac
A8: # | B8: Drop Down Menu Chalocsend | C8: chalocsend | D8: Lea | E8: Lea | F8: Lea | G8: Campuses | H8: Adj Factor | I8: Fnd % | J8: Rate | K8: Fnd Rate | L8: Rate
A10: 1 | B10: =IF(G10=1,D10 & " - " &VLOOKUP(D10,codeCHA,2)&" Charter School - "&VLOOKUP(F10,code436,2)&" pupils",IF(OR(D10=450,D10=466),D10 & " - " &VLOOKUP(D10,codeCHA,2)&" Charter School - "&VLOOKUP(E10,code436,2)&" District - "&VLOOKUP(F10,code436,2)&" pupils",D10 & " - " &VLOOKUP(D10,codeCHA,2)&" Charter School - "&VLOOKUP(E10,code436,2)&" Campus - "&VLOOKUP(F10,code436,2)&" pupils")) -> 409 - ALMA DEL MAR Charter School - FAIRHAVEN pupils | C10: 409201094 | D10: =IF(VALUE(MID(C10,1,1))=4,VALUE(MID(C10,1,3)),VALUE(MID(C10,1,4))) -> 409 | E10: =IF(VALUE(MID(C10,1,1))=4,VALUE(MID(C10,4,3)),VALUE(MID(C10,5,3))) -> 201 | F10: =IF(VALUE(MID(C10,1,1))=4,VALUE(MID(C10,7,3)),VALUE(MID(C10,8,3))) -> 94 | G10: =IF(OR(D10=410,D10=466,D10=487),2,1) -> 1 | H10: =VLOOKUP(E10,distinfo,4) -> 1 | I10: =VLOOKUP(F10,distinfo,5) -> 0 | J10: =IF(VLOOKUP(C10,rate_chafnd,40)>0,VLOOKUP(C10,rate_chafnd,40),VLOOKUP(F10,distinfo,6)) -> 11746 | K10: =ROUND((J10*I10/100)-J10,0) -> -11746 | L10: =VLOOKUP(F10,distinfo,8) -> 
A11: 2 | B11: 409 - ALMA DEL MAR Charter School - NEW BEDFORD pupils | C11: 409201201 | D11: =IF(VALUE(MID(C11,1,1))=4,VALUE(MID(C11,1,3)),VALUE(MID(C11,1,4))) -> 409 | E11: =IF(VALUE(MID(C11,1,1))=4,VALUE(MID(C11,4,3)),VALUE(MID(C11,5,3))) -> 201 | F11: =IF(VALUE(MID(C11,1,1))=4,VALUE(MID(C11,7,3)),VALUE(MID(C11,8,3))) -> 201 | G11: =IF(OR(D11=410,D11=466,D11=487),2,1) -> 1 | H11: =VLOOKUP(E11,distinfo,4) -> 1 | I11: =VLOOKUP(F11,distinfo,5) -> 0 | J11: 11149 | K11: =ROUND((J11*I11/100)-J11,0) -> -11149 | L11: =VLOOKUP(F11,distinfo,8) -> 
A12: 3 | B12: 410 - EXCEL ACADEMY Charter School - BOSTON Campus - BOSTON pupils | C12: 410035035 | D12: 410 | E12: 35 | F12: 35 | G12: 2 | H12: 1.071 | I12: 0 | J12: 11854 | K12: -11854
A13: 4 | B13: 410 - EXCEL ACADEMY Charter School - BOSTON Campus - CHELSEA pupils | C13: 410035057 | D13: 410 | E13: 35 | F13: 57 | G13: 2 | H13: 1.071 | I13: 0 | J13: 11826 | K13: -11826
A14: 5 | B14: 410 - EXCEL ACADEMY Charter School - BOSTON Campus - EVERETT pupils | C14: 410035093 | D14: 410 | E14: 35 | F14: 93 | G14: 2 | H14: 1.071 | I14: 0 | J14: 12264 | K14: -12264
A15: 6 | B15: 410 - EXCEL ACADEMY Charter School - BOSTON Campus - LOWELL pupils | C15: 410035160 | D15: 410 | E15: 35 | F15: 160 | G15: 2 | H15: 1.071 | I15: 0 | J15: 12062 | K15: -12062
A16: 7 | B16: 410 - EXCEL ACADEMY Charter School - BOSTON Campus - LYNN pupils | C16: 410035163 | D16: 410 | E16: 35 | F16: 163 | G16: 2 | H16: 1.071 | I16: 0 | J16: 10212 | K16: -10212
A17: 8 | B17: 410 - EXCEL ACADEMY Charter School - BOSTON Campus - REVERE pupils | C17: 410035248 | D17: 410 | E17: 35 | F17: 248 | G17: 2 | H17: 1.071 | I17: 0 | J17: 10828 | K17: -10828
A18: 9 | B18: 410 - EXCEL ACADEMY Charter School - BOSTON Campus - WINTHROP pupils | C18: 410035346 | D18: 410 | E18: 35 | F18: 346 | G18: 2 | H18: 1.071 | I18: 0 | J18: 9730 | K18: -9730
A19: 10 | B19: 410 - EXCEL ACADEMY Charter School - CHELSEA Campus - BOSTON pupils | C19: 410057035 | D19: 410 | E19: 57 | F19: 35 | G19: 2 | H19: 1.03 | I19: 0 | J19: 9784 | K19: -9784
A20: 11 | B20: 410 - EXCEL ACADEMY Charter School - CHELSEA Campus - CHELSEA pupils | C20: 410057057 | D20: 410 | E20: 57 | F20: 57 | G20: 2 | H20: 1.03 | I20: 0 | J20: 11297 | K20: -11297
A21: 12 | B21: 410 - EXCEL ACADEMY Charter School - CHELSEA Campus - EVERETT pupils | C21: 410057093 | D21: 410 | E21: 57 | F21: 93 | G21: 2 | H21: 1.03 | I21: 0 | J21: 11660 | K21: -11660
A22: 13 | B22: 410 - EXCEL ACADEMY Charter School - CHELSEA Campus - REVERE pupils | C22: 410057248 | D22: 410 | E22: 57 | F22: 248 | G22: 2 | H22: 1.03 | I22: 0 | J22: 12051 | K22: -12051
A23: 14 | B23: 412 - ACADEMY OF THE PACIFIC RIM Charter School - BOSTON pupils | C23: 412035035 | D23: 412 | E23: 35 | F23: 35 | G23: 1 | H23: 1.071 | I23: 0 | J23: 11089 | K23: -11089
A24: 15 | B24: 412 - ACADEMY OF THE PACIFIC RIM Charter School - BROCKTON pupils | C24: 412035044 | D24: 412 | E24: 35 | F24: 44 | G24: 1 | H24: 1.071 | I24: 0 | J24: 12062 | K24: -12062
A25: 16 | B25: 412 - ACADEMY OF THE PACIFIC RIM Charter School - CANTON pupils | C25: 412035050 | D25: 412 | E25: 35 | F25: 50 | G25: 1 | H25: 1.071 | I25: 0 | J25: 13169 | K25: -13169
A26: 17 | B26: 412 - ACADEMY OF THE PACIFIC RIM Charter School - DEDHAM pupils | C26: 412035073 | D26: 412 | E26: 35 | F26: 73 | G26: 1 | H26: 1.071 | I26: 0 | J26: 12062 | K26: -12062
A27: 18 | B27: 412 - ACADEMY OF THE PACIFIC RIM Charter School - EASTON pupils | C27: 412035088 | D27: 412 | E27: 35 | F27: 88 | G27: 1 | H27: 1.071 | I27: 0 | J27: 10181 | K27: -10181
A28: 19 | B28: 412 - ACADEMY OF THE PACIFIC RIM Charter School - MILTON pupils | C28: 412035189 | D28: 412 | E28: 35 | F28: 189 | G28: 1 | H28: 1.071 | I28: 0 | J28: 11675 | K28: -11675
A29: 20 | B29: 412 - ACADEMY OF THE PACIFIC RIM Charter School - NORWOOD pupils | C29: 412035220 | D29: 412 | E29: 35 | F29: 220 | G29: 1 | H29: 1.071 | I29: 0 | J29: 13169 | K29: -13169
A30: 21 | B30: 412 - ACADEMY OF THE PACIFIC RIM Charter School - RANDOLPH pupils | C30: 412035244 | D30: 412 | E30: 35 | F30: 244 | G30: 1 | H30: 1.071 | I30: 0 | J30: 12080 | K30: -12080
A31: 22 | B31: 412 - ACADEMY OF THE PACIFIC RIM Charter School - WATERTOWN pupils | C31: 412035314 | D31: 412 | E31: 35 | F31: 314 | G31: 1 | H31: 1.071 | I31: 0 | J31: 12062 | K31: -12062
A32: 23 | B32: 412 - ACADEMY OF THE PACIFIC RIM Charter School - WEYMOUTH pupils | C32: 412035336 | D32: 412 | E32: 35 | F32: 336 | G32: 1 | H32: 1.071 | I32: 0 | J32: 8361 | K32: -8361
A33: 24 | B33: 413 - FOUR RIVERS Charter School - ERVING pupils | C33: 413114091 | D33: 413 | E33: 114 | F33: 91 | G33: 1 | H33: 1 | I33: 0 | J33: 9299 | K33: -9299
A34: 25 | B34: 413 - FOUR RIVERS Charter School - GREENFIELD pupils | C34: 413114114 | D34: 413 | E34: 114 | F34: 114 | G34: 1 | H34: 1 | I34: 0 | J34: 10316 | K34: -10316
A35: 26 | B35: 413 - FOUR RIVERS Charter School - HADLEY pupils | C35: 413114117 | D35: 413 | E35: 114 | F35: 117 | G35: 1 | H35: 1 | I35: 0 | J35: 12416 | K35: -12416
A36: 27 | B36: 413 - FOUR RIVERS Charter School - NORTHAMPTON pupils | C36: 413114210 | D36: 413 | E36: 114 | F36: 210 | G36: 1 | H36: 1 | I36: 0 | J36: 11479 | K36: -11479
A37: 28 | B37: 413 - FOUR RIVERS Charter School - ROWE pupils | C37: 413114253 | D37: 413 | E37: 114 | F37: 253 | G37: 1 | H37: 1 | I37: 0 | J37: 7892 | K37: -7892
A38: 29 | B38: 413 - FOUR RIVERS Charter School - AMHERST PELHAM pupils | C38: 413114605 | D38: 413 | E38: 114 | F38: 605 | G38: 1 | H38: 1 | I38: 0 | J38: 11479 | K38: -11479
A39: 30 | B39: 413 - FOUR RIVERS Charter School - FRONTIER pupils | C39: 413114670 | D39: 413 | E39: 114 | F39: 670 | G39: 1 | H39: 1 | I39: 0 | J39: 9925 | K39: -9925
A40: 31 | B40: 413 - FOUR RIVERS Charter School - GILL MONTAGUE pupils | C40: 413114674 | D40: 413 | E40: 114 | F40: 674 | G40: 1 | H40: 1 | I40: 0 | J40: 9696 | K40: -9696
A41: 32 | B41: 413 - FOUR RIVERS Charter School - HAMPSHIRE pupils | C41: 413114683 | D41: 413 | E41: 114 | F41: 683 | G41: 1 | H41: 1 | I41: 0 | J41: 9607 | K41: -9607
A42: 33 | B42: 413 - FOUR RIVERS Charter School - MOHAWK TRAIL pupils | C42: 413114717 | D42: 413 | E42: 114 | F42: 717 | G42: 1 | H42: 1 | I42: 0 | J42: 9824 | K42: -9824
A43: 34 | B43: 413 - FOUR RIVERS Charter School - PIONEER pupils | C43: 413114750 | D43: 413 | E43: 114 | F43: 750 | G43: 1 | H43: 1 | I43: 0 | J43: 9810 | K43: -9810
A44: 35 | B44: 413 - FOUR RIVERS Charter School - RALPH C MAHAR pupils | C44: 413114755 | D44: 413 | E44: 114 | F44: 755 | G44: 1 | H44: 1 | I44: 0 | J44: 9600 | K44: -9600
A45: 36 | B45: 414 - BERKSHIRE ARTS AND TECHNOLOGY Charter School - CLARKSBURG pupils | C45: 414603063 | D45: 414 | E45: 603 | F45: 63 | G45: 1 | H45: 1 | I45: 0 | J45: 10908 | K45: -10908
A46: 37 | B46: 414 - BERKSHIRE ARTS AND TECHNOLOGY Charter School - FLORIDA pupils | C46: 414603098 | D46: 414 | E46: 603 | F46: 98 | G46: 1 | H46: 1 | I46: 0 | J46: 9607 | K46: -9607
A47: 38 | B47: 414 - BERKSHIRE ARTS AND TECHNOLOGY Charter School - LEE pupils | C47: 414603150 | D47: 414 | E47: 603 | F47: 150 | G47: 1 | H47: 1 | I47: 0 | J47: 11011 | K47: -11011
A48: 39 | B48: 414 - BERKSHIRE ARTS AND TECHNOLOGY Charter School - LENOX pupils | C48: 414603152 | D48: 414 | E48: 603 | F48: 152 | G48: 1 | H48: 1 | I48: 0 | J48: 7892 | K48: -7892
A49: 40 | B49: 414 - BERKSHIRE ARTS AND TECHNOLOGY Charter School - NORTH ADAMS pupils | C49: 414603209 | D49: 414 | E49: 603 | F49: 209 | G49: 1 | H49: 1 | I49: 0 | J49: 10797 | K49: -10797
A50: 41 | B50: 414 - BERKSHIRE ARTS AND TECHNOLOGY Charter School - PITTSFIELD pupils | C50: 414603236 | D50: 414 | E50: 603 | F50: 236 | G50: 1 | H50: 1 | I50: 0 | J50: 10355 | K50: -10355
A51: 42 | B51: 414 - BERKSHIRE ARTS AND TECHNOLOGY Charter School - SAVOY pupils | C51: 414603263 | D51: 414 | E51: 603 | F51: 263 | G51: 1 | H51: 1 | I51: 0 | J51: 11011 | K51: -11011
A52: 43 | B52: 414 - BERKSHIRE ARTS AND TECHNOLOGY Charter School - WILLIAMSTOWN pupils | C52: 414603341 | D52: 414 | E52: 603 | F52: 341 | G52: 1 | H52: 1 | I52: 0 | J52: 9050 | K52: -9050
A53: 44 | B53: 414 - BERKSHIRE ARTS AND TECHNOLOGY Charter School - WORTHINGTON pupils | C53: 414603349 | D53: 414 | E53: 603 | F53: 349 | G53: 1 | H53: 1 | I53: 0 | J53: 8749 | K53: -8749
A54: 45 | B54: 414 - BERKSHIRE ARTS AND TECHNOLOGY Charter School - ADAMS CHESHIRE pupils | C54: 414603603 | D54: 414 | E54: 603 | F54: 603 | G54: 1 | H54: 1 | I54: 0 | J54: 10686 | K54: -10686
A55: 46 | B55: 414 - BERKSHIRE ARTS AND TECHNOLOGY Charter School - CENTRAL BERKSHIRE pupils | C55: 414603635 | D55: 414 | E55: 603 | F55: 635 | G55: 1 | H55: 1 | I55: 0 | J55: 8991 | K55: -8991
A56: 47 | B56: 414 - BERKSHIRE ARTS AND TECHNOLOGY Charter School - MOUNT GREYLOCK pupils | C56: 414603715 | D56: 414 | E56: 603 | F56: 715 | G56: 1 | H56: 1 | I56: 0 | J56: 9647 | K56: -9647
A57: 48 | B57: 416 - BOSTON PREPARATORY Charter School - BOSTON pupils | C57: 416035035 | D57: 416 | E57: 35 | F57: 35 | G57: 1 | H57: 1.071 | I57: 0 | J57: 11875 | K57: -11875
A58: 49 | B58: 416 - BOSTON PREPARATORY Charter School - BROCKTON pupils | C58: 416035044 | D58: 416 | E58: 35 | F58: 44 | G58: 1 | H58: 1.071 | I58: 0 | J58: 13169 | K58: -13169
A59: 50 | B59: 416 - BOSTON PREPARATORY Charter School - DEDHAM pupils | C59: 416035073 | D59: 416 | E59: 35 | F59: 73 | G59: 1 | H59: 1.071 | I59: 0 | J59: 13169 | K59: -13169
A60: 51 | B60: 416 - BOSTON PREPARATORY Charter School - RANDOLPH pupils | C60: 416035244 | D60: 416 | E60: 35 | F60: 244 | G60: 1 | H60: 1.071 | I60: 0 | J60: 11675 | K60: -11675
A61: 52 | B61: 417 - BRIDGE BOSTON Charter School - BOSTON pupils | C61: 417035035 | D61: 417 | E61: 35 | F61: 35 | G61: 1 | H61: 1.071 | I61: 0 | J61: 12840 | K61: -12840
A62: 53 | B62: 417 - BRIDGE BOSTON Charter School - BROOKLINE pupils | C62: 417035046 | D62: 417 | E62: 35 | F62: 46 | G62: 1 | H62: 1.071 | I62: 0 | J62: 12466 | K62: -12466
A63: 54 | B63: 417 - BRIDGE BOSTON Charter School - RANDOLPH pupils | C63: 417035244 | D63: 417 | E63: 35 | F63: 244 | G63: 1 | H63: 1.071 | I63: 0 | J63: 14574 | K63: -14574
A64: 55 | B64: 417 - BRIDGE BOSTON Charter School - SOMERVILLE pupils | C64: 417035274 | D64: 417 | E64: 35 | F64: 274 | G64: 1 | H64: 1.071 | I64: 0 | J64: 12466 | K64: -12466
A65: 56 | B65: 418 - CHRISTA MCAULIFFE Charter School - ASHLAND pupils | C65: 418100014 | D65: 418 | E65: 100 | F65: 14 | G65: 1 | H65: 1.06 | I65: 0 | J65: 8655 | K65: -8655
A66: 57 | B66: 418 - CHRISTA MCAULIFFE Charter School - FRAMINGHAM pupils | C66: 418100100 | D66: 418 | E66: 100 | F66: 100 | G66: 1 | H66: 1.06 | I66: 0 | J66: 9426 | K66: -9426
A67: 58 | B67: 418 - CHRISTA MCAULIFFE Charter School - HOLLISTON pupils | C67: 418100136 | D67: 418 | E67: 100 | F67: 136 | G67: 1 | H67: 1.06 | I67: 0 | J67: 8289 | K67: -8289
A68: 59 | B68: 418 - CHRISTA MCAULIFFE Charter School - HOPKINTON pupils | C68: 418100139 | D68: 418 | E68: 100 | F68: 139 | G68: 1 | H68: 1.06 | I68: 0 | J68: 8289 | K68: -8289
A69: 60 | B69: 418 - CHRISTA MCAULIFFE Charter School - MARLBOROUGH pupils | C69: 418100170 | D69: 418 | E69: 100 | F69: 170 | G69: 1 | H69: 1.06 | I69: 0 | J69: 8899 | K69: -8899
A70: 61 | B70: 418 - CHRISTA MCAULIFFE Charter School - MEDFIELD pupils | C70: 418100175 | D70: 418 | E70: 100 | F70: 175 | G70: 1 | H70: 1.06 | I70: 0 | J70: 8289 | K70: -8289
A71: 62 | B71: 418 - CHRISTA MCAULIFFE Charter School - MEDWAY pupils | C71: 418100177 | D71: 418 | E71: 100 | F71: 177 | G71: 1 | H71: 1.06 | I71: 0 | J71: 8289 | K71: -8289
A72: 63 | B72: 418 - CHRISTA MCAULIFFE Charter School - MILFORD pupils | C72: 418100185 | D72: 418 | E72: 100 | F72: 185 | G72: 1 | H72: 1.06 | I72: 0 | J72: 8289 | K72: -8289
A73: 64 | B73: 418 - CHRISTA MCAULIFFE Charter School - NATICK pupils | C73: 418100198 | D73: 418 | E73: 100 | F73: 198 | G73: 1 | H73: 1.06 | I73: 0 | J73: 8653 | K73: -8653
A74: 65 | B74: =IF(G74=1,D74 & " - " &VLOOKUP(D74,codeCHA,2)&" Charter School - "&VLOOKUP(F74,code436,2)&" pupils",IF(OR(D74=450,D74=466),D74 & " - " &VLOOKUP(D74,codeCHA,2)&" Charter School - "&VLOOKUP(E74,code436,2)&" District - "&VLOOKUP(F74,code436,2)&" pupils",D74 & " - " &VLOOKUP(D74,codeCHA,2)&" Charter School - "&VLOOKUP(E74,code436,2)&" Campus - "&VLOOKUP(F74,code436,2)&" pupils")) -> 418 - CHRISTA MCAULIFFE Charter School - NORTHBOROUGH pupils | C74: 418100213 | D74: 418 | E74: 100 | F74: 213 | G74: 1 | H74: 1.06 | I74: 0 | J74: =IF(VLOOKUP(C74,rate_chafnd,40)>0,VLOOKUP(C74,rate_chafnd,40),VLOOKUP(F74,distinfo,6)) -> 8289 | K74: -8289
A75: 66 | B75: 418 - CHRISTA MCAULIFFE Charter School - SUDBURY pupils | C75: 418100288 | D75: =IF(VALUE(MID(C75,1,1))=4,VALUE(MID(C75,1,3)),VALUE(MID(C75,1,4))) -> 418 | E75: =IF(VALUE(MID(C75,1,1))=4,VALUE(MID(C75,4,3)),VALUE(MID(C75,5,3))) -> 100 | F75: =IF(VALUE(MID(C75,1,1))=4,VALUE(MID(C75,7,3)),VALUE(MID(C75,8,3))) -> 288 | G75: =IF(OR(D75=410,D75=466,D75=487),2,1) -> 1 | H75: =VLOOKUP(E75,distinfo,4) -> 1.06 | I75: =VLOOKUP(F75,distinfo,5) -> 0 | J75: 8289 | K75: =ROUND((J75*I75/100)-J75,0) -> -8289 | L75: =VLOOKUP(F75,distinfo,8) -> 
A76: 67 | B76: 418 - CHRISTA MCAULIFFE Charter School - MENDON UPTON pupils | C76: 418100710 | D76: 418 | E76: 100 | F76: 710 | G76: 1 | H76: 1.06 | I76: 0 | J76: 8289 | K76: -8289
A77: 68 | B77: 419 - HELEN Y. DAVIS LEADERSHIP ACADEMY Charter School - BOSTON pupils | C77: 419035035 | D77: 419 | E77: 35 | F77: 35 | G77: 1 | H77: 1.071 | I77: 0 | J77: 11379 | K77: -11379
A78: 69 | B78: 419 - HELEN Y. DAVIS LEADERSHIP ACADEMY Charter School - BROCKTON pupils | C78: 419035044 | D78: 419 | E78: 35 | F78: 44 | G78: 1 | H78: 1.071 | I78: 0 | J78: 12062 | K78: -12062
A79: 70 | B79: 419 - HELEN Y. DAVIS LEADERSHIP ACADEMY Charter School - CAMBRIDGE pupils | C79: 419035049 | D79: 419 | E79: 35 | F79: 49 | G79: 1 | H79: 1.071 | I79: 0 | J79: 12062 | K79: -12062
A80: 71 | B80: 419 - HELEN Y. DAVIS LEADERSHIP ACADEMY Charter School - HOLBROOK pupils | C80: 419035133 | D80: 419 | E80: 35 | F80: 133 | G80: 1 | H80: 1.071 | I80: 0 | J80: 12062 | K80: -12062
A81: 72 | B81: 419 - HELEN Y. DAVIS LEADERSHIP ACADEMY Charter School - RANDOLPH pupils | C81: 419035244 | D81: 419 | E81: 35 | F81: 244 | G81: 1 | H81: 1.071 | I81: 0 | J81: 11586 | K81: -11586
A82: 73 | B82: 420 - BENJAMIN BANNEKER Charter School - ARLINGTON pupils | C82: 420049010 | D82: 420 | E82: 49 | F82: 10 | G82: 1 | H82: 1.088 | I82: 0 | J82: 12382 | K82: -12382
A83: 74 | B83: 420 - BENJAMIN BANNEKER Charter School - BEDFORD pupils | C83: 420049023 | D83: 420 | E83: 49 | F83: 23 | G83: 1 | H83: 1.088 | I83: 0 | J83: 8884 | K83: -8884
A84: 75 | B84: 420 - BENJAMIN BANNEKER Charter School - BELMONT pupils | C84: 420049026 | D84: 420 | E84: 49 | F84: 26 | G84: 1 | H84: 1.088 | I84: 0 | J84: 12254 | K84: -12254
A85: 76 | B85: 420 - BENJAMIN BANNEKER Charter School - BILLERICA pupils | C85: 420049031 | D85: 420 | E85: 49 | F85: 31 | G85: 1 | H85: 1.088 | I85: 0 | J85: 11868 | K85: -11868
A86: 77 | B86: 420 - BENJAMIN BANNEKER Charter School - BOSTON pupils | C86: 420049035 | D86: 420 | E86: 49 | F86: 35 | G86: 1 | H86: 1.088 | I86: 0 | J86: 11371 | K86: -11371
A87: 78 | B87: 420 - BENJAMIN BANNEKER Charter School - BROCKTON pupils | C87: 420049044 | D87: 420 | E87: 49 | F87: 44 | G87: 1 | H87: 1.088 | I87: 0 | J87: 12639 | K87: -12639
A88: 79 | B88: 420 - BENJAMIN BANNEKER Charter School - CAMBRIDGE pupils | C88: 420049049 | D88: 420 | E88: 49 | F88: 49 | G88: 1 | H88: 1.088 | I88: 0 | J88: 11416 | K88: -11416
A89: 80 | B89: 420 - BENJAMIN BANNEKER Charter School - CHELSEA pupils | C89: 420049057 | D89: 420 | E89: 49 | F89: 57 | G89: 1 | H89: 1.088 | I89: 0 | J89: 10789 | K89: -10789
A90: 81 | B90: 420 - BENJAMIN BANNEKER Charter School - EVERETT pupils | C90: 420049093 | D90: 420 | E90: 49 | F90: 93 | G90: 1 | H90: 1.088 | I90: 0 | J90: 11678 | K90: -11678
A91: 82 | B91: 420 - BENJAMIN BANNEKER Charter School - LAWRENCE pupils | C91: 420049149 | D91: 420 | E91: 49 | F91: 149 | G91: 1 | H91: 1.088 | I91: 0 | J91: 8884 | K91: -8884
A92: 83 | B92: 420 - BENJAMIN BANNEKER Charter School - LYNN pupils | C92: 420049163 | D92: 420 | E92: 49 | F92: 163 | G92: 1 | H92: 1.088 | I92: 0 | J92: 10136 | K92: -10136
A93: 84 | B93: 420 - BENJAMIN BANNEKER Charter School - MALDEN pupils | C93: 420049165 | D93: 420 | E93: 49 | F93: 165 | G93: 1 | H93: 1.088 | I93: 0 | J93: 12639 | K93: -12639
A94: 85 | B94: 420 - BENJAMIN BANNEKER Charter School - MEDFORD pupils | C94: 420049176 | D94: 420 | E94: 49 | F94: 176 | G94: 1 | H94: 1.088 | I94: 0 | J94: 10428 | K94: -10428
A95: 86 | B95: 420 - BENJAMIN BANNEKER Charter School - METHUEN pupils | C95: 420049181 | D95: 420 | E95: 49 | F95: 181 | G95: 1 | H95: 1.088 | I95: 0 | J95: 8884 | K95: -8884
A96: 87 | B96: 420 - BENJAMIN BANNEKER Charter School - NATICK pupils | C96: 420049198 | D96: 420 | E96: 49 | F96: 198 | G96: 1 | H96: 1.088 | I96: 0 | J96: 12639 | K96: -12639
A97: 88 | B97: 420 - BENJAMIN BANNEKER Charter School - QUINCY pupils | C97: 420049243 | D97: 420 | E97: 49 | F97: 243 | G97: 1 | H97: 1.088 | I97: 0 | J97: 8884 | K97: -8884
A98: 89 | B98: 420 - BENJAMIN BANNEKER Charter School - RANDOLPH pupils | C98: 420049244 | D98: 420 | E98: 49 | F98: 244 | G98: 1 | H98: 1.088 | I98: 0 | J98: 8781 | K98: -8781
A99: 90 | B99: 420 - BENJAMIN BANNEKER Charter School - REVERE pupils | C99: 420049248 | D99: 420 | E99: 49 | F99: 248 | G99: 1 | H99: 1.088 | I99: 0 | J99: 8884 | K99: -8884
A100: 91 | B100: 420 - BENJAMIN BANNEKER Charter School - SAUGUS pupils | C100: 420049262 | D100: 420 | E100: 49 | F100: 262 | G100: 1 | H100: 1.088 | I100: 0 | J100: 12639 | K100: -12639
A101: 92 | B101: 420 - BENJAMIN BANNEKER Charter School - SOMERVILLE pupils | C101: 420049274 | D101: 420 | E101: 49 | F101: 274 | G101: 1 | H101: 1.088 | I101: 0 | J101: 12235 | K101: -12235
A102: 93 | B102: 420 - BENJAMIN BANNEKER Charter School - TAUNTON pupils | C102: 420049293 | D102: 420 | E102: 49 | F102: 293 | G102: 1 | H102: 1.088 | I102: 0 | J102: 12228 | K102: -12228
A103: 94 | B103: 420 - BENJAMIN BANNEKER Charter School - WALTHAM pupils | C103: 420049308 | D103: 420 | E103: 49 | F103: 308 | G103: 1 | H103: 1.088 | I103: 0 | J103: 12639 | K103: -12639
A104: 95 | B104: 426 - COMMUNITY DAY - GATEWAY Charter School - ANDOVER pupils | C104: 426149009 | D104: 426 | E104: 149 | F104: 9 | G104: 1 | H104: 1 | I104: 0 | J104: 13727 | K104: -13727
A105: 96 | B105: 426 - COMMUNITY DAY - GATEWAY Charter School - DRACUT pupils | C105: 426149079 | D105: 426 | E105: 149 | F105: 79 | G105: 1 | H105: 1 | I105: 0 | J105: 11746 | K105: -11746
A106: 97 | B106: 426 - COMMUNITY DAY - GATEWAY Charter School - HAVERHILL pupils | C106: 426149128 | D106: 426 | E106: 149 | F106: 128 | G106: 1 | H106: 1 | I106: 0 | J106: 11746 | K106: -11746
A107: 98 | B107: 426 - COMMUNITY DAY - GATEWAY Charter School - LAWRENCE pupils | C107: 426149149 | D107: 426 | E107: 149 | F107: 149 | G107: 1 | H107: 1 | I107: 0 | J107: 12394 | K107: -12394
A108: 99 | B108: 426 - COMMUNITY DAY - GATEWAY Charter School - METHUEN pupils | C108: 426149181 | D108: 426 | E108: 149 | F108: 181 | G108: 1 | H108: 1 | I108: 0 | J108: 11746 | K108: -11746
A109: 100 | B109: 426 - COMMUNITY DAY - GATEWAY Charter School - NORTH ANDOVER pupils | C109: 426149211 | D109: 426 | E109: 149 | F109: 211 | G109: 1 | H109: 1 | I109: 0 | J109: 13394 | K109: -13394
A110: 101 | B110: 428 - BROOKE ROSLINDALE Charter School - ATTLEBORO pupils | C110: 428035016 | D110: 428 | E110: 35 | F110: 16 | G110: 1 | H110: 1.071 | I110: 0 | J110: 12466 | K110: -12466
A111: 102 | B111: 428 - BROOKE ROSLINDALE Charter School - BOSTON pupils | C111: 428035035 | D111: 428 | E111: 35 | F111: 35 | G111: 1 | H111: 1.071 | I111: 0 | J111: 11303 | K111: -11303
A112: 103 | B112: 428 - BROOKE ROSLINDALE Charter School - BROCKTON pupils | C112: 428035044 | D112: 428 | E112: 35 | F112: 44 | G112: 1 | H112: 1.071 | I112: 0 | J112: 9425 | K112: -9425
A113: 104 | B113: 428 - BROOKE ROSLINDALE Charter School - BROOKLINE pupils | C113: 428035046 | D113: 428 | E113: 35 | F113: 46 | G113: 1 | H113: 1.071 | I113: 0 | J113: 12264 | K113: -12264
A114: 105 | B114: 428 - BROOKE ROSLINDALE Charter School - DEDHAM pupils | C114: 428035073 | D114: 428 | E114: 35 | F114: 73 | G114: 1 | H114: 1.071 | I114: 0 | J114: 11440 | K114: -11440
A115: 106 | B115: 428 - BROOKE ROSLINDALE Charter School - EASTON pupils | C115: 428035088 | D115: 428 | E115: 35 | F115: 88 | G115: 1 | H115: 1.071 | I115: 0 | J115: 8564 | K115: -8564
A116: 107 | B116: 428 - BROOKE ROSLINDALE Charter School - LYNN pupils | C116: 428035163 | D116: 428 | E116: 35 | F116: 163 | G116: 1 | H116: 1.071 | I116: 0 | J116: 12062 | K116: -12062
A117: 108 | B117: 428 - BROOKE ROSLINDALE Charter School - NORWOOD pupils | C117: 428035220 | D117: 428 | E117: 35 | F117: 220 | G117: 1 | H117: 1.071 | I117: 0 | J117: 12386 | K117: -12386
A118: 109 | B118: 428 - BROOKE ROSLINDALE Charter School - QUINCY pupils | C118: 428035243 | D118: 428 | E118: 35 | F118: 243 | G118: 1 | H118: 1.071 | I118: 0 | J118: 10887 | K118: -10887
A119: 110 | B119: 428 - BROOKE ROSLINDALE Charter School - RANDOLPH pupils | C119: 428035244 | D119: 428 | E119: 35 | F119: 244 | G119: 1 | H119: 1.071 | I119: 0 | J119: 11053 | K119: -11053
A120: 111 | B120: 428 - BROOKE ROSLINDALE Charter School - STOUGHTON pupils | C120: 428035285 | D120: 428 | E120: 35 | F120: 285 | G120: 1 | H120: 1.071 | I120: 0 | J120: 12466 | K120: -12466
A121: 112 | B121: 428 - BROOKE ROSLINDALE Charter School - BRIDGEWATER RAYNHAM pupils | C121: 428035625 | D121: 428 | E121: 35 | F121: 625 | G121: 1 | H121: 1.071 | I121: 0 | J121: 12466 | K121: -12466
A122: 113 | B122: 429 - KIPP ACADEMY LYNN Charter School - BEVERLY pupils | C122: 429163030 | D122: 429 | E122: 163 | F122: 30 | G122: 1 | H122: 1 | I122: 0 | J122: 12066 | K122: -12066
A123: 114 | B123: 429 - KIPP ACADEMY LYNN Charter School - CHELSEA pupils | C123: 429163057 | D123: 429 | E123: 163 | F123: 57 | G123: 1 | H123: 1 | I123: 0 | J123: 12853 | K123: -12853
A124: 115 | B124: 429 - KIPP ACADEMY LYNN Charter School - LYNN pupils | C124: 429163163 | D124: 429 | E124: 163 | F124: 163 | G124: 1 | H124: 1 | I124: 0 | J124: 11676 | K124: -11676
A125: 116 | B125: 429 - KIPP ACADEMY LYNN Charter School - LYNNFIELD pupils | C125: 429163164 | D125: 429 | E125: 163 | F125: 164 | G125: 1 | H125: 1 | I125: 0 | J125: 13071 | K125: -13071
A126: 117 | B126: 429 - KIPP ACADEMY LYNN Charter School - MARBLEHEAD pupils | C126: 429163168 | D126: 429 | E126: 163 | F126: 168 | G126: 1 | H126: 1 | I126: 0 | J126: 8082 | K126: -8082
A127: 118 | B127: 429 - KIPP ACADEMY LYNN Charter School - PEABODY pupils | C127: 429163229 | D127: 429 | E127: 163 | F127: 229 | G127: 1 | H127: 1 | I127: 0 | J127: 11772 | K127: -11772
A128: 119 | B128: 429 - KIPP ACADEMY LYNN Charter School - REVERE pupils | C128: 429163248 | D128: 429 | E128: 163 | F128: 248 | G128: 1 | H128: 1 | I128: 0 | J128: 11011 | K128: -11011
A129: 120 | B129: 429 - KIPP ACADEMY LYNN Charter School - SALEM pupils | C129: 429163258 | D129: 429 | E129: 163 | F129: 258 | G129: 1 | H129: 1 | I129: 0 | J129: 11412 | K129: -11412
A130: 121 | B130: 429 - KIPP ACADEMY LYNN Charter School - SAUGUS pupils | C130: 429163262 | D130: 429 | E130: 163 | F130: 262 | G130: 1 | H130: 1 | I130: 0 | J130: 12258 | K130: -12258
A131: 122 | B131: 429 - KIPP ACADEMY LYNN Charter School - SOMERVILLE pupils | C131: 429163274 | D131: 429 | E131: 163 | F131: 274 | G131: 1 | H131: 1 | I131: 0 | J131: 12416 | K131: -12416
A132: 123 | B132: 429 - KIPP ACADEMY LYNN Charter School - SWAMPSCOTT pupils | C132: 429163291 | D132: 429 | E132: 163 | F132: 291 | G132: 1 | H132: 1 | I132: 0 | J132: 9607 | K132: -9607
A133: 124 | B133: 430 - ADVANCED MATH AND SCIENCE ACADEMY Charter School - ANDOVER pupils | C133: 430170009 | D133: 430 | E133: 170 | F133: 9 | G133: 1 | H133: 1.066 | I133: 0 | J133: 9234 | K133: -9234
A134: 125 | B134: 430 - ADVANCED MATH AND SCIENCE ACADEMY Charter School - ASHLAND pupils | C134: 430170014 | D134: 430 | E134: 170 | F134: 14 | G134: 1 | H134: 1.066 | I134: 0 | J134: 9826 | K134: -9826
A135: 126 | B135: 430 - ADVANCED MATH AND SCIENCE ACADEMY Charter School - AUBURN pupils | C135: 430170017 | D135: 430 | E135: 170 | F135: 17 | G135: 1 | H135: 1.066 | I135: 0 | J135: 10140 | K135: -10140
A136: 127 | B136: 430 - ADVANCED MATH AND SCIENCE ACADEMY Charter School - BELLINGHAM pupils | C136: 430170025 | D136: 430 | E136: 170 | F136: 25 | G136: 1 | H136: 1.066 | I136: 0 | J136: 10140 | K136: -10140
A137: 128 | B137: 430 - ADVANCED MATH AND SCIENCE ACADEMY Charter School - BILLERICA pupils | C137: 430170031 | D137: 430 | E137: 170 | F137: 31 | G137: 1 | H137: 1.066 | I137: 0 | J137: 10140 | K137: -10140
A138: 129 | B138: =IF(G138=1,D138 & " - " &VLOOKUP(D138,codeCHA,2)&" Charter School - "&VLOOKUP(F138,code436,2)&" pupils",IF(OR(D138=450,D138=466),D138 & " - " &VLOOKUP(D138,codeCHA,2)&" Charter School - "&VLOOKUP(E138,code436,2)&" District - "&VLOOKUP(F138,code436,2)&" pupils",D138 & " - " &VLOOKUP(D138,codeCHA,2)&" Charter School - "&VLOOKUP(E138,code436,2)&" Campus - "&VLOOKUP(F138,code436,2)&" pupils")) -> 430 - ADVANCED MATH AND SCIENCE ACADEMY Charter School - CHELMSFORD pupils | C138: 430170056 | D138: 430 | E138: 170 | F138: 56 | G138: 1 | H138: 1.066 | I138: 0 | J138: =IF(VLOOKUP(C138,rate_chafnd,40)>0,VLOOKUP(C138,rate_chafnd,40),VLOOKUP(F138,distinfo,6)) -> 10140 | K138: -10140
A139: 130 | B139: 430 - ADVANCED MATH AND SCIENCE ACADEMY Charter School - CLINTON pupils | C139: 430170064 | D139: =IF(VALUE(MID(C139,1,1))=4,VALUE(MID(C139,1,3)),VALUE(MID(C139,1,4))) -> 430 | E139: =IF(VALUE(MID(C139,1,1))=4,VALUE(MID(C139,4,3)),VALUE(MID(C139,5,3))) -> 170 | F139: =IF(VALUE(MID(C139,1,1))=4,VALUE(MID(C139,7,3)),VALUE(MID(C139,8,3))) -> 64 | G139: =IF(OR(D139=410,D139=466,D139=487),2,1) -> 1 | H139: =VLOOKUP(E139,distinfo,4) -> 1.066 | I139: =VLOOKUP(F139,distinfo,5) -> 0 | J139: 9234 | K139: =ROUND((J139*I139/100)-J139,0) -> -9234 | L139: =VLOOKUP(F139,distinfo,8) -> 
A140: 131 | B140: 430 - ADVANCED MATH AND SCIENCE ACADEMY Charter School - FRAMINGHAM pupils | C140: 430170100 | D140: 430 | E140: 170 | F140: 100 | G140: 1 | H140: 1.066 | I140: 0 | J140: 10171 | K140: -10171
A141: 132 | B141: 430 - ADVANCED MATH AND SCIENCE ACADEMY Charter School - FRANKLIN pupils | C141: 430170101 | D141: 430 | E141: 170 | F141: 101 | G141: 1 | H141: 1.066 | I141: 0 | J141: 8328 | K141: -8328
A142: 133 | B142: 430 - ADVANCED MATH AND SCIENCE ACADEMY Charter School - GRAFTON pupils | C142: 430170110 | D142: 430 | E142: 170 | F142: 110 | G142: 1 | H142: 1.066 | I142: 0 | J142: 9748 | K142: -9748
A143: 134 | B143: 430 - ADVANCED MATH AND SCIENCE ACADEMY Charter School - HARVARD pupils | C143: 430170125 | D143: 430 | E143: 170 | F143: 125 | G143: 1 | H143: 1.066 | I143: 0 | J143: 10140 | K143: -10140
A144: 135 | B144: 430 - ADVANCED MATH AND SCIENCE ACADEMY Charter School - HOLLISTON pupils | C144: 430170136 | D144: 430 | E144: 170 | F144: 136 | G144: 1 | H144: 1.066 | I144: 0 | J144: 9234 | K144: -9234
A145: 136 | B145: 430 - ADVANCED MATH AND SCIENCE ACADEMY Charter School - HOPEDALE pupils | C145: 430170138 | D145: 430 | E145: 170 | F145: 138 | G145: 1 | H145: 1.066 | I145: 0 | J145: 10140 | K145: -10140
A146: 137 | B146: 430 - ADVANCED MATH AND SCIENCE ACADEMY Charter School - HOPKINTON pupils | C146: 430170139 | D146: 430 | E146: 170 | F146: 139 | G146: 1 | H146: 1.066 | I146: 0 | J146: 9568 | K146: -9568
A147: 138 | B147: 430 - ADVANCED MATH AND SCIENCE ACADEMY Charter School - HUDSON pupils | C147: 430170141 | D147: 430 | E147: 170 | F147: 141 | G147: 1 | H147: 1.066 | I147: 0 | J147: 9467 | K147: -9467
A148: 139 | B148: 430 - ADVANCED MATH AND SCIENCE ACADEMY Charter School - LEOMINSTER pupils | C148: 430170153 | D148: 430 | E148: 170 | F148: 153 | G148: 1 | H148: 1.066 | I148: 0 | J148: 10140 | K148: -10140
A149: 140 | B149: 430 - ADVANCED MATH AND SCIENCE ACADEMY Charter School - LITTLETON pupils | C149: 430170158 | D149: 430 | E149: 170 | F149: 158 | G149: 1 | H149: 1.066 | I149: 0 | J149: 9687 | K149: -9687
A150: 141 | B150: 430 - ADVANCED MATH AND SCIENCE ACADEMY Charter School - MARLBOROUGH pupils | C150: 430170170 | D150: 430 | E150: 170 | F150: 170 | G150: 1 | H150: 1.066 | I150: 0 | J150: 9227 | K150: -9227
A151: 142 | B151: 430 - ADVANCED MATH AND SCIENCE ACADEMY Charter School - MAYNARD pupils | C151: 430170174 | D151: 430 | E151: 170 | F151: 174 | G151: 1 | H151: 1.066 | I151: 0 | J151: 9157 | K151: -9157
A152: 143 | B152: 430 - ADVANCED MATH AND SCIENCE ACADEMY Charter School - MEDWAY pupils | C152: 430170177 | D152: 430 | E152: 170 | F152: 177 | G152: 1 | H152: 1.066 | I152: 0 | J152: 9415 | K152: -9415
A153: 144 | B153: 430 - ADVANCED MATH AND SCIENCE ACADEMY Charter School - NATICK pupils | C153: 430170198 | D153: 430 | E153: 170 | F153: 198 | G153: 1 | H153: 1.066 | I153: 0 | J153: 9914 | K153: -9914
A154: 145 | B154: 430 - ADVANCED MATH AND SCIENCE ACADEMY Charter School - NEEDHAM pupils | C154: 430170199 | D154: 430 | E154: 170 | F154: 199 | G154: 1 | H154: 1.066 | I154: 0 | J154: 8932 | K154: -8932
A155: 146 | B155: 430 - ADVANCED MATH AND SCIENCE ACADEMY Charter School - NEWTON pupils | C155: 430170207 | D155: 430 | E155: 170 | F155: 207 | G155: 1 | H155: 1.066 | I155: 0 | J155: 9687 | K155: -9687
A156: 147 | B156: 430 - ADVANCED MATH AND SCIENCE ACADEMY Charter School - NORTHBOROUGH pupils | C156: 430170213 | D156: 430 | E156: 170 | F156: 213 | G156: 1 | H156: 1.066 | I156: 0 | J156: 8328 | K156: -8328
A157: 148 | B157: 430 - ADVANCED MATH AND SCIENCE ACADEMY Charter School - NORTHBRIDGE pupils | C157: 430170214 | D157: 430 | E157: 170 | F157: 214 | G157: 1 | H157: 1.066 | I157: 0 | J157: 10140 | K157: -10140
A158: 149 | B158: 430 - ADVANCED MATH AND SCIENCE ACADEMY Charter School - SHREWSBURY pupils | C158: 430170271 | D158: 430 | E158: 170 | F158: 271 | G158: 1 | H158: 1.066 | I158: 0 | J158: 9831 | K158: -9831
A159: 150 | B159: 430 - ADVANCED MATH AND SCIENCE ACADEMY Charter School - SOUTHBOROUGH pupils | C159: 430170276 | D159: 430 | E159: 170 | F159: 276 | G159: 1 | H159: 1.066 | I159: 0 | J159: 8328 | K159: -8328
A160: 151 | B160: 430 - ADVANCED MATH AND SCIENCE ACADEMY Charter School - UXBRIDGE pupils | C160: 430170304 | D160: 430 | E160: 170 | F160: 304 | G160: 1 | H160: 1.066 | I160: 0 | J160: 10140 | K160: -10140
A161: 152 | B161: 430 - ADVANCED MATH AND SCIENCE ACADEMY Charter School - WALTHAM pupils | C161: 430170308 | D161: 430 | E161: 170 | F161: 308 | G161: 1 | H161: 1.066 | I161: 0 | J161: 9536 | K161: -9536
A162: 153 | B162: 430 - ADVANCED MATH AND SCIENCE ACADEMY Charter School - WATERTOWN pupils | C162: 430170314 | D162: 430 | E162: 170 | F162: 314 | G162: 1 | H162: 1.066 | I162: 0 | J162: 9234 | K162: -9234
A163: 154 | B163: 430 - ADVANCED MATH AND SCIENCE ACADEMY Charter School - WELLESLEY pupils | C163: 430170317 | D163: 430 | E163: 170 | F163: 317 | G163: 1 | H163: 1.066 | I163: 0 | J163: 10140 | K163: -10140
A164: 155 | B164: 430 - ADVANCED MATH AND SCIENCE ACADEMY Charter School - WESTBOROUGH pupils | C164: 430170321 | D164: 430 | E164: 170 | F164: 321 | G164: 1 | H164: 1.066 | I164: 0 | J164: 9105 | K164: -9105
A165: 156 | B165: 430 - ADVANCED MATH AND SCIENCE ACADEMY Charter School - WEST BOYLSTON pupils | C165: 430170322 | D165: 430 | E165: 170 | F165: 322 | G165: 1 | H165: 1.066 | I165: 0 | J165: 9415 | K165: -9415
A166: 157 | B166: 430 - ADVANCED MATH AND SCIENCE ACADEMY Charter School - WESTFORD pupils | C166: 430170326 | D166: 430 | E166: 170 | F166: 326 | G166: 1 | H166: 1.066 | I166: 0 | J166: 9536 | K166: -9536
A167: 158 | B167: 430 - ADVANCED MATH AND SCIENCE ACADEMY Charter School - WORCESTER pupils | C167: 430170348 | D167: 430 | E167: 170 | F167: 348 | G167: 1 | H167: 1.066 | I167: 0 | J167: 10211 | K167: -10211
A168: 159 | B168: 430 - ADVANCED MATH AND SCIENCE ACADEMY Charter School - ACTON BOXBOROUGH pupils | C168: 430170600 | D168: 430 | E168: 170 | F168: 600 | G168: 1 | H168: 1.066 | I168: 0 | J168: 8328 | K168: -8328
A169: 160 | B169: 430 - ADVANCED MATH AND SCIENCE ACADEMY Charter School - AYER SHIRLEY pupils | C169: 430170616 | D169: 430 | E169: 170 | F169: 616 | G169: 1 | H169: 1.066 | I169: 0 | J169: 9536 | K169: -9536
A170: 161 | B170: 430 - ADVANCED MATH AND SCIENCE ACADEMY Charter School - BERLIN BOYLSTON pupils | C170: 430170620 | D170: 430 | E170: 170 | F170: 620 | G170: 1 | H170: 1.066 | I170: 0 | J170: 9763 | K170: -9763
A171: 162 | B171: 430 - ADVANCED MATH AND SCIENCE ACADEMY Charter School - LINCOLN SUDBURY pupils | C171: 430170695 | D171: 430 | E171: 170 | F171: 695 | G171: 1 | H171: 1.066 | I171: 0 | J171: 10140 | K171: -10140
A172: 163 | B172: 430 - ADVANCED MATH AND SCIENCE ACADEMY Charter School - MENDON UPTON pupils | C172: 430170710 | D172: 430 | E172: 170 | F172: 710 | G172: 1 | H172: 1.066 | I172: 0 | J172: 9778 | K172: -9778
A173: 164 | B173: 430 - ADVANCED MATH AND SCIENCE ACADEMY Charter School - NASHOBA pupils | C173: 430170725 | D173: 430 | E173: 170 | F173: 725 | G173: 1 | H173: 1.066 | I173: 0 | J173: 9778 | K173: -9778
A174: 165 | B174: 430 - ADVANCED MATH AND SCIENCE ACADEMY Charter School - NORTHBORO SOUTHBORO pupils | C174: 430170730 | D174: 430 | E174: 170 | F174: 730 | G174: 1 | H174: 1.066 | I174: 0 | J174: 10140 | K174: -10140
A175: 166 | B175: 430 - ADVANCED MATH AND SCIENCE ACADEMY Charter School - NORTH MIDDLESEX pupils | C175: 430170735 | D175: 430 | E175: 170 | F175: 735 | G175: 1 | H175: 1.066 | I175: 0 | J175: 9536 | K175: -9536
A176: 167 | B176: 430 - ADVANCED MATH AND SCIENCE ACADEMY Charter School - WACHUSETT pupils | C176: 430170775 | D176: 430 | E176: 170 | F176: 775 | G176: 1 | H176: 1.066 | I176: 0 | J176: 10140 | K176: -10140
A177: 168 | B177: 431 - COMMUNITY DAY - R. KINGMAN WEBSTER Charter School - HAVERHILL pupils | C177: 431149128 | D177: 431 | E177: 149 | F177: 128 | G177: 1 | H177: 1 | I177: 0 | J177: 11746 | K177: -11746
A178: 169 | B178: 431 - COMMUNITY DAY - R. KINGMAN WEBSTER Charter School - LAWRENCE pupils | C178: 431149149 | D178: 431 | E178: 149 | F178: 149 | G178: 1 | H178: 1 | I178: 0 | J178: 11630 | K178: -11630
A179: 170 | B179: 431 - COMMUNITY DAY - R. KINGMAN WEBSTER Charter School - METHUEN pupils | C179: 431149181 | D179: 431 | E179: 149 | F179: 181 | G179: 1 | H179: 1 | I179: 0 | J179: 11868 | K179: -11868
A180: 171 | B180: 432 - CAPE COD LIGHTHOUSE Charter School - BARNSTABLE pupils | C180: 432712020 | D180: 432 | E180: 712 | F180: 20 | G180: 1 | H180: 1 | I180: 0 | J180: 8307 | K180: -8307
A181: 172 | B181: 432 - CAPE COD LIGHTHOUSE Charter School - MASHPEE pupils | C181: 432712172 | D181: 432 | E181: 712 | F181: 172 | G181: 1 | H181: 1 | I181: 0 | J181: 7892 | K181: -7892
A182: 173 | B182: 432 - CAPE COD LIGHTHOUSE Charter School - PROVINCETOWN pupils | C182: 432712242 | D182: 432 | E182: 712 | F182: 242 | G182: 1 | H182: 1 | I182: 0 | J182: 9629 | K182: -9629
A183: 174 | B183: 432 - CAPE COD LIGHTHOUSE Charter School - SANDWICH pupils | C183: 432712261 | D183: 432 | E183: 712 | F183: 261 | G183: 1 | H183: 1 | I183: 0 | J183: 8664 | K183: -8664
A184: 175 | B184: 432 - CAPE COD LIGHTHOUSE Charter School - TRURO pupils | C184: 432712300 | D184: 432 | E184: 712 | F184: 300 | G184: 1 | H184: 1 | I184: 0 | J184: 9629 | K184: -9629
A185: 176 | B185: 432 - CAPE COD LIGHTHOUSE Charter School - DENNIS YARMOUTH pupils | C185: 432712645 | D185: 432 | E185: 712 | F185: 645 | G185: 1 | H185: 1 | I185: 0 | J185: 8247 | K185: -8247
A186: 177 | B186: 432 - CAPE COD LIGHTHOUSE Charter School - NAUSET pupils | C186: 432712660 | D186: 432 | E186: 712 | F186: 660 | G186: 1 | H186: 1 | I186: 0 | J186: 8830 | K186: -8830
A187: 178 | B187: 432 - CAPE COD LIGHTHOUSE Charter School - MONOMOY pupils | C187: 432712712 | D187: 432 | E187: 712 | F187: 712 | G187: 1 | H187: 1 | I187: 0 | J187: 8741 | K187: -8741
A188: 179 | B188: 435 - INNOVATION ACADEMY Charter School - BILLERICA pupils | C188: 435301031 | D188: 435 | E188: 301 | F188: 31 | G188: 1 | H188: 1 | I188: 0 | J188: 9102 | K188: -9102
A189: 180 | B189: 435 - INNOVATION ACADEMY Charter School - BURLINGTON pupils | C189: 435301048 | D189: 435 | E189: 301 | F189: 48 | G189: 1 | H189: 1 | I189: 0 | J189: 9607 | K189: -9607
A190: 181 | B190: 435 - INNOVATION ACADEMY Charter School - CHELMSFORD pupils | C190: 435301056 | D190: 435 | E190: 301 | F190: 56 | G190: 1 | H190: 1 | I190: 0 | J190: 8779 | K190: -8779
A191: 182 | B191: 435 - INNOVATION ACADEMY Charter School - CLINTON pupils | C191: 435301064 | D191: 435 | E191: 301 | F191: 64 | G191: 1 | H191: 1 | I191: 0 | J191: 9607 | K191: -9607
A192: 183 | B192: 435 - INNOVATION ACADEMY Charter School - DRACUT pupils | C192: 435301079 | D192: 435 | E192: 301 | F192: 79 | G192: 1 | H192: 1 | I192: 0 | J192: 9026 | K192: -9026
A193: 184 | B193: 435 - INNOVATION ACADEMY Charter School - LAWRENCE pupils | C193: 435301149 | D193: 435 | E193: 301 | F193: 149 | G193: 1 | H193: 1 | I193: 0 | J193: 9607 | K193: -9607
A194: 185 | B194: 435 - INNOVATION ACADEMY Charter School - LEXINGTON pupils | C194: 435301155 | D194: 435 | E194: 301 | F194: 155 | G194: 1 | H194: 1 | I194: 0 | J194: 8749 | K194: -8749
A195: 186 | B195: 435 - INNOVATION ACADEMY Charter School - LOWELL pupils | C195: 435301160 | D195: 435 | E195: 301 | F195: 160 | G195: 1 | H195: 1 | I195: 0 | J195: 9685 | K195: -9685
A196: 187 | B196: 435 - INNOVATION ACADEMY Charter School - METHUEN pupils | C196: 435301181 | D196: 435 | E196: 301 | F196: 181 | G196: 1 | H196: 1 | I196: 0 | J196: 9607 | K196: -9607
A197: 188 | B197: 435 - INNOVATION ACADEMY Charter School - TEWKSBURY pupils | C197: 435301295 | D197: 435 | E197: 301 | F197: 295 | G197: 1 | H197: 1 | I197: 0 | J197: 9000 | K197: -9000
A198: 189 | B198: 435 - INNOVATION ACADEMY Charter School - TYNGSBOROUGH pupils | C198: 435301301 | D198: 435 | E198: 301 | F198: 301 | G198: 1 | H198: 1 | I198: 0 | J198: 9466 | K198: -9466
A199: 190 | B199: 435 - INNOVATION ACADEMY Charter School - WESTFORD pupils | C199: 435301326 | D199: 435 | E199: 301 | F199: 326 | G199: 1 | H199: 1 | I199: 0 | J199: 9178 | K199: -9178
A200: 191 | B200: 435 - INNOVATION ACADEMY Charter School - WILMINGTON pupils | C200: 435301342 | D200: 435 | E200: 301 | F200: 342 | G200: 1 | H200: 1 | I200: 0 | J200: 9607 | K200: -9607
A201: 192 | B201: 435 - INNOVATION ACADEMY Charter School - ACTON BOXBOROUGH pupils | C201: 435301600 | D201: 435 | E201: 301 | F201: 600 | G201: 1 | H201: 1 | I201: 0 | J201: 9607 | K201: -9607
A202: 193 | B202: =IF(G202=1,D202 & " - " &VLOOKUP(D202,codeCHA,2)&" Charter School - "&VLOOKUP(F202,code436,2)&" pupils",IF(OR(D202=450,D202=466),D202 & " - " &VLOOKUP(D202,codeCHA,2)&" Charter School - "&VLOOKUP(E202,code436,2)&" District - "&VLOOKUP(F202,code436,2)&" pupils",D202 & " - " &VLOOKUP(D202,codeCHA,2)&" Charter School - "&VLOOKUP(E202,code436,2)&" Campus - "&VLOOKUP(F202,code436,2)&" pupils")) -> 435 - INNOVATION ACADEMY Charter School - CONCORD CARLISLE pupils | C202: 435301640 | D202: 435 | E202: 301 | F202: 640 | G202: 1 | H202: 1 | I202: 0 | J202: =IF(VLOOKUP(C202,rate_chafnd,40)>0,VLOOKUP(C202,rate_chafnd,40),VLOOKUP(F202,distinfo,6)) -> 9607 | K202: -9607
A203: 194 | B203: 435 - INNOVATION ACADEMY Charter School - GROTON DUNSTABLE pupils | C203: 435301673 | D203: =IF(VALUE(MID(C203,1,1))=4,VALUE(MID(C203,1,3)),VALUE(MID(C203,1,4))) -> 435 | E203: =IF(VALUE(MID(C203,1,1))=4,VALUE(MID(C203,4,3)),VALUE(MID(C203,5,3))) -> 301 | F203: =IF(VALUE(MID(C203,1,1))=4,VALUE(MID(C203,7,3)),VALUE(MID(C203,8,3))) -> 673 | G203: =IF(OR(D203=410,D203=466,D203=487),2,1) -> 1 | H203: =VLOOKUP(E203,distinfo,4) -> 1 | I203: =VLOOKUP(F203,distinfo,5) -> 0 | J203: 8670 | K203: =ROUND((J203*I203/100)-J203,0) -> -8670 | L203: =VLOOKUP(F203,distinfo,8) -> 
A204: 195 | B204: 435 - INNOVATION ACADEMY Charter School - NORTH MIDDLESEX pupils | C204: 435301735 | D204: 435 | E204: 301 | F204: 735 | G204: 1 | H204: 1 | I204: 0 | J204: 9607 | K204: -9607
A205: 196 | B205: 436 - COMMUNITY CS OF CAMBRIDGE Charter School - ABINGTON pupils | C205: 436049001 | D205: 436 | E205: 49 | F205: 1 | G205: 1 | H205: 1.088 | I205: 0 | J205: 9396 | K205: -9396
A206: 197 | B206: 436 - COMMUNITY CS OF CAMBRIDGE Charter School - ARLINGTON pupils | C206: 436049010 | D206: 436 | E206: 49 | F206: 10 | G206: 1 | H206: 1.088 | I206: 0 | J206: 10344 | K206: -10344
... 577 more rows

Sheet distinfo (hidden)
A1: Massachusetts Department of Elementary and Secondary Education
A2: Office of School Finance
A3: District Wage Factors
C7: Op
A8: Lea | B8: District | C8: Status | D8: WAF
A10: 1 | B10: ABINGTON | C10: 1 | D10: 1
A11: 2 | B11: ACTON | C11: 0 | D11: 1.04
A12: 3 | B12: ACUSHNET | C12: 1 | D12: 1
A13: 4 | B13: ADAMS | C13: 0 | D13: 1
A14: 5 | B14: AGAWAM | C14: 1 | D14: 1
A15: 6 | B15: ALFORD | C15: 0 | D15: 1
A16: 7 | B16: AMESBURY | C16: 1 | D16: 1
A17: 8 | B17: AMHERST | C17: 1 | D17: 1
A18: 9 | B18: ANDOVER | C18: 1 | D18: 1.073
A19: 10 | B19: ARLINGTON | C19: 1 | D19: 1.03
A20: 11 | B20: ASHBURNHAM | C20: 0 | D20: 1
A21: 12 | B21: ASHBY | C21: 0 | D21: 1
A22: 13 | B22: ASHFIELD | C22: 0 | D22: 1
A23: 14 | B23: ASHLAND | C23: 1 | D23: 1.027
A24: 15 | B24: ATHOL | C24: 0 | D24: 1
A25: 16 | B25: ATTLEBORO | C25: 1 | D25: 1
A26: 17 | B26: AUBURN | C26: 1 | D26: 1
A27: 18 | B27: AVON | C27: 1 | D27: 1
A28: 19 | B28: AYER | C28: 0 | D28: 1.038
A29: 20 | B29: BARNSTABLE | C29: 1 | D29: 1
A30: 21 | B30: BARRE | C30: 0 | D30: 1
A31: 22 | B31: BECKET | C31: 0 | D31: 1
A32: 23 | B32: BEDFORD | C32: 1 | D32: 1.079
A33: 24 | B33: BELCHERTOWN | C33: 1 | D33: 1
A34: 25 | B34: BELLINGHAM | C34: 1 | D34: 1
A35: 26 | B35: BELMONT | C35: 1 | D35: 1.034
A36: 27 | B36: BERKLEY | C36: 1 | D36: 1
A37: 28 | B37: BERLIN | C37: 1 | D37: 1.018
A38: 29 | B38: BERNARDSTON | C38: 0 | D38: 1
A39: 30 | B39: BEVERLY | C39: 1 | D39: 1.044
A40: 31 | B40: BILLERICA | C40: 1 | D40: 1.009
A41: 32 | B41: BLACKSTONE | C41: 0 | D41: 1
A42: 33 | B42: BLANDFORD | C42: 0 | D42: 1
A43: 34 | B43: BOLTON | C43: 0 | D43: 1.039
A44: 35 | B44: BOSTON | C44: 1 | D44: 1.071
A45: 36 | B45: BOURNE | C45: 1 | D45: 1
A46: 37 | B46: BOXBOROUGH | C46: 0 | D46: 1.124
A47: 38 | B47: BOXFORD | C47: 1 | D47: 1.036
A48: 39 | B48: BOYLSTON | C48: 1 | D48: 1
A49: 40 | B49: BRAINTREE | C49: 1 | D49: 1.035
A50: 41 | B50: BREWSTER | C50: 1 | D50: 1
A51: 42 | B51: BRIDGEWATER | C51: 0 | D51: 1
A52: 43 | B52: BRIMFIELD | C52: 1 | D52: 1
A53: 44 | B53: BROCKTON | C53: 1 | D53: 1
A54: 45 | B54: BROOKFIELD | C54: 1 | D54: 1
A55: 46 | B55: BROOKLINE | C55: 1 | D55: 1.052
A56: 47 | B56: BUCKLAND | C56: 0 | D56: 1
A57: 48 | B57: BURLINGTON | C57: 1 | D57: 1.076
A58: 49 | B58: CAMBRIDGE | C58: 1 | D58: 1.088
A59: 50 | B59: CANTON | C59: 1 | D59: 1.056
A60: 51 | B60: CARLISLE | C60: 1 | D60: 1.045
A61: 52 | B61: CARVER | C61: 1 | D61: 1.02
A62: 53 | B62: CHARLEMONT | C62: 0 | D62: 1
A63: 54 | B63: CHARLTON | C63: 0 | D63: 1
A64: 55 | B64: CHATHAM | C64: 0 | D64: 1
A65: 56 | B65: CHELMSFORD | C65: 1 | D65: 1.005
A66: 57 | B66: CHELSEA | C66: 1 | D66: 1.03
A67: 58 | B67: CHESHIRE | C67: 0 | D67: 1
A68: 59 | B68: CHESTER | C68: 0 | D68: 1
A69: 60 | B69: CHESTERFIELD | C69: 0 | D69: 1
A70: 61 | B70: CHICOPEE | C70: 1 | D70: 1
A71: 62 | B71: CHILMARK | C71: 0 | D71: 1
A72: 63 | B72: CLARKSBURG | C72: 1 | D72: 1
A73: 64 | B73: CLINTON | C73: 1 | D73: 1
A74: 65 | B74: COHASSET | C74: 1 | D74: 1.02
A75: 66 | B75: COLRAIN | C75: 0 | D75: 1
A76: 67 | B76: CONCORD | C76: 1 | D76: 1.059
A77: 68 | B77: CONWAY | C77: 1 | D77: 1
A78: 69 | B78: CUMMINGTON | C78: 0 | D78: 1
A79: 70 | B79: DALTON | C79: 0 | D79: 1
A80: 71 | B80: DANVERS | C80: 1 | D80: 1
A81: 72 | B81: DARTMOUTH | C81: 1 | D81: 1
A82: 73 | B82: DEDHAM | C82: 1 | D82: 1.03
A83: 74 | B83: DEERFIELD | C83: 1 | D83: 1
A84: 75 | B84: DENNIS | C84: 0 | D84: 1
A85: 76 | B85: DIGHTON | C85: 0 | D85: 1
A86: 77 | B86: DOUGLAS | C86: 1 | D86: 1
A87: 78 | B87: DOVER | C87: 1 | D87: 1.043
A88: 79 | B88: DRACUT | C88: 1 | D88: 1
A89: 80 | B89: DUDLEY | C89: 0 | D89: 1
A90: 81 | B90: DUNSTABLE | C90: 0 | D90: 1
A91: 82 | B91: DUXBURY | C91: 1 | D91: 1.032
A92: 83 | B92: EAST BRIDGEWATER | C92: 1 | D92: 1
A93: 84 | B93: EAST BROOKFIELD | C93: 0 | D93: 1
A94: 85 | B94: EASTHAM | C94: 1 | D94: 1
A95: 86 | B95: EASTHAMPTON | C95: 1 | D95: 1
A96: 87 | B96: EAST LONGMEADOW | C96: 1 | D96: 1
A97: 88 | B97: EASTON | C97: 1 | D97: 1
A98: 89 | B98: EDGARTOWN | C98: 1 | D98: 1
A99: 90 | B99: EGREMONT | C99: 0 | D99: 1
A100: 91 | B100: ERVING | C100: 1 | D100: 1
A101: 92 | B101: ESSEX | C101: 0 | D101: 1.026
A102: 93 | B102: EVERETT | C102: 1 | D102: 1.039
A103: 94 | B103: FAIRHAVEN | C103: 1 | D103: 1
A104: 95 | B104: FALL RIVER | C104: 1 | D104: 1
A105: 96 | B105: FALMOUTH | C105: 1 | D105: 1
A106: 97 | B106: FITCHBURG | C106: 1 | D106: 1
A107: 98 | B107: FLORIDA | C107: 1 | D107: 1
A108: 99 | B108: FOXBOROUGH | C108: 1 | D108: 1.046
A109: 100 | B109: FRAMINGHAM | C109: 1 | D109: 1.06
A110: 101 | B110: FRANKLIN | C110: 1 | D110: 1.039
A111: 102 | B111: FREETOWN | C111: 0 | D111: 1
A112: 103 | B112: GARDNER | C112: 1 | D112: 1
A113: 104 | B113: AQUINNAH | C113: 0 | D113: 1
A114: 105 | B114: GEORGETOWN | C114: 1 | D114: 1
A115: 106 | B115: GILL | C115: 0 | D115: 1
A116: 107 | B116: GLOUCESTER | C116: 1 | D116: 1.039
A117: 108 | B117: GOSHEN | C117: 0 | D117: 1
A118: 109 | B118: GOSNOLD | C118: 0 | D118: 1
A119: 110 | B119: GRAFTON | C119: 1 | D119: 1
A120: 111 | B120: GRANBY | C120: 1 | D120: 1
A121: 112 | B121: GRANVILLE | C121: 0 | D121: 1
A122: 113 | B122: GREAT BARRINGTON | C122: 0 | D122: 1
A123: 114 | B123: GREENFIELD | C123: 1 | D123: 1
A124: 115 | B124: GROTON | C124: 0 | D124: 1.031
A125: 116 | B125: GROVELAND | C125: 0 | D125: 1
A126: 117 | B126: HADLEY | C126: 1 | D126: 1
A127: 118 | B127: HALIFAX | C127: 1 | D127: 1
A128: 119 | B128: HAMILTON | C128: 0 | D128: 1.029
A129: 120 | B129: HAMPDEN | C129: 0 | D129: 1
A130: 121 | B130: HANCOCK | C130: 1 | D130: 1
A131: 122 | B131: HANOVER | C131: 1 | D131: 1.025
A132: 123 | B132: HANSON | C132: 0 | D132: 1
A133: 124 | B133: HARDWICK | C133: 0 | D133: 1
A134: 125 | B134: HARVARD | C134: 1 | D134: 1.056
A135: 126 | B135: HARWICH | C135: 0 | D135: 1
A136: 127 | B136: HATFIELD | C136: 1 | D136: 1
A137: 128 | B137: HAVERHILL | C137: 1 | D137: 1
A138: 129 | B138: HAWLEY | C138: 0 | D138: 1
A139: 130 | B139: HEATH | C139: 0 | D139: 1
A140: 131 | B140: HINGHAM | C140: 1 | D140: 1.035
A141: 132 | B141: HINSDALE | C141: 0 | D141: 1
A142: 133 | B142: HOLBROOK | C142: 1 | D142: 1.029
A143: 134 | B143: HOLDEN | C143: 0 | D143: 1
A144: 135 | B144: HOLLAND | C144: 1 | D144: 1
A145: 136 | B145: HOLLISTON | C145: 1 | D145: 1.051
A146: 137 | B146: HOLYOKE | C146: 1 | D146: 1
A147: 138 | B147: HOPEDALE | C147: 1 | D147: 1.038
A148: 139 | B148: HOPKINTON | C148: 1 | D148: 1.088
A149: 140 | B149: HUBBARDSTON | C149: 0 | D149: 1
A150: 141 | B150: HUDSON | C150: 1 | D150: 1.046
A151: 142 | B151: HULL | C151: 1 | D151: 1.019
A152: 143 | B152: HUNTINGTON | C152: 0 | D152: 1
A153: 144 | B153: IPSWICH | C153: 1 | D153: 1.044
A154: 145 | B154: KINGSTON | C154: 1 | D154: 1.02
A155: 146 | B155: LAKEVILLE | C155: 0 | D155: 1
A156: 147 | B156: LANCASTER | C156: 0 | D156: 1
A157: 148 | B157: LANESBOROUGH | C157: 1 | D157: 1
A158: 149 | B158: LAWRENCE | C158: 1 | D158: 1
A159: 150 | B159: LEE | C159: 1 | D159: 1
A160: 151 | B160: LEICESTER | C160: 1 | D160: 1
A161: 152 | B161: LENOX | C161: 1 | D161: 1
A162: 153 | B162: LEOMINSTER | C162: 1 | D162: 1
A163: 154 | B163: LEVERETT | C163: 1 | D163: 1
A164: 155 | B164: LEXINGTON | C164: 1 | D164: 1.082
A165: 156 | B165: LEYDEN | C165: 0 | D165: 1
A166: 157 | B166: LINCOLN | C166: 1 | D166: 1.053
A167: 158 | B167: LITTLETON | C167: 1 | D167: 1.075
A168: 159 | B168: LONGMEADOW | C168: 1 | D168: 1
A169: 160 | B169: LOWELL | C169: 1 | D169: 1
A170: 161 | B170: LUDLOW | C170: 1 | D170: 1
A171: 162 | B171: LUNENBURG | C171: 1 | D171: 1
A172: 163 | B172: LYNN | C172: 1 | D172: 1
A173: 164 | B173: LYNNFIELD | C173: 1 | D173: 1.033
A174: 165 | B174: MALDEN | C174: 1 | D174: 1.032
A175: 166 | B175: MANCHESTER | C175: 0 | D175: 1.032
A176: 167 | B176: MANSFIELD | C176: 1 | D176: 1.061
A177: 168 | B177: MARBLEHEAD | C177: 1 | D177: 1
A178: 169 | B178: MARION | C178: 1 | D178: 1
A179: 170 | B179: MARLBOROUGH | C179: 1 | D179: 1.066
A180: 171 | B180: MARSHFIELD | C180: 1 | D180: 1.023
A181: 172 | B181: MASHPEE | C181: 1 | D181: 1
A182: 173 | B182: MATTAPOISETT | C182: 1 | D182: 1
A183: 174 | B183: MAYNARD | C183: 1 | D183: 1.063
A184: 175 | B184: MEDFIELD | C184: 1 | D184: 1.028
A185: 176 | B185: MEDFORD | C185: 1 | D185: 1.04
A186: 177 | B186: MEDWAY | C186: 1 | D186: 1.029
A187: 178 | B187: MELROSE | C187: 1 | D187: 1.029
A188: 179 | B188: MENDON | C188: 0 | D188: 1.022
A189: 180 | B189: MERRIMAC | C189: 0 | D189: 1
A190: 181 | B190: METHUEN | C190: 1 | D190: 1
A191: 182 | B191: MIDDLEBOROUGH | C191: 1 | D191: 1
A192: 183 | B192: MIDDLEFIELD | C192: 0 | D192: 1
A193: 184 | B193: MIDDLETON | C193: 1 | D193: 1.033
A194: 185 | B194: MILFORD | C194: 1 | D194: 1.052
A195: 186 | B195: MILLBURY | C195: 1 | D195: 1
A196: 187 | B196: MILLIS | C196: 1 | D196: 1.019
A197: 188 | B197: MILLVILLE | C197: 0 | D197: 1
A198: 189 | B198: MILTON | C198: 1 | D198: 1.032
A199: 190 | B199: MONROE | C199: 0 | D199: 1
A200: 191 | B200: MONSON | C200: 1 | D200: 1
A201: 192 | B201: MONTAGUE | C201: 0 | D201: 1
A202: 193 | B202: MONTEREY | C202: 0 | D202: 1
A203: 194 | B203: MONTGOMERY | C203: 0 | D203: 1
A204: 195 | B204: MOUNT WASHINGTON | C204: 0 | D204: 1
... 247 more rows

Sheet fnd enro (hidden)
S1: Source: 16 - PROJc fnd enro.xls
A6: FOUNDATION ENROLLMENT | S6: SIMS OCTOBER 1 DATA
C7: Regular Education | I7: Sped | K7: LEP | O7: Low Income | Q7: TOTAL | U7: Regular Education | AA7: Sped | AB7: LEP | AE7: Voke | AF7: Low Income | AL7: Cha | AM7: Loc | AN7: Sending
A8: chalocsend | B8: charter school | C8: PK | D8: K2 | E8: K | F8: G1-5 | G8: G6-8 | H8: G9-12 | I8: In | J8: Tuit | K8: PK | L8: K2 | M8: GKF-12 | N8: Voke | O8: G1-8 | P8: Rest | Q8: Enro | S8: chalocsend | T8: charter school | U8: PK | V8: K2 | W8: K | X8: G1-5 | Y8: G6-8 | Z8: G9-12 | AA8: PK | AB8: PK | AC8: K2 | AD8: GKF-12 | AE8: All | AF8: G1-8 | AG8: PK | AH8: K2 | AI8: KF | AJ8: G9-12 | AL8: LEA | AM8: LEA | AN8: LEA
A10: 409201094 | B10: ALMA DEL MAR | C10: =ROUND(U10,0) -> 0 | D10: 0 | E10: 0 | F10: 2 | G10: 0 | H10: 0 | I10: =ROUND(0.0375*(SUM(E10:H10)+ROUND(D10*0.5,4)+ROUND(L10*0.5,4)+M10),4)+ROUND((0.0475)*N10,4) -> 0.075 | K10: =ROUND(AB10,0) -> 0 | L10: =ROUND(AC10,0) -> 0 | M10: =ROUND(AD10,0) -> 0 | N10: =ROUND(AE10,0) -> 0 | O10: =ROUND(AF10,0) -> 2 | P10: =ROUND((AG10+AH10)/2,0)+ROUND(AI10+AJ10,0) -> 0 | Q10: =SUM(E10:H10)+M10+N10+ROUND(C10*0.5,0)+ROUND(D10*0.5,0)+ROUND(K10*0.5,0)+ROUND(L10*0.5,0) -> 2 | S10: 409201094 | T10: ALMA DEL MAR | U10: 0 | V10: 0 | W10: 0 | X10: 2 | Y10: 0 | Z10: 0 | AA10: 0 | AB10: 0 | AC10: 0 | AD10: 0 | AE10: 0 | AF10: 2 | AG10: 0 | AH10: 0 | AI10: 0 | AJ10: 0 | AL10: 409 | AM10: 201 | AN10: 094
A11: 409201201 | B11: ALMA DEL MAR | C11: =ROUND(U11,0) -> 0 | D11: =ROUND(V11,0) -> 0 | E11: =ROUND(W11,0) -> 29 | F11: =ROUND(X11,0) -> 182 | G11: =ROUND(Y11,0) -> 0 | H11: =ROUND(Z11,0) -> 0 | I11: =ROUND(0.0375*(SUM(E11:H11)+ROUND(D11*0.5,4)+ROUND(L11*0.5,4)+M11),4)+ROUND((0.0475)*N11,4) -> 8.925 | K11: =ROUND(AB11,0) -> 0 | L11: =ROUND(AC11,0) -> 0 | M11: =ROUND(AD11,0) -> 27 | N11: =ROUND(AE11,0) -> 0 | O11: =ROUND(AF11,0) -> 157 | P11: =ROUND((AG11+AH11)/2,0)+ROUND(AI11+AJ11,0) -> 31 | Q11: =SUM(E11:H11)+M11+N11+ROUND(C11*0.5,0)+ROUND(D11*0.5,0)+ROUND(K11*0.5,0)+ROUND(L11*0.5,0) -> 238 | S11: 409201201 | T11: ALMA DEL MAR | U11: 0 | V11: 0 | W11: 29 | X11: 182 | Y11: 0 | Z11: 0 | AA11: 0 | AB11: 0 | AC11: 0 | AD11: 27 | AE11: 0 | AF11: 157 | AG11: 0 | AH11: 0 | AI11: 31 | AJ11: 0 | AL11: 409 | AM11: 201 | AN11: 201
A12: 410035035 | B12: EXCEL ACADEMY | C12: 0 | D12: 0 | E12: 0 | F12: 36 | G12: 186 | H12: 0 | I12: 10.5 | K12: 0 | L12: 0 | M12: 58 | N12: 0 | O12: 221 | P12: 0 | Q12: 280 | S12: 410035035 | T12: EXCEL ACADEMY | U12: 0 | V12: 0 | W12: 0 | X12: 36 | Y12: 186 | Z12: 0 | AA12: 0 | AB12: 0 | AC12: 0 | AD12: 58 | AE12: 0 | AF12: 221 | AG12: 0 | AH12: 0 | AI12: 0 | AJ12: 0 | AL12: 410 | AM12: 035 | AN12: 035
A13: 410035057 | B13: EXCEL ACADEMY | C13: 0 | D13: 0 | E13: 0 | F13: 27 | G13: 47 | H13: 0 | I13: 3.6 | K13: 0 | L13: 0 | M13: 22 | N13: 0 | O13: 72 | P13: 0 | Q13: 96 | S13: 410035057 | T13: EXCEL ACADEMY | U13: 0 | V13: 0 | W13: 0 | X13: 27 | Y13: 47 | Z13: 0 | AA13: 0 | AB13: 0 | AC13: 0 | AD13: 22 | AE13: 0 | AF13: 72 | AG13: 0 | AH13: 0 | AI13: 0 | AJ13: 0 | AL13: 410 | AM13: 035 | AN13: 057
A14: 410035093 | B14: EXCEL ACADEMY | C14: 0 | D14: 0 | E14: 0 | F14: 1 | G14: 1 | H14: 0 | I14: 0.075 | K14: 0 | L14: 0 | M14: 0 | N14: 0 | O14: 2 | P14: 0 | Q14: 2 | S14: 410035093 | T14: EXCEL ACADEMY | U14: 0 | V14: 0 | W14: 0 | X14: 1 | Y14: 1 | Z14: 0 | AA14: 0 | AB14: 0 | AC14: 0 | AD14: 0 | AE14: 0 | AF14: 2 | AG14: 0 | AH14: 0 | AI14: 0 | AJ14: 0 | AL14: 410 | AM14: 035 | AN14: 093
A15: 410035160 | B15: EXCEL ACADEMY | C15: 0 | D15: 0 | E15: 0 | F15: 0 | G15: 1 | H15: 0 | I15: 0.0375 | K15: 0 | L15: 0 | M15: 0 | N15: 0 | O15: 1 | P15: 0 | Q15: 1 | S15: 410035160 | T15: EXCEL ACADEMY | U15: 0 | V15: 0 | W15: 0 | X15: 0 | Y15: 1 | Z15: 0 | AA15: 0 | AB15: 0 | AC15: 0 | AD15: 0 | AE15: 0 | AF15: 1 | AG15: 0 | AH15: 0 | AI15: 0 | AJ15: 0 | AL15: 410 | AM15: 035 | AN15: 160
A16: 410035163 | B16: EXCEL ACADEMY | C16: 0 | D16: 0 | E16: 0 | F16: 0 | G16: 2 | H16: 0 | I16: 0.075 | K16: 0 | L16: 0 | M16: 0 | N16: 0 | O16: 1 | P16: 0 | Q16: 2 | S16: 410035163 | T16: EXCEL ACADEMY | U16: 0 | V16: 0 | W16: 0 | X16: 0 | Y16: 2 | Z16: 0 | AA16: 0 | AB16: 0 | AC16: 0 | AD16: 0 | AE16: 0 | AF16: 1 | AG16: 0 | AH16: 0 | AI16: 0 | AJ16: 0 | AL16: 410 | AM16: 035 | AN16: 163
A17: 410035248 | B17: EXCEL ACADEMY | C17: 0 | D17: 0 | E17: 0 | F17: 0 | G17: 3 | H17: 0 | I17: 0.1125 | K17: 0 | L17: 0 | M17: 0 | N17: 0 | O17: 2 | P17: 0 | Q17: 3 | S17: 410035248 | T17: EXCEL ACADEMY | U17: 0 | V17: 0 | W17: 0 | X17: 0 | Y17: 3 | Z17: 0 | AA17: 0 | AB17: 0 | AC17: 0 | AD17: 0 | AE17: 0 | AF17: 2 | AG17: 0 | AH17: 0 | AI17: 0 | AJ17: 0 | AL17: 410 | AM17: 035 | AN17: 248
A18: 410035346 | B18: EXCEL ACADEMY | C18: 0 | D18: 0 | E18: 0 | F18: 1 | G18: 2 | H18: 0 | I18: 0.1125 | K18: 0 | L18: 0 | M18: 0 | N18: 0 | O18: 1 | P18: 0 | Q18: 3 | S18: 410035346 | T18: EXCEL ACADEMY | U18: 0 | V18: 0 | W18: 0 | X18: 1 | Y18: 2 | Z18: 0 | AA18: 0 | AB18: 0 | AC18: 0 | AD18: 0 | AE18: 0 | AF18: 1 | AG18: 0 | AH18: 0 | AI18: 0 | AJ18: 0 | AL18: 410 | AM18: 035 | AN18: 346
A19: 410057035 | B19: EXCEL ACADEMY | C19: 0 | D19: 0 | E19: 0 | F19: 2 | G19: 1 | H19: 0 | I19: 0.15 | K19: 0 | L19: 0 | M19: 1 | N19: 0 | O19: 1 | P19: 0 | Q19: 4 | S19: 410057035 | T19: EXCEL ACADEMY | U19: 0 | V19: 0 | W19: 0 | X19: 2 | Y19: 1 | Z19: 0 | AA19: 0 | AB19: 0 | AC19: 0 | AD19: 1 | AE19: 0 | AF19: 1 | AG19: 0 | AH19: 0 | AI19: 0 | AJ19: 0 | AL19: 410 | AM19: 057 | AN19: 035
A20: 410057057 | B20: EXCEL ACADEMY | C20: 0 | D20: 0 | E20: 0 | F20: 44 | G20: 153 | H20: 0 | I20: 7.875 | K20: 0 | L20: 0 | M20: 13 | N20: 0 | O20: 175 | P20: 0 | Q20: 210 | S20: 410057057 | T20: EXCEL ACADEMY | U20: 0 | V20: 0 | W20: 0 | X20: 44 | Y20: 153 | Z20: 0 | AA20: 0 | AB20: 0 | AC20: 0 | AD20: 13 | AE20: 0 | AF20: 175 | AG20: 0 | AH20: 0 | AI20: 0 | AJ20: 0 | AL20: 410 | AM20: 057 | AN20: 057
A21: 410057093 | B21: EXCEL ACADEMY | C21: 0 | D21: 0 | E21: 0 | F21: 0 | G21: 1 | H21: 0 | I21: 0.0375 | K21: 0 | L21: 0 | M21: 0 | N21: 0 | O21: 1 | P21: 0 | Q21: 1 | S21: 410057093 | T21: EXCEL ACADEMY | U21: 0 | V21: 0 | W21: 0 | X21: 0 | Y21: 1 | Z21: 0 | AA21: 0 | AB21: 0 | AC21: 0 | AD21: 0 | AE21: 0 | AF21: 1 | AG21: 0 | AH21: 0 | AI21: 0 | AJ21: 0 | AL21: 410 | AM21: 057 | AN21: 093
A22: 410057248 | B22: EXCEL ACADEMY | C22: 0 | D22: 0 | E22: 0 | F22: 2 | G22: 0 | H22: 0 | I22: 0.075 | K22: 0 | L22: 0 | M22: 0 | N22: 0 | O22: 2 | P22: 0 | Q22: 2 | S22: 410057248 | T22: EXCEL ACADEMY | U22: 0 | V22: 0 | W22: 0 | X22: 2 | Y22: 0 | Z22: 0 | AA22: 0 | AB22: 0 | AC22: 0 | AD22: 0 | AE22: 0 | AF22: 2 | AG22: 0 | AH22: 0 | AI22: 0 | AJ22: 0 | AL22: 410 | AM22: 057 | AN22: 248
A23: 412035035 | B23: ACADEMY OF THE PACIFIC RIM | C23: 0 | D23: 0 | E23: 0 | F23: 75 | G23: 219 | H23: 197 | I23: 18.45 | K23: 0 | L23: 0 | M23: 1 | N23: 0 | O23: 173 | P23: 104 | Q23: 492 | S23: 412035035 | T23: ACADEMY OF THE PACIFIC RIM | U23: 0 | V23: 0 | W23: 0 | X23: 75 | Y23: 219 | Z23: 197 | AA23: 0 | AB23: 0 | AC23: 0 | AD23: 1 | AE23: 0 | AF23: 173 | AG23: 0 | AH23: 0 | AI23: 0 | AJ23: 104 | AL23: 412 | AM23: 035 | AN23: 035
A24: 412035044 | B24: ACADEMY OF THE PACIFIC RIM | C24: 0 | D24: 0 | E24: 0 | F24: 0 | G24: 1 | H24: 0 | I24: 0.0375 | K24: 0 | L24: 0 | M24: 0 | N24: 0 | O24: 1 | P24: 0 | Q24: 1 | S24: 412035044 | T24: ACADEMY OF THE PACIFIC RIM | U24: 0 | V24: 0 | W24: 0 | X24: 0 | Y24: 1 | Z24: 0 | AA24: 0 | AB24: 0 | AC24: 0 | AD24: 0 | AE24: 0 | AF24: 1 | AG24: 0 | AH24: 0 | AI24: 0 | AJ24: 0 | AL24: 412 | AM24: 035 | AN24: 044
A25: 412035050 | B25: ACADEMY OF THE PACIFIC RIM | C25: 0 | D25: 0 | E25: 0 | F25: 0 | G25: 0 | H25: 1 | I25: 0.0375 | K25: 0 | L25: 0 | M25: 0 | N25: 0 | O25: 0 | P25: 1 | Q25: 1 | S25: 412035050 | T25: ACADEMY OF THE PACIFIC RIM | U25: 0 | V25: 0 | W25: 0 | X25: 0 | Y25: 0 | Z25: 1 | AA25: 0 | AB25: 0 | AC25: 0 | AD25: 0 | AE25: 0 | AF25: 0 | AG25: 0 | AH25: 0 | AI25: 0 | AJ25: 1 | AL25: 412 | AM25: 035 | AN25: 050
A26: 412035073 | B26: ACADEMY OF THE PACIFIC RIM | C26: 0 | D26: 0 | E26: 0 | F26: 0 | G26: 1 | H26: 0 | I26: 0.0375 | K26: 0 | L26: 0 | M26: 0 | N26: 0 | O26: 1 | P26: 0 | Q26: 1 | S26: 412035073 | T26: ACADEMY OF THE PACIFIC RIM | U26: 0 | V26: 0 | W26: 0 | X26: 0 | Y26: 1 | Z26: 0 | AA26: 0 | AB26: 0 | AC26: 0 | AD26: 0 | AE26: 0 | AF26: 1 | AG26: 0 | AH26: 0 | AI26: 0 | AJ26: 0 | AL26: 412 | AM26: 035 | AN26: 073
A27: 412035088 | B27: ACADEMY OF THE PACIFIC RIM | C27: 0 | D27: 0 | E27: 0 | F27: 0 | G27: 0 | H27: 1 | I27: 0.0375 | K27: 0 | L27: 0 | M27: 0 | N27: 0 | O27: 0 | P27: 0 | Q27: 1 | S27: 412035088 | T27: ACADEMY OF THE PACIFIC RIM | U27: 0 | V27: 0 | W27: 0 | X27: 0 | Y27: 0 | Z27: 1 | AA27: 0 | AB27: 0 | AC27: 0 | AD27: 0 | AE27: 0 | AF27: 0 | AG27: 0 | AH27: 0 | AI27: 0 | AJ27: 0 | AL27: 412 | AM27: 035 | AN27: 088
A28: 412035189 | B28: ACADEMY OF THE PACIFIC RIM | C28: 0 | D28: 0 | E28: 0 | F28: 0 | G28: 0 | H28: 2 | I28: 0.075 | K28: 0 | L28: 0 | M28: 0 | N28: 0 | O28: 0 | P28: 1 | Q28: 2 | S28: 412035189 | T28: ACADEMY OF THE PACIFIC RIM | U28: 0 | V28: 0 | W28: 0 | X28: 0 | Y28: 0 | Z28: 2 | AA28: 0 | AB28: 0 | AC28: 0 | AD28: 0 | AE28: 0 | AF28: 0 | AG28: 0 | AH28: 0 | AI28: 0 | AJ28: 1 | AL28: 412 | AM28: 035 | AN28: 189
A29: 412035220 | B29: ACADEMY OF THE PACIFIC RIM | C29: 0 | D29: 0 | E29: 0 | F29: 0 | G29: 0 | H29: 1 | I29: 0.0375 | K29: 0 | L29: 0 | M29: 0 | N29: 0 | O29: 0 | P29: 1 | Q29: 1 | S29: 412035220 | T29: ACADEMY OF THE PACIFIC RIM | U29: 0 | V29: 0 | W29: 0 | X29: 0 | Y29: 0 | Z29: 1 | AA29: 0 | AB29: 0 | AC29: 0 | AD29: 0 | AE29: 0 | AF29: 0 | AG29: 0 | AH29: 0 | AI29: 0 | AJ29: 1 | AL29: 412 | AM29: 035 | AN29: 220
A30: 412035244 | B30: ACADEMY OF THE PACIFIC RIM | C30: 0 | D30: 0 | E30: 0 | F30: 2 | G30: 5 | H30: 11 | I30: 0.675 | K30: 0 | L30: 0 | M30: 0 | N30: 0 | O30: 6 | P30: 8 | Q30: 18 | S30: 412035244 | T30: ACADEMY OF THE PACIFIC RIM | U30: 0 | V30: 0 | W30: 0 | X30: 2 | Y30: 5 | Z30: 11 | AA30: 0 | AB30: 0 | AC30: 0 | AD30: 0 | AE30: 0 | AF30: 6 | AG30: 0 | AH30: 0 | AI30: 0 | AJ30: 8 | AL30: 412 | AM30: 035 | AN30: 244
A31: 412035314 | B31: ACADEMY OF THE PACIFIC RIM | C31: 0 | D31: 0 | E31: 0 | F31: 0 | G31: 1 | H31: 0 | I31: 0.0375 | K31: 0 | L31: 0 | M31: 0 | N31: 0 | O31: 1 | P31: 0 | Q31: 1 | S31: 412035314 | T31: ACADEMY OF THE PACIFIC RIM | U31: 0 | V31: 0 | W31: 0 | X31: 0 | Y31: 1 | Z31: 0 | AA31: 0 | AB31: 0 | AC31: 0 | AD31: 0 | AE31: 0 | AF31: 1 | AG31: 0 | AH31: 0 | AI31: 0 | AJ31: 0 | AL31: 412 | AM31: 035 | AN31: 314
A32: 412035336 | B32: ACADEMY OF THE PACIFIC RIM | C32: 0 | D32: 0 | E32: 0 | F32: 0 | G32: 1 | H32: 0 | I32: 0.0375 | K32: 0 | L32: 0 | M32: 0 | N32: 0 | O32: 0 | P32: 0 | Q32: 1 | S32: 412035336 | T32: ACADEMY OF THE PACIFIC RIM | U32: 0 | V32: 0 | W32: 0 | X32: 0 | Y32: 1 | Z32: 0 | AA32: 0 | AB32: 0 | AC32: 0 | AD32: 0 | AE32: 0 | AF32: 0 | AG32: 0 | AH32: 0 | AI32: 0 | AJ32: 0 | AL32: 412 | AM32: 035 | AN32: 336
A33: 413114091 | B33: FOUR RIVERS | C33: 0 | D33: 0 | E33: 0 | F33: 0 | G33: 4 | H33: 7 | I33: 0.4125 | K33: 0 | L33: 0 | M33: 0 | N33: 0 | O33: 1 | P33: 0 | Q33: 11 | S33: 413114091 | T33: FOUR RIVERS | U33: 0 | V33: 0 | W33: 0 | X33: 0 | Y33: 4 | Z33: 7 | AA33: 0 | AB33: 0 | AC33: 0 | AD33: 0 | AE33: 0 | AF33: 1 | AG33: 0 | AH33: 0 | AI33: 0 | AJ33: 0 | AL33: 413 | AM33: 114 | AN33: 091
A34: 413114114 | B34: FOUR RIVERS | C34: 0 | D34: 0 | E34: 0 | F34: 0 | G34: 14 | H34: 54 | I34: 2.55 | K34: 0 | L34: 0 | M34: 0 | N34: 0 | O34: 3 | P34: 22 | Q34: 68 | S34: 413114114 | T34: FOUR RIVERS | U34: 0 | V34: 0 | W34: 0 | X34: 0 | Y34: 14 | Z34: 54 | AA34: 0 | AB34: 0 | AC34: 0 | AD34: 0 | AE34: 0 | AF34: 3 | AG34: 0 | AH34: 0 | AI34: 0 | AJ34: 22 | AL34: 413 | AM34: 114 | AN34: 114
A35: 413114117 | B35: FOUR RIVERS | C35: 0 | D35: 0 | E35: 0 | F35: 0 | G35: 0 | H35: 2 | I35: 0.075 | K35: 0 | L35: 0 | M35: 0 | N35: 0 | O35: 0 | P35: 2 | Q35: 2 | S35: 413114117 | T35: FOUR RIVERS | U35: 0 | V35: 0 | W35: 0 | X35: 0 | Y35: 0 | Z35: 2 | AA35: 0 | AB35: 0 | AC35: 0 | AD35: 0 | AE35: 0 | AF35: 0 | AG35: 0 | AH35: 0 | AI35: 0 | AJ35: 2 | AL35: 413 | AM35: 114 | AN35: 117
A36: 413114210 | B36: FOUR RIVERS | C36: 0 | D36: 0 | E36: 0 | F36: 0 | G36: 0 | H36: 3 | I36: 0.1125 | K36: 0 | L36: 0 | M36: 0 | N36: 0 | O36: 0 | P36: 2 | Q36: 3 | S36: 413114210 | T36: FOUR RIVERS | U36: 0 | V36: 0 | W36: 0 | X36: 0 | Y36: 0 | Z36: 3 | AA36: 0 | AB36: 0 | AC36: 0 | AD36: 0 | AE36: 0 | AF36: 0 | AG36: 0 | AH36: 0 | AI36: 0 | AJ36: 2 | AL36: 413 | AM36: 114 | AN36: 210
A37: 413114253 | B37: FOUR RIVERS | C37: 0 | D37: 0 | E37: 0 | F37: 0 | G37: 1 | H37: 0 | I37: 0.0375 | K37: 0 | L37: 0 | M37: 0 | N37: 0 | O37: 0 | P37: 0 | Q37: 1 | S37: 413114253 | T37: FOUR RIVERS | U37: 0 | V37: 0 | W37: 0 | X37: 0 | Y37: 1 | Z37: 0 | AA37: 0 | AB37: 0 | AC37: 0 | AD37: 0 | AE37: 0 | AF37: 0 | AG37: 0 | AH37: 0 | AI37: 0 | AJ37: 0 | AL37: 413 | AM37: 114 | AN37: 253
A38: 413114605 | B38: FOUR RIVERS | C38: 0 | D38: 0 | E38: 0 | F38: 0 | G38: 0 | H38: 3 | I38: 0.1125 | K38: 0 | L38: 0 | M38: 0 | N38: 0 | O38: 0 | P38: 2 | Q38: 3 | S38: 413114605 | T38: FOUR RIVERS | U38: 0 | V38: 0 | W38: 0 | X38: 0 | Y38: 0 | Z38: 3 | AA38: 0 | AB38: 0 | AC38: 0 | AD38: 0 | AE38: 0 | AF38: 0 | AG38: 0 | AH38: 0 | AI38: 0 | AJ38: 2 | AL38: 413 | AM38: 114 | AN38: 605
A39: 413114670 | B39: FOUR RIVERS | C39: 0 | D39: 0 | E39: 0 | F39: 0 | G39: 6 | H39: 10 | I39: 0.6 | K39: 0 | L39: 0 | M39: 0 | N39: 0 | O39: 2 | P39: 3 | Q39: 16 | S39: 413114670 | T39: FOUR RIVERS | U39: 0 | V39: 0 | W39: 0 | X39: 0 | Y39: 6 | Z39: 10 | AA39: 0 | AB39: 0 | AC39: 0 | AD39: 0 | AE39: 0 | AF39: 2 | AG39: 0 | AH39: 0 | AI39: 0 | AJ39: 3 | AL39: 413 | AM39: 114 | AN39: 670
A40: 413114674 | B40: FOUR RIVERS | C40: 0 | D40: 0 | E40: 0 | F40: 0 | G40: 14 | H40: 30 | I40: 1.65 | K40: 0 | L40: 0 | M40: 0 | N40: 0 | O40: 4 | P40: 5 | Q40: 44 | S40: 413114674 | T40: FOUR RIVERS | U40: 0 | V40: 0 | W40: 0 | X40: 0 | Y40: 14 | Z40: 30 | AA40: 0 | AB40: 0 | AC40: 0 | AD40: 0 | AE40: 0 | AF40: 4 | AG40: 0 | AH40: 0 | AI40: 0 | AJ40: 5 | AL40: 413 | AM40: 114 | AN40: 674
A41: 413114683 | B41: FOUR RIVERS | C41: 0 | D41: 0 | E41: 0 | F41: 0 | G41: 0 | H41: 3 | I41: 0.1125 | K41: 0 | L41: 0 | M41: 0 | N41: 0 | O41: 0 | P41: 0 | Q41: 3 | S41: 413114683 | T41: FOUR RIVERS | U41: 0 | V41: 0 | W41: 0 | X41: 0 | Y41: 0 | Z41: 3 | AA41: 0 | AB41: 0 | AC41: 0 | AD41: 0 | AE41: 0 | AF41: 0 | AG41: 0 | AH41: 0 | AI41: 0 | AJ41: 0 | AL41: 413 | AM41: 114 | AN41: 683
A42: 413114717 | B42: FOUR RIVERS | C42: 0 | D42: 0 | E42: 0 | F42: 0 | G42: 23 | H42: 17 | I42: 1.5 | K42: 0 | L42: 0 | M42: 0 | N42: 0 | O42: 9 | P42: 6 | Q42: 40 | S42: 413114717 | T42: FOUR RIVERS | U42: 0 | V42: 0 | W42: 0 | X42: 0 | Y42: 23 | Z42: 17 | AA42: 0 | AB42: 0 | AC42: 0 | AD42: 0 | AE42: 0 | AF42: 9 | AG42: 0 | AH42: 0 | AI42: 0 | AJ42: 6 | AL42: 413 | AM42: 114 | AN42: 717
A43: 413114750 | B43: FOUR RIVERS | C43: 0 | D43: 0 | E43: 0 | F43: 0 | G43: 4 | H43: 7 | I43: 0.4125 | K43: 0 | L43: 0 | M43: 0 | N43: 0 | O43: 1 | P43: 2 | Q43: 11 | S43: 413114750 | T43: FOUR RIVERS | U43: 0 | V43: 0 | W43: 0 | X43: 0 | Y43: 4 | Z43: 7 | AA43: 0 | AB43: 0 | AC43: 0 | AD43: 0 | AE43: 0 | AF43: 1 | AG43: 0 | AH43: 0 | AI43: 0 | AJ43: 2 | AL43: 413 | AM43: 114 | AN43: 750
A44: 413114755 | B44: FOUR RIVERS | C44: 0 | D44: 0 | E44: 0 | F44: 0 | G44: 7 | H44: 8 | I44: 0.5625 | K44: 0 | L44: 0 | M44: 0 | N44: 0 | O44: 1 | P44: 3 | Q44: 15 | S44: 413114755 | T44: FOUR RIVERS | U44: 0 | V44: 0 | W44: 0 | X44: 0 | Y44: 7 | Z44: 8 | AA44: 0 | AB44: 0 | AC44: 0 | AD44: 0 | AE44: 0 | AF44: 1 | AG44: 0 | AH44: 0 | AI44: 0 | AJ44: 3 | AL44: 413 | AM44: 114 | AN44: 755
A45: 414603063 | B45: BERKSHIRE ARTS AND TECHNOLOGY | C45: 0 | D45: 0 | E45: 0 | F45: 0 | G45: 1 | H45: 2 | I45: 0.1125 | K45: 0 | L45: 0 | M45: 0 | N45: 0 | O45: 0 | P45: 2 | Q45: 3 | S45: 414603063 | T45: BERKSHIRE ARTS AND TECHNOLOGY | U45: 0 | V45: 0 | W45: 0 | X45: 0 | Y45: 1 | Z45: 2 | AA45: 0 | AB45: 0 | AC45: 0 | AD45: 0 | AE45: 0 | AF45: 0 | AG45: 0 | AH45: 0 | AI45: 0 | AJ45: 2 | AL45: 414 | AM45: 603 | AN45: 063
A46: 414603098 | B46: BERKSHIRE ARTS AND TECHNOLOGY | C46: 0 | D46: 0 | E46: 0 | F46: 0 | G46: 0 | H46: 1 | I46: 0.0375 | K46: 0 | L46: 0 | M46: 0 | N46: 0 | O46: 0 | P46: 0 | Q46: 1 | S46: 414603098 | T46: BERKSHIRE ARTS AND TECHNOLOGY | U46: 0 | V46: 0 | W46: 0 | X46: 0 | Y46: 0 | Z46: 1 | AA46: 0 | AB46: 0 | AC46: 0 | AD46: 0 | AE46: 0 | AF46: 0 | AG46: 0 | AH46: 0 | AI46: 0 | AJ46: 0 | AL46: 414 | AM46: 603 | AN46: 098
A47: 414603150 | B47: BERKSHIRE ARTS AND TECHNOLOGY | C47: 0 | D47: 0 | E47: 0 | F47: 0 | G47: 0 | H47: 2 | I47: 0.075 | K47: 0 | L47: 0 | M47: 0 | N47: 0 | O47: 0 | P47: 1 | Q47: 2 | S47: 414603150 | T47: BERKSHIRE ARTS AND TECHNOLOGY | U47: 0 | V47: 0 | W47: 0 | X47: 0 | Y47: 0 | Z47: 2 | AA47: 0 | AB47: 0 | AC47: 0 | AD47: 0 | AE47: 0 | AF47: 0 | AG47: 0 | AH47: 0 | AI47: 0 | AJ47: 1 | AL47: 414 | AM47: 603 | AN47: 150
A48: 414603152 | B48: BERKSHIRE ARTS AND TECHNOLOGY | C48: 0 | D48: 0 | E48: 0 | F48: 0 | G48: 1 | H48: 0 | I48: 0.0375 | K48: 0 | L48: 0 | M48: 0 | N48: 0 | O48: 0 | P48: 0 | Q48: 1 | S48: 414603152 | T48: BERKSHIRE ARTS AND TECHNOLOGY | U48: 0 | V48: 0 | W48: 0 | X48: 0 | Y48: 1 | Z48: 0 | AA48: 0 | AB48: 0 | AC48: 0 | AD48: 0 | AE48: 0 | AF48: 0 | AG48: 0 | AH48: 0 | AI48: 0 | AJ48: 0 | AL48: 414 | AM48: 603 | AN48: 152
A49: 414603209 | B49: BERKSHIRE ARTS AND TECHNOLOGY | C49: 0 | D49: 0 | E49: 0 | F49: 0 | G49: 33 | H49: 22 | I49: 2.0625 | K49: 0 | L49: 0 | M49: 0 | N49: 0 | O49: 23 | P49: 15 | Q49: 55 | S49: 414603209 | T49: BERKSHIRE ARTS AND TECHNOLOGY | U49: 0 | V49: 0 | W49: 0 | X49: 0 | Y49: 33 | Z49: 22 | AA49: 0 | AB49: 0 | AC49: 0 | AD49: 0 | AE49: 0 | AF49: 23 | AG49: 0 | AH49: 0 | AI49: 0 | AJ49: 15 | AL49: 414 | AM49: 603 | AN49: 209
A50: 414603236 | B50: BERKSHIRE ARTS AND TECHNOLOGY | C50: 0 | D50: 0 | E50: 0 | F50: 0 | G50: 118 | H50: 54 | I50: 6.5625 | K50: 0 | L50: 0 | M50: 3 | N50: 0 | O50: 80 | P50: 19 | Q50: 175 | S50: 414603236 | T50: BERKSHIRE ARTS AND TECHNOLOGY | U50: 0 | V50: 0 | W50: 0 | X50: 0 | Y50: 118 | Z50: 54 | AA50: 0 | AB50: 0 | AC50: 0 | AD50: 3 | AE50: 0 | AF50: 80 | AG50: 0 | AH50: 0 | AI50: 0 | AJ50: 19 | AL50: 414 | AM50: 603 | AN50: 236
A51: 414603263 | B51: BERKSHIRE ARTS AND TECHNOLOGY | C51: 0 | D51: 0 | E51: 0 | F51: 0 | G51: 0 | H51: 2 | I51: 0.075 | K51: 0 | L51: 0 | M51: 0 | N51: 0 | O51: 0 | P51: 1 | Q51: 2 | S51: 414603263 | T51: BERKSHIRE ARTS AND TECHNOLOGY | U51: 0 | V51: 0 | W51: 0 | X51: 0 | Y51: 0 | Z51: 2 | AA51: 0 | AB51: 0 | AC51: 0 | AD51: 0 | AE51: 0 | AF51: 0 | AG51: 0 | AH51: 0 | AI51: 0 | AJ51: 1 | AL51: 414 | AM51: 603 | AN51: 263
A52: 414603341 | B52: BERKSHIRE ARTS AND TECHNOLOGY | C52: 0 | D52: 0 | E52: 0 | F52: 0 | G52: 3 | H52: 0 | I52: 0.1125 | K52: 0 | L52: 0 | M52: 0 | N52: 0 | O52: 1 | P52: 0 | Q52: 3 | S52: 414603341 | T52: BERKSHIRE ARTS AND TECHNOLOGY | U52: 0 | V52: 0 | W52: 0 | X52: 0 | Y52: 3 | Z52: 0 | AA52: 0 | AB52: 0 | AC52: 0 | AD52: 0 | AE52: 0 | AF52: 1 | AG52: 0 | AH52: 0 | AI52: 0 | AJ52: 0 | AL52: 414 | AM52: 603 | AN52: 341
A53: 414603349 | B53: BERKSHIRE ARTS AND TECHNOLOGY | C53: 0 | D53: 0 | E53: 0 | F53: 0 | G53: 1 | H53: 1 | I53: 0.075 | K53: 0 | L53: 0 | M53: 0 | N53: 0 | O53: 0 | P53: 0 | Q53: 2 | S53: 414603349 | T53: BERKSHIRE ARTS AND TECHNOLOGY | U53: 0 | V53: 0 | W53: 0 | X53: 0 | Y53: 1 | Z53: 1 | AA53: 0 | AB53: 0 | AC53: 0 | AD53: 0 | AE53: 0 | AF53: 0 | AG53: 0 | AH53: 0 | AI53: 0 | AJ53: 0 | AL53: 414 | AM53: 603 | AN53: 349
A54: 414603603 | B54: BERKSHIRE ARTS AND TECHNOLOGY | C54: 0 | D54: 0 | E54: 0 | F54: 0 | G54: 32 | H54: 33 | I54: 2.4375 | K54: 0 | L54: 0 | M54: 0 | N54: 0 | O54: 19 | P54: 21 | Q54: 65 | S54: 414603603 | T54: BERKSHIRE ARTS AND TECHNOLOGY | U54: 0 | V54: 0 | W54: 0 | X54: 0 | Y54: 32 | Z54: 33 | AA54: 0 | AB54: 0 | AC54: 0 | AD54: 0 | AE54: 0 | AF54: 19 | AG54: 0 | AH54: 0 | AI54: 0 | AJ54: 21 | AL54: 414 | AM54: 603 | AN54: 603
A55: 414603635 | B55: BERKSHIRE ARTS AND TECHNOLOGY | C55: 0 | D55: 0 | E55: 0 | F55: 0 | G55: 8 | H55: 3 | I55: 0.4125 | K55: 0 | L55: 0 | M55: 0 | N55: 0 | O55: 2 | P55: 0 | Q55: 11 | S55: 414603635 | T55: BERKSHIRE ARTS AND TECHNOLOGY | U55: 0 | V55: 0 | W55: 0 | X55: 0 | Y55: 8 | Z55: 3 | AA55: 0 | AB55: 0 | AC55: 0 | AD55: 0 | AE55: 0 | AF55: 2 | AG55: 0 | AH55: 0 | AI55: 0 | AJ55: 0 | AL55: 414 | AM55: 603 | AN55: 635
A56: 414603715 | B56: BERKSHIRE ARTS AND TECHNOLOGY | C56: 0 | D56: 0 | E56: 0 | F56: 0 | G56: 7 | H56: 7 | I56: 0.525 | K56: 0 | L56: 0 | M56: 0 | N56: 0 | O56: 2 | P56: 2 | Q56: 14 | S56: 414603715 | T56: BERKSHIRE ARTS AND TECHNOLOGY | U56: 0 | V56: 0 | W56: 0 | X56: 0 | Y56: 7 | Z56: 7 | AA56: 0 | AB56: 0 | AC56: 0 | AD56: 0 | AE56: 0 | AF56: 2 | AG56: 0 | AH56: 0 | AI56: 0 | AJ56: 2 | AL56: 414 | AM56: 603 | AN56: 715
A57: 416035035 | B57: BOSTON PREPARATORY | C57: 0 | D57: 0 | E57: 0 | F57: 0 | G57: 156 | H57: 198 | I57: 14.5125 | K57: 0 | L57: 0 | M57: 33 | N57: 0 | O57: 133 | P57: 142 | Q57: 387 | S57: 416035035 | T57: BOSTON PREPARATORY | U57: 0 | V57: 0 | W57: 0 | X57: 0 | Y57: 156 | Z57: 198 | AA57: 0 | AB57: 0 | AC57: 0 | AD57: 33 | AE57: 0 | AF57: 133 | AG57: 0 | AH57: 0 | AI57: 0 | AJ57: 142 | AL57: 416 | AM57: 035 | AN57: 035
A58: 416035044 | B58: BOSTON PREPARATORY | C58: 0 | D58: 0 | E58: 0 | F58: 0 | G58: 0 | H58: 1 | I58: 0.0375 | K58: 0 | L58: 0 | M58: 0 | N58: 0 | O58: 0 | P58: 1 | Q58: 1 | S58: 416035044 | T58: BOSTON PREPARATORY | U58: 0 | V58: 0 | W58: 0 | X58: 0 | Y58: 0 | Z58: 1 | AA58: 0 | AB58: 0 | AC58: 0 | AD58: 0 | AE58: 0 | AF58: 0 | AG58: 0 | AH58: 0 | AI58: 0 | AJ58: 1 | AL58: 416 | AM58: 035 | AN58: 044
A59: 416035073 | B59: BOSTON PREPARATORY | C59: 0 | D59: 0 | E59: 0 | F59: 0 | G59: 0 | H59: 1 | I59: 0.0375 | K59: 0 | L59: 0 | M59: 0 | N59: 0 | O59: 0 | P59: 1 | Q59: 1 | S59: 416035073 | T59: BOSTON PREPARATORY | U59: 0 | V59: 0 | W59: 0 | X59: 0 | Y59: 0 | Z59: 1 | AA59: 0 | AB59: 0 | AC59: 0 | AD59: 0 | AE59: 0 | AF59: 0 | AG59: 0 | AH59: 0 | AI59: 0 | AJ59: 1 | AL59: 416 | AM59: 035 | AN59: 073
A60: 416035244 | B60: BOSTON PREPARATORY | C60: 0 | D60: 0 | E60: 0 | F60: 0 | G60: 0 | H60: 2 | I60: 0.075 | K60: 0 | L60: 0 | M60: 0 | N60: 0 | O60: 0 | P60: 1 | Q60: 2 | S60: 416035244 | T60: BOSTON PREPARATORY | U60: 0 | V60: 0 | W60: 0 | X60: 0 | Y60: 0 | Z60: 2 | AA60: 0 | AB60: 0 | AC60: 0 | AD60: 0 | AE60: 0 | AF60: 0 | AG60: 0 | AH60: 0 | AI60: 0 | AJ60: 1 | AL60: 416 | AM60: 035 | AN60: 244
A61: 417035035 | B61: BRIDGE BOSTON | C61: 15 | D61: 0 | E61: 26 | F61: 71 | G61: 0 | H61: 0 | I61: 5.5125 | K61: 24 | L61: 0 | M61: 50 | N61: 0 | O61: 107 | P61: 60 | Q61: 167 | S61: 417035035 | T61: BRIDGE BOSTON | U61: 15 | V61: 0 | W61: 26 | X61: 71 | Y61: 0 | Z61: 0 | AA61: 1 | AB61: 24 | AC61: 0 | AD61: 50 | AE61: 0 | AF61: 107 | AG61: 39 | AH61: 0 | AI61: 40 | AJ61: 0 | AL61: 417 | AM61: 035 | AN61: 035
A62: 417035046 | B62: BRIDGE BOSTON | C62: 0 | D62: 0 | E62: 0 | F62: 1 | G62: 0 | H62: 0 | I62: 0.0375 | K62: 0 | L62: 0 | M62: 0 | N62: 0 | O62: 1 | P62: 0 | Q62: 1 | S62: 417035046 | T62: BRIDGE BOSTON | U62: 0 | V62: 0 | W62: 0 | X62: 1 | Y62: 0 | Z62: 0 | AA62: 0 | AB62: 0 | AC62: 0 | AD62: 0 | AE62: 0 | AF62: 1 | AG62: 0 | AH62: 0 | AI62: 0 | AJ62: 0 | AL62: 417 | AM62: 035 | AN62: 046
A63: 417035244 | B63: BRIDGE BOSTON | C63: 0 | D63: 0 | E63: 0 | F63: 0 | G63: 0 | H63: 0 | I63: 0.0375 | K63: 0 | L63: 0 | M63: 1 | N63: 0 | O63: 1 | P63: 0 | Q63: 1 | S63: 417035244 | T63: BRIDGE BOSTON | U63: 0 | V63: 0 | W63: 0 | X63: 0 | Y63: 0 | Z63: 0 | AA63: 0 | AB63: 0 | AC63: 0 | AD63: 1 | AE63: 0 | AF63: 1 | AG63: 0 | AH63: 0 | AI63: 0 | AJ63: 0 | AL63: 417 | AM63: 035 | AN63: 244
A64: 417035274 | B64: BRIDGE BOSTON | C64: 0 | D64: 0 | E64: 0 | F64: 1 | G64: 0 | H64: 0 | I64: 0.0375 | K64: 0 | L64: 0 | M64: 0 | N64: 0 | O64: 1 | P64: 0 | Q64: 1 | S64: 417035274 | T64: BRIDGE BOSTON | U64: 0 | V64: 0 | W64: 0 | X64: 1 | Y64: 0 | Z64: 0 | AA64: 0 | AB64: 0 | AC64: 0 | AD64: 0 | AE64: 0 | AF64: 1 | AG64: 0 | AH64: 0 | AI64: 0 | AJ64: 0 | AL64: 417 | AM64: 035 | AN64: 274
A65: 418100014 | B65: CHRISTA MCAULIFFE | C65: 0 | D65: 0 | E65: 0 | F65: 0 | G65: 50 | H65: 0 | I65: 1.875 | K65: 0 | L65: 0 | M65: 0 | N65: 0 | O65: 5 | P65: 0 | Q65: 50 | S65: 418100014 | T65: CHRISTA MCAULIFFE | U65: 0 | V65: 0 | W65: 0 | X65: 0 | Y65: 50 | Z65: 0 | AA65: 0 | AB65: 0 | AC65: 0 | AD65: 0 | AE65: 0 | AF65: 5 | AG65: 0 | AH65: 0 | AI65: 0 | AJ65: 0 | AL65: 418 | AM65: 100 | AN65: 014
A66: 418100100 | B66: CHRISTA MCAULIFFE | C66: 0 | D66: 0 | E66: 0 | F66: 0 | G66: 264 | H66: 0 | I66: 10.5 | K66: 0 | L66: 0 | M66: 16 | N66: 0 | O66: 76 | P66: 0 | Q66: 280 | S66: 418100100 | T66: CHRISTA MCAULIFFE | U66: 0 | V66: 0 | W66: 0 | X66: 0 | Y66: 264 | Z66: 0 | AA66: 0 | AB66: 0 | AC66: 0 | AD66: 16 | AE66: 0 | AF66: 76 | AG66: 0 | AH66: 0 | AI66: 0 | AJ66: 0 | AL66: 418 | AM66: 100 | AN66: 100
A67: 418100136 | B67: CHRISTA MCAULIFFE | C67: 0 | D67: 0 | E67: 0 | F67: 0 | G67: 7 | H67: 0 | I67: 0.2625 | K67: 0 | L67: 0 | M67: 0 | N67: 0 | O67: 0 | P67: 0 | Q67: 7 | S67: 418100136 | T67: CHRISTA MCAULIFFE | U67: 0 | V67: 0 | W67: 0 | X67: 0 | Y67: 7 | Z67: 0 | AA67: 0 | AB67: 0 | AC67: 0 | AD67: 0 | AE67: 0 | AF67: 0 | AG67: 0 | AH67: 0 | AI67: 0 | AJ67: 0 | AL67: 418 | AM67: 100 | AN67: 136
A68: 418100139 | B68: CHRISTA MCAULIFFE | C68: 0 | D68: 0 | E68: 0 | F68: 0 | G68: 6 | H68: 0 | I68: 0.225 | K68: 0 | L68: 0 | M68: 0 | N68: 0 | O68: 0 | P68: 0 | Q68: 6 | S68: 418100139 | T68: CHRISTA MCAULIFFE | U68: 0 | V68: 0 | W68: 0 | X68: 0 | Y68: 6 | Z68: 0 | AA68: 0 | AB68: 0 | AC68: 0 | AD68: 0 | AE68: 0 | AF68: 0 | AG68: 0 | AH68: 0 | AI68: 0 | AJ68: 0 | AL68: 418 | AM68: 100 | AN68: 139
A69: 418100170 | B69: CHRISTA MCAULIFFE | C69: 0 | D69: 0 | E69: 0 | F69: 0 | G69: 6 | H69: 0 | I69: 0.225 | K69: 0 | L69: 0 | M69: 0 | N69: 0 | O69: 1 | P69: 0 | Q69: 6 | S69: 418100170 | T69: CHRISTA MCAULIFFE | U69: 0 | V69: 0 | W69: 0 | X69: 0 | Y69: 6 | Z69: 0 | AA69: 0 | AB69: 0 | AC69: 0 | AD69: 0 | AE69: 0 | AF69: 1 | AG69: 0 | AH69: 0 | AI69: 0 | AJ69: 0 | AL69: 418 | AM69: 100 | AN69: 170
A70: 418100175 | B70: CHRISTA MCAULIFFE | C70: 0 | D70: 0 | E70: 0 | F70: 0 | G70: 1 | H70: 0 | I70: 0.0375 | K70: 0 | L70: 0 | M70: 0 | N70: 0 | O70: 0 | P70: 0 | Q70: 1 | S70: 418100175 | T70: CHRISTA MCAULIFFE | U70: 0 | V70: 0 | W70: 0 | X70: 0 | Y70: 1 | Z70: 0 | AA70: 0 | AB70: 0 | AC70: 0 | AD70: 0 | AE70: 0 | AF70: 0 | AG70: 0 | AH70: 0 | AI70: 0 | AJ70: 0 | AL70: 418 | AM70: 100 | AN70: 175
A71: 418100177 | B71: CHRISTA MCAULIFFE | C71: 0 | D71: 0 | E71: 0 | F71: 0 | G71: 1 | H71: 0 | I71: 0.0375 | K71: 0 | L71: 0 | M71: 0 | N71: 0 | O71: 0 | P71: 0 | Q71: 1 | S71: 418100177 | T71: CHRISTA MCAULIFFE | U71: 0 | V71: 0 | W71: 0 | X71: 0 | Y71: 1 | Z71: 0 | AA71: 0 | AB71: 0 | AC71: 0 | AD71: 0 | AE71: 0 | AF71: 0 | AG71: 0 | AH71: 0 | AI71: 0 | AJ71: 0 | AL71: 418 | AM71: 100 | AN71: 177
A72: 418100185 | B72: CHRISTA MCAULIFFE | C72: 0 | D72: 0 | E72: 0 | F72: 0 | G72: 2 | H72: 0 | I72: 0.075 | K72: 0 | L72: 0 | M72: 0 | N72: 0 | O72: 0 | P72: 0 | Q72: 2 | S72: 418100185 | T72: CHRISTA MCAULIFFE | U72: 0 | V72: 0 | W72: 0 | X72: 0 | Y72: 2 | Z72: 0 | AA72: 0 | AB72: 0 | AC72: 0 | AD72: 0 | AE72: 0 | AF72: 0 | AG72: 0 | AH72: 0 | AI72: 0 | AJ72: 0 | AL72: 418 | AM72: 100 | AN72: 185
A73: 418100198 | B73: CHRISTA MCAULIFFE | C73: 0 | D73: 0 | E73: 0 | F73: 0 | G73: 36 | H73: 0 | I73: 1.3875 | K73: 0 | L73: 0 | M73: 1 | N73: 0 | O73: 3 | P73: 0 | Q73: 37 | S73: 418100198 | T73: CHRISTA MCAULIFFE | U73: 0 | V73: 0 | W73: 0 | X73: 0 | Y73: 36 | Z73: 0 | AA73: 0 | AB73: 0 | AC73: 0 | AD73: 1 | AE73: 0 | AF73: 3 | AG73: 0 | AH73: 0 | AI73: 0 | AJ73: 0 | AL73: 418 | AM73: 100 | AN73: 198
A74: 418100213 | B74: CHRISTA MCAULIFFE | C74: 0 | D74: 0 | E74: 0 | F74: 0 | G74: 1 | H74: 0 | I74: 0.0375 | K74: 0 | L74: 0 | M74: 0 | N74: 0 | O74: 0 | P74: 0 | Q74: 1 | S74: 418100213 | T74: CHRISTA MCAULIFFE | U74: 0 | V74: 0 | W74: 0 | X74: 0 | Y74: 1 | Z74: 0 | AA74: 0 | AB74: 0 | AC74: 0 | AD74: 0 | AE74: 0 | AF74: 0 | AG74: 0 | AH74: 0 | AI74: 0 | AJ74: 0 | AL74: 418 | AM74: 100 | AN74: 213
A75: 418100288 | B75: CHRISTA MCAULIFFE | C75: =ROUND(U75,0) -> 0 | D75: =ROUND(V75,0) -> 0 | E75: =ROUND(W75,0) -> 0 | F75: =ROUND(X75,0) -> 0 | G75: =ROUND(Y75,0) -> 5 | H75: =ROUND(Z75,0) -> 0 | I75: =ROUND(0.0375*(SUM(E75:H75)+ROUND(D75*0.5,4)+ROUND(L75*0.5,4)+M75),4)+ROUND((0.0475)*N75,4) -> 0.1875 | K75: =ROUND(AB75,0) -> 0 | L75: =ROUND(AC75,0) -> 0 | M75: =ROUND(AD75,0) -> 0 | N75: =ROUND(AE75,0) -> 0 | O75: =ROUND(AF75,0) -> 0 | P75: =ROUND((AG75+AH75)/2,0)+ROUND(AI75+AJ75,0) -> 0 | Q75: =SUM(E75:H75)+M75+N75+ROUND(C75*0.5,0)+ROUND(D75*0.5,0)+ROUND(K75*0.5,0)+ROUND(L75*0.5,0) -> 5 | S75: 418100288 | T75: CHRISTA MCAULIFFE | U75: 0 | V75: 0 | W75: 0 | X75: 0 | Y75: 5 | Z75: 0 | AA75: 0 | AB75: 0 | AC75: 0 | AD75: 0 | AE75: 0 | AF75: 0 | AG75: 0 | AH75: 0 | AI75: 0 | AJ75: 0 | AL75: 418 | AM75: 100 | AN75: 288
A76: 418100710 | B76: CHRISTA MCAULIFFE | C76: 0 | D76: 0 | E76: 0 | F76: 0 | G76: 7 | H76: 0 | I76: 0.2625 | K76: 0 | L76: 0 | M76: 0 | N76: 0 | O76: 0 | P76: 0 | Q76: 7 | S76: 418100710 | T76: CHRISTA MCAULIFFE | U76: 0 | V76: 0 | W76: 0 | X76: 0 | Y76: 7 | Z76: 0 | AA76: 0 | AB76: 0 | AC76: 0 | AD76: 0 | AE76: 0 | AF76: 0 | AG76: 0 | AH76: 0 | AI76: 0 | AJ76: 0 | AL76: 418 | AM76: 100 | AN76: 710
A77: 419035035 | B77: HELEN Y. DAVIS LEADERSHIP ACADEMY | C77: 0 | D77: 0 | E77: 0 | F77: 0 | G77: 193 | H77: 0 | I77: 7.95 | K77: 0 | L77: 0 | M77: 19 | N77: 0 | O77: 160 | P77: 0 | Q77: 212 | S77: 419035035 | T77: HELEN Y. DAVIS LEADERSHIP ACADEMY | U77: 0 | V77: 0 | W77: 0 | X77: 0 | Y77: 193 | Z77: 0 | AA77: 0 | AB77: 0 | AC77: 0 | AD77: 19 | AE77: 0 | AF77: 160 | AG77: 0 | AH77: 0 | AI77: 0 | AJ77: 0 | AL77: 419 | AM77: 035 | AN77: 035
A78: 419035044 | B78: HELEN Y. DAVIS LEADERSHIP ACADEMY | C78: 0 | D78: 0 | E78: 0 | F78: 0 | G78: 2 | H78: 0 | I78: 0.075 | K78: 0 | L78: 0 | M78: 0 | N78: 0 | O78: 2 | P78: 0 | Q78: 2 | S78: 419035044 | T78: HELEN Y. DAVIS LEADERSHIP ACADEMY | U78: 0 | V78: 0 | W78: 0 | X78: 0 | Y78: 2 | Z78: 0 | AA78: 0 | AB78: 0 | AC78: 0 | AD78: 0 | AE78: 0 | AF78: 2 | AG78: 0 | AH78: 0 | AI78: 0 | AJ78: 0 | AL78: 419 | AM78: 035 | AN78: 044
A79: 419035049 | B79: HELEN Y. DAVIS LEADERSHIP ACADEMY | C79: 0 | D79: 0 | E79: 0 | F79: 0 | G79: 4 | H79: 0 | I79: 0.15 | K79: 0 | L79: 0 | M79: 0 | N79: 0 | O79: 4 | P79: 0 | Q79: 4 | S79: 419035049 | T79: HELEN Y. DAVIS LEADERSHIP ACADEMY | U79: 0 | V79: 0 | W79: 0 | X79: 0 | Y79: 4 | Z79: 0 | AA79: 0 | AB79: 0 | AC79: 0 | AD79: 0 | AE79: 0 | AF79: 4 | AG79: 0 | AH79: 0 | AI79: 0 | AJ79: 0 | AL79: 419 | AM79: 035 | AN79: 049
A80: 419035133 | B80: HELEN Y. DAVIS LEADERSHIP ACADEMY | C80: 0 | D80: 0 | E80: 0 | F80: 0 | G80: 1 | H80: 0 | I80: 0.0375 | K80: 0 | L80: 0 | M80: 0 | N80: 0 | O80: 1 | P80: 0 | Q80: 1 | S80: 419035133 | T80: HELEN Y. DAVIS LEADERSHIP ACADEMY | U80: 0 | V80: 0 | W80: 0 | X80: 0 | Y80: 1 | Z80: 0 | AA80: 0 | AB80: 0 | AC80: 0 | AD80: 0 | AE80: 0 | AF80: 1 | AG80: 0 | AH80: 0 | AI80: 0 | AJ80: 0 | AL80: 419 | AM80: 035 | AN80: 133
A81: 419035244 | B81: HELEN Y. DAVIS LEADERSHIP ACADEMY | C81: 0 | D81: 0 | E81: 0 | F81: 0 | G81: 3 | H81: 0 | I81: 0.1875 | K81: 0 | L81: 0 | M81: 2 | N81: 0 | O81: 3 | P81: 0 | Q81: 5 | S81: 419035244 | T81: HELEN Y. DAVIS LEADERSHIP ACADEMY | U81: 0 | V81: 0 | W81: 0 | X81: 0 | Y81: 3 | Z81: 0 | AA81: 0 | AB81: 0 | AC81: 0 | AD81: 2 | AE81: 0 | AF81: 3 | AG81: 0 | AH81: 0 | AI81: 0 | AJ81: 0 | AL81: 419 | AM81: 035 | AN81: 244
A82: 420049010 | B82: BENJAMIN BANNEKER | C82: 0 | D82: 0 | E82: 1 | F82: 2 | G82: 0 | H82: 0 | I82: 0.1125 | K82: 0 | L82: 0 | M82: 0 | N82: 0 | O82: 2 | P82: 1 | Q82: 3 | S82: 420049010 | T82: BENJAMIN BANNEKER | U82: 0 | V82: 0 | W82: 1 | X82: 2 | Y82: 0 | Z82: 0 | AA82: 0 | AB82: 0 | AC82: 0 | AD82: 0 | AE82: 0 | AF82: 2 | AG82: 0 | AH82: 0 | AI82: 1 | AJ82: 0 | AL82: 420 | AM82: 049 | AN82: 010
A83: 420049023 | B83: BENJAMIN BANNEKER | C83: 0 | D83: 0 | E83: 0 | F83: 2 | G83: 0 | H83: 0 | I83: 0.075 | K83: 0 | L83: 0 | M83: 0 | N83: 0 | O83: 0 | P83: 0 | Q83: 2 | S83: 420049023 | T83: BENJAMIN BANNEKER | U83: 0 | V83: 0 | W83: 0 | X83: 2 | Y83: 0 | Z83: 0 | AA83: 0 | AB83: 0 | AC83: 0 | AD83: 0 | AE83: 0 | AF83: 0 | AG83: 0 | AH83: 0 | AI83: 0 | AJ83: 0 | AL83: 420 | AM83: 049 | AN83: 023
A84: 420049026 | B84: BENJAMIN BANNEKER | C84: 0 | D84: 0 | E84: 1 | F84: 1 | G84: 0 | H84: 0 | I84: 0.075 | K84: 0 | L84: 0 | M84: 0 | N84: 0 | O84: 1 | P84: 1 | Q84: 2 | S84: 420049026 | T84: BENJAMIN BANNEKER | U84: 0 | V84: 0 | W84: 1 | X84: 1 | Y84: 0 | Z84: 0 | AA84: 0 | AB84: 0 | AC84: 0 | AD84: 0 | AE84: 0 | AF84: 1 | AG84: 0 | AH84: 0 | AI84: 1 | AJ84: 0 | AL84: 420 | AM84: 049 | AN84: 026
A85: 420049031 | B85: BENJAMIN BANNEKER | C85: 0 | D85: 0 | E85: 1 | F85: 0 | G85: 0 | H85: 0 | I85: 0.0375 | K85: 0 | L85: 0 | M85: 0 | N85: 0 | O85: 0 | P85: 1 | Q85: 1 | S85: 420049031 | T85: BENJAMIN BANNEKER | U85: 0 | V85: 0 | W85: 1 | X85: 0 | Y85: 0 | Z85: 0 | AA85: 0 | AB85: 0 | AC85: 0 | AD85: 0 | AE85: 0 | AF85: 0 | AG85: 0 | AH85: 0 | AI85: 1 | AJ85: 0 | AL85: 420 | AM85: 049 | AN85: 031
A86: 420049035 | B86: BENJAMIN BANNEKER | C86: 0 | D86: 0 | E86: 29 | F86: 88 | G86: 15 | H86: 0 | I86: 5.0625 | K86: 0 | L86: 0 | M86: 3 | N86: 0 | O86: 76 | P86: 17 | Q86: 135 | S86: 420049035 | T86: BENJAMIN BANNEKER | U86: 0 | V86: 0 | W86: 29 | X86: 88 | Y86: 15 | Z86: 0 | AA86: 0 | AB86: 0 | AC86: 0 | AD86: 3 | AE86: 0 | AF86: 76 | AG86: 0 | AH86: 0 | AI86: 17 | AJ86: 0 | AL86: 420 | AM86: 049 | AN86: 035
A87: 420049044 | B87: BENJAMIN BANNEKER | C87: 0 | D87: 0 | E87: 0 | F87: 1 | G87: 0 | H87: 0 | I87: 0.0375 | K87: 0 | L87: 0 | M87: 0 | N87: 0 | O87: 1 | P87: 0 | Q87: 1 | S87: 420049044 | T87: BENJAMIN BANNEKER | U87: 0 | V87: 0 | W87: 0 | X87: 1 | Y87: 0 | Z87: 0 | AA87: 0 | AB87: 0 | AC87: 0 | AD87: 0 | AE87: 0 | AF87: 1 | AG87: 0 | AH87: 0 | AI87: 0 | AJ87: 0 | AL87: 420 | AM87: 049 | AN87: 044
A88: 420049049 | B88: BENJAMIN BANNEKER | C88: 0 | D88: 0 | E88: 26 | F88: 83 | G88: 14 | H88: 0 | I88: 4.875 | K88: 0 | L88: 0 | M88: 7 | N88: 0 | O88: 71 | P88: 18 | Q88: 130 | S88: 420049049 | T88: BENJAMIN BANNEKER | U88: 0 | V88: 0 | W88: 26 | X88: 83 | Y88: 14 | Z88: 0 | AA88: 0 | AB88: 0 | AC88: 0 | AD88: 7 | AE88: 0 | AF88: 71 | AG88: 0 | AH88: 0 | AI88: 18 | AJ88: 0 | AL88: 420 | AM88: 049 | AN88: 049
A89: 420049057 | B89: BENJAMIN BANNEKER | C89: 0 | D89: 0 | E89: 0 | F89: 1 | G89: 1 | H89: 0 | I89: 0.15 | K89: 0 | L89: 0 | M89: 2 | N89: 0 | O89: 1 | P89: 0 | Q89: 4 | S89: 420049057 | T89: BENJAMIN BANNEKER | U89: 0 | V89: 0 | W89: 0 | X89: 1 | Y89: 1 | Z89: 0 | AA89: 0 | AB89: 0 | AC89: 0 | AD89: 2 | AE89: 0 | AF89: 1 | AG89: 0 | AH89: 0 | AI89: 0 | AJ89: 0 | AL89: 420 | AM89: 049 | AN89: 057
A90: 420049093 | B90: BENJAMIN BANNEKER | C90: 0 | D90: 0 | E90: 5 | F90: 16 | G90: 3 | H90: 0 | I90: 0.9375 | K90: 0 | L90: 0 | M90: 1 | N90: 0 | O90: 16 | P90: 3 | Q90: 25 | S90: 420049093 | T90: BENJAMIN BANNEKER | U90: 0 | V90: 0 | W90: 5 | X90: 16 | Y90: 3 | Z90: 0 | AA90: 0 | AB90: 0 | AC90: 0 | AD90: 1 | AE90: 0 | AF90: 16 | AG90: 0 | AH90: 0 | AI90: 3 | AJ90: 0 | AL90: 420 | AM90: 049 | AN90: 093
A91: 420049149 | B91: BENJAMIN BANNEKER | C91: 0 | D91: 0 | E91: 0 | F91: 1 | G91: 0 | H91: 0 | I91: 0.0375 | K91: 0 | L91: 0 | M91: 0 | N91: 0 | O91: 0 | P91: 0 | Q91: 1 | S91: 420049149 | T91: BENJAMIN BANNEKER | U91: 0 | V91: 0 | W91: 0 | X91: 1 | Y91: 0 | Z91: 0 | AA91: 0 | AB91: 0 | AC91: 0 | AD91: 0 | AE91: 0 | AF91: 0 | AG91: 0 | AH91: 0 | AI91: 0 | AJ91: 0 | AL91: 420 | AM91: 049 | AN91: 149
A92: 420049163 | B92: BENJAMIN BANNEKER | C92: 0 | D92: 0 | E92: 0 | F92: 6 | G92: 0 | H92: 0 | I92: 0.225 | K92: 0 | L92: 0 | M92: 0 | N92: 0 | O92: 2 | P92: 0 | Q92: 6 | S92: 420049163 | T92: BENJAMIN BANNEKER | U92: 0 | V92: 0 | W92: 0 | X92: 6 | Y92: 0 | Z92: 0 | AA92: 0 | AB92: 0 | AC92: 0 | AD92: 0 | AE92: 0 | AF92: 2 | AG92: 0 | AH92: 0 | AI92: 0 | AJ92: 0 | AL92: 420 | AM92: 049 | AN92: 163
A93: 420049165 | B93: BENJAMIN BANNEKER | C93: 0 | D93: 0 | E93: 0 | F93: 6 | G93: 0 | H93: 0 | I93: 0.225 | K93: 0 | L93: 0 | M93: 0 | N93: 0 | O93: 6 | P93: 0 | Q93: 6 | S93: 420049165 | T93: BENJAMIN BANNEKER | U93: 0 | V93: 0 | W93: 0 | X93: 6 | Y93: 0 | Z93: 0 | AA93: 0 | AB93: 0 | AC93: 0 | AD93: 0 | AE93: 0 | AF93: 6 | AG93: 0 | AH93: 0 | AI93: 0 | AJ93: 0 | AL93: 420 | AM93: 049 | AN93: 165
A94: 420049176 | B94: BENJAMIN BANNEKER | C94: 0 | D94: 0 | E94: 4 | F94: 10 | G94: 0 | H94: 0 | I94: 0.525 | K94: 0 | L94: 0 | M94: 0 | N94: 0 | O94: 5 | P94: 1 | Q94: 14 | S94: 420049176 | T94: BENJAMIN BANNEKER | U94: 0 | V94: 0 | W94: 4 | X94: 10 | Y94: 0 | Z94: 0 | AA94: 0 | AB94: 0 | AC94: 0 | AD94: 0 | AE94: 0 | AF94: 5 | AG94: 0 | AH94: 0 | AI94: 1 | AJ94: 0 | AL94: 420 | AM94: 049 | AN94: 176
A95: 420049181 | B95: BENJAMIN BANNEKER | C95: 0 | D95: 0 | E95: 0 | F95: 1 | G95: 0 | H95: 0 | I95: 0.0375 | K95: 0 | L95: 0 | M95: 0 | N95: 0 | O95: 0 | P95: 0 | Q95: 1 | S95: 420049181 | T95: BENJAMIN BANNEKER | U95: 0 | V95: 0 | W95: 0 | X95: 1 | Y95: 0 | Z95: 0 | AA95: 0 | AB95: 0 | AC95: 0 | AD95: 0 | AE95: 0 | AF95: 0 | AG95: 0 | AH95: 0 | AI95: 0 | AJ95: 0 | AL95: 420 | AM95: 049 | AN95: 181
A96: 420049198 | B96: BENJAMIN BANNEKER | C96: 0 | D96: 0 | E96: 0 | F96: 1 | G96: 0 | H96: 0 | I96: 0.0375 | K96: 0 | L96: 0 | M96: 0 | N96: 0 | O96: 1 | P96: 0 | Q96: 1 | S96: 420049198 | T96: BENJAMIN BANNEKER | U96: 0 | V96: 0 | W96: 0 | X96: 1 | Y96: 0 | Z96: 0 | AA96: 0 | AB96: 0 | AC96: 0 | AD96: 0 | AE96: 0 | AF96: 1 | AG96: 0 | AH96: 0 | AI96: 0 | AJ96: 0 | AL96: 420 | AM96: 049 | AN96: 198
A97: 420049243 | B97: BENJAMIN BANNEKER | C97: 0 | D97: 0 | E97: 0 | F97: 1 | G97: 0 | H97: 0 | I97: 0.0375 | K97: 0 | L97: 0 | M97: 0 | N97: 0 | O97: 0 | P97: 0 | Q97: 1 | S97: 420049243 | T97: BENJAMIN BANNEKER | U97: 0 | V97: 0 | W97: 0 | X97: 1 | Y97: 0 | Z97: 0 | AA97: 0 | AB97: 0 | AC97: 0 | AD97: 0 | AE97: 0 | AF97: 0 | AG97: 0 | AH97: 0 | AI97: 0 | AJ97: 0 | AL97: 420 | AM97: 049 | AN97: 243
A98: 420049244 | B98: BENJAMIN BANNEKER | C98: 0 | D98: 0 | E98: 0 | F98: 3 | G98: 1 | H98: 0 | I98: 0.15 | K98: 0 | L98: 0 | M98: 0 | N98: 0 | O98: 0 | P98: 0 | Q98: 4 | S98: 420049244 | T98: BENJAMIN BANNEKER | U98: 0 | V98: 0 | W98: 0 | X98: 3 | Y98: 1 | Z98: 0 | AA98: 0 | AB98: 0 | AC98: 0 | AD98: 0 | AE98: 0 | AF98: 0 | AG98: 0 | AH98: 0 | AI98: 0 | AJ98: 0 | AL98: 420 | AM98: 049 | AN98: 244
A99: 420049248 | B99: BENJAMIN BANNEKER | C99: 0 | D99: 0 | E99: 0 | F99: 1 | G99: 0 | H99: 0 | I99: 0.0375 | K99: 0 | L99: 0 | M99: 0 | N99: 0 | O99: 0 | P99: 0 | Q99: 1 | S99: 420049248 | T99: BENJAMIN BANNEKER | U99: 0 | V99: 0 | W99: 0 | X99: 1 | Y99: 0 | Z99: 0 | AA99: 0 | AB99: 0 | AC99: 0 | AD99: 0 | AE99: 0 | AF99: 0 | AG99: 0 | AH99: 0 | AI99: 0 | AJ99: 0 | AL99: 420 | AM99: 049 | AN99: 248
A100: 420049262 | B100: BENJAMIN BANNEKER | C100: 0 | D100: 0 | E100: 0 | F100: 1 | G100: 0 | H100: 0 | I100: 0.0375 | K100: 0 | L100: 0 | M100: 0 | N100: 0 | O100: 1 | P100: 0 | Q100: 1 | S100: 420049262 | T100: BENJAMIN BANNEKER | U100: 0 | V100: 0 | W100: 0 | X100: 1 | Y100: 0 | Z100: 0 | AA100: 0 | AB100: 0 | AC100: 0 | AD100: 0 | AE100: 0 | AF100: 1 | AG100: 0 | AH100: 0 | AI100: 0 | AJ100: 0 | AL100: 420 | AM100: 049 | AN100: 262
A101: 420049274 | B101: BENJAMIN BANNEKER | C101: 0 | D101: 0 | E101: 0 | F101: 3 | G101: 0 | H101: 0 | I101: 0.15 | K101: 0 | L101: 0 | M101: 1 | N101: 0 | O101: 3 | P101: 0 | Q101: 4 | S101: 420049274 | T101: BENJAMIN BANNEKER | U101: 0 | V101: 0 | W101: 0 | X101: 3 | Y101: 0 | Z101: 0 | AA101: 0 | AB101: 0 | AC101: 0 | AD101: 1 | AE101: 0 | AF101: 3 | AG101: 0 | AH101: 0 | AI101: 0 | AJ101: 0 | AL101: 420 | AM101: 049 | AN101: 274
A102: 420049293 | B102: BENJAMIN BANNEKER | C102: 0 | D102: 0 | E102: 0 | F102: 0 | G102: 1 | H102: 0 | I102: 0.0375 | K102: 0 | L102: 0 | M102: 0 | N102: 0 | O102: 1 | P102: 0 | Q102: 1 | S102: 420049293 | T102: BENJAMIN BANNEKER | U102: 0 | V102: 0 | W102: 0 | X102: 0 | Y102: 1 | Z102: 0 | AA102: 0 | AB102: 0 | AC102: 0 | AD102: 0 | AE102: 0 | AF102: 1 | AG102: 0 | AH102: 0 | AI102: 0 | AJ102: 0 | AL102: 420 | AM102: 049 | AN102: 293
A103: 420049308 | B103: BENJAMIN BANNEKER | C103: 0 | D103: 0 | E103: 0 | F103: 3 | G103: 0 | H103: 0 | I103: 0.1125 | K103: 0 | L103: 0 | M103: 0 | N103: 0 | O103: 3 | P103: 0 | Q103: 3 | S103: 420049308 | T103: BENJAMIN BANNEKER | U103: 0 | V103: 0 | W103: 0 | X103: 3 | Y103: 0 | Z103: 0 | AA103: 0 | AB103: 0 | AC103: 0 | AD103: 0 | AE103: 0 | AF103: 3 | AG103: 0 | AH103: 0 | AI103: 0 | AJ103: 0 | AL103: 420 | AM103: 049 | AN103: 308
A104: 426149009 | B104: COMMUNITY DAY - GATEWAY | C104: 0 | D104: 0 | E104: 0 | F104: 0 | G104: 0 | H104: 0 | I104: 0.0375 | K104: 0 | L104: 0 | M104: 1 | N104: 0 | O104: 1 | P104: 0 | Q104: 1 | S104: 426149009 | T104: COMMUNITY DAY - GATEWAY | U104: 0 | V104: 0 | W104: 0 | X104: 0 | Y104: 0 | Z104: 0 | AA104: 0 | AB104: 0 | AC104: 0 | AD104: 1 | AE104: 0 | AF104: 1 | AG104: 0 | AH104: 0 | AI104: 0 | AJ104: 0 | AL104: 426 | AM104: 149 | AN104: 009
A105: 426149079 | B105: COMMUNITY DAY - GATEWAY | C105: 0 | D105: 0 | E105: 0 | F105: 1 | G105: 0 | H105: 0 | I105: 0.0375 | K105: 0 | L105: 0 | M105: 0 | N105: 0 | O105: 1 | P105: 0 | Q105: 1 | S105: 426149079 | T105: COMMUNITY DAY - GATEWAY | U105: 0 | V105: 0 | W105: 0 | X105: 1 | Y105: 0 | Z105: 0 | AA105: 0 | AB105: 0 | AC105: 0 | AD105: 0 | AE105: 0 | AF105: 1 | AG105: 0 | AH105: 0 | AI105: 0 | AJ105: 0 | AL105: 426 | AM105: 149 | AN105: 079
A106: 426149128 | B106: COMMUNITY DAY - GATEWAY | C106: 0 | D106: 0 | E106: 0 | F106: 1 | G106: 0 | H106: 0 | I106: 0.0375 | K106: 0 | L106: 0 | M106: 0 | N106: 0 | O106: 1 | P106: 0 | Q106: 1 | S106: 426149128 | T106: COMMUNITY DAY - GATEWAY | U106: 0 | V106: 0 | W106: 0 | X106: 1 | Y106: 0 | Z106: 0 | AA106: 0 | AB106: 0 | AC106: 0 | AD106: 0 | AE106: 0 | AF106: 1 | AG106: 0 | AH106: 0 | AI106: 0 | AJ106: 0 | AL106: 426 | AM106: 149 | AN106: 128
A107: 426149149 | B107: COMMUNITY DAY - GATEWAY | C107: 23 | D107: 0 | E107: 6 | F107: 22 | G107: 0 | H107: 0 | I107: 5.7375 | K107: 18 | L107: 0 | M107: 125 | N107: 0 | O107: 95 | P107: 52 | Q107: 174 | S107: 426149149 | T107: COMMUNITY DAY - GATEWAY | U107: 23 | V107: 0 | W107: 6 | X107: 22 | Y107: 0 | Z107: 0 | AA107: 1 | AB107: 18 | AC107: 0 | AD107: 125 | AE107: 0 | AF107: 95 | AG107: 35 | AH107: 0 | AI107: 34 | AJ107: 0 | AL107: 426 | AM107: 149 | AN107: 149
A108: 426149181 | B108: COMMUNITY DAY - GATEWAY | C108: 0 | D108: 0 | E108: 0 | F108: 1 | G108: 0 | H108: 0 | I108: 0.0375 | K108: 0 | L108: 0 | M108: 0 | N108: 0 | O108: 1 | P108: 0 | Q108: 1 | S108: 426149181 | T108: COMMUNITY DAY - GATEWAY | U108: 0 | V108: 0 | W108: 0 | X108: 1 | Y108: 0 | Z108: 0 | AA108: 0 | AB108: 0 | AC108: 0 | AD108: 0 | AE108: 0 | AF108: 1 | AG108: 0 | AH108: 0 | AI108: 0 | AJ108: 0 | AL108: 426 | AM108: 149 | AN108: 181
A109: 426149211 | B109: COMMUNITY DAY - GATEWAY | C109: 0 | D109: 0 | E109: 0 | F109: 0 | G109: 0 | H109: 0 | I109: 0.075 | K109: 0 | L109: 0 | M109: 2 | N109: 0 | O109: 1 | P109: 1 | Q109: 2 | S109: 426149211 | T109: COMMUNITY DAY - GATEWAY | U109: 0 | V109: 0 | W109: 0 | X109: 0 | Y109: 0 | Z109: 0 | AA109: 0 | AB109: 0 | AC109: 0 | AD109: 2 | AE109: 0 | AF109: 1 | AG109: 0 | AH109: 0 | AI109: 1 | AJ109: 0 | AL109: 426 | AM109: 149 | AN109: 211
A110: 428035016 | B110: BROOKE ROSLINDALE | C110: 0 | D110: 0 | E110: 0 | F110: 1 | G110: 0 | H110: 0 | I110: 0.0375 | K110: 0 | L110: 0 | M110: 0 | N110: 0 | O110: 1 | P110: 0 | Q110: 1 | S110: 428035016 | T110: BROOKE ROSLINDALE | U110: 0 | V110: 0 | W110: 0 | X110: 1 | Y110: 0 | Z110: 0 | AA110: 0 | AB110: 0 | AC110: 0 | AD110: 0 | AE110: 0 | AF110: 1 | AG110: 0 | AH110: 0 | AI110: 0 | AJ110: 0 | AL110: 428 | AM110: 035 | AN110: 016
A111: 428035035 | B111: BROOKE ROSLINDALE | C111: 0 | D111: 0 | E111: 56 | F111: 281 | G111: 128 | H111: 0 | I111: 17.5875 | K111: 0 | L111: 0 | M111: 4 | N111: 0 | O111: 313 | P111: 26 | Q111: 469 | S111: 428035035 | T111: BROOKE ROSLINDALE | U111: 0 | V111: 0 | W111: 56 | X111: 281 | Y111: 128 | Z111: 0 | AA111: 0 | AB111: 0 | AC111: 0 | AD111: 4 | AE111: 0 | AF111: 313 | AG111: 0 | AH111: 0 | AI111: 26 | AJ111: 0 | AL111: 428 | AM111: 035 | AN111: 035
A112: 428035044 | B112: BROOKE ROSLINDALE | C112: 0 | D112: 0 | E112: 0 | F112: 4 | G112: 1 | H112: 0 | I112: 0.1875 | K112: 0 | L112: 0 | M112: 0 | N112: 0 | O112: 1 | P112: 0 | Q112: 5 | S112: 428035044 | T112: BROOKE ROSLINDALE | U112: 0 | V112: 0 | W112: 0 | X112: 4 | Y112: 1 | Z112: 0 | AA112: 0 | AB112: 0 | AC112: 0 | AD112: 0 | AE112: 0 | AF112: 1 | AG112: 0 | AH112: 0 | AI112: 0 | AJ112: 0 | AL112: 428 | AM112: 035 | AN112: 044
A113: 428035046 | B113: BROOKE ROSLINDALE | C113: 0 | D113: 0 | E113: 0 | F113: 1 | G113: 1 | H113: 0 | I113: 0.075 | K113: 0 | L113: 0 | M113: 0 | N113: 0 | O113: 2 | P113: 0 | Q113: 2 | S113: 428035046 | T113: BROOKE ROSLINDALE | U113: 0 | V113: 0 | W113: 0 | X113: 1 | Y113: 1 | Z113: 0 | AA113: 0 | AB113: 0 | AC113: 0 | AD113: 0 | AE113: 0 | AF113: 2 | AG113: 0 | AH113: 0 | AI113: 0 | AJ113: 0 | AL113: 428 | AM113: 035 | AN113: 046
A114: 428035073 | B114: BROOKE ROSLINDALE | C114: 0 | D114: 0 | E114: 0 | F114: 3 | G114: 1 | H114: 0 | I114: 0.15 | K114: 0 | L114: 0 | M114: 0 | N114: 0 | O114: 3 | P114: 0 | Q114: 4 | S114: 428035073 | T114: BROOKE ROSLINDALE | U114: 0 | V114: 0 | W114: 0 | X114: 3 | Y114: 1 | Z114: 0 | AA114: 0 | AB114: 0 | AC114: 0 | AD114: 0 | AE114: 0 | AF114: 3 | AG114: 0 | AH114: 0 | AI114: 0 | AJ114: 0 | AL114: 428 | AM114: 035 | AN114: 073
A115: 428035088 | B115: BROOKE ROSLINDALE | C115: 0 | D115: 0 | E115: 0 | F115: 1 | G115: 1 | H115: 0 | I115: 0.075 | K115: 0 | L115: 0 | M115: 0 | N115: 0 | O115: 0 | P115: 0 | Q115: 2 | S115: 428035088 | T115: BROOKE ROSLINDALE | U115: 0 | V115: 0 | W115: 0 | X115: 1 | Y115: 1 | Z115: 0 | AA115: 0 | AB115: 0 | AC115: 0 | AD115: 0 | AE115: 0 | AF115: 0 | AG115: 0 | AH115: 0 | AI115: 0 | AJ115: 0 | AL115: 428 | AM115: 035 | AN115: 088
A116: 428035163 | B116: BROOKE ROSLINDALE | C116: 0 | D116: 0 | E116: 0 | F116: 0 | G116: 1 | H116: 0 | I116: 0.0375 | K116: 0 | L116: 0 | M116: 0 | N116: 0 | O116: 1 | P116: 0 | Q116: 1 | S116: 428035163 | T116: BROOKE ROSLINDALE | U116: 0 | V116: 0 | W116: 0 | X116: 0 | Y116: 1 | Z116: 0 | AA116: 0 | AB116: 0 | AC116: 0 | AD116: 0 | AE116: 0 | AF116: 1 | AG116: 0 | AH116: 0 | AI116: 0 | AJ116: 0 | AL116: 428 | AM116: 035 | AN116: 163
A117: 428035220 | B117: BROOKE ROSLINDALE | C117: 0 | D117: 0 | E117: 0 | F117: 4 | G117: 1 | H117: 0 | I117: 0.1875 | K117: 0 | L117: 0 | M117: 0 | N117: 0 | O117: 5 | P117: 0 | Q117: 5 | S117: 428035220 | T117: BROOKE ROSLINDALE | U117: 0 | V117: 0 | W117: 0 | X117: 4 | Y117: 1 | Z117: 0 | AA117: 0 | AB117: 0 | AC117: 0 | AD117: 0 | AE117: 0 | AF117: 5 | AG117: 0 | AH117: 0 | AI117: 0 | AJ117: 0 | AL117: 428 | AM117: 035 | AN117: 220
A118: 428035243 | B118: BROOKE ROSLINDALE | C118: 0 | D118: 0 | E118: 2 | F118: 2 | G118: 1 | H118: 0 | I118: 0.1875 | K118: 0 | L118: 0 | M118: 0 | N118: 0 | O118: 3 | P118: 0 | Q118: 5 | S118: 428035243 | T118: BROOKE ROSLINDALE | U118: 0 | V118: 0 | W118: 2 | X118: 2 | Y118: 1 | Z118: 0 | AA118: 0 | AB118: 0 | AC118: 0 | AD118: 0 | AE118: 0 | AF118: 3 | AG118: 0 | AH118: 0 | AI118: 0 | AJ118: 0 | AL118: 428 | AM118: 035 | AN118: 243
A119: 428035244 | B119: BROOKE ROSLINDALE | C119: 0 | D119: 0 | E119: 0 | F119: 5 | G119: 4 | H119: 0 | I119: 0.3375 | K119: 0 | L119: 0 | M119: 0 | N119: 0 | O119: 6 | P119: 0 | Q119: 9 | S119: 428035244 | T119: BROOKE ROSLINDALE | U119: 0 | V119: 0 | W119: 0 | X119: 5 | Y119: 4 | Z119: 0 | AA119: 0 | AB119: 0 | AC119: 0 | AD119: 0 | AE119: 0 | AF119: 6 | AG119: 0 | AH119: 0 | AI119: 0 | AJ119: 0 | AL119: 428 | AM119: 035 | AN119: 244
A120: 428035285 | B120: BROOKE ROSLINDALE | C120: 0 | D120: 0 | E120: 0 | F120: 2 | G120: 0 | H120: 0 | I120: 0.075 | K120: 0 | L120: 0 | M120: 0 | N120: 0 | O120: 2 | P120: 0 | Q120: 2 | S120: 428035285 | T120: BROOKE ROSLINDALE | U120: 0 | V120: 0 | W120: 0 | X120: 2 | Y120: 0 | Z120: 0 | AA120: 0 | AB120: 0 | AC120: 0 | AD120: 0 | AE120: 0 | AF120: 2 | AG120: 0 | AH120: 0 | AI120: 0 | AJ120: 0 | AL120: 428 | AM120: 035 | AN120: 285
A121: 428035625 | B121: BROOKE ROSLINDALE | C121: 0 | D121: 0 | E121: 0 | F121: 1 | G121: 0 | H121: 0 | I121: 0.0375 | K121: 0 | L121: 0 | M121: 0 | N121: 0 | O121: 1 | P121: 0 | Q121: 1 | S121: 428035625 | T121: BROOKE ROSLINDALE | U121: 0 | V121: 0 | W121: 0 | X121: 1 | Y121: 0 | Z121: 0 | AA121: 0 | AB121: 0 | AC121: 0 | AD121: 0 | AE121: 0 | AF121: 1 | AG121: 0 | AH121: 0 | AI121: 0 | AJ121: 0 | AL121: 428 | AM121: 035 | AN121: 625
A122: 429163030 | B122: KIPP ACADEMY LYNN | C122: 0 | D122: 0 | E122: 0 | F122: 0 | G122: 1 | H122: 2 | I122: 0.1125 | K122: 0 | L122: 0 | M122: 0 | N122: 0 | O122: 1 | P122: 2 | Q122: 3 | S122: 429163030 | T122: KIPP ACADEMY LYNN | U122: 0 | V122: 0 | W122: 0 | X122: 0 | Y122: 1 | Z122: 2 | AA122: 0 | AB122: 0 | AC122: 0 | AD122: 0 | AE122: 0 | AF122: 1 | AG122: 0 | AH122: 0 | AI122: 0 | AJ122: 2 | AL122: 429 | AM122: 163 | AN122: 030
A123: 429163057 | B123: KIPP ACADEMY LYNN | C123: 0 | D123: 0 | E123: 0 | F123: 0 | G123: 0 | H123: 2 | I123: 0.1125 | K123: 0 | L123: 0 | M123: 1 | N123: 0 | O123: 1 | P123: 2 | Q123: 3 | S123: 429163057 | T123: KIPP ACADEMY LYNN | U123: 0 | V123: 0 | W123: 0 | X123: 0 | Y123: 0 | Z123: 2 | AA123: 0 | AB123: 0 | AC123: 0 | AD123: 1 | AE123: 0 | AF123: 1 | AG123: 0 | AH123: 0 | AI123: 0 | AJ123: 2 | AL123: 429 | AM123: 163 | AN123: 057
A124: 429163163 | B124: KIPP ACADEMY LYNN | C124: 0 | D124: 0 | E124: 0 | F124: 51 | G124: 287 | H124: 346 | I124: 30.75 | K124: 0 | L124: 0 | M124: 136 | N124: 0 | O124: 368 | P124: 317 | Q124: 820 | S124: 429163163 | T124: KIPP ACADEMY LYNN | U124: 0 | V124: 0 | W124: 0 | X124: 51 | Y124: 287 | Z124: 346 | AA124: 0 | AB124: 0 | AC124: 0 | AD124: 136 | AE124: 0 | AF124: 368 | AG124: 0 | AH124: 0 | AI124: 0 | AJ124: 317 | AL124: 429 | AM124: 163 | AN124: 163
A125: 429163164 | B125: KIPP ACADEMY LYNN | C125: 0 | D125: 0 | E125: 0 | F125: 0 | G125: 0 | H125: 1 | I125: 0.075 | K125: 0 | L125: 0 | M125: 1 | N125: 0 | O125: 1 | P125: 1 | Q125: 2 | S125: 429163164 | T125: KIPP ACADEMY LYNN | U125: 0 | V125: 0 | W125: 0 | X125: 0 | Y125: 0 | Z125: 1 | AA125: 0 | AB125: 0 | AC125: 0 | AD125: 1 | AE125: 0 | AF125: 1 | AG125: 0 | AH125: 0 | AI125: 0 | AJ125: 1 | AL125: 429 | AM125: 163 | AN125: 164
A126: 429163168 | B126: KIPP ACADEMY LYNN | C126: 0 | D126: 0 | E126: 0 | F126: 1 | G126: 1 | H126: 0 | I126: 0.075 | K126: 0 | L126: 0 | M126: 0 | N126: 0 | O126: 0 | P126: 0 | Q126: 2 | S126: 429163168 | T126: KIPP ACADEMY LYNN | U126: 0 | V126: 0 | W126: 0 | X126: 1 | Y126: 1 | Z126: 0 | AA126: 0 | AB126: 0 | AC126: 0 | AD126: 0 | AE126: 0 | AF126: 0 | AG126: 0 | AH126: 0 | AI126: 0 | AJ126: 0 | AL126: 429 | AM126: 163 | AN126: 168
A127: 429163229 | B127: KIPP ACADEMY LYNN | C127: 0 | D127: 0 | E127: 0 | F127: 0 | G127: 1 | H127: 5 | I127: 0.225 | K127: 0 | L127: 0 | M127: 0 | N127: 0 | O127: 1 | P127: 4 | Q127: 6 | S127: 429163229 | T127: KIPP ACADEMY LYNN | U127: 0 | V127: 0 | W127: 0 | X127: 0 | Y127: 1 | Z127: 5 | AA127: 0 | AB127: 0 | AC127: 0 | AD127: 0 | AE127: 0 | AF127: 1 | AG127: 0 | AH127: 0 | AI127: 0 | AJ127: 4 | AL127: 429 | AM127: 163 | AN127: 229
A128: 429163248 | B128: KIPP ACADEMY LYNN | C128: 0 | D128: 0 | E128: 0 | F128: 0 | G128: 0 | H128: 2 | I128: 0.075 | K128: 0 | L128: 0 | M128: 0 | N128: 0 | O128: 0 | P128: 1 | Q128: 2 | S128: 429163248 | T128: KIPP ACADEMY LYNN | U128: 0 | V128: 0 | W128: 0 | X128: 0 | Y128: 0 | Z128: 2 | AA128: 0 | AB128: 0 | AC128: 0 | AD128: 0 | AE128: 0 | AF128: 0 | AG128: 0 | AH128: 0 | AI128: 0 | AJ128: 1 | AL128: 429 | AM128: 163 | AN128: 248
A129: 429163258 | B129: KIPP ACADEMY LYNN | C129: 0 | D129: 0 | E129: 0 | F129: 0 | G129: 1 | H129: 4 | I129: 0.225 | K129: 0 | L129: 0 | M129: 1 | N129: 0 | O129: 1 | P129: 3 | Q129: 6 | S129: 429163258 | T129: KIPP ACADEMY LYNN | U129: 0 | V129: 0 | W129: 0 | X129: 0 | Y129: 1 | Z129: 4 | AA129: 0 | AB129: 0 | AC129: 0 | AD129: 1 | AE129: 0 | AF129: 1 | AG129: 0 | AH129: 0 | AI129: 0 | AJ129: 3 | AL129: 429 | AM129: 163 | AN129: 258
A130: 429163262 | B130: KIPP ACADEMY LYNN | C130: 0 | D130: 0 | E130: 0 | F130: 0 | G130: 2 | H130: 2 | I130: 0.1875 | K130: 0 | L130: 0 | M130: 1 | N130: 0 | O130: 3 | P130: 2 | Q130: 5 | S130: 429163262 | T130: KIPP ACADEMY LYNN | U130: 0 | V130: 0 | W130: 0 | X130: 0 | Y130: 2 | Z130: 2 | AA130: 0 | AB130: 0 | AC130: 0 | AD130: 1 | AE130: 0 | AF130: 3 | AG130: 0 | AH130: 0 | AI130: 0 | AJ130: 2 | AL130: 429 | AM130: 163 | AN130: 262
A131: 429163274 | B131: KIPP ACADEMY LYNN | C131: 0 | D131: 0 | E131: 0 | F131: 0 | G131: 0 | H131: 1 | I131: 0.0375 | K131: 0 | L131: 0 | M131: 0 | N131: 0 | O131: 0 | P131: 1 | Q131: 1 | S131: 429163274 | T131: KIPP ACADEMY LYNN | U131: 0 | V131: 0 | W131: 0 | X131: 0 | Y131: 0 | Z131: 1 | AA131: 0 | AB131: 0 | AC131: 0 | AD131: 0 | AE131: 0 | AF131: 0 | AG131: 0 | AH131: 0 | AI131: 0 | AJ131: 1 | AL131: 429 | AM131: 163 | AN131: 274
A132: 429163291 | B132: KIPP ACADEMY LYNN | C132: 0 | D132: 0 | E132: 0 | F132: 0 | G132: 0 | H132: 1 | I132: 0.0375 | K132: 0 | L132: 0 | M132: 0 | N132: 0 | O132: 0 | P132: 0 | Q132: 1 | S132: 429163291 | T132: KIPP ACADEMY LYNN | U132: 0 | V132: 0 | W132: 0 | X132: 0 | Y132: 0 | Z132: 1 | AA132: 0 | AB132: 0 | AC132: 0 | AD132: 0 | AE132: 0 | AF132: 0 | AG132: 0 | AH132: 0 | AI132: 0 | AJ132: 0 | AL132: 429 | AM132: 163 | AN132: 291
A133: 430170009 | B133: ADVANCED MATH AND SCIENCE ACADEMY | C133: 0 | D133: 0 | E133: 0 | F133: 0 | G133: 1 | H133: 1 | I133: 0.075 | K133: 0 | L133: 0 | M133: 0 | N133: 0 | O133: 0 | P133: 0 | Q133: 2 | S133: 430170009 | T133: ADVANCED MATH AND SCIENCE ACADEMY | U133: 0 | V133: 0 | W133: 0 | X133: 0 | Y133: 1 | Z133: 1 | AA133: 0 | AB133: 0 | AC133: 0 | AD133: 0 | AE133: 0 | AF133: 0 | AG133: 0 | AH133: 0 | AI133: 0 | AJ133: 0 | AL133: 430 | AM133: 170 | AN133: 009
A134: 430170014 | B134: ADVANCED MATH AND SCIENCE ACADEMY | C134: 0 | D134: 0 | E134: 0 | F134: 0 | G134: 9 | H134: 24 | I134: 1.2375 | K134: 0 | L134: 0 | M134: 0 | N134: 0 | O134: 0 | P134: 2 | Q134: 33 | S134: 430170014 | T134: ADVANCED MATH AND SCIENCE ACADEMY | U134: 0 | V134: 0 | W134: 0 | X134: 0 | Y134: 9 | Z134: 24 | AA134: 0 | AB134: 0 | AC134: 0 | AD134: 0 | AE134: 0 | AF134: 0 | AG134: 0 | AH134: 0 | AI134: 0 | AJ134: 2 | AL134: 430 | AM134: 170 | AN134: 014
A135: 430170017 | B135: ADVANCED MATH AND SCIENCE ACADEMY | C135: 0 | D135: 0 | E135: 0 | F135: 0 | G135: 0 | H135: 2 | I135: 0.075 | K135: 0 | L135: 0 | M135: 0 | N135: 0 | O135: 0 | P135: 0 | Q135: 2 | S135: 430170017 | T135: ADVANCED MATH AND SCIENCE ACADEMY | U135: 0 | V135: 0 | W135: 0 | X135: 0 | Y135: 0 | Z135: 2 | AA135: 0 | AB135: 0 | AC135: 0 | AD135: 0 | AE135: 0 | AF135: 0 | AG135: 0 | AH135: 0 | AI135: 0 | AJ135: 0 | AL135: 430 | AM135: 170 | AN135: 017
A136: 430170025 | B136: ADVANCED MATH AND SCIENCE ACADEMY | C136: 0 | D136: 0 | E136: 0 | F136: 0 | G136: 0 | H136: 1 | I136: 0.0375 | K136: 0 | L136: 0 | M136: 0 | N136: 0 | O136: 0 | P136: 0 | Q136: 1 | S136: 430170025 | T136: ADVANCED MATH AND SCIENCE ACADEMY | U136: 0 | V136: 0 | W136: 0 | X136: 0 | Y136: 0 | Z136: 1 | AA136: 0 | AB136: 0 | AC136: 0 | AD136: 0 | AE136: 0 | AF136: 0 | AG136: 0 | AH136: 0 | AI136: 0 | AJ136: 0 | AL136: 430 | AM136: 170 | AN136: 025
A137: 430170031 | B137: ADVANCED MATH AND SCIENCE ACADEMY | C137: 0 | D137: 0 | E137: 0 | F137: 0 | G137: 0 | H137: 2 | I137: 0.075 | K137: 0 | L137: 0 | M137: 0 | N137: 0 | O137: 0 | P137: 0 | Q137: 2 | S137: 430170031 | T137: ADVANCED MATH AND SCIENCE ACADEMY | U137: 0 | V137: 0 | W137: 0 | X137: 0 | Y137: 0 | Z137: 2 | AA137: 0 | AB137: 0 | AC137: 0 | AD137: 0 | AE137: 0 | AF137: 0 | AG137: 0 | AH137: 0 | AI137: 0 | AJ137: 0 | AL137: 430 | AM137: 170 | AN137: 031
A138: 430170056 | B138: ADVANCED MATH AND SCIENCE ACADEMY | C138: 0 | D138: 0 | E138: 0 | F138: 0 | G138: 0 | H138: 2 | I138: 0.075 | K138: 0 | L138: 0 | M138: 0 | N138: 0 | O138: 0 | P138: 0 | Q138: 2 | S138: 430170056 | T138: ADVANCED MATH AND SCIENCE ACADEMY | U138: 0 | V138: 0 | W138: 0 | X138: 0 | Y138: 0 | Z138: 2 | AA138: 0 | AB138: 0 | AC138: 0 | AD138: 0 | AE138: 0 | AF138: 0 | AG138: 0 | AH138: 0 | AI138: 0 | AJ138: 0 | AL138: 430 | AM138: 170 | AN138: 056
A139: 430170064 | B139: ADVANCED MATH AND SCIENCE ACADEMY | C139: =ROUND(U139,0) -> 0 | D139: =ROUND(V139,0) -> 0 | E139: =ROUND(W139,0) -> 0 | F139: =ROUND(X139,0) -> 0 | G139: =ROUND(Y139,0) -> 23 | H139: =ROUND(Z139,0) -> 23 | I139: =ROUND(0.0375*(SUM(E139:H139)+ROUND(D139*0.5,4)+ROUND(L139*0.5,4)+M139),4)+ROUND((0.0475)*N139,4) -> 1.725 | K139: =ROUND(AB139,0) -> 0 | L139: =ROUND(AC139,0) -> 0 | M139: =ROUND(AD139,0) -> 0 | N139: =ROUND(AE139,0) -> 0 | O139: =ROUND(AF139,0) -> 0 | P139: =ROUND((AG139+AH139)/2,0)+ROUND(AI139+AJ139,0) -> 0 | Q139: =SUM(E139:H139)+M139+N139+ROUND(C139*0.5,0)+ROUND(D139*0.5,0)+ROUND(K139*0.5,0)+ROUND(L139*0.5,0) -> 46 | S139: 430170064 | T139: ADVANCED MATH AND SCIENCE ACADEMY | U139: 0 | V139: 0 | W139: 0 | X139: 0 | Y139: 23 | Z139: 23 | AA139: 0 | AB139: 0 | AC139: 0 | AD139: 0 | AE139: 0 | AF139: 0 | AG139: 0 | AH139: 0 | AI139: 0 | AJ139: 0 | AL139: 430 | AM139: 170 | AN139: 064
A140: 430170100 | B140: ADVANCED MATH AND SCIENCE ACADEMY | C140: 0 | D140: 0 | E140: 0 | F140: 0 | G140: 11 | H140: 42 | I140: 1.9875 | K140: 0 | L140: 0 | M140: 0 | N140: 0 | O140: 1 | P140: 6 | Q140: 53 | S140: 430170100 | T140: ADVANCED MATH AND SCIENCE ACADEMY | U140: 0 | V140: 0 | W140: 0 | X140: 0 | Y140: 11 | Z140: 42 | AA140: 0 | AB140: 0 | AC140: 0 | AD140: 0 | AE140: 0 | AF140: 1 | AG140: 0 | AH140: 0 | AI140: 0 | AJ140: 6 | AL140: 430 | AM140: 170 | AN140: 100
A141: 430170101 | B141: ADVANCED MATH AND SCIENCE ACADEMY | C141: 0 | D141: 0 | E141: 0 | F141: 0 | G141: 1 | H141: 0 | I141: 0.0375 | K141: 0 | L141: 0 | M141: 0 | N141: 0 | O141: 0 | P141: 0 | Q141: 1 | S141: 430170101 | T141: ADVANCED MATH AND SCIENCE ACADEMY | U141: 0 | V141: 0 | W141: 0 | X141: 0 | Y141: 1 | Z141: 0 | AA141: 0 | AB141: 0 | AC141: 0 | AD141: 0 | AE141: 0 | AF141: 0 | AG141: 0 | AH141: 0 | AI141: 0 | AJ141: 0 | AL141: 430 | AM141: 170 | AN141: 101
A142: 430170110 | B142: ADVANCED MATH AND SCIENCE ACADEMY | C142: 0 | D142: 0 | E142: 0 | F142: 0 | G142: 12 | H142: 34 | I142: 1.725 | K142: 0 | L142: 0 | M142: 0 | N142: 0 | O142: 1 | P142: 0 | Q142: 46 | S142: 430170110 | T142: ADVANCED MATH AND SCIENCE ACADEMY | U142: 0 | V142: 0 | W142: 0 | X142: 0 | Y142: 12 | Z142: 34 | AA142: 0 | AB142: 0 | AC142: 0 | AD142: 0 | AE142: 0 | AF142: 1 | AG142: 0 | AH142: 0 | AI142: 0 | AJ142: 0 | AL142: 430 | AM142: 170 | AN142: 110
A143: 430170125 | B143: ADVANCED MATH AND SCIENCE ACADEMY | C143: 0 | D143: 0 | E143: 0 | F143: 0 | G143: 0 | H143: 4 | I143: 0.15 | K143: 0 | L143: 0 | M143: 0 | N143: 0 | O143: 0 | P143: 0 | Q143: 4 | S143: 430170125 | T143: ADVANCED MATH AND SCIENCE ACADEMY | U143: 0 | V143: 0 | W143: 0 | X143: 0 | Y143: 0 | Z143: 4 | AA143: 0 | AB143: 0 | AC143: 0 | AD143: 0 | AE143: 0 | AF143: 0 | AG143: 0 | AH143: 0 | AI143: 0 | AJ143: 0 | AL143: 430 | AM143: 170 | AN143: 125
A144: 430170136 | B144: ADVANCED MATH AND SCIENCE ACADEMY | C144: 0 | D144: 0 | E144: 0 | F144: 0 | G144: 1 | H144: 1 | I144: 0.075 | K144: 0 | L144: 0 | M144: 0 | N144: 0 | O144: 0 | P144: 0 | Q144: 2 | S144: 430170136 | T144: ADVANCED MATH AND SCIENCE ACADEMY | U144: 0 | V144: 0 | W144: 0 | X144: 0 | Y144: 1 | Z144: 1 | AA144: 0 | AB144: 0 | AC144: 0 | AD144: 0 | AE144: 0 | AF144: 0 | AG144: 0 | AH144: 0 | AI144: 0 | AJ144: 0 | AL144: 430 | AM144: 170 | AN144: 136
A145: 430170138 | B145: ADVANCED MATH AND SCIENCE ACADEMY | C145: 0 | D145: 0 | E145: 0 | F145: 0 | G145: 0 | H145: 1 | I145: 0.0375 | K145: 0 | L145: 0 | M145: 0 | N145: 0 | O145: 0 | P145: 0 | Q145: 1 | S145: 430170138 | T145: ADVANCED MATH AND SCIENCE ACADEMY | U145: 0 | V145: 0 | W145: 0 | X145: 0 | Y145: 0 | Z145: 1 | AA145: 0 | AB145: 0 | AC145: 0 | AD145: 0 | AE145: 0 | AF145: 0 | AG145: 0 | AH145: 0 | AI145: 0 | AJ145: 0 | AL145: 430 | AM145: 170 | AN145: 138
A146: 430170139 | B146: ADVANCED MATH AND SCIENCE ACADEMY | C146: 0 | D146: 0 | E146: 0 | F146: 0 | G146: 6 | H146: 13 | I146: 0.7125 | K146: 0 | L146: 0 | M146: 0 | N146: 0 | O146: 0 | P146: 0 | Q146: 19 | S146: 430170139 | T146: ADVANCED MATH AND SCIENCE ACADEMY | U146: 0 | V146: 0 | W146: 0 | X146: 0 | Y146: 6 | Z146: 13 | AA146: 0 | AB146: 0 | AC146: 0 | AD146: 0 | AE146: 0 | AF146: 0 | AG146: 0 | AH146: 0 | AI146: 0 | AJ146: 0 | AL146: 430 | AM146: 170 | AN146: 139
A147: 430170141 | B147: ADVANCED MATH AND SCIENCE ACADEMY | C147: 0 | D147: 0 | E147: 0 | F147: 0 | G147: 40 | H147: 36 | I147: 2.8875 | K147: 0 | L147: 0 | M147: 1 | N147: 0 | O147: 3 | P147: 3 | Q147: 77 | S147: 430170141 | T147: ADVANCED MATH AND SCIENCE ACADEMY | U147: 0 | V147: 0 | W147: 0 | X147: 0 | Y147: 40 | Z147: 36 | AA147: 0 | AB147: 0 | AC147: 0 | AD147: 1 | AE147: 0 | AF147: 3 | AG147: 0 | AH147: 0 | AI147: 0 | AJ147: 3 | AL147: 430 | AM147: 170 | AN147: 141
A148: 430170153 | B148: ADVANCED MATH AND SCIENCE ACADEMY | C148: 0 | D148: 0 | E148: 0 | F148: 0 | G148: 0 | H148: 2 | I148: 0.075 | K148: 0 | L148: 0 | M148: 0 | N148: 0 | O148: 0 | P148: 0 | Q148: 2 | S148: 430170153 | T148: ADVANCED MATH AND SCIENCE ACADEMY | U148: 0 | V148: 0 | W148: 0 | X148: 0 | Y148: 0 | Z148: 2 | AA148: 0 | AB148: 0 | AC148: 0 | AD148: 0 | AE148: 0 | AF148: 0 | AG148: 0 | AH148: 0 | AI148: 0 | AJ148: 0 | AL148: 430 | AM148: 170 | AN148: 153
A149: 430170158 | B149: ADVANCED MATH AND SCIENCE ACADEMY | C149: 0 | D149: 0 | E149: 0 | F149: 0 | G149: 1 | H149: 3 | I149: 0.15 | K149: 0 | L149: 0 | M149: 0 | N149: 0 | O149: 0 | P149: 0 | Q149: 4 | S149: 430170158 | T149: ADVANCED MATH AND SCIENCE ACADEMY | U149: 0 | V149: 0 | W149: 0 | X149: 0 | Y149: 1 | Z149: 3 | AA149: 0 | AB149: 0 | AC149: 0 | AD149: 0 | AE149: 0 | AF149: 0 | AG149: 0 | AH149: 0 | AI149: 0 | AJ149: 0 | AL149: 430 | AM149: 170 | AN149: 158
A150: 430170170 | B150: ADVANCED MATH AND SCIENCE ACADEMY | C150: 0 | D150: 0 | E150: 0 | F150: 0 | G150: 246 | H150: 159 | I150: 15.1875 | K150: 0 | L150: 0 | M150: 0 | N150: 0 | O150: 15 | P150: 7 | Q150: 405 | S150: 430170170 | T150: ADVANCED MATH AND SCIENCE ACADEMY | U150: 0 | V150: 0 | W150: 0 | X150: 0 | Y150: 246 | Z150: 159 | AA150: 0 | AB150: 0 | AC150: 0 | AD150: 0 | AE150: 0 | AF150: 15 | AG150: 0 | AH150: 0 | AI150: 0 | AJ150: 7 | AL150: 430 | AM150: 170 | AN150: 170
A151: 430170174 | B151: ADVANCED MATH AND SCIENCE ACADEMY | C151: 0 | D151: 0 | E151: 0 | F151: 0 | G151: 8 | H151: 3 | I151: 0.4125 | K151: 0 | L151: 0 | M151: 0 | N151: 0 | O151: 1 | P151: 0 | Q151: 11 | S151: 430170174 | T151: ADVANCED MATH AND SCIENCE ACADEMY | U151: 0 | V151: 0 | W151: 0 | X151: 0 | Y151: 8 | Z151: 3 | AA151: 0 | AB151: 0 | AC151: 0 | AD151: 0 | AE151: 0 | AF151: 1 | AG151: 0 | AH151: 0 | AI151: 0 | AJ151: 0 | AL151: 430 | AM151: 170 | AN151: 174
A152: 430170177 | B152: ADVANCED MATH AND SCIENCE ACADEMY | C152: 0 | D152: 0 | E152: 0 | F152: 0 | G152: 2 | H152: 3 | I152: 0.1875 | K152: 0 | L152: 0 | M152: 0 | N152: 0 | O152: 0 | P152: 0 | Q152: 5 | S152: 430170177 | T152: ADVANCED MATH AND SCIENCE ACADEMY | U152: 0 | V152: 0 | W152: 0 | X152: 0 | Y152: 2 | Z152: 3 | AA152: 0 | AB152: 0 | AC152: 0 | AD152: 0 | AE152: 0 | AF152: 0 | AG152: 0 | AH152: 0 | AI152: 0 | AJ152: 0 | AL152: 430 | AM152: 170 | AN152: 177
A153: 430170198 | B153: ADVANCED MATH AND SCIENCE ACADEMY | C153: 0 | D153: 0 | E153: 0 | F153: 0 | G153: 1 | H153: 7 | I153: 0.3 | K153: 0 | L153: 0 | M153: 0 | N153: 0 | O153: 0 | P153: 0 | Q153: 8 | S153: 430170198 | T153: ADVANCED MATH AND SCIENCE ACADEMY | U153: 0 | V153: 0 | W153: 0 | X153: 0 | Y153: 1 | Z153: 7 | AA153: 0 | AB153: 0 | AC153: 0 | AD153: 0 | AE153: 0 | AF153: 0 | AG153: 0 | AH153: 0 | AI153: 0 | AJ153: 0 | AL153: 430 | AM153: 170 | AN153: 198
A154: 430170199 | B154: ADVANCED MATH AND SCIENCE ACADEMY | C154: 0 | D154: 0 | E154: 0 | F154: 0 | G154: 2 | H154: 1 | I154: 0.1125 | K154: 0 | L154: 0 | M154: 0 | N154: 0 | O154: 0 | P154: 0 | Q154: 3 | S154: 430170199 | T154: ADVANCED MATH AND SCIENCE ACADEMY | U154: 0 | V154: 0 | W154: 0 | X154: 0 | Y154: 2 | Z154: 1 | AA154: 0 | AB154: 0 | AC154: 0 | AD154: 0 | AE154: 0 | AF154: 0 | AG154: 0 | AH154: 0 | AI154: 0 | AJ154: 0 | AL154: 430 | AM154: 170 | AN154: 199
A155: 430170207 | B155: ADVANCED MATH AND SCIENCE ACADEMY | C155: 0 | D155: 0 | E155: 0 | F155: 0 | G155: 1 | H155: 3 | I155: 0.15 | K155: 0 | L155: 0 | M155: 0 | N155: 0 | O155: 0 | P155: 0 | Q155: 4 | S155: 430170207 | T155: ADVANCED MATH AND SCIENCE ACADEMY | U155: 0 | V155: 0 | W155: 0 | X155: 0 | Y155: 1 | Z155: 3 | AA155: 0 | AB155: 0 | AC155: 0 | AD155: 0 | AE155: 0 | AF155: 0 | AG155: 0 | AH155: 0 | AI155: 0 | AJ155: 0 | AL155: 430 | AM155: 170 | AN155: 207
A156: 430170213 | B156: ADVANCED MATH AND SCIENCE ACADEMY | C156: 0 | D156: 0 | E156: 0 | F156: 0 | G156: 5 | H156: 0 | I156: 0.1875 | K156: 0 | L156: 0 | M156: 0 | N156: 0 | O156: 0 | P156: 0 | Q156: 5 | S156: 430170213 | T156: ADVANCED MATH AND SCIENCE ACADEMY | U156: 0 | V156: 0 | W156: 0 | X156: 0 | Y156: 5 | Z156: 0 | AA156: 0 | AB156: 0 | AC156: 0 | AD156: 0 | AE156: 0 | AF156: 0 | AG156: 0 | AH156: 0 | AI156: 0 | AJ156: 0 | AL156: 430 | AM156: 170 | AN156: 213
A157: 430170214 | B157: ADVANCED MATH AND SCIENCE ACADEMY | C157: 0 | D157: 0 | E157: 0 | F157: 0 | G157: 0 | H157: 2 | I157: 0.075 | K157: 0 | L157: 0 | M157: 0 | N157: 0 | O157: 0 | P157: 0 | Q157: 2 | S157: 430170214 | T157: ADVANCED MATH AND SCIENCE ACADEMY | U157: 0 | V157: 0 | W157: 0 | X157: 0 | Y157: 0 | Z157: 2 | AA157: 0 | AB157: 0 | AC157: 0 | AD157: 0 | AE157: 0 | AF157: 0 | AG157: 0 | AH157: 0 | AI157: 0 | AJ157: 0 | AL157: 430 | AM157: 170 | AN157: 214
A158: 430170271 | B158: ADVANCED MATH AND SCIENCE ACADEMY | C158: 0 | D158: 0 | E158: 0 | F158: 0 | G158: 20 | H158: 66 | I158: 3.225 | K158: 0 | L158: 0 | M158: 0 | N158: 0 | O158: 1 | P158: 2 | Q158: 86 | S158: 430170271 | T158: ADVANCED MATH AND SCIENCE ACADEMY | U158: 0 | V158: 0 | W158: 0 | X158: 0 | Y158: 20 | Z158: 66 | AA158: 0 | AB158: 0 | AC158: 0 | AD158: 0 | AE158: 0 | AF158: 1 | AG158: 0 | AH158: 0 | AI158: 0 | AJ158: 2 | AL158: 430 | AM158: 170 | AN158: 271
A159: 430170276 | B159: ADVANCED MATH AND SCIENCE ACADEMY | C159: 0 | D159: 0 | E159: 0 | F159: 0 | G159: 3 | H159: 0 | I159: 0.1125 | K159: 0 | L159: 0 | M159: 0 | N159: 0 | O159: 0 | P159: 0 | Q159: 3 | S159: 430170276 | T159: ADVANCED MATH AND SCIENCE ACADEMY | U159: 0 | V159: 0 | W159: 0 | X159: 0 | Y159: 3 | Z159: 0 | AA159: 0 | AB159: 0 | AC159: 0 | AD159: 0 | AE159: 0 | AF159: 0 | AG159: 0 | AH159: 0 | AI159: 0 | AJ159: 0 | AL159: 430 | AM159: 170 | AN159: 276
A160: 430170304 | B160: ADVANCED MATH AND SCIENCE ACADEMY | C160: 0 | D160: 0 | E160: 0 | F160: 0 | G160: 0 | H160: 1 | I160: 0.0375 | K160: 0 | L160: 0 | M160: 0 | N160: 0 | O160: 0 | P160: 0 | Q160: 1 | S160: 430170304 | T160: ADVANCED MATH AND SCIENCE ACADEMY | U160: 0 | V160: 0 | W160: 0 | X160: 0 | Y160: 0 | Z160: 1 | AA160: 0 | AB160: 0 | AC160: 0 | AD160: 0 | AE160: 0 | AF160: 0 | AG160: 0 | AH160: 0 | AI160: 0 | AJ160: 0 | AL160: 430 | AM160: 170 | AN160: 304
A161: 430170308 | B161: ADVANCED MATH AND SCIENCE ACADEMY | C161: 0 | D161: 0 | E161: 0 | F161: 0 | G161: 1 | H161: 2 | I161: 0.1125 | K161: 0 | L161: 0 | M161: 0 | N161: 0 | O161: 0 | P161: 0 | Q161: 3 | S161: 430170308 | T161: ADVANCED MATH AND SCIENCE ACADEMY | U161: 0 | V161: 0 | W161: 0 | X161: 0 | Y161: 1 | Z161: 2 | AA161: 0 | AB161: 0 | AC161: 0 | AD161: 0 | AE161: 0 | AF161: 0 | AG161: 0 | AH161: 0 | AI161: 0 | AJ161: 0 | AL161: 430 | AM161: 170 | AN161: 308
A162: 430170314 | B162: ADVANCED MATH AND SCIENCE ACADEMY | C162: 0 | D162: 0 | E162: 0 | F162: 0 | G162: 1 | H162: 1 | I162: 0.075 | K162: 0 | L162: 0 | M162: 0 | N162: 0 | O162: 0 | P162: 0 | Q162: 2 | S162: 430170314 | T162: ADVANCED MATH AND SCIENCE ACADEMY | U162: 0 | V162: 0 | W162: 0 | X162: 0 | Y162: 1 | Z162: 1 | AA162: 0 | AB162: 0 | AC162: 0 | AD162: 0 | AE162: 0 | AF162: 0 | AG162: 0 | AH162: 0 | AI162: 0 | AJ162: 0 | AL162: 430 | AM162: 170 | AN162: 314
A163: 430170317 | B163: ADVANCED MATH AND SCIENCE ACADEMY | C163: 0 | D163: 0 | E163: 0 | F163: 0 | G163: 0 | H163: 1 | I163: 0.0375 | K163: 0 | L163: 0 | M163: 0 | N163: 0 | O163: 0 | P163: 0 | Q163: 1 | S163: 430170317 | T163: ADVANCED MATH AND SCIENCE ACADEMY | U163: 0 | V163: 0 | W163: 0 | X163: 0 | Y163: 0 | Z163: 1 | AA163: 0 | AB163: 0 | AC163: 0 | AD163: 0 | AE163: 0 | AF163: 0 | AG163: 0 | AH163: 0 | AI163: 0 | AJ163: 0 | AL163: 430 | AM163: 170 | AN163: 317
A164: 430170321 | B164: ADVANCED MATH AND SCIENCE ACADEMY | C164: 0 | D164: 0 | E164: 0 | F164: 0 | G164: 4 | H164: 3 | I164: 0.2625 | K164: 0 | L164: 0 | M164: 0 | N164: 0 | O164: 0 | P164: 0 | Q164: 7 | S164: 430170321 | T164: ADVANCED MATH AND SCIENCE ACADEMY | U164: 0 | V164: 0 | W164: 0 | X164: 0 | Y164: 4 | Z164: 3 | AA164: 0 | AB164: 0 | AC164: 0 | AD164: 0 | AE164: 0 | AF164: 0 | AG164: 0 | AH164: 0 | AI164: 0 | AJ164: 0 | AL164: 430 | AM164: 170 | AN164: 321
A165: 430170322 | B165: ADVANCED MATH AND SCIENCE ACADEMY | C165: 0 | D165: 0 | E165: 0 | F165: 0 | G165: 6 | H165: 9 | I165: 0.5625 | K165: 0 | L165: 0 | M165: 0 | N165: 0 | O165: 0 | P165: 0 | Q165: 15 | S165: 430170322 | T165: ADVANCED MATH AND SCIENCE ACADEMY | U165: 0 | V165: 0 | W165: 0 | X165: 0 | Y165: 6 | Z165: 9 | AA165: 0 | AB165: 0 | AC165: 0 | AD165: 0 | AE165: 0 | AF165: 0 | AG165: 0 | AH165: 0 | AI165: 0 | AJ165: 0 | AL165: 430 | AM165: 170 | AN165: 322
A166: 430170326 | B166: ADVANCED MATH AND SCIENCE ACADEMY | C166: 0 | D166: 0 | E166: 0 | F166: 0 | G166: 1 | H166: 2 | I166: 0.1125 | K166: 0 | L166: 0 | M166: 0 | N166: 0 | O166: 0 | P166: 0 | Q166: 3 | S166: 430170326 | T166: ADVANCED MATH AND SCIENCE ACADEMY | U166: 0 | V166: 0 | W166: 0 | X166: 0 | Y166: 1 | Z166: 2 | AA166: 0 | AB166: 0 | AC166: 0 | AD166: 0 | AE166: 0 | AF166: 0 | AG166: 0 | AH166: 0 | AI166: 0 | AJ166: 0 | AL166: 430 | AM166: 170 | AN166: 326
A167: 430170348 | B167: ADVANCED MATH AND SCIENCE ACADEMY | C167: 0 | D167: 0 | E167: 0 | F167: 0 | G167: 10 | H167: 38 | I167: 1.8 | K167: 0 | L167: 0 | M167: 0 | N167: 0 | O167: 1 | P167: 6 | Q167: 48 | S167: 430170348 | T167: ADVANCED MATH AND SCIENCE ACADEMY | U167: 0 | V167: 0 | W167: 0 | X167: 0 | Y167: 10 | Z167: 38 | AA167: 0 | AB167: 0 | AC167: 0 | AD167: 0 | AE167: 0 | AF167: 1 | AG167: 0 | AH167: 0 | AI167: 0 | AJ167: 6 | AL167: 430 | AM167: 170 | AN167: 348
A168: 430170600 | B168: ADVANCED MATH AND SCIENCE ACADEMY | C168: 0 | D168: 0 | E168: 0 | F168: 0 | G168: 1 | H168: 0 | I168: 0.0375 | K168: 0 | L168: 0 | M168: 0 | N168: 0 | O168: 0 | P168: 0 | Q168: 1 | S168: 430170600 | T168: ADVANCED MATH AND SCIENCE ACADEMY | U168: 0 | V168: 0 | W168: 0 | X168: 0 | Y168: 1 | Z168: 0 | AA168: 0 | AB168: 0 | AC168: 0 | AD168: 0 | AE168: 0 | AF168: 0 | AG168: 0 | AH168: 0 | AI168: 0 | AJ168: 0 | AL168: 430 | AM168: 170 | AN168: 600
A169: 430170616 | B169: ADVANCED MATH AND SCIENCE ACADEMY | C169: 0 | D169: 0 | E169: 0 | F169: 0 | G169: 1 | H169: 2 | I169: 0.1125 | K169: 0 | L169: 0 | M169: 0 | N169: 0 | O169: 0 | P169: 0 | Q169: 3 | S169: 430170616 | T169: ADVANCED MATH AND SCIENCE ACADEMY | U169: 0 | V169: 0 | W169: 0 | X169: 0 | Y169: 1 | Z169: 2 | AA169: 0 | AB169: 0 | AC169: 0 | AD169: 0 | AE169: 0 | AF169: 0 | AG169: 0 | AH169: 0 | AI169: 0 | AJ169: 0 | AL169: 430 | AM169: 170 | AN169: 616
A170: 430170620 | B170: ADVANCED MATH AND SCIENCE ACADEMY | C170: 0 | D170: 0 | E170: 0 | F170: 0 | G170: 5 | H170: 19 | I170: 0.9 | K170: 0 | L170: 0 | M170: 0 | N170: 0 | O170: 0 | P170: 0 | Q170: 24 | S170: 430170620 | T170: ADVANCED MATH AND SCIENCE ACADEMY | U170: 0 | V170: 0 | W170: 0 | X170: 0 | Y170: 5 | Z170: 19 | AA170: 0 | AB170: 0 | AC170: 0 | AD170: 0 | AE170: 0 | AF170: 0 | AG170: 0 | AH170: 0 | AI170: 0 | AJ170: 0 | AL170: 430 | AM170: 170 | AN170: 620
A171: 430170695 | B171: ADVANCED MATH AND SCIENCE ACADEMY | C171: 0 | D171: 0 | E171: 0 | F171: 0 | G171: 0 | H171: 1 | I171: 0.0375 | K171: 0 | L171: 0 | M171: 0 | N171: 0 | O171: 0 | P171: 0 | Q171: 1 | S171: 430170695 | T171: ADVANCED MATH AND SCIENCE ACADEMY | U171: 0 | V171: 0 | W171: 0 | X171: 0 | Y171: 0 | Z171: 1 | AA171: 0 | AB171: 0 | AC171: 0 | AD171: 0 | AE171: 0 | AF171: 0 | AG171: 0 | AH171: 0 | AI171: 0 | AJ171: 0 | AL171: 430 | AM171: 170 | AN171: 695
A172: 430170710 | B172: ADVANCED MATH AND SCIENCE ACADEMY | C172: 0 | D172: 0 | E172: 0 | F172: 0 | G172: 2 | H172: 8 | I172: 0.375 | K172: 0 | L172: 0 | M172: 0 | N172: 0 | O172: 0 | P172: 0 | Q172: 10 | S172: 430170710 | T172: ADVANCED MATH AND SCIENCE ACADEMY | U172: 0 | V172: 0 | W172: 0 | X172: 0 | Y172: 2 | Z172: 8 | AA172: 0 | AB172: 0 | AC172: 0 | AD172: 0 | AE172: 0 | AF172: 0 | AG172: 0 | AH172: 0 | AI172: 0 | AJ172: 0 | AL172: 430 | AM172: 170 | AN172: 710
A173: 430170725 | B173: ADVANCED MATH AND SCIENCE ACADEMY | C173: 0 | D173: 0 | E173: 0 | F173: 0 | G173: 3 | H173: 12 | I173: 0.5625 | K173: 0 | L173: 0 | M173: 0 | N173: 0 | O173: 0 | P173: 0 | Q173: 15 | S173: 430170725 | T173: ADVANCED MATH AND SCIENCE ACADEMY | U173: 0 | V173: 0 | W173: 0 | X173: 0 | Y173: 3 | Z173: 12 | AA173: 0 | AB173: 0 | AC173: 0 | AD173: 0 | AE173: 0 | AF173: 0 | AG173: 0 | AH173: 0 | AI173: 0 | AJ173: 0 | AL173: 430 | AM173: 170 | AN173: 725
A174: 430170730 | B174: ADVANCED MATH AND SCIENCE ACADEMY | C174: 0 | D174: 0 | E174: 0 | F174: 0 | G174: 0 | H174: 29 | I174: 1.0875 | K174: 0 | L174: 0 | M174: 0 | N174: 0 | O174: 0 | P174: 0 | Q174: 29 | S174: 430170730 | T174: ADVANCED MATH AND SCIENCE ACADEMY | U174: 0 | V174: 0 | W174: 0 | X174: 0 | Y174: 0 | Z174: 29 | AA174: 0 | AB174: 0 | AC174: 0 | AD174: 0 | AE174: 0 | AF174: 0 | AG174: 0 | AH174: 0 | AI174: 0 | AJ174: 0 | AL174: 430 | AM174: 170 | AN174: 730
A175: 430170735 | B175: ADVANCED MATH AND SCIENCE ACADEMY | C175: 0 | D175: 0 | E175: 0 | F175: 0 | G175: 1 | H175: 2 | I175: 0.1125 | K175: 0 | L175: 0 | M175: 0 | N175: 0 | O175: 0 | P175: 0 | Q175: 3 | S175: 430170735 | T175: ADVANCED MATH AND SCIENCE ACADEMY | U175: 0 | V175: 0 | W175: 0 | X175: 0 | Y175: 1 | Z175: 2 | AA175: 0 | AB175: 0 | AC175: 0 | AD175: 0 | AE175: 0 | AF175: 0 | AG175: 0 | AH175: 0 | AI175: 0 | AJ175: 0 | AL175: 430 | AM175: 170 | AN175: 735
A176: 430170775 | B176: ADVANCED MATH AND SCIENCE ACADEMY | C176: 0 | D176: 0 | E176: 0 | F176: 0 | G176: 0 | H176: 4 | I176: 0.15 | K176: 0 | L176: 0 | M176: 0 | N176: 0 | O176: 0 | P176: 0 | Q176: 4 | S176: 430170775 | T176: ADVANCED MATH AND SCIENCE ACADEMY | U176: 0 | V176: 0 | W176: 0 | X176: 0 | Y176: 0 | Z176: 4 | AA176: 0 | AB176: 0 | AC176: 0 | AD176: 0 | AE176: 0 | AF176: 0 | AG176: 0 | AH176: 0 | AI176: 0 | AJ176: 0 | AL176: 430 | AM176: 170 | AN176: 775
A177: 431149128 | B177: COMMUNITY DAY - R. KINGMAN WEBSTER | C177: 0 | D177: 0 | E177: 0 | F177: 1 | G177: 0 | H177: 0 | I177: 0.0375 | K177: 0 | L177: 0 | M177: 0 | N177: 0 | O177: 1 | P177: 0 | Q177: 1 | S177: 431149128 | T177: COMMUNITY DAY - R. KINGMAN WEBSTER | U177: 0 | V177: 0 | W177: 0 | X177: 1 | Y177: 0 | Z177: 0 | AA177: 0 | AB177: 0 | AC177: 0 | AD177: 0 | AE177: 0 | AF177: 1 | AG177: 0 | AH177: 0 | AI177: 0 | AJ177: 0 | AL177: 431 | AM177: 149 | AN177: 128
A178: 431149149 | B178: COMMUNITY DAY - R. KINGMAN WEBSTER | C178: 23 | D178: 0 | E178: 22 | F178: 46 | G178: 0 | H178: 0 | I178: 5.7375 | K178: 19 | L178: 0 | M178: 85 | N178: 0 | O178: 85 | P178: 48 | Q178: 175 | S178: 431149149 | T178: COMMUNITY DAY - R. KINGMAN WEBSTER | U178: 23 | V178: 0 | W178: 22 | X178: 46 | Y178: 0 | Z178: 0 | AA178: 0 | AB178: 19 | AC178: 0 | AD178: 85 | AE178: 0 | AF178: 85 | AG178: 32 | AH178: 0 | AI178: 32 | AJ178: 0 | AL178: 431 | AM178: 149 | AN178: 149
A179: 431149181 | B179: COMMUNITY DAY - R. KINGMAN WEBSTER | C179: 0 | D179: 0 | E179: 0 | F179: 2 | G179: 0 | H179: 0 | I179: 0.15 | K179: 0 | L179: 0 | M179: 2 | N179: 0 | O179: 3 | P179: 0 | Q179: 4 | S179: 431149181 | T179: COMMUNITY DAY - R. KINGMAN WEBSTER | U179: 0 | V179: 0 | W179: 0 | X179: 2 | Y179: 0 | Z179: 0 | AA179: 0 | AB179: 0 | AC179: 0 | AD179: 2 | AE179: 0 | AF179: 3 | AG179: 0 | AH179: 0 | AI179: 0 | AJ179: 0 | AL179: 431 | AM179: 149 | AN179: 181
A180: 432712020 | B180: CAPE COD LIGHTHOUSE | C180: 0 | D180: 0 | E180: 0 | F180: 0 | G180: 67 | H180: 0 | I180: 2.5125 | K180: 0 | L180: 0 | M180: 0 | N180: 0 | O180: 8 | P180: 0 | Q180: 67 | S180: 432712020 | T180: CAPE COD LIGHTHOUSE | U180: 0 | V180: 0 | W180: 0 | X180: 0 | Y180: 67 | Z180: 0 | AA180: 0 | AB180: 0 | AC180: 0 | AD180: 0 | AE180: 0 | AF180: 8 | AG180: 0 | AH180: 0 | AI180: 0 | AJ180: 0 | AL180: 432 | AM180: 712 | AN180: 020
A181: 432712172 | B181: CAPE COD LIGHTHOUSE | C181: 0 | D181: 0 | E181: 0 | F181: 0 | G181: 1 | H181: 0 | I181: 0.0375 | K181: 0 | L181: 0 | M181: 0 | N181: 0 | O181: 0 | P181: 0 | Q181: 1 | S181: 432712172 | T181: CAPE COD LIGHTHOUSE | U181: 0 | V181: 0 | W181: 0 | X181: 0 | Y181: 1 | Z181: 0 | AA181: 0 | AB181: 0 | AC181: 0 | AD181: 0 | AE181: 0 | AF181: 0 | AG181: 0 | AH181: 0 | AI181: 0 | AJ181: 0 | AL181: 432 | AM181: 712 | AN181: 172
A182: 432712242 | B182: CAPE COD LIGHTHOUSE | C182: 0 | D182: 0 | E182: 0 | F182: 0 | G182: 2 | H182: 0 | I182: 0.075 | K182: 0 | L182: 0 | M182: 0 | N182: 0 | O182: 1 | P182: 0 | Q182: 2 | S182: 432712242 | T182: CAPE COD LIGHTHOUSE | U182: 0 | V182: 0 | W182: 0 | X182: 0 | Y182: 2 | Z182: 0 | AA182: 0 | AB182: 0 | AC182: 0 | AD182: 0 | AE182: 0 | AF182: 1 | AG182: 0 | AH182: 0 | AI182: 0 | AJ182: 0 | AL182: 432 | AM182: 712 | AN182: 242
A183: 432712261 | B183: CAPE COD LIGHTHOUSE | C183: 0 | D183: 0 | E183: 0 | F183: 0 | G183: 9 | H183: 0 | I183: 0.3375 | K183: 0 | L183: 0 | M183: 0 | N183: 0 | O183: 2 | P183: 0 | Q183: 9 | S183: 432712261 | T183: CAPE COD LIGHTHOUSE | U183: 0 | V183: 0 | W183: 0 | X183: 0 | Y183: 9 | Z183: 0 | AA183: 0 | AB183: 0 | AC183: 0 | AD183: 0 | AE183: 0 | AF183: 2 | AG183: 0 | AH183: 0 | AI183: 0 | AJ183: 0 | AL183: 432 | AM183: 712 | AN183: 261
A184: 432712300 | B184: CAPE COD LIGHTHOUSE | C184: 0 | D184: 0 | E184: 0 | F184: 0 | G184: 4 | H184: 0 | I184: 0.15 | K184: 0 | L184: 0 | M184: 0 | N184: 0 | O184: 2 | P184: 0 | Q184: 4 | S184: 432712300 | T184: CAPE COD LIGHTHOUSE | U184: 0 | V184: 0 | W184: 0 | X184: 0 | Y184: 4 | Z184: 0 | AA184: 0 | AB184: 0 | AC184: 0 | AD184: 0 | AE184: 0 | AF184: 2 | AG184: 0 | AH184: 0 | AI184: 0 | AJ184: 0 | AL184: 432 | AM184: 712 | AN184: 300
A185: 432712645 | B185: CAPE COD LIGHTHOUSE | C185: 0 | D185: 0 | E185: 0 | F185: 0 | G185: 49 | H185: 0 | I185: 1.8375 | K185: 0 | L185: 0 | M185: 0 | N185: 0 | O185: 5 | P185: 0 | Q185: 49 | S185: 432712645 | T185: CAPE COD LIGHTHOUSE | U185: 0 | V185: 0 | W185: 0 | X185: 0 | Y185: 49 | Z185: 0 | AA185: 0 | AB185: 0 | AC185: 0 | AD185: 0 | AE185: 0 | AF185: 5 | AG185: 0 | AH185: 0 | AI185: 0 | AJ185: 0 | AL185: 432 | AM185: 712 | AN185: 645
A186: 432712660 | B186: CAPE COD LIGHTHOUSE | C186: 0 | D186: 0 | E186: 0 | F186: 0 | G186: 63 | H186: 0 | I186: 2.3625 | K186: 0 | L186: 0 | M186: 0 | N186: 0 | O186: 17 | P186: 0 | Q186: 63 | S186: 432712660 | T186: CAPE COD LIGHTHOUSE | U186: 0 | V186: 0 | W186: 0 | X186: 0 | Y186: 63 | Z186: 0 | AA186: 0 | AB186: 0 | AC186: 0 | AD186: 0 | AE186: 0 | AF186: 17 | AG186: 0 | AH186: 0 | AI186: 0 | AJ186: 0 | AL186: 432 | AM186: 712 | AN186: 660
A187: 432712712 | B187: CAPE COD LIGHTHOUSE | C187: 0 | D187: 0 | E187: 0 | F187: 0 | G187: 45 | H187: 0 | I187: 1.6875 | K187: 0 | L187: 0 | M187: 0 | N187: 0 | O187: 11 | P187: 0 | Q187: 45 | S187: 432712712 | T187: CAPE COD LIGHTHOUSE | U187: 0 | V187: 0 | W187: 0 | X187: 0 | Y187: 45 | Z187: 0 | AA187: 0 | AB187: 0 | AC187: 0 | AD187: 0 | AE187: 0 | AF187: 11 | AG187: 0 | AH187: 0 | AI187: 0 | AJ187: 0 | AL187: 432 | AM187: 712 | AN187: 712
A188: 435301031 | B188: INNOVATION ACADEMY | C188: 0 | D188: 0 | E188: 0 | F188: 15 | G188: 68 | H188: 95 | I188: 6.675 | K188: 0 | L188: 0 | M188: 0 | N188: 0 | O188: 7 | P188: 8 | Q188: 178 | S188: 435301031 | T188: INNOVATION ACADEMY | U188: 0 | V188: 0 | W188: 0 | X188: 15 | Y188: 68 | Z188: 95 | AA188: 0 | AB188: 0 | AC188: 0 | AD188: 0 | AE188: 0 | AF188: 7 | AG188: 0 | AH188: 0 | AI188: 0 | AJ188: 8 | AL188: 435 | AM188: 301 | AN188: 031
A189: 435301048 | B189: INNOVATION ACADEMY | C189: 0 | D189: 0 | E189: 0 | F189: 0 | G189: 0 | H189: 1 | I189: 0.0375 | K189: 0 | L189: 0 | M189: 0 | N189: 0 | O189: 0 | P189: 0 | Q189: 1 | S189: 435301048 | T189: INNOVATION ACADEMY | U189: 0 | V189: 0 | W189: 0 | X189: 0 | Y189: 0 | Z189: 1 | AA189: 0 | AB189: 0 | AC189: 0 | AD189: 0 | AE189: 0 | AF189: 0 | AG189: 0 | AH189: 0 | AI189: 0 | AJ189: 0 | AL189: 435 | AM189: 301 | AN189: 048
A190: 435301056 | B190: INNOVATION ACADEMY | C190: 0 | D190: 0 | E190: 0 | F190: 22 | G190: 47 | H190: 46 | I190: 4.3125 | K190: 0 | L190: 0 | M190: 0 | N190: 0 | O190: 1 | P190: 4 | Q190: 115 | S190: 435301056 | T190: INNOVATION ACADEMY | U190: 0 | V190: 0 | W190: 0 | X190: 22 | Y190: 47 | Z190: 46 | AA190: 0 | AB190: 0 | AC190: 0 | AD190: 0 | AE190: 0 | AF190: 1 | AG190: 0 | AH190: 0 | AI190: 0 | AJ190: 4 | AL190: 435 | AM190: 301 | AN190: 056
A191: 435301064 | B191: INNOVATION ACADEMY | C191: 0 | D191: 0 | E191: 0 | F191: 0 | G191: 0 | H191: 1 | I191: 0.0375 | K191: 0 | L191: 0 | M191: 0 | N191: 0 | O191: 0 | P191: 0 | Q191: 1 | S191: 435301064 | T191: INNOVATION ACADEMY | U191: 0 | V191: 0 | W191: 0 | X191: 0 | Y191: 0 | Z191: 1 | AA191: 0 | AB191: 0 | AC191: 0 | AD191: 0 | AE191: 0 | AF191: 0 | AG191: 0 | AH191: 0 | AI191: 0 | AJ191: 0 | AL191: 435 | AM191: 301 | AN191: 064
A192: 435301079 | B192: INNOVATION ACADEMY | C192: 0 | D192: 0 | E192: 0 | F192: 16 | G192: 42 | H192: 38 | I192: 3.6375 | K192: 0 | L192: 0 | M192: 1 | N192: 0 | O192: 4 | P192: 8 | Q192: 97 | S192: 435301079 | T192: INNOVATION ACADEMY | U192: 0 | V192: 0 | W192: 0 | X192: 16 | Y192: 42 | Z192: 38 | AA192: 0 | AB192: 0 | AC192: 0 | AD192: 1 | AE192: 0 | AF192: 4 | AG192: 0 | AH192: 0 | AI192: 0 | AJ192: 8 | AL192: 435 | AM192: 301 | AN192: 079
A193: 435301149 | B193: INNOVATION ACADEMY | C193: 0 | D193: 0 | E193: 0 | F193: 0 | G193: 0 | H193: 1 | I193: 0.0375 | K193: 0 | L193: 0 | M193: 0 | N193: 0 | O193: 0 | P193: 0 | Q193: 1 | S193: 435301149 | T193: INNOVATION ACADEMY | U193: 0 | V193: 0 | W193: 0 | X193: 0 | Y193: 0 | Z193: 1 | AA193: 0 | AB193: 0 | AC193: 0 | AD193: 0 | AE193: 0 | AF193: 0 | AG193: 0 | AH193: 0 | AI193: 0 | AJ193: 0 | AL193: 435 | AM193: 301 | AN193: 149
A194: 435301155 | B194: INNOVATION ACADEMY | C194: 0 | D194: 0 | E194: 0 | F194: 0 | G194: 1 | H194: 1 | I194: 0.075 | K194: 0 | L194: 0 | M194: 0 | N194: 0 | O194: 0 | P194: 0 | Q194: 2 | S194: 435301155 | T194: INNOVATION ACADEMY | U194: 0 | V194: 0 | W194: 0 | X194: 0 | Y194: 1 | Z194: 1 | AA194: 0 | AB194: 0 | AC194: 0 | AD194: 0 | AE194: 0 | AF194: 0 | AG194: 0 | AH194: 0 | AI194: 0 | AJ194: 0 | AL194: 435 | AM194: 301 | AN194: 155
A195: 435301160 | B195: INNOVATION ACADEMY | C195: 0 | D195: 0 | E195: 0 | F195: 30 | G195: 70 | H195: 79 | I195: 7.0875 | K195: 0 | L195: 0 | M195: 10 | N195: 0 | O195: 25 | P195: 29 | Q195: 189 | S195: 435301160 | T195: INNOVATION ACADEMY | U195: 0 | V195: 0 | W195: 0 | X195: 30 | Y195: 70 | Z195: 79 | AA195: 0 | AB195: 0 | AC195: 0 | AD195: 10 | AE195: 0 | AF195: 25 | AG195: 0 | AH195: 0 | AI195: 0 | AJ195: 29 | AL195: 435 | AM195: 301 | AN195: 160
A196: 435301181 | B196: INNOVATION ACADEMY | C196: 0 | D196: 0 | E196: 0 | F196: 0 | G196: 0 | H196: 1 | I196: 0.0375 | K196: 0 | L196: 0 | M196: 0 | N196: 0 | O196: 0 | P196: 0 | Q196: 1 | S196: 435301181 | T196: INNOVATION ACADEMY | U196: 0 | V196: 0 | W196: 0 | X196: 0 | Y196: 0 | Z196: 1 | AA196: 0 | AB196: 0 | AC196: 0 | AD196: 0 | AE196: 0 | AF196: 0 | AG196: 0 | AH196: 0 | AI196: 0 | AJ196: 0 | AL196: 435 | AM196: 301 | AN196: 181
A197: 435301295 | B197: INNOVATION ACADEMY | C197: 0 | D197: 0 | E197: 0 | F197: 10 | G197: 29 | H197: 27 | I197: 2.475 | K197: 0 | L197: 0 | M197: 0 | N197: 0 | O197: 5 | P197: 2 | Q197: 66 | S197: 435301295 | T197: INNOVATION ACADEMY | U197: 0 | V197: 0 | W197: 0 | X197: 10 | Y197: 29 | Z197: 27 | AA197: 0 | AB197: 0 | AC197: 0 | AD197: 0 | AE197: 0 | AF197: 5 | AG197: 0 | AH197: 0 | AI197: 0 | AJ197: 2 | AL197: 435 | AM197: 301 | AN197: 295
A198: 435301301 | B198: INNOVATION ACADEMY | C198: 0 | D198: 0 | E198: 0 | F198: 9 | G198: 30 | H198: 48 | I198: 3.3375 | K198: 0 | L198: 0 | M198: 2 | N198: 0 | O198: 7 | P198: 9 | Q198: 89 | S198: 435301301 | T198: INNOVATION ACADEMY | U198: 0 | V198: 0 | W198: 0 | X198: 9 | Y198: 30 | Z198: 48 | AA198: 0 | AB198: 0 | AC198: 0 | AD198: 2 | AE198: 0 | AF198: 7 | AG198: 0 | AH198: 0 | AI198: 0 | AJ198: 9 | AL198: 435 | AM198: 301 | AN198: 301
A199: 435301326 | B199: INNOVATION ACADEMY | C199: 0 | D199: 0 | E199: 0 | F199: 0 | G199: 1 | H199: 3 | I199: 0.15 | K199: 0 | L199: 0 | M199: 0 | N199: 0 | O199: 0 | P199: 0 | Q199: 4 | S199: 435301326 | T199: INNOVATION ACADEMY | U199: 0 | V199: 0 | W199: 0 | X199: 0 | Y199: 1 | Z199: 3 | AA199: 0 | AB199: 0 | AC199: 0 | AD199: 0 | AE199: 0 | AF199: 0 | AG199: 0 | AH199: 0 | AI199: 0 | AJ199: 0 | AL199: 435 | AM199: 301 | AN199: 326
A200: 435301342 | B200: INNOVATION ACADEMY | C200: 0 | D200: 0 | E200: 0 | F200: 0 | G200: 0 | H200: 3 | I200: 0.1125 | K200: 0 | L200: 0 | M200: 0 | N200: 0 | O200: 0 | P200: 0 | Q200: 3 | S200: 435301342 | T200: INNOVATION ACADEMY | U200: 0 | V200: 0 | W200: 0 | X200: 0 | Y200: 0 | Z200: 3 | AA200: 0 | AB200: 0 | AC200: 0 | AD200: 0 | AE200: 0 | AF200: 0 | AG200: 0 | AH200: 0 | AI200: 0 | AJ200: 0 | AL200: 435 | AM200: 301 | AN200: 342
A201: 435301600 | B201: INNOVATION ACADEMY | C201: 0 | D201: 0 | E201: 0 | F201: 0 | G201: 0 | H201: 2 | I201: 0.075 | K201: 0 | L201: 0 | M201: 0 | N201: 0 | O201: 0 | P201: 0 | Q201: 2 | S201: 435301600 | T201: INNOVATION ACADEMY | U201: 0 | V201: 0 | W201: 0 | X201: 0 | Y201: 0 | Z201: 2 | AA201: 0 | AB201: 0 | AC201: 0 | AD201: 0 | AE201: 0 | AF201: 0 | AG201: 0 | AH201: 0 | AI201: 0 | AJ201: 0 | AL201: 435 | AM201: 301 | AN201: 600
A202: 435301640 | B202: INNOVATION ACADEMY | C202: 0 | D202: 0 | E202: 0 | F202: 0 | G202: 0 | H202: 1 | I202: 0.0375 | K202: 0 | L202: 0 | M202: 0 | N202: 0 | O202: 0 | P202: 0 | Q202: 1 | S202: 435301640 | T202: INNOVATION ACADEMY | U202: 0 | V202: 0 | W202: 0 | X202: 0 | Y202: 0 | Z202: 1 | AA202: 0 | AB202: 0 | AC202: 0 | AD202: 0 | AE202: 0 | AF202: 0 | AG202: 0 | AH202: 0 | AI202: 0 | AJ202: 0 | AL202: 435 | AM202: 301 | AN202: 640
A203: 435301673 | B203: INNOVATION ACADEMY | C203: =ROUND(U203,0) -> 0 | D203: =ROUND(V203,0) -> 0 | E203: =ROUND(W203,0) -> 0 | F203: =ROUND(X203,0) -> 2 | G203: =ROUND(Y203,0) -> 5 | H203: =ROUND(Z203,0) -> 5 | I203: =ROUND(0.0375*(SUM(E203:H203)+ROUND(D203*0.5,4)+ROUND(L203*0.5,4)+M203),4)+ROUND((0.0475)*N203,4) -> 0.45 | K203: =ROUND(AB203,0) -> 0 | L203: =ROUND(AC203,0) -> 0 | M203: =ROUND(AD203,0) -> 0 | N203: =ROUND(AE203,0) -> 0 | O203: =ROUND(AF203,0) -> 0 | P203: =ROUND((AG203+AH203)/2,0)+ROUND(AI203+AJ203,0) -> 0 | Q203: =SUM(E203:H203)+M203+N203+ROUND(C203*0.5,0)+ROUND(D203*0.5,0)+ROUND(K203*0.5,0)+ROUND(L203*0.5,0) -> 12 | S203: 435301673 | T203: INNOVATION ACADEMY | U203: 0 | V203: 0 | W203: 0 | X203: 2 | Y203: 5 | Z203: 5 | AA203: 0 | AB203: 0 | AC203: 0 | AD203: 0 | AE203: 0 | AF203: 0 | AG203: 0 | AH203: 0 | AI203: 0 | AJ203: 0 | AL203: 435 | AM203: 301 | AN203: 673
A204: 435301735 | B204: INNOVATION ACADEMY | C204: 0 | D204: 0 | E204: 0 | F204: 0 | G204: 0 | H204: 4 | I204: 0.15 | K204: 0 | L204: 0 | M204: 0 | N204: 0 | O204: 0 | P204: 0 | Q204: 4 | S204: 435301735 | T204: INNOVATION ACADEMY | U204: 0 | V204: 0 | W204: 0 | X204: 0 | Y204: 0 | Z204: 4 | AA204: 0 | AB204: 0 | AC204: 0 | AD204: 0 | AE204: 0 | AF204: 0 | AG204: 0 | AH204: 0 | AI204: 0 | AJ204: 0 | AL204: 435 | AM204: 301 | AN204: 735
A205: 436049001 | B205: COMMUNITY CS OF CAMBRIDGE | C205: 0 | D205: 0 | E205: 0 | F205: 0 | G205: 1 | H205: 1 | I205: 0.075 | K205: 0 | L205: 0 | M205: 0 | N205: 0 | O205: 0 | P205: 0 | Q205: 2 | S205: 436049001 | T205: COMMUNITY CS OF CAMBRIDGE | U205: 0 | V205: 0 | W205: 0 | X205: 0 | Y205: 1 | Z205: 1 | AA205: 0 | AB205: 0 | AC205: 0 | AD205: 0 | AE205: 0 | AF205: 0 | AG205: 0 | AH205: 0 | AI205: 0 | AJ205: 0 | AL205: 436 | AM205: 049 | AN205: 001
... 580 more rows

Sheet fnd base rates (hidden)
A2: FY15 Base Rates
H3: Instruction- | I3: Guid- | K3: Opera- | L3: Employee | N3: Total
E4: Classroom | F4: Other | G4: Profess- | H4: al Materials, | I4: ance & | K4: tions & | L4: Benefits | N4: Opera-
C5: Admini- | D5: Instructional | E5: & Specialist | F5: Teaching | G5: ional Dev- | H5: Equipment & | I5: Psycho- | J5: Pupil | K5: Maint- | L5: & Fixed | M5: Sped | N5: ting Exp-
A6: Foundation Subsets | C6: stration | D6: Leadership | E6: Teachers | F6: Services | G6: elopment | H6: Technology | I6: logical | J6: Services | K6: enance | L6: Charges | M6: Tuition | N6: enditures
A8: 1 | B8: Pre-School | C8: 179.71 | D8: 324.57 | E8: 1488.26 | F8: 381.69 | G8: 58.86 | H8: 215.41 | I8: 108.28 | J8: 43.07 | K8: 413.27 | L8: 372.52 | M8: 0 | N8: 3585.64
A9: 2 | B9: Kindergarten-Half | C9: 179.71 | D9: 324.57 | E9: 1488.26 | F9: 381.69 | G9: 58.86 | H9: 215.41 | I9: 108.28 | J9: 43.07 | K9: 413.27 | L9: 372.52 | M9: 0 | N9: 3585.64
A10: 3 | B10: Kindergarten-Full | C10: 359.41 | D10: 649.13 | E10: 2976.51 | F10: 763.41 | G10: 117.77 | H10: 430.81 | I10: 216.59 | J10: 86.17 | K10: 826.54 | L10: 745 | M10: 0 | N10: 7171.34
A11: 4 | B11: Elementary | C11: 359.41 | D11: 649.13 | E11: 2976.47 | F11: 763.41 | G11: 117.79 | H11: 430.81 | I11: 216.59 | J11: 129.25 | K11: 826.54 | L11: 745.05 | M11: 0 | N11: 7214.45
A12: 5 | B12: Junior/Middle | C12: 359.41 | D12: 649.13 | E12: 2619.31 | F12: 549.54 | G12: 127.69 | H12: 430.81 | I12: 288.31 | J12: 211.11 | K12: 896.08 | L12: 708.39 | M12: 0 | N12: 6839.78
A13: 6 | B13: High School | C13: 359.41 | D13: 649.13 | E13: 3851.91 | F13: 457.5 | G13: 123.81 | H13: 689.3 | I13: 361.41 | J13: 486.82 | K13: 868.84 | L13: 680.58 | M13: 0 | N13: 8528.71
A14: 7 | B14: Special Ed-In School | C14: 2480.59 | D14: 0 | E14: 8185.33 | F14: 7642.53 | G14: 394.86 | H14: 344.65 | I14: 0 | J14: 0 | K14: 2770.95 | L14: 3139.14 | M14: 0 | N14: 24958.05
A15: 8 | B15: Special Ed-Tuitioned Out | C15: 2480.59 | D15: 0 | E15: 0 | F15: 37.89 | G15: 0 | H15: 0 | I15: 0 | J15: 0 | K15: 0 | L15: 0 | M15: 23551.93 | N15: 26070.41
A16: 9 | B16: Limited English PK | C16: 179.72 | D16: 324.57 | E16: 2241.36 | F16: 305.21 | G16: 79.73 | H16: 215.41 | I16: 144.14 | J16: 64.61 | K16: 559.5 | L16: 468.62 | M16: 0 | N16: 4582.87
A17: 10 | B17: Limited English K Half Time | C17: 179.72 | D17: 324.57 | E17: 2241.36 | F17: 305.21 | G17: 79.73 | H17: 215.41 | I17: 144.14 | J17: 64.61 | K17: 559.5 | L17: 468.62 | M17: 0 | N17: 4582.87
A18: 11 | B18: Limited English Full Time | C18: 359.41 | D18: 649.13 | E18: 4482.71 | F18: 610.42 | G18: 159.44 | H18: 430.81 | I18: 288.31 | J18: 129.25 | K18: 1118.95 | L18: 937.24 | M18: 0 | N18: 9165.67
A19: 12 | B19: Vocational | C19: 359.41 | D19: 649.13 | E19: 6548.29 | F19: 457.5 | G19: 204.7 | H19: 1206.26 | I19: 361.41 | J19: 486.82 | K19: 1626.06 | L19: 1105.32 | M19: 0 | N19: 13004.9
A20: 13 | B20: Low Income Elem | C20: 0 | D20: 0 | E20: 2677.91 | F20: 0 | G20: 58.94 | H20: 0 | I20: 0 | J20: 0 | K20: 413.59 | L20: 271.83 | M20: 0 | N20: 3422.27
A21: 14 | B21: Low Income Secondary | C21: 0 | D21: 0 | E21: 2023.09 | F21: 0 | G21: 58.94 | H21: 0 | I21: 0 | J21: 0 | K21: 413.59 | L21: 271.83 | M21: 0 | N21: 2767.45
B26: Inflation Adjustment
B27: FY15 inflation index | D27: 1
B28: FY15 inflation | D28: 0.015
B29: FY16 adjustment | D29: =D27+D28 -> 1.015
A33: FY16 Foundation Budget Rates
H34: Instruction- | I34: Guid- | K34: Opera- | L34: Employee | N34: Total
E35: Classroom | F35: Other | G35: Profess- | H35: al Materials, | I35: ance & | K35: tions & | L35: Benefits | N35: Opera-
C36: Admini- | D36: Instructional | E36: & Specialist | F36: Teaching | G36: ional Dev- | H36: Equipment & | I36: Psycho- | J36: Pupil | K36: Maint- | L36: & Fixed | M36: Sped | N36: ting Exp-
A37: Adjusted Foundation Budget | C37: stration | D37: Leadership | E37: Teachers | F37: Services | G37: elopment | H37: Technology | I37: logical | J37: Services | K37: enance | L37: Charges | M37: Tuition | N37: enditures
A39: 1 | B39: Pre-School | C39: =IF(C8>0,ROUND(C8*inflat,2),0) -> 182.41 | D39: 329.44 | E39: 1510.58 | F39: 387.42 | G39: =IF(G8>0,ROUND(G8*inflat,2),0) -> 59.74 | H39: =IF(H8>0,ROUND(H8*inflat,2),0) -> 218.64 | I39: 109.9 | J39: =IF(J8>0,ROUND(J8*inflat,2),0) -> 43.72 | K39: 419.47 | L39: =IF(L8>0,ROUND(L8*inflat,2),0) -> 378.11 | M39: 0 | N39: =SUM(C39:M39) -> 3639.43
A40: 2 | B40: Kindergarten-Half | C40: 182.41 | D40: 329.44 | E40: 1510.58 | F40: 387.42 | G40: 59.74 | H40: 218.64 | I40: 109.9 | J40: 43.72 | K40: 419.47 | L40: 378.11 | M40: 0 | N40: =SUM(C40:M40) -> 3639.43
A41: 3 | B41: Kindergarten-Full | C41: 364.8 | D41: 658.87 | E41: 3021.16 | F41: 774.86 | G41: 119.54 | H41: 437.27 | I41: 219.84 | J41: 87.46 | K41: 838.94 | L41: 756.18 | M41: 0 | N41: 7278.92
A42: 4 | B42: Elementary | C42: 364.8 | D42: 658.87 | E42: 3021.12 | F42: 774.86 | G42: 119.56 | H42: 437.27 | I42: 219.84 | J42: 131.19 | K42: 838.94 | L42: 756.23 | M42: 0 | N42: 7322.68
A43: 5 | B43: Junior/Middle | C43: 364.8 | D43: 658.87 | E43: 2658.6 | F43: 557.78 | G43: 129.61 | H43: 437.27 | I43: 292.63 | J43: 214.28 | K43: 909.52 | L43: 719.02 | M43: 0 | N43: 6942.38
A44: 6 | B44: High School | C44: =IF(C13>0,ROUND(C13*inflat,2),0) -> 364.8 | D44: 658.87 | E44: 3909.69 | F44: 464.36 | G44: 125.67 | H44: 699.64 | I44: 366.83 | J44: 494.12 | K44: 881.87 | L44: 690.79 | M44: 0 | N44: =SUM(C44:M44) -> 8656.64
A45: 7 | B45: Special Ed-In School | C45: =IF(C14>0,ROUND(C14*inflat,2),0) -> 2517.8 | D45: 0 | E45: 8308.11 | F45: 7757.17 | G45: 400.78 | H45: 349.82 | I45: 0 | J45: 0 | K45: 2812.51 | L45: 3186.23 | M45: 0 | N45: 25332.42
A46: 8 | B46: Special Ed-Tuitioned Out | C46: =IF(C15>0,ROUND(C15*inflat,2),0) -> 2517.8 | D46: 0 | E46: 0 | F46: 38.46 | G46: 0 | H46: 0 | I46: 0 | J46: 0 | K46: 0 | L46: 0 | M46: 23905.21 | N46: 26461.47
A47: 9 | B47: Limited English PK | C47: =IF(C16>0,ROUND(C16*inflat,2),0) -> 182.42 | D47: 329.44 | E47: 2274.98 | F47: 309.79 | G47: 80.93 | H47: 218.64 | I47: 146.3 | J47: 65.58 | K47: 567.89 | L47: 475.65 | M47: 0 | N47: 4651.62
A48: 10 | B48: Limited English K Half Time | C48: =IF(C17>0,ROUND(C17*inflat,2),0) -> 182.42 | D48: 329.44 | E48: 2274.98 | F48: 309.79 | G48: 80.93 | H48: 218.64 | I48: 146.3 | J48: 65.58 | K48: 567.89 | L48: 475.65 | M48: 0 | N48: 4651.62
A49: 11 | B49: Limited English Full Time | C49: =IF(C18>0,ROUND(C18*inflat,2),0) -> 364.8 | D49: 658.87 | E49: 4549.95 | F49: 619.58 | G49: 161.83 | H49: 437.27 | I49: 292.63 | J49: 131.19 | K49: 1135.73 | L49: 951.3 | M49: 0 | N49: 9303.15
A50: 12 | B50: Vocational | C50: 364.8 | D50: 658.87 | E50: 6646.51 | F50: 464.36 | G50: 207.77 | H50: 1224.35 | I50: 366.83 | J50: 494.12 | K50: 1650.45 | L50: 1121.9 | M50: 0 | N50: 13199.96
A51: 13 | B51: Low Income Elem | C51: 0 | D51: 0 | E51: =IF(E20>0,ROUND(E20*inflat,2),0) -> 2718.08 | F51: 0 | G51: 59.82 | H51: 0 | I51: 0 | J51: 0 | K51: =IF(K20>0,ROUND(K20*inflat,2),0) -> 419.79 | L51: 275.91 | M51: 0 | N51: 3473.6
A52: 14 | B52: Low Income Secondary | C52: 0 | D52: 0 | E52: =IF(E21>0,ROUND(E21*inflat,2),0) -> 2053.44 | F52: 0 | G52: 59.82 | H52: 0 | I52: 0 | J52: 0 | K52: =IF(K21>0,ROUND(K21*inflat,2),0) -> 419.79 | L52: 275.91 | M52: 0 | N52: 2808.96

Sheet pre fnd budg (hidden)
A1: 1 | B1: 2 | C1: 3 | D1: 4 | E1: 5 | F1: 6 | G1: 7 | H1: 8 | I1: 9 | J1: 10 | K1: 11 | L1: 12 | M1: 13 | N1: 14 | O1: 15 | P1: 16 | Q1: 17 | R1: 18 | S1: 19 | T1: 20 | U1: 21 | V1: 22 | W1: 23 | X1: 24 | Y1: 25 | Z1: 26 | AA1: 27 | AB1: 28 | AC1: 29 | AD1: 30 | AE1: 31 | AF1: 32 | AG1: 33 | AH1: 34 | AI1: 35 | AJ1: 36 | AK1: 37 | AL1: 38 | AM1: 39 | AN1: 40 | AO1: 41 | AP1: 42
A3: Insert chalocsend & school name from the FND ENRO sheet
M5: LEP | P5: Low | R5: WAF | Y5: Instruction- | Z5: Guid- | AB5: Opera- | AC5: Employee
I6: Assumed | J6: Assumed | M6: KF | O6: Low | P6: Income | Q6: Total | R6: Adjusted | V6: Classroom | W6: Other | X6: Profess- | Y6: al Materials, | Z6: ance & | AB6: tions & | AC6: Benefits | AE6: Found- | AK6: wage
G7: Junior | H7: High | I7: Special Ed | J7: Special Ed | K7: LEP | L7: LEP | M7: thru | O7: Income | P7: K & | Q7: Found | R7: for Low | T7: Admini- | U7: Instructional | V7: & Specialist | W7: Teaching | X7: ional Dev- | Y7: Equipment & | Z7: Psycho- | AA7: Pupil | AB7: Maint- | AC7: & Fixed | AD7: Sped | AE7: ation | AH7: Cha | AI7: Loc | AJ7: Sending | AK7: fct check
A8: chalocsend | B8: Charter | C8: PK | D8: KP | E8: KF | F8: Elem | G8: Middle | H8: School | I8: In School | J8: Tuitioned | K8: PK | L8: KP | M8: G12 | N8: Voke | O8: Elem & Jr | P8: Sr | Q8: Enro | R8: Income | T8: stration | U8: Leadership | V8: Teachers | W8: Services | X8: elopment | Y8: Technology | Z8: logical | AA8: Services | AB8: enance | AC8: Charges | AD8: Tuition | AE8: Budget | AG8: chalocsend | AH8: LEA | AI8: LEA | AJ8: LEA | AK8: 1=good | AL8: enro | AM8: fnd budget | AN8: rate | AO8: diff | AP8: rate check
A10: 409201094 | B10: ALMA DEL MAR | C10: ='fnd enro'!C10 -> 0 | D10: ='fnd enro'!D10 -> 0 | E10: ='fnd enro'!E10 -> 0 | F10: ='fnd enro'!F10 -> 2 | G10: ='fnd enro'!G10 -> 0 | H10: ='fnd enro'!H10 -> 0 | I10: ='fnd enro'!I10 -> 0.075 | J10: ='fnd enro'!J10 -> 0 | K10: ='fnd enro'!K10 -> 0 | L10: ='fnd enro'!L10 -> 0 | M10: ='fnd enro'!M10 -> 0 | N10: ='fnd enro'!N10 -> 0 | O10: ='fnd enro'!O10 -> 2 | P10: ='fnd enro'!P10 -> 0 | Q10: ='fnd enro'!Q10 -> 2 | R10: =VLOOKUP(A10,charterinfo_b,6) -> 1 | T10: =(($C10*'fnd base rates'!C$39) +($D10*'fnd base rates'!C$40) +($E10*'fnd base rates'!C$41) +($F10*'fnd base rates'!C$42) +($G10*'fnd base rates'!C$43) +($H10*'fnd base rates'!C$44) +($I10*'fnd base rates'!C$45) +($J10*'fnd base rates'!C$46) +($K10*'fnd base rates'!C$47) +($L10*'fnd base rates'!C$48) +($M10*'fnd base rates'!C$49) +($N10*'fnd base rates'!C$50) +($O10*'fnd base rates'!C$51) +($P10*'fnd base rates'!C$52)) *$R10 -> 918.435 | U10: =(($C10*'fnd base rates'!D$39) +($D10*'fnd base rates'!D$40) +($E10*'fnd base rates'!D$41) +($F10*'fnd base rates'!D$42) +($G10*'fnd base rates'!D$43) +($H10*'fnd base rates'!D$44) +($I10*'fnd base rates'!D$45) +($J10*'fnd base rates'!D$46) +($K10*'fnd base rates'!D$47) +($L10*'fnd base rates'!D$48) +($M10*'fnd base rates'!D$49) +($N10*'fnd base rates'!D$50) +($O10*'fnd base rates'!D$51) +($P10*'fnd base rates'!D$52)) *$R10 -> 1317.74 | V10: =(($C10*'fnd base rates'!E$39) +($D10*'fnd base rates'!E$40) +($E10*'fnd base rates'!E$41) +($F10*'fnd base rates'!E$42) +($G10*'fnd base rates'!E$43) +($H10*'fnd base rates'!E$44) +($I10*'fnd base rates'!E$45) +($J10*'fnd base rates'!E$46) +($K10*'fnd base rates'!E$47) +($L10*'fnd base rates'!E$48) +($M10*'fnd base rates'!E$49) +($N10*'fnd base rates'!E$50) +($O10*'fnd base rates'!E$51) +($P10*'fnd base rates'!E$52)) *$R10 -> 12101.50825 | W10: =(($C10*'fnd base rates'!F$39) +($D10*'fnd base rates'!F$40) +($E10*'fnd base rates'!F$41) +($F10*'fnd base rates'!F$42) +($G10*'fnd base rates'!F$43) +($H10*'fnd base rates'!F$44) +($I10*'fnd base rates'!F$45) +($J10*'fnd base rates'!F$46) +($K10*'fnd base rates'!F$47) +($L10*'fnd base rates'!F$48) +($M10*'fnd base rates'!F$49) +($N10*'fnd base rates'!F$50) +($O10*'fnd base rates'!F$51) +($P10*'fnd base rates'!F$52)) *$R10 -> 2131.50775 | X10: =(($C10*'fnd base rates'!G$39) +($D10*'fnd base rates'!G$40) +($E10*'fnd base rates'!G$41) +($F10*'fnd base rates'!G$42) +($G10*'fnd base rates'!G$43) +($H10*'fnd base rates'!G$44) +($I10*'fnd base rates'!G$45) +($J10*'fnd base rates'!G$46) +($K10*'fnd base rates'!G$47) +($L10*'fnd base rates'!G$48) +($M10*'fnd base rates'!G$49) +($N10*'fnd base rates'!G$50) +($O10*'fnd base rates'!G$51) +($P10*'fnd base rates'!G$52)) *$R10 -> 388.8185 | Y10: =(($C10*'fnd base rates'!H$39) +($D10*'fnd base rates'!H$40) +($E10*'fnd base rates'!H$41) +($F10*'fnd base rates'!H$42) +($G10*'fnd base rates'!H$43) +($H10*'fnd base rates'!H$44) +($I10*'fnd base rates'!H$45) +($J10*'fnd base rates'!H$46) +($K10*'fnd base rates'!H$47) +($L10*'fnd base rates'!H$48) +($M10*'fnd base rates'!H$49) +($N10*'fnd base rates'!H$50) +($O10*'fnd base rates'!H$51) +($P10*'fnd base rates'!H$52)) -> 900.7765 | Z10: =(($C10*'fnd base rates'!I$39) +($D10*'fnd base rates'!I$40) +($E10*'fnd base rates'!I$41) +($F10*'fnd base rates'!I$42) +($G10*'fnd base rates'!I$43) +($H10*'fnd base rates'!I$44) +($I10*'fnd base rates'!I$45) +($J10*'fnd base rates'!I$46) +($K10*'fnd base rates'!I$47) +($L10*'fnd base rates'!I$48) +($M10*'fnd base rates'!I$49) +($N10*'fnd base rates'!I$50) +($O10*'fnd base rates'!I$51) +($P10*'fnd base rates'!I$52)) *$R10 -> 439.68 | AA10: =(($C10*'fnd base rates'!J$39) +($D10*'fnd base rates'!J$40) +($E10*'fnd base rates'!J$41) +($F10*'fnd base rates'!J$42) +($G10*'fnd base rates'!J$43) +($H10*'fnd base rates'!J$44) +($I10*'fnd base rates'!J$45) +($J10*'fnd base rates'!J$46) +($K10*'fnd base rates'!J$47) +($L10*'fnd base rates'!J$48) +($M10*'fnd base rates'!J$49) +($N10*'fnd base rates'!J$50) +($O10*'fnd base rates'!J$51) +($P10*'fnd base rates'!J$52)) *$R10 -> 262.38 | AB10: =(($C10*'fnd base rates'!K$39) +($D10*'fnd base rates'!K$40) +($E10*'fnd base rates'!K$41) +($F10*'fnd base rates'!K$42) +($G10*'fnd base rates'!K$43) +($H10*'fnd base rates'!K$44) +($I10*'fnd base rates'!K$45) +($J10*'fnd base rates'!K$46) +($K10*'fnd base rates'!K$47) +($L10*'fnd base rates'!K$48) +($M10*'fnd base rates'!K$49) +($N10*'fnd base rates'!K$50) +($O10*'fnd base rates'!K$51) +($P10*'fnd base rates'!K$52)) *$R10 -> 2728.39825 | AC10: =(($C10*'fnd base rates'!L$39) +($D10*'fnd base rates'!L$40) +($E10*'fnd base rates'!L$41) +($F10*'fnd base rates'!L$42) +($G10*'fnd base rates'!L$43) +($H10*'fnd base rates'!L$44) +($I10*'fnd base rates'!L$45) +($J10*'fnd base rates'!L$46) +($K10*'fnd base rates'!L$47) +($L10*'fnd base rates'!L$48) +($M10*'fnd base rates'!L$49) +($N10*'fnd base rates'!L$50) +($O10*'fnd base rates'!L$51) +($P10*'fnd base rates'!L$52)) -> 2303.24725 | AD10: =(($C10*'fnd base rates'!M$39) +($D10*'fnd base rates'!M$40) +($E10*'fnd base rates'!M$41) +($F10*'fnd base rates'!M$42) +($G10*'fnd base rates'!M$43) +($H10*'fnd base rates'!M$44) +($I10*'fnd base rates'!M$45) +($J10*'fnd base rates'!M$46) +($K10*'fnd base rates'!M$47) +($L10*'fnd base rates'!M$48) +($M10*'fnd base rates'!M$49) +($N10*'fnd base rates'!M$50) +($O10*'fnd base rates'!M$51) +($P10*'fnd base rates'!M$52)) -> 0 | AE10: =SUM(T10:AD10) -> 23492.4915 | AG10: =A10 -> 409201094 | AH10: =IF($A10<499999999,MID($A10,1,3),MID($A10,1,4)) -> 409 | AI10: =IF($A10<499999999,MID($A10,4,3),MID($A10,5,3)) -> 201 | AJ10: =IF($A10<499999999,MID($A10,7,3),MID($A10,8,3)) -> 094 | AK10: =IF(VLOOKUP(VALUE(IF(AG10<499999999,MID(AG10,4,3),MID(AG10,5,3))),distinfo,4)=R10,1,0) -> 1 | AL10: =enro -> 2 | AM10: =AE10 -> 23492.4915 | AN10: =IF(OR(AE10=0,AL10=0),0,ROUND(AM10/AL10,0)) -> 11746 | AO10: =AN10-AP10 -> 0 | AP10: 11746
A11: 409201201 | B11: ALMA DEL MAR | C11: ='fnd enro'!C11 -> 0 | D11: ='fnd enro'!D11 -> 0 | E11: ='fnd enro'!E11 -> 29 | F11: ='fnd enro'!F11 -> 182 | G11: ='fnd enro'!G11 -> 0 | H11: ='fnd enro'!H11 -> 0 | I11: ='fnd enro'!I11 -> 8.925 | J11: ='fnd enro'!J11 -> 0 | K11: ='fnd enro'!K11 -> 0 | L11: ='fnd enro'!L11 -> 0 | M11: ='fnd enro'!M11 -> 27 | N11: ='fnd enro'!N11 -> 0 | O11: ='fnd enro'!O11 -> 157 | P11: ='fnd enro'!P11 -> 31 | Q11: ='fnd enro'!Q11 -> 238 | R11: =VLOOKUP(A11,charterinfo_b,6) -> 1 | T11: =(($C11*'fnd base rates'!C$39) +($D11*'fnd base rates'!C$40) +($E11*'fnd base rates'!C$41) +($F11*'fnd base rates'!C$42) +($G11*'fnd base rates'!C$43) +($H11*'fnd base rates'!C$44) +($I11*'fnd base rates'!C$45) +($J11*'fnd base rates'!C$46) +($K11*'fnd base rates'!C$47) +($L11*'fnd base rates'!C$48) +($M11*'fnd base rates'!C$49) +($N11*'fnd base rates'!C$50) +($O11*'fnd base rates'!C$51) +($P11*'fnd base rates'!C$52)) *$R11 -> 109293.765 | U11: =(($C11*'fnd base rates'!D$39) +($D11*'fnd base rates'!D$40) +($E11*'fnd base rates'!D$41) +($F11*'fnd base rates'!D$42) +($G11*'fnd base rates'!D$43) +($H11*'fnd base rates'!D$44) +($I11*'fnd base rates'!D$45) +($J11*'fnd base rates'!D$46) +($K11*'fnd base rates'!D$47) +($L11*'fnd base rates'!D$48) +($M11*'fnd base rates'!D$49) +($N11*'fnd base rates'!D$50) +($O11*'fnd base rates'!D$51) +($P11*'fnd base rates'!D$52)) *$R11 -> 156811.06 | V11: =(($C11*'fnd base rates'!E$39) +($D11*'fnd base rates'!E$40) +($E11*'fnd base rates'!E$41) +($F11*'fnd base rates'!E$42) +($G11*'fnd base rates'!E$43) +($H11*'fnd base rates'!E$44) +($I11*'fnd base rates'!E$45) +($J11*'fnd base rates'!E$46) +($K11*'fnd base rates'!E$47) +($L11*'fnd base rates'!E$48) +($M11*'fnd base rates'!E$49) +($N11*'fnd base rates'!E$50) +($O11*'fnd base rates'!E$51) +($P11*'fnd base rates'!E$52)) *$R11 -> 1324851.212 | W11: =(($C11*'fnd base rates'!F$39) +($D11*'fnd base rates'!F$40) +($E11*'fnd base rates'!F$41) +($F11*'fnd base rates'!F$42) +($G11*'fnd base rates'!F$43) +($H11*'fnd base rates'!F$44) +($I11*'fnd base rates'!F$45) +($J11*'fnd base rates'!F$46) +($K11*'fnd base rates'!F$47) +($L11*'fnd base rates'!F$48) +($M11*'fnd base rates'!F$49) +($N11*'fnd base rates'!F$50) +($O11*'fnd base rates'!F$51) +($P11*'fnd base rates'!F$52)) *$R11 -> 249456.8623 | X11: =(($C11*'fnd base rates'!G$39) +($D11*'fnd base rates'!G$40) +($E11*'fnd base rates'!G$41) +($F11*'fnd base rates'!G$42) +($G11*'fnd base rates'!G$43) +($H11*'fnd base rates'!G$44) +($I11*'fnd base rates'!G$45) +($J11*'fnd base rates'!G$46) +($K11*'fnd base rates'!G$47) +($L11*'fnd base rates'!G$48) +($M11*'fnd base rates'!G$49) +($N11*'fnd base rates'!G$50) +($O11*'fnd base rates'!G$51) +($P11*'fnd base rates'!G$52)) *$R11 -> 44419.1115 | Y11: =(($C11*'fnd base rates'!H$39) +($D11*'fnd base rates'!H$40) +($E11*'fnd base rates'!H$41) +($F11*'fnd base rates'!H$42) +($G11*'fnd base rates'!H$43) +($H11*'fnd base rates'!H$44) +($I11*'fnd base rates'!H$45) +($J11*'fnd base rates'!H$46) +($K11*'fnd base rates'!H$47) +($L11*'fnd base rates'!H$48) +($M11*'fnd base rates'!H$49) +($N11*'fnd base rates'!H$50) +($O11*'fnd base rates'!H$51) +($P11*'fnd base rates'!H$52)) -> 107192.4035 | Z11: =(($C11*'fnd base rates'!I$39) +($D11*'fnd base rates'!I$40) +($E11*'fnd base rates'!I$41) +($F11*'fnd base rates'!I$42) +($G11*'fnd base rates'!I$43) +($H11*'fnd base rates'!I$44) +($I11*'fnd base rates'!I$45) +($J11*'fnd base rates'!I$46) +($K11*'fnd base rates'!I$47) +($L11*'fnd base rates'!I$48) +($M11*'fnd base rates'!I$49) +($N11*'fnd base rates'!I$50) +($O11*'fnd base rates'!I$51) +($P11*'fnd base rates'!I$52)) *$R11 -> 54287.25 | AA11: =(($C11*'fnd base rates'!J$39) +($D11*'fnd base rates'!J$40) +($E11*'fnd base rates'!J$41) +($F11*'fnd base rates'!J$42) +($G11*'fnd base rates'!J$43) +($H11*'fnd base rates'!J$44) +($I11*'fnd base rates'!J$45) +($J11*'fnd base rates'!J$46) +($K11*'fnd base rates'!J$47) +($L11*'fnd base rates'!J$48) +($M11*'fnd base rates'!J$49) +($N11*'fnd base rates'!J$50) +($O11*'fnd base rates'!J$51) +($P11*'fnd base rates'!J$52)) *$R11 -> 29955.05 | AB11: =(($C11*'fnd base rates'!K$39) +($D11*'fnd base rates'!K$40) +($E11*'fnd base rates'!K$41) +($F11*'fnd base rates'!K$42) +($G11*'fnd base rates'!K$43) +($H11*'fnd base rates'!K$44) +($I11*'fnd base rates'!K$45) +($J11*'fnd base rates'!K$46) +($K11*'fnd base rates'!K$47) +($L11*'fnd base rates'!K$48) +($M11*'fnd base rates'!K$49) +($N11*'fnd base rates'!K$50) +($O11*'fnd base rates'!K$51) +($P11*'fnd base rates'!K$52)) *$R11 -> 311703.2218 | AC11: =(($C11*'fnd base rates'!L$39) +($D11*'fnd base rates'!L$40) +($E11*'fnd base rates'!L$41) +($F11*'fnd base rates'!L$42) +($G11*'fnd base rates'!L$43) +($H11*'fnd base rates'!L$44) +($I11*'fnd base rates'!L$45) +($J11*'fnd base rates'!L$46) +($K11*'fnd base rates'!L$47) +($L11*'fnd base rates'!L$48) +($M11*'fnd base rates'!L$49) +($N11*'fnd base rates'!L$50) +($O11*'fnd base rates'!L$51) +($P11*'fnd base rates'!L$52)) -> 265556.3628 | AD11: =(($C11*'fnd base rates'!M$39) +($D11*'fnd base rates'!M$40) +($E11*'fnd base rates'!M$41) +($F11*'fnd base rates'!M$42) +($G11*'fnd base rates'!M$43) +($H11*'fnd base rates'!M$44) +($I11*'fnd base rates'!M$45) +($J11*'fnd base rates'!M$46) +($K11*'fnd base rates'!M$47) +($L11*'fnd base rates'!M$48) +($M11*'fnd base rates'!M$49) +($N11*'fnd base rates'!M$50) +($O11*'fnd base rates'!M$51) +($P11*'fnd base rates'!M$52)) -> 0 | AE11: =SUM(T11:AD11) -> 2653526.299 | AG11: =A11 -> 409201201 | AH11: =IF($A11<499999999,MID($A11,1,3),MID($A11,1,4)) -> 409 | AI11: =IF($A11<499999999,MID($A11,4,3),MID($A11,5,3)) -> 201 | AJ11: =IF($A11<499999999,MID($A11,7,3),MID($A11,8,3)) -> 201 | AK11: =IF(VLOOKUP(VALUE(IF(AG11<499999999,MID(AG11,4,3),MID(AG11,5,3))),distinfo,4)=R11,1,0) -> 1 | AL11: 238 | AM11: =AE11 -> 2653526.299 | AN11: =IF(OR(AE11=0,AL11=0),0,ROUND(AM11/AL11,0)) -> 11149 | AO11: =AN11-AP11 -> 0 | AP11: 11149
A12: 410035035 | B12: EXCEL ACADEMY | C12: ='fnd enro'!C12 -> 0 | D12: ='fnd enro'!D12 -> 0 | E12: ='fnd enro'!E12 -> 0 | F12: ='fnd enro'!F12 -> 36 | G12: ='fnd enro'!G12 -> 186 | H12: ='fnd enro'!H12 -> 0 | I12: ='fnd enro'!I12 -> 10.5 | J12: ='fnd enro'!J12 -> 0 | K12: ='fnd enro'!K12 -> 0 | L12: ='fnd enro'!L12 -> 0 | M12: ='fnd enro'!M12 -> 58 | N12: ='fnd enro'!N12 -> 0 | O12: ='fnd enro'!O12 -> 221 | P12: ='fnd enro'!P12 -> 0 | Q12: ='fnd enro'!Q12 -> 280 | R12: 1.071 | T12: =(($C12*'fnd base rates'!C$39) +($D12*'fnd base rates'!C$40) +($E12*'fnd base rates'!C$41) +($F12*'fnd base rates'!C$42) +($G12*'fnd base rates'!C$43) +($H12*'fnd base rates'!C$44) +($I12*'fnd base rates'!C$45) +($J12*'fnd base rates'!C$46) +($K12*'fnd base rates'!C$47) +($L12*'fnd base rates'!C$48) +($M12*'fnd base rates'!C$49) +($N12*'fnd base rates'!C$50) +($O12*'fnd base rates'!C$51) +($P12*'fnd base rates'!C$52)) *$R12 -> 137710.1439 | U12: =(($C12*'fnd base rates'!D$39) +($D12*'fnd base rates'!D$40) +($E12*'fnd base rates'!D$41) +($F12*'fnd base rates'!D$42) +($G12*'fnd base rates'!D$43) +($H12*'fnd base rates'!D$44) +($I12*'fnd base rates'!D$45) +($J12*'fnd base rates'!D$46) +($K12*'fnd base rates'!D$47) +($L12*'fnd base rates'!D$48) +($M12*'fnd base rates'!D$49) +($N12*'fnd base rates'!D$50) +($O12*'fnd base rates'!D$51) +($P12*'fnd base rates'!D$52)) *$R12 -> 197581.9356 | V12: =(($C12*'fnd base rates'!E$39) +($D12*'fnd base rates'!E$40) +($E12*'fnd base rates'!E$41) +($F12*'fnd base rates'!E$42) +($G12*'fnd base rates'!E$43) +($H12*'fnd base rates'!E$44) +($I12*'fnd base rates'!E$45) +($J12*'fnd base rates'!E$46) +($K12*'fnd base rates'!E$47) +($L12*'fnd base rates'!E$48) +($M12*'fnd base rates'!E$49) +($N12*'fnd base rates'!E$50) +($O12*'fnd base rates'!E$51) +($P12*'fnd base rates'!E$52)) *$R12 -> 1665499.093 | W12: =(($C12*'fnd base rates'!F$39) +($D12*'fnd base rates'!F$40) +($E12*'fnd base rates'!F$41) +($F12*'fnd base rates'!F$42) +($G12*'fnd base rates'!F$43) +($H12*'fnd base rates'!F$44) +($I12*'fnd base rates'!F$45) +($J12*'fnd base rates'!F$46) +($K12*'fnd base rates'!F$47) +($L12*'fnd base rates'!F$48) +($M12*'fnd base rates'!F$49) +($N12*'fnd base rates'!F$50) +($O12*'fnd base rates'!F$51) +($P12*'fnd base rates'!F$52)) *$R12 -> 266708.9505 | X12: =(($C12*'fnd base rates'!G$39) +($D12*'fnd base rates'!G$40) +($E12*'fnd base rates'!G$41) +($F12*'fnd base rates'!G$42) +($G12*'fnd base rates'!G$43) +($H12*'fnd base rates'!G$44) +($I12*'fnd base rates'!G$45) +($J12*'fnd base rates'!G$46) +($K12*'fnd base rates'!G$47) +($L12*'fnd base rates'!G$48) +($M12*'fnd base rates'!G$49) +($N12*'fnd base rates'!G$50) +($O12*'fnd base rates'!G$51) +($P12*'fnd base rates'!G$52)) *$R12 -> 59147.22807 | Y12: =(($C12*'fnd base rates'!H$39) +($D12*'fnd base rates'!H$40) +($E12*'fnd base rates'!H$41) +($F12*'fnd base rates'!H$42) +($G12*'fnd base rates'!H$43) +($H12*'fnd base rates'!H$44) +($I12*'fnd base rates'!H$45) +($J12*'fnd base rates'!H$46) +($K12*'fnd base rates'!H$47) +($L12*'fnd base rates'!H$48) +($M12*'fnd base rates'!H$49) +($N12*'fnd base rates'!H$50) +($O12*'fnd base rates'!H$51) +($P12*'fnd base rates'!H$52)) -> 126108.71 | Z12: =(($C12*'fnd base rates'!I$39) +($D12*'fnd base rates'!I$40) +($E12*'fnd base rates'!I$41) +($F12*'fnd base rates'!I$42) +($G12*'fnd base rates'!I$43) +($H12*'fnd base rates'!I$44) +($I12*'fnd base rates'!I$45) +($J12*'fnd base rates'!I$46) +($K12*'fnd base rates'!I$47) +($L12*'fnd base rates'!I$48) +($M12*'fnd base rates'!I$49) +($N12*'fnd base rates'!I$50) +($O12*'fnd base rates'!I$51) +($P12*'fnd base rates'!I$52)) *$R12 -> 84947.39316 | AA12: =(($C12*'fnd base rates'!J$39) +($D12*'fnd base rates'!J$40) +($E12*'fnd base rates'!J$41) +($F12*'fnd base rates'!J$42) +($G12*'fnd base rates'!J$43) +($H12*'fnd base rates'!J$44) +($I12*'fnd base rates'!J$45) +($J12*'fnd base rates'!J$46) +($K12*'fnd base rates'!J$47) +($L12*'fnd base rates'!J$48) +($M12*'fnd base rates'!J$49) +($N12*'fnd base rates'!J$50) +($O12*'fnd base rates'!J$51) +($P12*'fnd base rates'!J$52)) *$R12 -> 55893.28374 | AB12: =(($C12*'fnd base rates'!K$39) +($D12*'fnd base rates'!K$40) +($E12*'fnd base rates'!K$41) +($F12*'fnd base rates'!K$42) +($G12*'fnd base rates'!K$43) +($H12*'fnd base rates'!K$44) +($I12*'fnd base rates'!K$45) +($J12*'fnd base rates'!K$46) +($K12*'fnd base rates'!K$47) +($L12*'fnd base rates'!K$48) +($M12*'fnd base rates'!K$49) +($N12*'fnd base rates'!K$50) +($O12*'fnd base rates'!K$51) +($P12*'fnd base rates'!K$52)) *$R12 -> 415065.884 | AC12: =(($C12*'fnd base rates'!L$39) +($D12*'fnd base rates'!L$40) +($E12*'fnd base rates'!L$41) +($F12*'fnd base rates'!L$42) +($G12*'fnd base rates'!L$43) +($H12*'fnd base rates'!L$44) +($I12*'fnd base rates'!L$45) +($J12*'fnd base rates'!L$46) +($K12*'fnd base rates'!L$47) +($L12*'fnd base rates'!L$48) +($M12*'fnd base rates'!L$49) +($N12*'fnd base rates'!L$50) +($O12*'fnd base rates'!L$51) +($P12*'fnd base rates'!L$52)) -> 310568.925 | AD12: =(($C12*'fnd base rates'!M$39) +($D12*'fnd base rates'!M$40) +($E12*'fnd base rates'!M$41) +($F12*'fnd base rates'!M$42) +($G12*'fnd base rates'!M$43) +($H12*'fnd base rates'!M$44) +($I12*'fnd base rates'!M$45) +($J12*'fnd base rates'!M$46) +($K12*'fnd base rates'!M$47) +($L12*'fnd base rates'!M$48) +($M12*'fnd base rates'!M$49) +($N12*'fnd base rates'!M$50) +($O12*'fnd base rates'!M$51) +($P12*'fnd base rates'!M$52)) -> 0 | AE12: 3319231.547 | AG12: 410035035 | AH12: 410 | AI12: 035 | AJ12: 035 | AK12: 1 | AL12: 280 | AM12: 3319231.547 | AN12: 11854 | AO12: 0 | AP12: 11854
A13: 410035057 | B13: EXCEL ACADEMY | C13: ='fnd enro'!C13 -> 0 | D13: ='fnd enro'!D13 -> 0 | E13: ='fnd enro'!E13 -> 0 | F13: ='fnd enro'!F13 -> 27 | G13: ='fnd enro'!G13 -> 47 | H13: ='fnd enro'!H13 -> 0 | I13: ='fnd enro'!I13 -> 3.6 | J13: ='fnd enro'!J13 -> 0 | K13: ='fnd enro'!K13 -> 0 | L13: ='fnd enro'!L13 -> 0 | M13: ='fnd enro'!M13 -> 22 | N13: ='fnd enro'!N13 -> 0 | O13: ='fnd enro'!O13 -> 72 | P13: ='fnd enro'!P13 -> 0 | Q13: ='fnd enro'!Q13 -> 96 | R13: 1.071 | T13: =(($C13*'fnd base rates'!C$39) +($D13*'fnd base rates'!C$40) +($E13*'fnd base rates'!C$41) +($F13*'fnd base rates'!C$42) +($G13*'fnd base rates'!C$43) +($H13*'fnd base rates'!C$44) +($I13*'fnd base rates'!C$45) +($J13*'fnd base rates'!C$46) +($K13*'fnd base rates'!C$47) +($L13*'fnd base rates'!C$48) +($M13*'fnd base rates'!C$49) +($N13*'fnd base rates'!C$50) +($O13*'fnd base rates'!C$51) +($P13*'fnd base rates'!C$52)) *$R13 -> 47214.90648 | U13: =(($C13*'fnd base rates'!D$39) +($D13*'fnd base rates'!D$40) +($E13*'fnd base rates'!D$41) +($F13*'fnd base rates'!D$42) +($G13*'fnd base rates'!D$43) +($H13*'fnd base rates'!D$44) +($I13*'fnd base rates'!D$45) +($J13*'fnd base rates'!D$46) +($K13*'fnd base rates'!D$47) +($L13*'fnd base rates'!D$48) +($M13*'fnd base rates'!D$49) +($N13*'fnd base rates'!D$50) +($O13*'fnd base rates'!D$51) +($P13*'fnd base rates'!D$52)) *$R13 -> 67742.37792 | V13: =(($C13*'fnd base rates'!E$39) +($D13*'fnd base rates'!E$40) +($E13*'fnd base rates'!E$41) +($F13*'fnd base rates'!E$42) +($G13*'fnd base rates'!E$43) +($H13*'fnd base rates'!E$44) +($I13*'fnd base rates'!E$45) +($J13*'fnd base rates'!E$46) +($K13*'fnd base rates'!E$47) +($L13*'fnd base rates'!E$48) +($M13*'fnd base rates'!E$49) +($N13*'fnd base rates'!E$50) +($O13*'fnd base rates'!E$51) +($P13*'fnd base rates'!E$52)) *$R13 -> 570022.931 | W13: =(($C13*'fnd base rates'!F$39) +($D13*'fnd base rates'!F$40) +($E13*'fnd base rates'!F$41) +($F13*'fnd base rates'!F$42) +($G13*'fnd base rates'!F$43) +($H13*'fnd base rates'!F$44) +($I13*'fnd base rates'!F$45) +($J13*'fnd base rates'!F$46) +($K13*'fnd base rates'!F$47) +($L13*'fnd base rates'!F$48) +($M13*'fnd base rates'!F$49) +($N13*'fnd base rates'!F$50) +($O13*'fnd base rates'!F$51) +($P13*'fnd base rates'!F$52)) *$R13 -> 94990.68709 | X13: =(($C13*'fnd base rates'!G$39) +($D13*'fnd base rates'!G$40) +($E13*'fnd base rates'!G$41) +($F13*'fnd base rates'!G$42) +($G13*'fnd base rates'!G$43) +($H13*'fnd base rates'!G$44) +($I13*'fnd base rates'!G$45) +($J13*'fnd base rates'!G$46) +($K13*'fnd base rates'!G$47) +($L13*'fnd base rates'!G$48) +($M13*'fnd base rates'!G$49) +($N13*'fnd base rates'!G$50) +($O13*'fnd base rates'!G$51) +($P13*'fnd base rates'!G$52)) *$R13 -> 19952.62076 | Y13: =(($C13*'fnd base rates'!H$39) +($D13*'fnd base rates'!H$40) +($E13*'fnd base rates'!H$41) +($F13*'fnd base rates'!H$42) +($G13*'fnd base rates'!H$43) +($H13*'fnd base rates'!H$44) +($I13*'fnd base rates'!H$45) +($J13*'fnd base rates'!H$46) +($K13*'fnd base rates'!H$47) +($L13*'fnd base rates'!H$48) +($M13*'fnd base rates'!H$49) +($N13*'fnd base rates'!H$50) +($O13*'fnd base rates'!H$51) +($P13*'fnd base rates'!H$52)) -> 43237.272 | Z13: =(($C13*'fnd base rates'!I$39) +($D13*'fnd base rates'!I$40) +($E13*'fnd base rates'!I$41) +($F13*'fnd base rates'!I$42) +($G13*'fnd base rates'!I$43) +($H13*'fnd base rates'!I$44) +($I13*'fnd base rates'!I$45) +($J13*'fnd base rates'!I$46) +($K13*'fnd base rates'!I$47) +($L13*'fnd base rates'!I$48) +($M13*'fnd base rates'!I$49) +($N13*'fnd base rates'!I$50) +($O13*'fnd base rates'!I$51) +($P13*'fnd base rates'!I$52)) *$R13 -> 27982.17765 | AA13: =(($C13*'fnd base rates'!J$39) +($D13*'fnd base rates'!J$40) +($E13*'fnd base rates'!J$41) +($F13*'fnd base rates'!J$42) +($G13*'fnd base rates'!J$43) +($H13*'fnd base rates'!J$44) +($I13*'fnd base rates'!J$45) +($J13*'fnd base rates'!J$46) +($K13*'fnd base rates'!J$47) +($L13*'fnd base rates'!J$48) +($M13*'fnd base rates'!J$49) +($N13*'fnd base rates'!J$50) +($O13*'fnd base rates'!J$51) +($P13*'fnd base rates'!J$52)) *$R13 -> 17670.93237 | AB13: =(($C13*'fnd base rates'!K$39) +($D13*'fnd base rates'!K$40) +($E13*'fnd base rates'!K$41) +($F13*'fnd base rates'!K$42) +($G13*'fnd base rates'!K$43) +($H13*'fnd base rates'!K$44) +($I13*'fnd base rates'!K$45) +($J13*'fnd base rates'!K$46) +($K13*'fnd base rates'!K$47) +($L13*'fnd base rates'!K$48) +($M13*'fnd base rates'!K$49) +($N13*'fnd base rates'!K$50) +($O13*'fnd base rates'!K$51) +($P13*'fnd base rates'!K$52)) *$R13 -> 140016.9665 | AC13: =(($C13*'fnd base rates'!L$39) +($D13*'fnd base rates'!L$40) +($E13*'fnd base rates'!L$41) +($F13*'fnd base rates'!L$42) +($G13*'fnd base rates'!L$43) +($H13*'fnd base rates'!L$44) +($I13*'fnd base rates'!L$45) +($J13*'fnd base rates'!L$46) +($K13*'fnd base rates'!L$47) +($L13*'fnd base rates'!L$48) +($M13*'fnd base rates'!L$49) +($N13*'fnd base rates'!L$50) +($O13*'fnd base rates'!L$51) +($P13*'fnd base rates'!L$52)) -> 106476.698 | AD13: =(($C13*'fnd base rates'!M$39) +($D13*'fnd base rates'!M$40) +($E13*'fnd base rates'!M$41) +($F13*'fnd base rates'!M$42) +($G13*'fnd base rates'!M$43) +($H13*'fnd base rates'!M$44) +($I13*'fnd base rates'!M$45) +($J13*'fnd base rates'!M$46) +($K13*'fnd base rates'!M$47) +($L13*'fnd base rates'!M$48) +($M13*'fnd base rates'!M$49) +($N13*'fnd base rates'!M$50) +($O13*'fnd base rates'!M$51) +($P13*'fnd base rates'!M$52)) -> 0 | AE13: 1135307.57 | AG13: 410035057 | AH13: 410 | AI13: 035 | AJ13: 057 | AK13: 1 | AL13: 96 | AM13: 1135307.57 | AN13: 11826 | AO13: 0 | AP13: 11826
A14: 410035093 | B14: EXCEL ACADEMY | C14: ='fnd enro'!C14 -> 0 | D14: ='fnd enro'!D14 -> 0 | E14: ='fnd enro'!E14 -> 0 | F14: ='fnd enro'!F14 -> 1 | G14: ='fnd enro'!G14 -> 1 | H14: ='fnd enro'!H14 -> 0 | I14: ='fnd enro'!I14 -> 0.075 | J14: ='fnd enro'!J14 -> 0 | K14: ='fnd enro'!K14 -> 0 | L14: ='fnd enro'!L14 -> 0 | M14: ='fnd enro'!M14 -> 0 | N14: ='fnd enro'!N14 -> 0 | O14: ='fnd enro'!O14 -> 2 | P14: ='fnd enro'!P14 -> 0 | Q14: ='fnd enro'!Q14 -> 2 | R14: 1.071 | T14: =(($C14*'fnd base rates'!C$39) +($D14*'fnd base rates'!C$40) +($E14*'fnd base rates'!C$41) +($F14*'fnd base rates'!C$42) +($G14*'fnd base rates'!C$43) +($H14*'fnd base rates'!C$44) +($I14*'fnd base rates'!C$45) +($J14*'fnd base rates'!C$46) +($K14*'fnd base rates'!C$47) +($L14*'fnd base rates'!C$48) +($M14*'fnd base rates'!C$49) +($N14*'fnd base rates'!C$50) +($O14*'fnd base rates'!C$51) +($P14*'fnd base rates'!C$52)) *$R14 -> 983.643885 | U14: =(($C14*'fnd base rates'!D$39) +($D14*'fnd base rates'!D$40) +($E14*'fnd base rates'!D$41) +($F14*'fnd base rates'!D$42) +($G14*'fnd base rates'!D$43) +($H14*'fnd base rates'!D$44) +($I14*'fnd base rates'!D$45) +($J14*'fnd base rates'!D$46) +($K14*'fnd base rates'!D$47) +($L14*'fnd base rates'!D$48) +($M14*'fnd base rates'!D$49) +($N14*'fnd base rates'!D$50) +($O14*'fnd base rates'!D$51) +($P14*'fnd base rates'!D$52)) *$R14 -> 1411.29954 | V14: =(($C14*'fnd base rates'!E$39) +($D14*'fnd base rates'!E$40) +($E14*'fnd base rates'!E$41) +($F14*'fnd base rates'!E$42) +($G14*'fnd base rates'!E$43) +($H14*'fnd base rates'!E$44) +($I14*'fnd base rates'!E$45) +($J14*'fnd base rates'!E$46) +($K14*'fnd base rates'!E$47) +($L14*'fnd base rates'!E$48) +($M14*'fnd base rates'!E$49) +($N14*'fnd base rates'!E$50) +($O14*'fnd base rates'!E$51) +($P14*'fnd base rates'!E$52)) *$R14 -> 12572.45642 | W14: =(($C14*'fnd base rates'!F$39) +($D14*'fnd base rates'!F$40) +($E14*'fnd base rates'!F$41) +($F14*'fnd base rates'!F$42) +($G14*'fnd base rates'!F$43) +($H14*'fnd base rates'!F$44) +($I14*'fnd base rates'!F$45) +($J14*'fnd base rates'!F$46) +($K14*'fnd base rates'!F$47) +($L14*'fnd base rates'!F$48) +($M14*'fnd base rates'!F$49) +($N14*'fnd base rates'!F$50) +($O14*'fnd base rates'!F$51) +($P14*'fnd base rates'!F$52)) *$R14 -> 2050.35212 | X14: =(($C14*'fnd base rates'!G$39) +($D14*'fnd base rates'!G$40) +($E14*'fnd base rates'!G$41) +($F14*'fnd base rates'!G$42) +($G14*'fnd base rates'!G$43) +($H14*'fnd base rates'!G$44) +($I14*'fnd base rates'!G$45) +($J14*'fnd base rates'!G$46) +($K14*'fnd base rates'!G$47) +($L14*'fnd base rates'!G$48) +($M14*'fnd base rates'!G$49) +($N14*'fnd base rates'!G$50) +($O14*'fnd base rates'!G$51) +($P14*'fnd base rates'!G$52)) *$R14 -> 427.1881635 | Y14: =(($C14*'fnd base rates'!H$39) +($D14*'fnd base rates'!H$40) +($E14*'fnd base rates'!H$41) +($F14*'fnd base rates'!H$42) +($G14*'fnd base rates'!H$43) +($H14*'fnd base rates'!H$44) +($I14*'fnd base rates'!H$45) +($J14*'fnd base rates'!H$46) +($K14*'fnd base rates'!H$47) +($L14*'fnd base rates'!H$48) +($M14*'fnd base rates'!H$49) +($N14*'fnd base rates'!H$50) +($O14*'fnd base rates'!H$51) +($P14*'fnd base rates'!H$52)) -> 900.7765 | Z14: =(($C14*'fnd base rates'!I$39) +($D14*'fnd base rates'!I$40) +($E14*'fnd base rates'!I$41) +($F14*'fnd base rates'!I$42) +($G14*'fnd base rates'!I$43) +($H14*'fnd base rates'!I$44) +($I14*'fnd base rates'!I$45) +($J14*'fnd base rates'!I$46) +($K14*'fnd base rates'!I$47) +($L14*'fnd base rates'!I$48) +($M14*'fnd base rates'!I$49) +($N14*'fnd base rates'!I$50) +($O14*'fnd base rates'!I$51) +($P14*'fnd base rates'!I$52)) *$R14 -> 548.85537 | AA14: =(($C14*'fnd base rates'!J$39) +($D14*'fnd base rates'!J$40) +($E14*'fnd base rates'!J$41) +($F14*'fnd base rates'!J$42) +($G14*'fnd base rates'!J$43) +($H14*'fnd base rates'!J$44) +($I14*'fnd base rates'!J$45) +($J14*'fnd base rates'!J$46) +($K14*'fnd base rates'!J$47) +($L14*'fnd base rates'!J$48) +($M14*'fnd base rates'!J$49) +($N14*'fnd base rates'!J$50) +($O14*'fnd base rates'!J$51) +($P14*'fnd base rates'!J$52)) *$R14 -> 369.99837 | AB14: =(($C14*'fnd base rates'!K$39) +($D14*'fnd base rates'!K$40) +($E14*'fnd base rates'!K$41) +($F14*'fnd base rates'!K$42) +($G14*'fnd base rates'!K$43) +($H14*'fnd base rates'!K$44) +($I14*'fnd base rates'!K$45) +($J14*'fnd base rates'!K$46) +($K14*'fnd base rates'!K$47) +($L14*'fnd base rates'!K$48) +($M14*'fnd base rates'!K$49) +($N14*'fnd base rates'!K$50) +($O14*'fnd base rates'!K$51) +($P14*'fnd base rates'!K$52)) *$R14 -> 2997.705706 | AC14: =(($C14*'fnd base rates'!L$39) +($D14*'fnd base rates'!L$40) +($E14*'fnd base rates'!L$41) +($F14*'fnd base rates'!L$42) +($G14*'fnd base rates'!L$43) +($H14*'fnd base rates'!L$44) +($I14*'fnd base rates'!L$45) +($J14*'fnd base rates'!L$46) +($K14*'fnd base rates'!L$47) +($L14*'fnd base rates'!L$48) +($M14*'fnd base rates'!L$49) +($N14*'fnd base rates'!L$50) +($O14*'fnd base rates'!L$51) +($P14*'fnd base rates'!L$52)) -> 2266.03725 | AD14: =(($C14*'fnd base rates'!M$39) +($D14*'fnd base rates'!M$40) +($E14*'fnd base rates'!M$41) +($F14*'fnd base rates'!M$42) +($G14*'fnd base rates'!M$43) +($H14*'fnd base rates'!M$44) +($I14*'fnd base rates'!M$45) +($J14*'fnd base rates'!M$46) +($K14*'fnd base rates'!M$47) +($L14*'fnd base rates'!M$48) +($M14*'fnd base rates'!M$49) +($N14*'fnd base rates'!M$50) +($O14*'fnd base rates'!M$51) +($P14*'fnd base rates'!M$52)) -> 0 | AE14: 24528.31332 | AG14: 410035093 | AH14: 410 | AI14: 035 | AJ14: 093 | AK14: 1 | AL14: 2 | AM14: 24528.31332 | AN14: 12264 | AO14: 0 | AP14: 12264
A15: 410035160 | B15: EXCEL ACADEMY | C15: ='fnd enro'!C15 -> 0 | D15: ='fnd enro'!D15 -> 0 | E15: ='fnd enro'!E15 -> 0 | F15: ='fnd enro'!F15 -> 0 | G15: ='fnd enro'!G15 -> 1 | H15: ='fnd enro'!H15 -> 0 | I15: ='fnd enro'!I15 -> 0.0375 | J15: ='fnd enro'!J15 -> 0 | K15: ='fnd enro'!K15 -> 0 | L15: ='fnd enro'!L15 -> 0 | M15: ='fnd enro'!M15 -> 0 | N15: ='fnd enro'!N15 -> 0 | O15: ='fnd enro'!O15 -> 1 | P15: ='fnd enro'!P15 -> 0 | Q15: ='fnd enro'!Q15 -> 1 | R15: 1.071 | T15: =(($C15*'fnd base rates'!C$39) +($D15*'fnd base rates'!C$40) +($E15*'fnd base rates'!C$41) +($F15*'fnd base rates'!C$42) +($G15*'fnd base rates'!C$43) +($H15*'fnd base rates'!C$44) +($I15*'fnd base rates'!C$45) +($J15*'fnd base rates'!C$46) +($K15*'fnd base rates'!C$47) +($L15*'fnd base rates'!C$48) +($M15*'fnd base rates'!C$49) +($N15*'fnd base rates'!C$50) +($O15*'fnd base rates'!C$51) +($P15*'fnd base rates'!C$52)) *$R15 -> 491.8219425 | U15: =(($C15*'fnd base rates'!D$39) +($D15*'fnd base rates'!D$40) +($E15*'fnd base rates'!D$41) +($F15*'fnd base rates'!D$42) +($G15*'fnd base rates'!D$43) +($H15*'fnd base rates'!D$44) +($I15*'fnd base rates'!D$45) +($J15*'fnd base rates'!D$46) +($K15*'fnd base rates'!D$47) +($L15*'fnd base rates'!D$48) +($M15*'fnd base rates'!D$49) +($N15*'fnd base rates'!D$50) +($O15*'fnd base rates'!D$51) +($P15*'fnd base rates'!D$52)) *$R15 -> 705.64977 | V15: =(($C15*'fnd base rates'!E$39) +($D15*'fnd base rates'!E$40) +($E15*'fnd base rates'!E$41) +($F15*'fnd base rates'!E$42) +($G15*'fnd base rates'!E$43) +($H15*'fnd base rates'!E$44) +($I15*'fnd base rates'!E$45) +($J15*'fnd base rates'!E$46) +($K15*'fnd base rates'!E$47) +($L15*'fnd base rates'!E$48) +($M15*'fnd base rates'!E$49) +($N15*'fnd base rates'!E$50) +($O15*'fnd base rates'!E$51) +($P15*'fnd base rates'!E$52)) *$R15 -> 6092.098748 | W15: =(($C15*'fnd base rates'!F$39) +($D15*'fnd base rates'!F$40) +($E15*'fnd base rates'!F$41) +($F15*'fnd base rates'!F$42) +($G15*'fnd base rates'!F$43) +($H15*'fnd base rates'!F$44) +($I15*'fnd base rates'!F$45) +($J15*'fnd base rates'!F$46) +($K15*'fnd base rates'!F$47) +($L15*'fnd base rates'!F$48) +($M15*'fnd base rates'!F$49) +($N15*'fnd base rates'!F$50) +($O15*'fnd base rates'!F$51) +($P15*'fnd base rates'!F$52)) *$R15 -> 908.9297201 | X15: =(($C15*'fnd base rates'!G$39) +($D15*'fnd base rates'!G$40) +($E15*'fnd base rates'!G$41) +($F15*'fnd base rates'!G$42) +($G15*'fnd base rates'!G$43) +($H15*'fnd base rates'!G$44) +($I15*'fnd base rates'!G$45) +($J15*'fnd base rates'!G$46) +($K15*'fnd base rates'!G$47) +($L15*'fnd base rates'!G$48) +($M15*'fnd base rates'!G$49) +($N15*'fnd base rates'!G$50) +($O15*'fnd base rates'!G$51) +($P15*'fnd base rates'!G$52)) *$R15 -> 218.9758567 | Y15: =(($C15*'fnd base rates'!H$39) +($D15*'fnd base rates'!H$40) +($E15*'fnd base rates'!H$41) +($F15*'fnd base rates'!H$42) +($G15*'fnd base rates'!H$43) +($H15*'fnd base rates'!H$44) +($I15*'fnd base rates'!H$45) +($J15*'fnd base rates'!H$46) +($K15*'fnd base rates'!H$47) +($L15*'fnd base rates'!H$48) +($M15*'fnd base rates'!H$49) +($N15*'fnd base rates'!H$50) +($O15*'fnd base rates'!H$51) +($P15*'fnd base rates'!H$52)) -> 450.38825 | Z15: =(($C15*'fnd base rates'!I$39) +($D15*'fnd base rates'!I$40) +($E15*'fnd base rates'!I$41) +($F15*'fnd base rates'!I$42) +($G15*'fnd base rates'!I$43) +($H15*'fnd base rates'!I$44) +($I15*'fnd base rates'!I$45) +($J15*'fnd base rates'!I$46) +($K15*'fnd base rates'!I$47) +($L15*'fnd base rates'!I$48) +($M15*'fnd base rates'!I$49) +($N15*'fnd base rates'!I$50) +($O15*'fnd base rates'!I$51) +($P15*'fnd base rates'!I$52)) *$R15 -> 313.40673 | AA15: =(($C15*'fnd base rates'!J$39) +($D15*'fnd base rates'!J$40) +($E15*'fnd base rates'!J$41) +($F15*'fnd base rates'!J$42) +($G15*'fnd base rates'!J$43) +($H15*'fnd base rates'!J$44) +($I15*'fnd base rates'!J$45) +($J15*'fnd base rates'!J$46) +($K15*'fnd base rates'!J$47) +($L15*'fnd base rates'!J$48) +($M15*'fnd base rates'!J$49) +($N15*'fnd base rates'!J$50) +($O15*'fnd base rates'!J$51) +($P15*'fnd base rates'!J$52)) *$R15 -> 229.49388 | AB15: =(($C15*'fnd base rates'!K$39) +($D15*'fnd base rates'!K$40) +($E15*'fnd base rates'!K$41) +($F15*'fnd base rates'!K$42) +($G15*'fnd base rates'!K$43) +($H15*'fnd base rates'!K$44) +($I15*'fnd base rates'!K$45) +($J15*'fnd base rates'!K$46) +($K15*'fnd base rates'!K$47) +($L15*'fnd base rates'!K$48) +($M15*'fnd base rates'!K$49) +($N15*'fnd base rates'!K$50) +($O15*'fnd base rates'!K$51) +($P15*'fnd base rates'!K$52)) *$R15 -> 1536.648443 | AC15: =(($C15*'fnd base rates'!L$39) +($D15*'fnd base rates'!L$40) +($E15*'fnd base rates'!L$41) +($F15*'fnd base rates'!L$42) +($G15*'fnd base rates'!L$43) +($H15*'fnd base rates'!L$44) +($I15*'fnd base rates'!L$45) +($J15*'fnd base rates'!L$46) +($K15*'fnd base rates'!L$47) +($L15*'fnd base rates'!L$48) +($M15*'fnd base rates'!L$49) +($N15*'fnd base rates'!L$50) +($O15*'fnd base rates'!L$51) +($P15*'fnd base rates'!L$52)) -> 1114.413625 | AD15: =(($C15*'fnd base rates'!M$39) +($D15*'fnd base rates'!M$40) +($E15*'fnd base rates'!M$41) +($F15*'fnd base rates'!M$42) +($G15*'fnd base rates'!M$43) +($H15*'fnd base rates'!M$44) +($I15*'fnd base rates'!M$45) +($J15*'fnd base rates'!M$46) +($K15*'fnd base rates'!M$47) +($L15*'fnd base rates'!M$48) +($M15*'fnd base rates'!M$49) +($N15*'fnd base rates'!M$50) +($O15*'fnd base rates'!M$51) +($P15*'fnd base rates'!M$52)) -> 0 | AE15: 12061.82697 | AG15: 410035160 | AH15: 410 | AI15: 035 | AJ15: 160 | AK15: 1 | AL15: 1 | AM15: 12061.82697 | AN15: 12062 | AO15: 0 | AP15: 12062
A16: 410035163 | B16: EXCEL ACADEMY | C16: ='fnd enro'!C16 -> 0 | D16: ='fnd enro'!D16 -> 0 | E16: ='fnd enro'!E16 -> 0 | F16: ='fnd enro'!F16 -> 0 | G16: ='fnd enro'!G16 -> 2 | H16: ='fnd enro'!H16 -> 0 | I16: ='fnd enro'!I16 -> 0.075 | J16: ='fnd enro'!J16 -> 0 | K16: ='fnd enro'!K16 -> 0 | L16: ='fnd enro'!L16 -> 0 | M16: ='fnd enro'!M16 -> 0 | N16: ='fnd enro'!N16 -> 0 | O16: ='fnd enro'!O16 -> 1 | P16: ='fnd enro'!P16 -> 0 | Q16: ='fnd enro'!Q16 -> 2 | R16: 1.071 | T16: =(($C16*'fnd base rates'!C$39) +($D16*'fnd base rates'!C$40) +($E16*'fnd base rates'!C$41) +($F16*'fnd base rates'!C$42) +($G16*'fnd base rates'!C$43) +($H16*'fnd base rates'!C$44) +($I16*'fnd base rates'!C$45) +($J16*'fnd base rates'!C$46) +($K16*'fnd base rates'!C$47) +($L16*'fnd base rates'!C$48) +($M16*'fnd base rates'!C$49) +($N16*'fnd base rates'!C$50) +($O16*'fnd base rates'!C$51) +($P16*'fnd base rates'!C$52)) *$R16 -> 983.643885 | U16: =(($C16*'fnd base rates'!D$39) +($D16*'fnd base rates'!D$40) +($E16*'fnd base rates'!D$41) +($F16*'fnd base rates'!D$42) +($G16*'fnd base rates'!D$43) +($H16*'fnd base rates'!D$44) +($I16*'fnd base rates'!D$45) +($J16*'fnd base rates'!D$46) +($K16*'fnd base rates'!D$47) +($L16*'fnd base rates'!D$48) +($M16*'fnd base rates'!D$49) +($N16*'fnd base rates'!D$50) +($O16*'fnd base rates'!D$51) +($P16*'fnd base rates'!D$52)) *$R16 -> 1411.29954 | V16: =(($C16*'fnd base rates'!E$39) +($D16*'fnd base rates'!E$40) +($E16*'fnd base rates'!E$41) +($F16*'fnd base rates'!E$42) +($G16*'fnd base rates'!E$43) +($H16*'fnd base rates'!E$44) +($I16*'fnd base rates'!E$45) +($J16*'fnd base rates'!E$46) +($K16*'fnd base rates'!E$47) +($L16*'fnd base rates'!E$48) +($M16*'fnd base rates'!E$49) +($N16*'fnd base rates'!E$50) +($O16*'fnd base rates'!E$51) +($P16*'fnd base rates'!E$52)) *$R16 -> 9273.133816 | W16: =(($C16*'fnd base rates'!F$39) +($D16*'fnd base rates'!F$40) +($E16*'fnd base rates'!F$41) +($F16*'fnd base rates'!F$42) +($G16*'fnd base rates'!F$43) +($H16*'fnd base rates'!F$44) +($I16*'fnd base rates'!F$45) +($J16*'fnd base rates'!F$46) +($K16*'fnd base rates'!F$47) +($L16*'fnd base rates'!F$48) +($M16*'fnd base rates'!F$49) +($N16*'fnd base rates'!F$50) +($O16*'fnd base rates'!F$51) +($P16*'fnd base rates'!F$52)) *$R16 -> 1817.85944 | X16: =(($C16*'fnd base rates'!G$39) +($D16*'fnd base rates'!G$40) +($E16*'fnd base rates'!G$41) +($F16*'fnd base rates'!G$42) +($G16*'fnd base rates'!G$43) +($H16*'fnd base rates'!G$44) +($I16*'fnd base rates'!G$45) +($J16*'fnd base rates'!G$46) +($K16*'fnd base rates'!G$47) +($L16*'fnd base rates'!G$48) +($M16*'fnd base rates'!G$49) +($N16*'fnd base rates'!G$50) +($O16*'fnd base rates'!G$51) +($P16*'fnd base rates'!G$52)) *$R16 -> 373.8844935 | Y16: =(($C16*'fnd base rates'!H$39) +($D16*'fnd base rates'!H$40) +($E16*'fnd base rates'!H$41) +($F16*'fnd base rates'!H$42) +($G16*'fnd base rates'!H$43) +($H16*'fnd base rates'!H$44) +($I16*'fnd base rates'!H$45) +($J16*'fnd base rates'!H$46) +($K16*'fnd base rates'!H$47) +($L16*'fnd base rates'!H$48) +($M16*'fnd base rates'!H$49) +($N16*'fnd base rates'!H$50) +($O16*'fnd base rates'!H$51) +($P16*'fnd base rates'!H$52)) -> 900.7765 | Z16: =(($C16*'fnd base rates'!I$39) +($D16*'fnd base rates'!I$40) +($E16*'fnd base rates'!I$41) +($F16*'fnd base rates'!I$42) +($G16*'fnd base rates'!I$43) +($H16*'fnd base rates'!I$44) +($I16*'fnd base rates'!I$45) +($J16*'fnd base rates'!I$46) +($K16*'fnd base rates'!I$47) +($L16*'fnd base rates'!I$48) +($M16*'fnd base rates'!I$49) +($N16*'fnd base rates'!I$50) +($O16*'fnd base rates'!I$51) +($P16*'fnd base rates'!I$52)) *$R16 -> 626.81346 | AA16: =(($C16*'fnd base rates'!J$39) +($D16*'fnd base rates'!J$40) +($E16*'fnd base rates'!J$41) +($F16*'fnd base rates'!J$42) +($G16*'fnd base rates'!J$43) +($H16*'fnd base rates'!J$44) +($I16*'fnd base rates'!J$45) +($J16*'fnd base rates'!J$46) +($K16*'fnd base rates'!J$47) +($L16*'fnd base rates'!J$48) +($M16*'fnd base rates'!J$49) +($N16*'fnd base rates'!J$50) +($O16*'fnd base rates'!J$51) +($P16*'fnd base rates'!J$52)) *$R16 -> 458.98776 | AB16: =(($C16*'fnd base rates'!K$39) +($D16*'fnd base rates'!K$40) +($E16*'fnd base rates'!K$41) +($F16*'fnd base rates'!K$42) +($G16*'fnd base rates'!K$43) +($H16*'fnd base rates'!K$44) +($I16*'fnd base rates'!K$45) +($J16*'fnd base rates'!K$46) +($K16*'fnd base rates'!K$47) +($L16*'fnd base rates'!K$48) +($M16*'fnd base rates'!K$49) +($N16*'fnd base rates'!K$50) +($O16*'fnd base rates'!K$51) +($P16*'fnd base rates'!K$52)) *$R16 -> 2623.701796 | AC16: =(($C16*'fnd base rates'!L$39) +($D16*'fnd base rates'!L$40) +($E16*'fnd base rates'!L$41) +($F16*'fnd base rates'!L$42) +($G16*'fnd base rates'!L$43) +($H16*'fnd base rates'!L$44) +($I16*'fnd base rates'!L$45) +($J16*'fnd base rates'!L$46) +($K16*'fnd base rates'!L$47) +($L16*'fnd base rates'!L$48) +($M16*'fnd base rates'!L$49) +($N16*'fnd base rates'!L$50) +($O16*'fnd base rates'!L$51) +($P16*'fnd base rates'!L$52)) -> 1952.91725 | AD16: =(($C16*'fnd base rates'!M$39) +($D16*'fnd base rates'!M$40) +($E16*'fnd base rates'!M$41) +($F16*'fnd base rates'!M$42) +($G16*'fnd base rates'!M$43) +($H16*'fnd base rates'!M$44) +($I16*'fnd base rates'!M$45) +($J16*'fnd base rates'!M$46) +($K16*'fnd base rates'!M$47) +($L16*'fnd base rates'!M$48) +($M16*'fnd base rates'!M$49) +($N16*'fnd base rates'!M$50) +($O16*'fnd base rates'!M$51) +($P16*'fnd base rates'!M$52)) -> 0 | AE16: 20423.01794 | AG16: 410035163 | AH16: 410 | AI16: 035 | AJ16: 163 | AK16: 1 | AL16: 2 | AM16: 20423.01794 | AN16: 10212 | AO16: 0 | AP16: 10212
A17: 410035248 | B17: EXCEL ACADEMY | C17: ='fnd enro'!C17 -> 0 | D17: ='fnd enro'!D17 -> 0 | E17: ='fnd enro'!E17 -> 0 | F17: ='fnd enro'!F17 -> 0 | G17: ='fnd enro'!G17 -> 3 | H17: ='fnd enro'!H17 -> 0 | I17: ='fnd enro'!I17 -> 0.1125 | J17: ='fnd enro'!J17 -> 0 | K17: ='fnd enro'!K17 -> 0 | L17: ='fnd enro'!L17 -> 0 | M17: ='fnd enro'!M17 -> 0 | N17: ='fnd enro'!N17 -> 0 | O17: ='fnd enro'!O17 -> 2 | P17: ='fnd enro'!P17 -> 0 | Q17: ='fnd enro'!Q17 -> 3 | R17: 1.071 | T17: =(($C17*'fnd base rates'!C$39) +($D17*'fnd base rates'!C$40) +($E17*'fnd base rates'!C$41) +($F17*'fnd base rates'!C$42) +($G17*'fnd base rates'!C$43) +($H17*'fnd base rates'!C$44) +($I17*'fnd base rates'!C$45) +($J17*'fnd base rates'!C$46) +($K17*'fnd base rates'!C$47) +($L17*'fnd base rates'!C$48) +($M17*'fnd base rates'!C$49) +($N17*'fnd base rates'!C$50) +($O17*'fnd base rates'!C$51) +($P17*'fnd base rates'!C$52)) *$R17 -> 1475.465828 | U17: =(($C17*'fnd base rates'!D$39) +($D17*'fnd base rates'!D$40) +($E17*'fnd base rates'!D$41) +($F17*'fnd base rates'!D$42) +($G17*'fnd base rates'!D$43) +($H17*'fnd base rates'!D$44) +($I17*'fnd base rates'!D$45) +($J17*'fnd base rates'!D$46) +($K17*'fnd base rates'!D$47) +($L17*'fnd base rates'!D$48) +($M17*'fnd base rates'!D$49) +($N17*'fnd base rates'!D$50) +($O17*'fnd base rates'!D$51) +($P17*'fnd base rates'!D$52)) *$R17 -> 2116.94931 | V17: =(($C17*'fnd base rates'!E$39) +($D17*'fnd base rates'!E$40) +($E17*'fnd base rates'!E$41) +($F17*'fnd base rates'!E$42) +($G17*'fnd base rates'!E$43) +($H17*'fnd base rates'!E$44) +($I17*'fnd base rates'!E$45) +($J17*'fnd base rates'!E$46) +($K17*'fnd base rates'!E$47) +($L17*'fnd base rates'!E$48) +($M17*'fnd base rates'!E$49) +($N17*'fnd base rates'!E$50) +($O17*'fnd base rates'!E$51) +($P17*'fnd base rates'!E$52)) *$R17 -> 15365.23256 | W17: =(($C17*'fnd base rates'!F$39) +($D17*'fnd base rates'!F$40) +($E17*'fnd base rates'!F$41) +($F17*'fnd base rates'!F$42) +($G17*'fnd base rates'!F$43) +($H17*'fnd base rates'!F$44) +($I17*'fnd base rates'!F$45) +($J17*'fnd base rates'!F$46) +($K17*'fnd base rates'!F$47) +($L17*'fnd base rates'!F$48) +($M17*'fnd base rates'!F$49) +($N17*'fnd base rates'!F$50) +($O17*'fnd base rates'!F$51) +($P17*'fnd base rates'!F$52)) *$R17 -> 2726.78916 | X17: =(($C17*'fnd base rates'!G$39) +($D17*'fnd base rates'!G$40) +($E17*'fnd base rates'!G$41) +($F17*'fnd base rates'!G$42) +($G17*'fnd base rates'!G$43) +($H17*'fnd base rates'!G$44) +($I17*'fnd base rates'!G$45) +($J17*'fnd base rates'!G$46) +($K17*'fnd base rates'!G$47) +($L17*'fnd base rates'!G$48) +($M17*'fnd base rates'!G$49) +($N17*'fnd base rates'!G$50) +($O17*'fnd base rates'!G$51) +($P17*'fnd base rates'!G$52)) *$R17 -> 592.8603503 | Y17: =(($C17*'fnd base rates'!H$39) +($D17*'fnd base rates'!H$40) +($E17*'fnd base rates'!H$41) +($F17*'fnd base rates'!H$42) +($G17*'fnd base rates'!H$43) +($H17*'fnd base rates'!H$44) +($I17*'fnd base rates'!H$45) +($J17*'fnd base rates'!H$46) +($K17*'fnd base rates'!H$47) +($L17*'fnd base rates'!H$48) +($M17*'fnd base rates'!H$49) +($N17*'fnd base rates'!H$50) +($O17*'fnd base rates'!H$51) +($P17*'fnd base rates'!H$52)) -> 1351.16475 | Z17: =(($C17*'fnd base rates'!I$39) +($D17*'fnd base rates'!I$40) +($E17*'fnd base rates'!I$41) +($F17*'fnd base rates'!I$42) +($G17*'fnd base rates'!I$43) +($H17*'fnd base rates'!I$44) +($I17*'fnd base rates'!I$45) +($J17*'fnd base rates'!I$46) +($K17*'fnd base rates'!I$47) +($L17*'fnd base rates'!I$48) +($M17*'fnd base rates'!I$49) +($N17*'fnd base rates'!I$50) +($O17*'fnd base rates'!I$51) +($P17*'fnd base rates'!I$52)) *$R17 -> 940.22019 | AA17: =(($C17*'fnd base rates'!J$39) +($D17*'fnd base rates'!J$40) +($E17*'fnd base rates'!J$41) +($F17*'fnd base rates'!J$42) +($G17*'fnd base rates'!J$43) +($H17*'fnd base rates'!J$44) +($I17*'fnd base rates'!J$45) +($J17*'fnd base rates'!J$46) +($K17*'fnd base rates'!J$47) +($L17*'fnd base rates'!J$48) +($M17*'fnd base rates'!J$49) +($N17*'fnd base rates'!J$50) +($O17*'fnd base rates'!J$51) +($P17*'fnd base rates'!J$52)) *$R17 -> 688.48164 | AB17: =(($C17*'fnd base rates'!K$39) +($D17*'fnd base rates'!K$40) +($E17*'fnd base rates'!K$41) +($F17*'fnd base rates'!K$42) +($G17*'fnd base rates'!K$43) +($H17*'fnd base rates'!K$44) +($I17*'fnd base rates'!K$45) +($J17*'fnd base rates'!K$46) +($K17*'fnd base rates'!K$47) +($L17*'fnd base rates'!K$48) +($M17*'fnd base rates'!K$49) +($N17*'fnd base rates'!K$50) +($O17*'fnd base rates'!K$51) +($P17*'fnd base rates'!K$52)) *$R17 -> 4160.350239 | AC17: =(($C17*'fnd base rates'!L$39) +($D17*'fnd base rates'!L$40) +($E17*'fnd base rates'!L$41) +($F17*'fnd base rates'!L$42) +($G17*'fnd base rates'!L$43) +($H17*'fnd base rates'!L$44) +($I17*'fnd base rates'!L$45) +($J17*'fnd base rates'!L$46) +($K17*'fnd base rates'!L$47) +($L17*'fnd base rates'!L$48) +($M17*'fnd base rates'!L$49) +($N17*'fnd base rates'!L$50) +($O17*'fnd base rates'!L$51) +($P17*'fnd base rates'!L$52)) -> 3067.330875 | AD17: =(($C17*'fnd base rates'!M$39) +($D17*'fnd base rates'!M$40) +($E17*'fnd base rates'!M$41) +($F17*'fnd base rates'!M$42) +($G17*'fnd base rates'!M$43) +($H17*'fnd base rates'!M$44) +($I17*'fnd base rates'!M$45) +($J17*'fnd base rates'!M$46) +($K17*'fnd base rates'!M$47) +($L17*'fnd base rates'!M$48) +($M17*'fnd base rates'!M$49) +($N17*'fnd base rates'!M$50) +($O17*'fnd base rates'!M$51) +($P17*'fnd base rates'!M$52)) -> 0 | AE17: 32484.84491 | AG17: 410035248 | AH17: 410 | AI17: 035 | AJ17: 248 | AK17: 1 | AL17: 3 | AM17: 32484.84491 | AN17: 10828 | AO17: 0 | AP17: 10828
A18: 410035346 | B18: EXCEL ACADEMY | C18: ='fnd enro'!C18 -> 0 | D18: ='fnd enro'!D18 -> 0 | E18: ='fnd enro'!E18 -> 0 | F18: ='fnd enro'!F18 -> 1 | G18: ='fnd enro'!G18 -> 2 | H18: ='fnd enro'!H18 -> 0 | I18: ='fnd enro'!I18 -> 0.1125 | J18: ='fnd enro'!J18 -> 0 | K18: ='fnd enro'!K18 -> 0 | L18: ='fnd enro'!L18 -> 0 | M18: ='fnd enro'!M18 -> 0 | N18: ='fnd enro'!N18 -> 0 | O18: ='fnd enro'!O18 -> 1 | P18: ='fnd enro'!P18 -> 0 | Q18: ='fnd enro'!Q18 -> 3 | R18: 1.071 | T18: =(($C18*'fnd base rates'!C$39) +($D18*'fnd base rates'!C$40) +($E18*'fnd base rates'!C$41) +($F18*'fnd base rates'!C$42) +($G18*'fnd base rates'!C$43) +($H18*'fnd base rates'!C$44) +($I18*'fnd base rates'!C$45) +($J18*'fnd base rates'!C$46) +($K18*'fnd base rates'!C$47) +($L18*'fnd base rates'!C$48) +($M18*'fnd base rates'!C$49) +($N18*'fnd base rates'!C$50) +($O18*'fnd base rates'!C$51) +($P18*'fnd base rates'!C$52)) *$R18 -> 1475.465828 | U18: =(($C18*'fnd base rates'!D$39) +($D18*'fnd base rates'!D$40) +($E18*'fnd base rates'!D$41) +($F18*'fnd base rates'!D$42) +($G18*'fnd base rates'!D$43) +($H18*'fnd base rates'!D$44) +($I18*'fnd base rates'!D$45) +($J18*'fnd base rates'!D$46) +($K18*'fnd base rates'!D$47) +($L18*'fnd base rates'!D$48) +($M18*'fnd base rates'!D$49) +($N18*'fnd base rates'!D$50) +($O18*'fnd base rates'!D$51) +($P18*'fnd base rates'!D$52)) *$R18 -> 2116.94931 | V18: =(($C18*'fnd base rates'!E$39) +($D18*'fnd base rates'!E$40) +($E18*'fnd base rates'!E$41) +($F18*'fnd base rates'!E$42) +($G18*'fnd base rates'!E$43) +($H18*'fnd base rates'!E$44) +($I18*'fnd base rates'!E$45) +($J18*'fnd base rates'!E$46) +($K18*'fnd base rates'!E$47) +($L18*'fnd base rates'!E$48) +($M18*'fnd base rates'!E$49) +($N18*'fnd base rates'!E$50) +($O18*'fnd base rates'!E$51) +($P18*'fnd base rates'!E$52)) *$R18 -> 12842.4278 | W18: =(($C18*'fnd base rates'!F$39) +($D18*'fnd base rates'!F$40) +($E18*'fnd base rates'!F$41) +($F18*'fnd base rates'!F$42) +($G18*'fnd base rates'!F$43) +($H18*'fnd base rates'!F$44) +($I18*'fnd base rates'!F$45) +($J18*'fnd base rates'!F$46) +($K18*'fnd base rates'!F$47) +($L18*'fnd base rates'!F$48) +($M18*'fnd base rates'!F$49) +($N18*'fnd base rates'!F$50) +($O18*'fnd base rates'!F$51) +($P18*'fnd base rates'!F$52)) *$R18 -> 2959.28184 | X18: =(($C18*'fnd base rates'!G$39) +($D18*'fnd base rates'!G$40) +($E18*'fnd base rates'!G$41) +($F18*'fnd base rates'!G$42) +($G18*'fnd base rates'!G$43) +($H18*'fnd base rates'!G$44) +($I18*'fnd base rates'!G$45) +($J18*'fnd base rates'!G$46) +($K18*'fnd base rates'!G$47) +($L18*'fnd base rates'!G$48) +($M18*'fnd base rates'!G$49) +($N18*'fnd base rates'!G$50) +($O18*'fnd base rates'!G$51) +($P18*'fnd base rates'!G$52)) *$R18 -> 518.0295802 | Y18: =(($C18*'fnd base rates'!H$39) +($D18*'fnd base rates'!H$40) +($E18*'fnd base rates'!H$41) +($F18*'fnd base rates'!H$42) +($G18*'fnd base rates'!H$43) +($H18*'fnd base rates'!H$44) +($I18*'fnd base rates'!H$45) +($J18*'fnd base rates'!H$46) +($K18*'fnd base rates'!H$47) +($L18*'fnd base rates'!H$48) +($M18*'fnd base rates'!H$49) +($N18*'fnd base rates'!H$50) +($O18*'fnd base rates'!H$51) +($P18*'fnd base rates'!H$52)) -> 1351.16475 | Z18: =(($C18*'fnd base rates'!I$39) +($D18*'fnd base rates'!I$40) +($E18*'fnd base rates'!I$41) +($F18*'fnd base rates'!I$42) +($G18*'fnd base rates'!I$43) +($H18*'fnd base rates'!I$44) +($I18*'fnd base rates'!I$45) +($J18*'fnd base rates'!I$46) +($K18*'fnd base rates'!I$47) +($L18*'fnd base rates'!I$48) +($M18*'fnd base rates'!I$49) +($N18*'fnd base rates'!I$50) +($O18*'fnd base rates'!I$51) +($P18*'fnd base rates'!I$52)) *$R18 -> 862.2621 | AA18: =(($C18*'fnd base rates'!J$39) +($D18*'fnd base rates'!J$40) +($E18*'fnd base rates'!J$41) +($F18*'fnd base rates'!J$42) +($G18*'fnd base rates'!J$43) +($H18*'fnd base rates'!J$44) +($I18*'fnd base rates'!J$45) +($J18*'fnd base rates'!J$46) +($K18*'fnd base rates'!J$47) +($L18*'fnd base rates'!J$48) +($M18*'fnd base rates'!J$49) +($N18*'fnd base rates'!J$50) +($O18*'fnd base rates'!J$51) +($P18*'fnd base rates'!J$52)) *$R18 -> 599.49225 | AB18: =(($C18*'fnd base rates'!K$39) +($D18*'fnd base rates'!K$40) +($E18*'fnd base rates'!K$41) +($F18*'fnd base rates'!K$42) +($G18*'fnd base rates'!K$43) +($H18*'fnd base rates'!K$44) +($I18*'fnd base rates'!K$45) +($J18*'fnd base rates'!K$46) +($K18*'fnd base rates'!K$47) +($L18*'fnd base rates'!K$48) +($M18*'fnd base rates'!K$49) +($N18*'fnd base rates'!K$50) +($O18*'fnd base rates'!K$51) +($P18*'fnd base rates'!K$52)) *$R18 -> 3635.163969 | AC18: =(($C18*'fnd base rates'!L$39) +($D18*'fnd base rates'!L$40) +($E18*'fnd base rates'!L$41) +($F18*'fnd base rates'!L$42) +($G18*'fnd base rates'!L$43) +($H18*'fnd base rates'!L$44) +($I18*'fnd base rates'!L$45) +($J18*'fnd base rates'!L$46) +($K18*'fnd base rates'!L$47) +($L18*'fnd base rates'!L$48) +($M18*'fnd base rates'!L$49) +($N18*'fnd base rates'!L$50) +($O18*'fnd base rates'!L$51) +($P18*'fnd base rates'!L$52)) -> 2828.630875 | AD18: =(($C18*'fnd base rates'!M$39) +($D18*'fnd base rates'!M$40) +($E18*'fnd base rates'!M$41) +($F18*'fnd base rates'!M$42) +($G18*'fnd base rates'!M$43) +($H18*'fnd base rates'!M$44) +($I18*'fnd base rates'!M$45) +($J18*'fnd base rates'!M$46) +($K18*'fnd base rates'!M$47) +($L18*'fnd base rates'!M$48) +($M18*'fnd base rates'!M$49) +($N18*'fnd base rates'!M$50) +($O18*'fnd base rates'!M$51) +($P18*'fnd base rates'!M$52)) -> 0 | AE18: 29188.86831 | AG18: 410035346 | AH18: 410 | AI18: 035 | AJ18: 346 | AK18: 1 | AL18: 3 | AM18: 29188.86831 | AN18: 9730 | AO18: 0 | AP18: 9730
A19: 410057035 | B19: EXCEL ACADEMY | C19: ='fnd enro'!C19 -> 0 | D19: ='fnd enro'!D19 -> 0 | E19: ='fnd enro'!E19 -> 0 | F19: ='fnd enro'!F19 -> 2 | G19: ='fnd enro'!G19 -> 1 | H19: ='fnd enro'!H19 -> 0 | I19: ='fnd enro'!I19 -> 0.15 | J19: ='fnd enro'!J19 -> 0 | K19: ='fnd enro'!K19 -> 0 | L19: ='fnd enro'!L19 -> 0 | M19: ='fnd enro'!M19 -> 1 | N19: ='fnd enro'!N19 -> 0 | O19: ='fnd enro'!O19 -> 1 | P19: ='fnd enro'!P19 -> 0 | Q19: ='fnd enro'!Q19 -> 4 | R19: 1.03 | T19: =(($C19*'fnd base rates'!C$39) +($D19*'fnd base rates'!C$40) +($E19*'fnd base rates'!C$41) +($F19*'fnd base rates'!C$42) +($G19*'fnd base rates'!C$43) +($H19*'fnd base rates'!C$44) +($I19*'fnd base rates'!C$45) +($J19*'fnd base rates'!C$46) +($K19*'fnd base rates'!C$47) +($L19*'fnd base rates'!C$48) +($M19*'fnd base rates'!C$49) +($N19*'fnd base rates'!C$50) +($O19*'fnd base rates'!C$51) +($P19*'fnd base rates'!C$52)) *$R19 -> 1891.9761 | U19: =(($C19*'fnd base rates'!D$39) +($D19*'fnd base rates'!D$40) +($E19*'fnd base rates'!D$41) +($F19*'fnd base rates'!D$42) +($G19*'fnd base rates'!D$43) +($H19*'fnd base rates'!D$44) +($I19*'fnd base rates'!D$45) +($J19*'fnd base rates'!D$46) +($K19*'fnd base rates'!D$47) +($L19*'fnd base rates'!D$48) +($M19*'fnd base rates'!D$49) +($N19*'fnd base rates'!D$50) +($O19*'fnd base rates'!D$51) +($P19*'fnd base rates'!D$52)) *$R19 -> 2714.5444 | V19: =(($C19*'fnd base rates'!E$39) +($D19*'fnd base rates'!E$40) +($E19*'fnd base rates'!E$41) +($F19*'fnd base rates'!E$42) +($G19*'fnd base rates'!E$43) +($H19*'fnd base rates'!E$44) +($I19*'fnd base rates'!E$45) +($J19*'fnd base rates'!E$46) +($K19*'fnd base rates'!E$47) +($L19*'fnd base rates'!E$48) +($M19*'fnd base rates'!E$49) +($N19*'fnd base rates'!E$50) +($O19*'fnd base rates'!E$51) +($P19*'fnd base rates'!E$52)) *$R19 -> 17731.53909 | W19: =(($C19*'fnd base rates'!F$39) +($D19*'fnd base rates'!F$40) +($E19*'fnd base rates'!F$41) +($F19*'fnd base rates'!F$42) +($G19*'fnd base rates'!F$43) +($H19*'fnd base rates'!F$44) +($I19*'fnd base rates'!F$45) +($J19*'fnd base rates'!F$46) +($K19*'fnd base rates'!F$47) +($L19*'fnd base rates'!F$48) +($M19*'fnd base rates'!F$49) +($N19*'fnd base rates'!F$50) +($O19*'fnd base rates'!F$51) +($P19*'fnd base rates'!F$52)) *$R19 -> 4007.375165 | X19: =(($C19*'fnd base rates'!G$39) +($D19*'fnd base rates'!G$40) +($E19*'fnd base rates'!G$41) +($F19*'fnd base rates'!G$42) +($G19*'fnd base rates'!G$43) +($H19*'fnd base rates'!G$44) +($I19*'fnd base rates'!G$45) +($J19*'fnd base rates'!G$46) +($K19*'fnd base rates'!G$47) +($L19*'fnd base rates'!G$48) +($M19*'fnd base rates'!G$49) +($N19*'fnd base rates'!G$50) +($O19*'fnd base rates'!G$51) +($P19*'fnd base rates'!G$52)) *$R19 -> 670.01191 | Y19: =(($C19*'fnd base rates'!H$39) +($D19*'fnd base rates'!H$40) +($E19*'fnd base rates'!H$41) +($F19*'fnd base rates'!H$42) +($G19*'fnd base rates'!H$43) +($H19*'fnd base rates'!H$44) +($I19*'fnd base rates'!H$45) +($J19*'fnd base rates'!H$46) +($K19*'fnd base rates'!H$47) +($L19*'fnd base rates'!H$48) +($M19*'fnd base rates'!H$49) +($N19*'fnd base rates'!H$50) +($O19*'fnd base rates'!H$51) +($P19*'fnd base rates'!H$52)) -> 1801.553 | Z19: =(($C19*'fnd base rates'!I$39) +($D19*'fnd base rates'!I$40) +($E19*'fnd base rates'!I$41) +($F19*'fnd base rates'!I$42) +($G19*'fnd base rates'!I$43) +($H19*'fnd base rates'!I$44) +($I19*'fnd base rates'!I$45) +($J19*'fnd base rates'!I$46) +($K19*'fnd base rates'!I$47) +($L19*'fnd base rates'!I$48) +($M19*'fnd base rates'!I$49) +($N19*'fnd base rates'!I$50) +($O19*'fnd base rates'!I$51) +($P19*'fnd base rates'!I$52)) *$R19 -> 1055.6882 | AA19: =(($C19*'fnd base rates'!J$39) +($D19*'fnd base rates'!J$40) +($E19*'fnd base rates'!J$41) +($F19*'fnd base rates'!J$42) +($G19*'fnd base rates'!J$43) +($H19*'fnd base rates'!J$44) +($I19*'fnd base rates'!J$45) +($J19*'fnd base rates'!J$46) +($K19*'fnd base rates'!J$47) +($L19*'fnd base rates'!J$48) +($M19*'fnd base rates'!J$49) +($N19*'fnd base rates'!J$50) +($O19*'fnd base rates'!J$51) +($P19*'fnd base rates'!J$52)) *$R19 -> 626.0855 | AB19: =(($C19*'fnd base rates'!K$39) +($D19*'fnd base rates'!K$40) +($E19*'fnd base rates'!K$41) +($F19*'fnd base rates'!K$42) +($G19*'fnd base rates'!K$43) +($H19*'fnd base rates'!K$44) +($I19*'fnd base rates'!K$45) +($J19*'fnd base rates'!K$46) +($K19*'fnd base rates'!K$47) +($L19*'fnd base rates'!K$48) +($M19*'fnd base rates'!K$49) +($N19*'fnd base rates'!K$50) +($O19*'fnd base rates'!K$51) +($P19*'fnd base rates'!K$52)) *$R19 -> 4701.740395 | AC19: =(($C19*'fnd base rates'!L$39) +($D19*'fnd base rates'!L$40) +($E19*'fnd base rates'!L$41) +($F19*'fnd base rates'!L$42) +($G19*'fnd base rates'!L$43) +($H19*'fnd base rates'!L$44) +($I19*'fnd base rates'!L$45) +($J19*'fnd base rates'!L$46) +($K19*'fnd base rates'!L$47) +($L19*'fnd base rates'!L$48) +($M19*'fnd base rates'!L$49) +($N19*'fnd base rates'!L$50) +($O19*'fnd base rates'!L$51) +($P19*'fnd base rates'!L$52)) -> 3936.6245 | AD19: =(($C19*'fnd base rates'!M$39) +($D19*'fnd base rates'!M$40) +($E19*'fnd base rates'!M$41) +($F19*'fnd base rates'!M$42) +($G19*'fnd base rates'!M$43) +($H19*'fnd base rates'!M$44) +($I19*'fnd base rates'!M$45) +($J19*'fnd base rates'!M$46) +($K19*'fnd base rates'!M$47) +($L19*'fnd base rates'!M$48) +($M19*'fnd base rates'!M$49) +($N19*'fnd base rates'!M$50) +($O19*'fnd base rates'!M$51) +($P19*'fnd base rates'!M$52)) -> 0 | AE19: 39137.13827 | AG19: 410057035 | AH19: 410 | AI19: 057 | AJ19: 035 | AK19: 1 | AL19: 4 | AM19: 39137.13827 | AN19: 9784 | AO19: 0 | AP19: 9784
A20: 410057057 | B20: EXCEL ACADEMY | C20: ='fnd enro'!C20 -> 0 | D20: ='fnd enro'!D20 -> 0 | E20: ='fnd enro'!E20 -> 0 | F20: ='fnd enro'!F20 -> 44 | G20: ='fnd enro'!G20 -> 153 | H20: ='fnd enro'!H20 -> 0 | I20: ='fnd enro'!I20 -> 7.875 | J20: ='fnd enro'!J20 -> 0 | K20: ='fnd enro'!K20 -> 0 | L20: ='fnd enro'!L20 -> 0 | M20: ='fnd enro'!M20 -> 13 | N20: ='fnd enro'!N20 -> 0 | O20: ='fnd enro'!O20 -> 175 | P20: ='fnd enro'!P20 -> 0 | Q20: ='fnd enro'!Q20 -> 210 | R20: 1.03 | T20: =(($C20*'fnd base rates'!C$39) +($D20*'fnd base rates'!C$40) +($E20*'fnd base rates'!C$41) +($F20*'fnd base rates'!C$42) +($G20*'fnd base rates'!C$43) +($H20*'fnd base rates'!C$44) +($I20*'fnd base rates'!C$45) +($J20*'fnd base rates'!C$46) +($K20*'fnd base rates'!C$47) +($L20*'fnd base rates'!C$48) +($M20*'fnd base rates'!C$49) +($N20*'fnd base rates'!C$50) +($O20*'fnd base rates'!C$51) +($P20*'fnd base rates'!C$52)) *$R20 -> 99328.74525 | U20: =(($C20*'fnd base rates'!D$39) +($D20*'fnd base rates'!D$40) +($E20*'fnd base rates'!D$41) +($F20*'fnd base rates'!D$42) +($G20*'fnd base rates'!D$43) +($H20*'fnd base rates'!D$44) +($I20*'fnd base rates'!D$45) +($J20*'fnd base rates'!D$46) +($K20*'fnd base rates'!D$47) +($L20*'fnd base rates'!D$48) +($M20*'fnd base rates'!D$49) +($N20*'fnd base rates'!D$50) +($O20*'fnd base rates'!D$51) +($P20*'fnd base rates'!D$52)) *$R20 -> 142513.581 | V20: =(($C20*'fnd base rates'!E$39) +($D20*'fnd base rates'!E$40) +($E20*'fnd base rates'!E$41) +($F20*'fnd base rates'!E$42) +($G20*'fnd base rates'!E$43) +($H20*'fnd base rates'!E$44) +($I20*'fnd base rates'!E$45) +($J20*'fnd base rates'!E$46) +($K20*'fnd base rates'!E$47) +($L20*'fnd base rates'!E$48) +($M20*'fnd base rates'!E$49) +($N20*'fnd base rates'!E$50) +($O20*'fnd base rates'!E$51) +($P20*'fnd base rates'!E$52)) *$R20 -> 1174132.84 | W20: =(($C20*'fnd base rates'!F$39) +($D20*'fnd base rates'!F$40) +($E20*'fnd base rates'!F$41) +($F20*'fnd base rates'!F$42) +($G20*'fnd base rates'!F$43) +($H20*'fnd base rates'!F$44) +($I20*'fnd base rates'!F$45) +($J20*'fnd base rates'!F$46) +($K20*'fnd base rates'!F$47) +($L20*'fnd base rates'!F$48) +($M20*'fnd base rates'!F$49) +($N20*'fnd base rates'!F$50) +($O20*'fnd base rates'!F$51) +($P20*'fnd base rates'!F$52)) *$R20 -> 194233.7268 | X20: =(($C20*'fnd base rates'!G$39) +($D20*'fnd base rates'!G$40) +($E20*'fnd base rates'!G$41) +($F20*'fnd base rates'!G$42) +($G20*'fnd base rates'!G$43) +($H20*'fnd base rates'!G$44) +($I20*'fnd base rates'!G$45) +($J20*'fnd base rates'!G$46) +($K20*'fnd base rates'!G$47) +($L20*'fnd base rates'!G$48) +($M20*'fnd base rates'!G$49) +($N20*'fnd base rates'!G$50) +($O20*'fnd base rates'!G$51) +($P20*'fnd base rates'!G$52)) *$R20 -> 42043.98458 | Y20: =(($C20*'fnd base rates'!H$39) +($D20*'fnd base rates'!H$40) +($E20*'fnd base rates'!H$41) +($F20*'fnd base rates'!H$42) +($G20*'fnd base rates'!H$43) +($H20*'fnd base rates'!H$44) +($I20*'fnd base rates'!H$45) +($J20*'fnd base rates'!H$46) +($K20*'fnd base rates'!H$47) +($L20*'fnd base rates'!H$48) +($M20*'fnd base rates'!H$49) +($N20*'fnd base rates'!H$50) +($O20*'fnd base rates'!H$51) +($P20*'fnd base rates'!H$52)) -> 94581.5325 | Z20: =(($C20*'fnd base rates'!I$39) +($D20*'fnd base rates'!I$40) +($E20*'fnd base rates'!I$41) +($F20*'fnd base rates'!I$42) +($G20*'fnd base rates'!I$43) +($H20*'fnd base rates'!I$44) +($I20*'fnd base rates'!I$45) +($J20*'fnd base rates'!I$46) +($K20*'fnd base rates'!I$47) +($L20*'fnd base rates'!I$48) +($M20*'fnd base rates'!I$49) +($N20*'fnd base rates'!I$50) +($O20*'fnd base rates'!I$51) +($P20*'fnd base rates'!I$52)) *$R20 -> 59997.0262 | AA20: =(($C20*'fnd base rates'!J$39) +($D20*'fnd base rates'!J$40) +($E20*'fnd base rates'!J$41) +($F20*'fnd base rates'!J$42) +($G20*'fnd base rates'!J$43) +($H20*'fnd base rates'!J$44) +($I20*'fnd base rates'!J$45) +($J20*'fnd base rates'!J$46) +($K20*'fnd base rates'!J$47) +($L20*'fnd base rates'!J$48) +($M20*'fnd base rates'!J$49) +($N20*'fnd base rates'!J$50) +($O20*'fnd base rates'!J$51) +($P20*'fnd base rates'!J$52)) *$R20 -> 41470.5501 | AB20: =(($C20*'fnd base rates'!K$39) +($D20*'fnd base rates'!K$40) +($E20*'fnd base rates'!K$41) +($F20*'fnd base rates'!K$42) +($G20*'fnd base rates'!K$43) +($H20*'fnd base rates'!K$44) +($I20*'fnd base rates'!K$45) +($J20*'fnd base rates'!K$46) +($K20*'fnd base rates'!K$47) +($L20*'fnd base rates'!K$48) +($M20*'fnd base rates'!K$49) +($N20*'fnd base rates'!K$50) +($O20*'fnd base rates'!K$51) +($P20*'fnd base rates'!K$52)) *$R20 -> 295039.5615 | AC20: =(($C20*'fnd base rates'!L$39) +($D20*'fnd base rates'!L$40) +($E20*'fnd base rates'!L$41) +($F20*'fnd base rates'!L$42) +($G20*'fnd base rates'!L$43) +($H20*'fnd base rates'!L$44) +($I20*'fnd base rates'!L$45) +($J20*'fnd base rates'!L$46) +($K20*'fnd base rates'!L$47) +($L20*'fnd base rates'!L$48) +($M20*'fnd base rates'!L$49) +($N20*'fnd base rates'!L$50) +($O20*'fnd base rates'!L$51) +($P20*'fnd base rates'!L$52)) -> 229026.8912 | AD20: =(($C20*'fnd base rates'!M$39) +($D20*'fnd base rates'!M$40) +($E20*'fnd base rates'!M$41) +($F20*'fnd base rates'!M$42) +($G20*'fnd base rates'!M$43) +($H20*'fnd base rates'!M$44) +($I20*'fnd base rates'!M$45) +($J20*'fnd base rates'!M$46) +($K20*'fnd base rates'!M$47) +($L20*'fnd base rates'!M$48) +($M20*'fnd base rates'!M$49) +($N20*'fnd base rates'!M$50) +($O20*'fnd base rates'!M$51) +($P20*'fnd base rates'!M$52)) -> 0 | AE20: 2372368.439 | AG20: 410057057 | AH20: 410 | AI20: 057 | AJ20: 057 | AK20: 1 | AL20: 210 | AM20: 2372368.439 | AN20: 11297 | AO20: 0 | AP20: 11297
A21: 410057093 | B21: EXCEL ACADEMY | C21: ='fnd enro'!C21 -> 0 | D21: ='fnd enro'!D21 -> 0 | E21: ='fnd enro'!E21 -> 0 | F21: ='fnd enro'!F21 -> 0 | G21: ='fnd enro'!G21 -> 1 | H21: ='fnd enro'!H21 -> 0 | I21: ='fnd enro'!I21 -> 0.0375 | J21: ='fnd enro'!J21 -> 0 | K21: ='fnd enro'!K21 -> 0 | L21: ='fnd enro'!L21 -> 0 | M21: ='fnd enro'!M21 -> 0 | N21: ='fnd enro'!N21 -> 0 | O21: ='fnd enro'!O21 -> 1 | P21: ='fnd enro'!P21 -> 0 | Q21: ='fnd enro'!Q21 -> 1 | R21: 1.03 | T21: =(($C21*'fnd base rates'!C$39) +($D21*'fnd base rates'!C$40) +($E21*'fnd base rates'!C$41) +($F21*'fnd base rates'!C$42) +($G21*'fnd base rates'!C$43) +($H21*'fnd base rates'!C$44) +($I21*'fnd base rates'!C$45) +($J21*'fnd base rates'!C$46) +($K21*'fnd base rates'!C$47) +($L21*'fnd base rates'!C$48) +($M21*'fnd base rates'!C$49) +($N21*'fnd base rates'!C$50) +($O21*'fnd base rates'!C$51) +($P21*'fnd base rates'!C$52)) *$R21 -> 472.994025 | U21: =(($C21*'fnd base rates'!D$39) +($D21*'fnd base rates'!D$40) +($E21*'fnd base rates'!D$41) +($F21*'fnd base rates'!D$42) +($G21*'fnd base rates'!D$43) +($H21*'fnd base rates'!D$44) +($I21*'fnd base rates'!D$45) +($J21*'fnd base rates'!D$46) +($K21*'fnd base rates'!D$47) +($L21*'fnd base rates'!D$48) +($M21*'fnd base rates'!D$49) +($N21*'fnd base rates'!D$50) +($O21*'fnd base rates'!D$51) +($P21*'fnd base rates'!D$52)) *$R21 -> 678.6361 | V21: =(($C21*'fnd base rates'!E$39) +($D21*'fnd base rates'!E$40) +($E21*'fnd base rates'!E$41) +($F21*'fnd base rates'!E$42) +($G21*'fnd base rates'!E$43) +($H21*'fnd base rates'!E$44) +($I21*'fnd base rates'!E$45) +($J21*'fnd base rates'!E$46) +($K21*'fnd base rates'!E$47) +($L21*'fnd base rates'!E$48) +($M21*'fnd base rates'!E$49) +($N21*'fnd base rates'!E$50) +($O21*'fnd base rates'!E$51) +($P21*'fnd base rates'!E$52)) *$R21 -> 5858.881149 | W21: =(($C21*'fnd base rates'!F$39) +($D21*'fnd base rates'!F$40) +($E21*'fnd base rates'!F$41) +($F21*'fnd base rates'!F$42) +($G21*'fnd base rates'!F$43) +($H21*'fnd base rates'!F$44) +($I21*'fnd base rates'!F$45) +($J21*'fnd base rates'!F$46) +($K21*'fnd base rates'!F$47) +($L21*'fnd base rates'!F$48) +($M21*'fnd base rates'!F$49) +($N21*'fnd base rates'!F$50) +($O21*'fnd base rates'!F$51) +($P21*'fnd base rates'!F$52)) *$R21 -> 874.1340912 | X21: =(($C21*'fnd base rates'!G$39) +($D21*'fnd base rates'!G$40) +($E21*'fnd base rates'!G$41) +($F21*'fnd base rates'!G$42) +($G21*'fnd base rates'!G$43) +($H21*'fnd base rates'!G$44) +($I21*'fnd base rates'!G$45) +($J21*'fnd base rates'!G$46) +($K21*'fnd base rates'!G$47) +($L21*'fnd base rates'!G$48) +($M21*'fnd base rates'!G$49) +($N21*'fnd base rates'!G$50) +($O21*'fnd base rates'!G$51) +($P21*'fnd base rates'!G$52)) *$R21 -> 210.5930275 | Y21: =(($C21*'fnd base rates'!H$39) +($D21*'fnd base rates'!H$40) +($E21*'fnd base rates'!H$41) +($F21*'fnd base rates'!H$42) +($G21*'fnd base rates'!H$43) +($H21*'fnd base rates'!H$44) +($I21*'fnd base rates'!H$45) +($J21*'fnd base rates'!H$46) +($K21*'fnd base rates'!H$47) +($L21*'fnd base rates'!H$48) +($M21*'fnd base rates'!H$49) +($N21*'fnd base rates'!H$50) +($O21*'fnd base rates'!H$51) +($P21*'fnd base rates'!H$52)) -> 450.38825 | Z21: =(($C21*'fnd base rates'!I$39) +($D21*'fnd base rates'!I$40) +($E21*'fnd base rates'!I$41) +($F21*'fnd base rates'!I$42) +($G21*'fnd base rates'!I$43) +($H21*'fnd base rates'!I$44) +($I21*'fnd base rates'!I$45) +($J21*'fnd base rates'!I$46) +($K21*'fnd base rates'!I$47) +($L21*'fnd base rates'!I$48) +($M21*'fnd base rates'!I$49) +($N21*'fnd base rates'!I$50) +($O21*'fnd base rates'!I$51) +($P21*'fnd base rates'!I$52)) *$R21 -> 301.4089 | AA21: =(($C21*'fnd base rates'!J$39) +($D21*'fnd base rates'!J$40) +($E21*'fnd base rates'!J$41) +($F21*'fnd base rates'!J$42) +($G21*'fnd base rates'!J$43) +($H21*'fnd base rates'!J$44) +($I21*'fnd base rates'!J$45) +($J21*'fnd base rates'!J$46) +($K21*'fnd base rates'!J$47) +($L21*'fnd base rates'!J$48) +($M21*'fnd base rates'!J$49) +($N21*'fnd base rates'!J$50) +($O21*'fnd base rates'!J$51) +($P21*'fnd base rates'!J$52)) *$R21 -> 220.7084 | AB21: =(($C21*'fnd base rates'!K$39) +($D21*'fnd base rates'!K$40) +($E21*'fnd base rates'!K$41) +($F21*'fnd base rates'!K$42) +($G21*'fnd base rates'!K$43) +($H21*'fnd base rates'!K$44) +($I21*'fnd base rates'!K$45) +($J21*'fnd base rates'!K$46) +($K21*'fnd base rates'!K$47) +($L21*'fnd base rates'!K$48) +($M21*'fnd base rates'!K$49) +($N21*'fnd base rates'!K$50) +($O21*'fnd base rates'!K$51) +($P21*'fnd base rates'!K$52)) *$R21 -> 1477.822499 | AC21: =(($C21*'fnd base rates'!L$39) +($D21*'fnd base rates'!L$40) +($E21*'fnd base rates'!L$41) +($F21*'fnd base rates'!L$42) +($G21*'fnd base rates'!L$43) +($H21*'fnd base rates'!L$44) +($I21*'fnd base rates'!L$45) +($J21*'fnd base rates'!L$46) +($K21*'fnd base rates'!L$47) +($L21*'fnd base rates'!L$48) +($M21*'fnd base rates'!L$49) +($N21*'fnd base rates'!L$50) +($O21*'fnd base rates'!L$51) +($P21*'fnd base rates'!L$52)) -> 1114.413625 | AD21: =(($C21*'fnd base rates'!M$39) +($D21*'fnd base rates'!M$40) +($E21*'fnd base rates'!M$41) +($F21*'fnd base rates'!M$42) +($G21*'fnd base rates'!M$43) +($H21*'fnd base rates'!M$44) +($I21*'fnd base rates'!M$45) +($J21*'fnd base rates'!M$46) +($K21*'fnd base rates'!M$47) +($L21*'fnd base rates'!M$48) +($M21*'fnd base rates'!M$49) +($N21*'fnd base rates'!M$50) +($O21*'fnd base rates'!M$51) +($P21*'fnd base rates'!M$52)) -> 0 | AE21: 11659.98007 | AG21: 410057093 | AH21: 410 | AI21: 057 | AJ21: 093 | AK21: 1 | AL21: 1 | AM21: 11659.98007 | AN21: 11660 | AO21: 0 | AP21: 11660
A22: 410057248 | B22: EXCEL ACADEMY | C22: ='fnd enro'!C22 -> 0 | D22: ='fnd enro'!D22 -> 0 | E22: ='fnd enro'!E22 -> 0 | F22: ='fnd enro'!F22 -> 2 | G22: ='fnd enro'!G22 -> 0 | H22: ='fnd enro'!H22 -> 0 | I22: ='fnd enro'!I22 -> 0.075 | J22: ='fnd enro'!J22 -> 0 | K22: ='fnd enro'!K22 -> 0 | L22: ='fnd enro'!L22 -> 0 | M22: ='fnd enro'!M22 -> 0 | N22: ='fnd enro'!N22 -> 0 | O22: ='fnd enro'!O22 -> 2 | P22: ='fnd enro'!P22 -> 0 | Q22: ='fnd enro'!Q22 -> 2 | R22: 1.03 | T22: =(($C22*'fnd base rates'!C$39) +($D22*'fnd base rates'!C$40) +($E22*'fnd base rates'!C$41) +($F22*'fnd base rates'!C$42) +($G22*'fnd base rates'!C$43) +($H22*'fnd base rates'!C$44) +($I22*'fnd base rates'!C$45) +($J22*'fnd base rates'!C$46) +($K22*'fnd base rates'!C$47) +($L22*'fnd base rates'!C$48) +($M22*'fnd base rates'!C$49) +($N22*'fnd base rates'!C$50) +($O22*'fnd base rates'!C$51) +($P22*'fnd base rates'!C$52)) *$R22 -> 945.98805 | U22: =(($C22*'fnd base rates'!D$39) +($D22*'fnd base rates'!D$40) +($E22*'fnd base rates'!D$41) +($F22*'fnd base rates'!D$42) +($G22*'fnd base rates'!D$43) +($H22*'fnd base rates'!D$44) +($I22*'fnd base rates'!D$45) +($J22*'fnd base rates'!D$46) +($K22*'fnd base rates'!D$47) +($L22*'fnd base rates'!D$48) +($M22*'fnd base rates'!D$49) +($N22*'fnd base rates'!D$50) +($O22*'fnd base rates'!D$51) +($P22*'fnd base rates'!D$52)) *$R22 -> 1357.2722 | V22: =(($C22*'fnd base rates'!E$39) +($D22*'fnd base rates'!E$40) +($E22*'fnd base rates'!E$41) +($F22*'fnd base rates'!E$42) +($G22*'fnd base rates'!E$43) +($H22*'fnd base rates'!E$44) +($I22*'fnd base rates'!E$45) +($J22*'fnd base rates'!E$46) +($K22*'fnd base rates'!E$47) +($L22*'fnd base rates'!E$48) +($M22*'fnd base rates'!E$49) +($N22*'fnd base rates'!E$50) +($O22*'fnd base rates'!E$51) +($P22*'fnd base rates'!E$52)) *$R22 -> 12464.5535 | W22: =(($C22*'fnd base rates'!F$39) +($D22*'fnd base rates'!F$40) +($E22*'fnd base rates'!F$41) +($F22*'fnd base rates'!F$42) +($G22*'fnd base rates'!F$43) +($H22*'fnd base rates'!F$44) +($I22*'fnd base rates'!F$45) +($J22*'fnd base rates'!F$46) +($K22*'fnd base rates'!F$47) +($L22*'fnd base rates'!F$48) +($M22*'fnd base rates'!F$49) +($N22*'fnd base rates'!F$50) +($O22*'fnd base rates'!F$51) +($P22*'fnd base rates'!F$52)) *$R22 -> 2195.452982 | X22: =(($C22*'fnd base rates'!G$39) +($D22*'fnd base rates'!G$40) +($E22*'fnd base rates'!G$41) +($F22*'fnd base rates'!G$42) +($G22*'fnd base rates'!G$43) +($H22*'fnd base rates'!G$44) +($I22*'fnd base rates'!G$45) +($J22*'fnd base rates'!G$46) +($K22*'fnd base rates'!G$47) +($L22*'fnd base rates'!G$48) +($M22*'fnd base rates'!G$49) +($N22*'fnd base rates'!G$50) +($O22*'fnd base rates'!G$51) +($P22*'fnd base rates'!G$52)) *$R22 -> 400.483055 | Y22: =(($C22*'fnd base rates'!H$39) +($D22*'fnd base rates'!H$40) +($E22*'fnd base rates'!H$41) +($F22*'fnd base rates'!H$42) +($G22*'fnd base rates'!H$43) +($H22*'fnd base rates'!H$44) +($I22*'fnd base rates'!H$45) +($J22*'fnd base rates'!H$46) +($K22*'fnd base rates'!H$47) +($L22*'fnd base rates'!H$48) +($M22*'fnd base rates'!H$49) +($N22*'fnd base rates'!H$50) +($O22*'fnd base rates'!H$51) +($P22*'fnd base rates'!H$52)) -> 900.7765 | Z22: =(($C22*'fnd base rates'!I$39) +($D22*'fnd base rates'!I$40) +($E22*'fnd base rates'!I$41) +($F22*'fnd base rates'!I$42) +($G22*'fnd base rates'!I$43) +($H22*'fnd base rates'!I$44) +($I22*'fnd base rates'!I$45) +($J22*'fnd base rates'!I$46) +($K22*'fnd base rates'!I$47) +($L22*'fnd base rates'!I$48) +($M22*'fnd base rates'!I$49) +($N22*'fnd base rates'!I$50) +($O22*'fnd base rates'!I$51) +($P22*'fnd base rates'!I$52)) *$R22 -> 452.8704 | AA22: =(($C22*'fnd base rates'!J$39) +($D22*'fnd base rates'!J$40) +($E22*'fnd base rates'!J$41) +($F22*'fnd base rates'!J$42) +($G22*'fnd base rates'!J$43) +($H22*'fnd base rates'!J$44) +($I22*'fnd base rates'!J$45) +($J22*'fnd base rates'!J$46) +($K22*'fnd base rates'!J$47) +($L22*'fnd base rates'!J$48) +($M22*'fnd base rates'!J$49) +($N22*'fnd base rates'!J$50) +($O22*'fnd base rates'!J$51) +($P22*'fnd base rates'!J$52)) *$R22 -> 270.2514 | AB22: =(($C22*'fnd base rates'!K$39) +($D22*'fnd base rates'!K$40) +($E22*'fnd base rates'!K$41) +($F22*'fnd base rates'!K$42) +($G22*'fnd base rates'!K$43) +($H22*'fnd base rates'!K$44) +($I22*'fnd base rates'!K$45) +($J22*'fnd base rates'!K$46) +($K22*'fnd base rates'!K$47) +($L22*'fnd base rates'!K$48) +($M22*'fnd base rates'!K$49) +($N22*'fnd base rates'!K$50) +($O22*'fnd base rates'!K$51) +($P22*'fnd base rates'!K$52)) *$R22 -> 2810.250198 | AC22: =(($C22*'fnd base rates'!L$39) +($D22*'fnd base rates'!L$40) +($E22*'fnd base rates'!L$41) +($F22*'fnd base rates'!L$42) +($G22*'fnd base rates'!L$43) +($H22*'fnd base rates'!L$44) +($I22*'fnd base rates'!L$45) +($J22*'fnd base rates'!L$46) +($K22*'fnd base rates'!L$47) +($L22*'fnd base rates'!L$48) +($M22*'fnd base rates'!L$49) +($N22*'fnd base rates'!L$50) +($O22*'fnd base rates'!L$51) +($P22*'fnd base rates'!L$52)) -> 2303.24725 | AD22: =(($C22*'fnd base rates'!M$39) +($D22*'fnd base rates'!M$40) +($E22*'fnd base rates'!M$41) +($F22*'fnd base rates'!M$42) +($G22*'fnd base rates'!M$43) +($H22*'fnd base rates'!M$44) +($I22*'fnd base rates'!M$45) +($J22*'fnd base rates'!M$46) +($K22*'fnd base rates'!M$47) +($L22*'fnd base rates'!M$48) +($M22*'fnd base rates'!M$49) +($N22*'fnd base rates'!M$50) +($O22*'fnd base rates'!M$51) +($P22*'fnd base rates'!M$52)) -> 0 | AE22: 24101.14553 | AG22: 410057248 | AH22: 410 | AI22: 057 | AJ22: 248 | AK22: 1 | AL22: 2 | AM22: 24101.14553 | AN22: 12051 | AO22: 0 | AP22: 12051
A23: 412035035 | B23: ACADEMY OF THE PACIFIC RIM | C23: ='fnd enro'!C23 -> 0 | D23: ='fnd enro'!D23 -> 0 | E23: ='fnd enro'!E23 -> 0 | F23: ='fnd enro'!F23 -> 75 | G23: ='fnd enro'!G23 -> 219 | H23: ='fnd enro'!H23 -> 197 | I23: ='fnd enro'!I23 -> 18.45 | J23: ='fnd enro'!J23 -> 0 | K23: ='fnd enro'!K23 -> 0 | L23: ='fnd enro'!L23 -> 0 | M23: ='fnd enro'!M23 -> 1 | N23: ='fnd enro'!N23 -> 0 | O23: ='fnd enro'!O23 -> 173 | P23: ='fnd enro'!P23 -> 104 | Q23: ='fnd enro'!Q23 -> 492 | R23: 1.071 | T23: =(($C23*'fnd base rates'!C$39) +($D23*'fnd base rates'!C$40) +($E23*'fnd base rates'!C$41) +($F23*'fnd base rates'!C$42) +($G23*'fnd base rates'!C$43) +($H23*'fnd base rates'!C$44) +($I23*'fnd base rates'!C$45) +($J23*'fnd base rates'!C$46) +($K23*'fnd base rates'!C$47) +($L23*'fnd base rates'!C$48) +($M23*'fnd base rates'!C$49) +($N23*'fnd base rates'!C$50) +($O23*'fnd base rates'!C$51) +($P23*'fnd base rates'!C$52)) *$R23 -> 241976.3957 | U23: =(($C23*'fnd base rates'!D$39) +($D23*'fnd base rates'!D$40) +($E23*'fnd base rates'!D$41) +($F23*'fnd base rates'!D$42) +($G23*'fnd base rates'!D$43) +($H23*'fnd base rates'!D$44) +($I23*'fnd base rates'!D$45) +($J23*'fnd base rates'!D$46) +($K23*'fnd base rates'!D$47) +($L23*'fnd base rates'!D$48) +($M23*'fnd base rates'!D$49) +($N23*'fnd base rates'!D$50) +($O23*'fnd base rates'!D$51) +($P23*'fnd base rates'!D$52)) *$R23 -> 347179.6868 | V23: =(($C23*'fnd base rates'!E$39) +($D23*'fnd base rates'!E$40) +($E23*'fnd base rates'!E$41) +($F23*'fnd base rates'!E$42) +($G23*'fnd base rates'!E$43) +($H23*'fnd base rates'!E$44) +($I23*'fnd base rates'!E$45) +($J23*'fnd base rates'!E$46) +($K23*'fnd base rates'!E$47) +($L23*'fnd base rates'!E$48) +($M23*'fnd base rates'!E$49) +($N23*'fnd base rates'!E$50) +($O23*'fnd base rates'!E$51) +($P23*'fnd base rates'!E$52)) *$R23 -> 2592512.412 | W23: =(($C23*'fnd base rates'!F$39) +($D23*'fnd base rates'!F$40) +($E23*'fnd base rates'!F$41) +($F23*'fnd base rates'!F$42) +($G23*'fnd base rates'!F$43) +($H23*'fnd base rates'!F$44) +($I23*'fnd base rates'!F$45) +($J23*'fnd base rates'!F$46) +($K23*'fnd base rates'!F$47) +($L23*'fnd base rates'!F$48) +($M23*'fnd base rates'!F$49) +($N23*'fnd base rates'!F$50) +($O23*'fnd base rates'!F$51) +($P23*'fnd base rates'!F$52)) *$R23 -> 444986.1556 | X23: =(($C23*'fnd base rates'!G$39) +($D23*'fnd base rates'!G$40) +($E23*'fnd base rates'!G$41) +($F23*'fnd base rates'!G$42) +($G23*'fnd base rates'!G$43) +($H23*'fnd base rates'!G$44) +($I23*'fnd base rates'!G$45) +($J23*'fnd base rates'!G$46) +($K23*'fnd base rates'!G$47) +($L23*'fnd base rates'!G$48) +($M23*'fnd base rates'!G$49) +($N23*'fnd base rates'!G$50) +($O23*'fnd base rates'!G$51) +($P23*'fnd base rates'!G$52)) *$R23 -> 92357.62181 | Y23: =(($C23*'fnd base rates'!H$39) +($D23*'fnd base rates'!H$40) +($E23*'fnd base rates'!H$41) +($F23*'fnd base rates'!H$42) +($G23*'fnd base rates'!H$43) +($H23*'fnd base rates'!H$44) +($I23*'fnd base rates'!H$45) +($J23*'fnd base rates'!H$46) +($K23*'fnd base rates'!H$47) +($L23*'fnd base rates'!H$48) +($M23*'fnd base rates'!H$49) +($N23*'fnd base rates'!H$50) +($O23*'fnd base rates'!H$51) +($P23*'fnd base rates'!H$52)) -> 273277.909 | Z23: =(($C23*'fnd base rates'!I$39) +($D23*'fnd base rates'!I$40) +($E23*'fnd base rates'!I$41) +($F23*'fnd base rates'!I$42) +($G23*'fnd base rates'!I$43) +($H23*'fnd base rates'!I$44) +($I23*'fnd base rates'!I$45) +($J23*'fnd base rates'!I$46) +($K23*'fnd base rates'!I$47) +($L23*'fnd base rates'!I$48) +($M23*'fnd base rates'!I$49) +($N23*'fnd base rates'!I$50) +($O23*'fnd base rates'!I$51) +($P23*'fnd base rates'!I$52)) *$R23 -> 164004.4898 | AA23: =(($C23*'fnd base rates'!J$39) +($D23*'fnd base rates'!J$40) +($E23*'fnd base rates'!J$41) +($F23*'fnd base rates'!J$42) +($G23*'fnd base rates'!J$43) +($H23*'fnd base rates'!J$44) +($I23*'fnd base rates'!J$45) +($J23*'fnd base rates'!J$46) +($K23*'fnd base rates'!J$47) +($L23*'fnd base rates'!J$48) +($M23*'fnd base rates'!J$49) +($N23*'fnd base rates'!J$50) +($O23*'fnd base rates'!J$51) +($P23*'fnd base rates'!J$52)) *$R23 -> 165190.3974 | AB23: =(($C23*'fnd base rates'!K$39) +($D23*'fnd base rates'!K$40) +($E23*'fnd base rates'!K$41) +($F23*'fnd base rates'!K$42) +($G23*'fnd base rates'!K$43) +($H23*'fnd base rates'!K$44) +($I23*'fnd base rates'!K$45) +($J23*'fnd base rates'!K$46) +($K23*'fnd base rates'!K$47) +($L23*'fnd base rates'!K$48) +($M23*'fnd base rates'!K$49) +($N23*'fnd base rates'!K$50) +($O23*'fnd base rates'!K$51) +($P23*'fnd base rates'!K$52)) *$R23 -> 648107.2314 | AC23: =(($C23*'fnd base rates'!L$39) +($D23*'fnd base rates'!L$40) +($E23*'fnd base rates'!L$41) +($F23*'fnd base rates'!L$42) +($G23*'fnd base rates'!L$43) +($H23*'fnd base rates'!L$44) +($I23*'fnd base rates'!L$45) +($J23*'fnd base rates'!L$46) +($K23*'fnd base rates'!L$47) +($L23*'fnd base rates'!L$48) +($M23*'fnd base rates'!L$49) +($N23*'fnd base rates'!L$50) +($O23*'fnd base rates'!L$51) +($P23*'fnd base rates'!L$52)) -> 486432.5735 | AD23: =(($C23*'fnd base rates'!M$39) +($D23*'fnd base rates'!M$40) +($E23*'fnd base rates'!M$41) +($F23*'fnd base rates'!M$42) +($G23*'fnd base rates'!M$43) +($H23*'fnd base rates'!M$44) +($I23*'fnd base rates'!M$45) +($J23*'fnd base rates'!M$46) +($K23*'fnd base rates'!M$47) +($L23*'fnd base rates'!M$48) +($M23*'fnd base rates'!M$49) +($N23*'fnd base rates'!M$50) +($O23*'fnd base rates'!M$51) +($P23*'fnd base rates'!M$52)) -> 0 | AE23: 5456024.873 | AG23: 412035035 | AH23: 412 | AI23: 035 | AJ23: 035 | AK23: 1 | AL23: 492 | AM23: 5456024.873 | AN23: 11089 | AO23: 0 | AP23: 11089
A24: 412035044 | B24: ACADEMY OF THE PACIFIC RIM | C24: ='fnd enro'!C24 -> 0 | D24: ='fnd enro'!D24 -> 0 | E24: ='fnd enro'!E24 -> 0 | F24: ='fnd enro'!F24 -> 0 | G24: ='fnd enro'!G24 -> 1 | H24: ='fnd enro'!H24 -> 0 | I24: ='fnd enro'!I24 -> 0.0375 | J24: ='fnd enro'!J24 -> 0 | K24: ='fnd enro'!K24 -> 0 | L24: ='fnd enro'!L24 -> 0 | M24: ='fnd enro'!M24 -> 0 | N24: ='fnd enro'!N24 -> 0 | O24: ='fnd enro'!O24 -> 1 | P24: ='fnd enro'!P24 -> 0 | Q24: ='fnd enro'!Q24 -> 1 | R24: 1.071 | T24: =(($C24*'fnd base rates'!C$39) +($D24*'fnd base rates'!C$40) +($E24*'fnd base rates'!C$41) +($F24*'fnd base rates'!C$42) +($G24*'fnd base rates'!C$43) +($H24*'fnd base rates'!C$44) +($I24*'fnd base rates'!C$45) +($J24*'fnd base rates'!C$46) +($K24*'fnd base rates'!C$47) +($L24*'fnd base rates'!C$48) +($M24*'fnd base rates'!C$49) +($N24*'fnd base rates'!C$50) +($O24*'fnd base rates'!C$51) +($P24*'fnd base rates'!C$52)) *$R24 -> 491.8219425 | U24: =(($C24*'fnd base rates'!D$39) +($D24*'fnd base rates'!D$40) +($E24*'fnd base rates'!D$41) +($F24*'fnd base rates'!D$42) +($G24*'fnd base rates'!D$43) +($H24*'fnd base rates'!D$44) +($I24*'fnd base rates'!D$45) +($J24*'fnd base rates'!D$46) +($K24*'fnd base rates'!D$47) +($L24*'fnd base rates'!D$48) +($M24*'fnd base rates'!D$49) +($N24*'fnd base rates'!D$50) +($O24*'fnd base rates'!D$51) +($P24*'fnd base rates'!D$52)) *$R24 -> 705.64977 | V24: =(($C24*'fnd base rates'!E$39) +($D24*'fnd base rates'!E$40) +($E24*'fnd base rates'!E$41) +($F24*'fnd base rates'!E$42) +($G24*'fnd base rates'!E$43) +($H24*'fnd base rates'!E$44) +($I24*'fnd base rates'!E$45) +($J24*'fnd base rates'!E$46) +($K24*'fnd base rates'!E$47) +($L24*'fnd base rates'!E$48) +($M24*'fnd base rates'!E$49) +($N24*'fnd base rates'!E$50) +($O24*'fnd base rates'!E$51) +($P24*'fnd base rates'!E$52)) *$R24 -> 6092.098748 | W24: =(($C24*'fnd base rates'!F$39) +($D24*'fnd base rates'!F$40) +($E24*'fnd base rates'!F$41) +($F24*'fnd base rates'!F$42) +($G24*'fnd base rates'!F$43) +($H24*'fnd base rates'!F$44) +($I24*'fnd base rates'!F$45) +($J24*'fnd base rates'!F$46) +($K24*'fnd base rates'!F$47) +($L24*'fnd base rates'!F$48) +($M24*'fnd base rates'!F$49) +($N24*'fnd base rates'!F$50) +($O24*'fnd base rates'!F$51) +($P24*'fnd base rates'!F$52)) *$R24 -> 908.9297201 | X24: =(($C24*'fnd base rates'!G$39) +($D24*'fnd base rates'!G$40) +($E24*'fnd base rates'!G$41) +($F24*'fnd base rates'!G$42) +($G24*'fnd base rates'!G$43) +($H24*'fnd base rates'!G$44) +($I24*'fnd base rates'!G$45) +($J24*'fnd base rates'!G$46) +($K24*'fnd base rates'!G$47) +($L24*'fnd base rates'!G$48) +($M24*'fnd base rates'!G$49) +($N24*'fnd base rates'!G$50) +($O24*'fnd base rates'!G$51) +($P24*'fnd base rates'!G$52)) *$R24 -> 218.9758567 | Y24: =(($C24*'fnd base rates'!H$39) +($D24*'fnd base rates'!H$40) +($E24*'fnd base rates'!H$41) +($F24*'fnd base rates'!H$42) +($G24*'fnd base rates'!H$43) +($H24*'fnd base rates'!H$44) +($I24*'fnd base rates'!H$45) +($J24*'fnd base rates'!H$46) +($K24*'fnd base rates'!H$47) +($L24*'fnd base rates'!H$48) +($M24*'fnd base rates'!H$49) +($N24*'fnd base rates'!H$50) +($O24*'fnd base rates'!H$51) +($P24*'fnd base rates'!H$52)) -> 450.38825 | Z24: =(($C24*'fnd base rates'!I$39) +($D24*'fnd base rates'!I$40) +($E24*'fnd base rates'!I$41) +($F24*'fnd base rates'!I$42) +($G24*'fnd base rates'!I$43) +($H24*'fnd base rates'!I$44) +($I24*'fnd base rates'!I$45) +($J24*'fnd base rates'!I$46) +($K24*'fnd base rates'!I$47) +($L24*'fnd base rates'!I$48) +($M24*'fnd base rates'!I$49) +($N24*'fnd base rates'!I$50) +($O24*'fnd base rates'!I$51) +($P24*'fnd base rates'!I$52)) *$R24 -> 313.40673 | AA24: =(($C24*'fnd base rates'!J$39) +($D24*'fnd base rates'!J$40) +($E24*'fnd base rates'!J$41) +($F24*'fnd base rates'!J$42) +($G24*'fnd base rates'!J$43) +($H24*'fnd base rates'!J$44) +($I24*'fnd base rates'!J$45) +($J24*'fnd base rates'!J$46) +($K24*'fnd base rates'!J$47) +($L24*'fnd base rates'!J$48) +($M24*'fnd base rates'!J$49) +($N24*'fnd base rates'!J$50) +($O24*'fnd base rates'!J$51) +($P24*'fnd base rates'!J$52)) *$R24 -> 229.49388 | AB24: =(($C24*'fnd base rates'!K$39) +($D24*'fnd base rates'!K$40) +($E24*'fnd base rates'!K$41) +($F24*'fnd base rates'!K$42) +($G24*'fnd base rates'!K$43) +($H24*'fnd base rates'!K$44) +($I24*'fnd base rates'!K$45) +($J24*'fnd base rates'!K$46) +($K24*'fnd base rates'!K$47) +($L24*'fnd base rates'!K$48) +($M24*'fnd base rates'!K$49) +($N24*'fnd base rates'!K$50) +($O24*'fnd base rates'!K$51) +($P24*'fnd base rates'!K$52)) *$R24 -> 1536.648443 | AC24: =(($C24*'fnd base rates'!L$39) +($D24*'fnd base rates'!L$40) +($E24*'fnd base rates'!L$41) +($F24*'fnd base rates'!L$42) +($G24*'fnd base rates'!L$43) +($H24*'fnd base rates'!L$44) +($I24*'fnd base rates'!L$45) +($J24*'fnd base rates'!L$46) +($K24*'fnd base rates'!L$47) +($L24*'fnd base rates'!L$48) +($M24*'fnd base rates'!L$49) +($N24*'fnd base rates'!L$50) +($O24*'fnd base rates'!L$51) +($P24*'fnd base rates'!L$52)) -> 1114.413625 | AD24: =(($C24*'fnd base rates'!M$39) +($D24*'fnd base rates'!M$40) +($E24*'fnd base rates'!M$41) +($F24*'fnd base rates'!M$42) +($G24*'fnd base rates'!M$43) +($H24*'fnd base rates'!M$44) +($I24*'fnd base rates'!M$45) +($J24*'fnd base rates'!M$46) +($K24*'fnd base rates'!M$47) +($L24*'fnd base rates'!M$48) +($M24*'fnd base rates'!M$49) +($N24*'fnd base rates'!M$50) +($O24*'fnd base rates'!M$51) +($P24*'fnd base rates'!M$52)) -> 0 | AE24: 12061.82697 | AG24: 412035044 | AH24: 412 | AI24: 035 | AJ24: 044 | AK24: 1 | AL24: 1 | AM24: 12061.82697 | AN24: 12062 | AO24: 0 | AP24: 12062
A25: 412035050 | B25: ACADEMY OF THE PACIFIC RIM | C25: ='fnd enro'!C25 -> 0 | D25: ='fnd enro'!D25 -> 0 | E25: ='fnd enro'!E25 -> 0 | F25: ='fnd enro'!F25 -> 0 | G25: ='fnd enro'!G25 -> 0 | H25: ='fnd enro'!H25 -> 1 | I25: ='fnd enro'!I25 -> 0.0375 | J25: ='fnd enro'!J25 -> 0 | K25: ='fnd enro'!K25 -> 0 | L25: ='fnd enro'!L25 -> 0 | M25: ='fnd enro'!M25 -> 0 | N25: ='fnd enro'!N25 -> 0 | O25: ='fnd enro'!O25 -> 0 | P25: ='fnd enro'!P25 -> 1 | Q25: ='fnd enro'!Q25 -> 1 | R25: 1.071 | T25: =(($C25*'fnd base rates'!C$39) +($D25*'fnd base rates'!C$40) +($E25*'fnd base rates'!C$41) +($F25*'fnd base rates'!C$42) +($G25*'fnd base rates'!C$43) +($H25*'fnd base rates'!C$44) +($I25*'fnd base rates'!C$45) +($J25*'fnd base rates'!C$46) +($K25*'fnd base rates'!C$47) +($L25*'fnd base rates'!C$48) +($M25*'fnd base rates'!C$49) +($N25*'fnd base rates'!C$50) +($O25*'fnd base rates'!C$51) +($P25*'fnd base rates'!C$52)) *$R25 -> 491.8219425 | U25: =(($C25*'fnd base rates'!D$39) +($D25*'fnd base rates'!D$40) +($E25*'fnd base rates'!D$41) +($F25*'fnd base rates'!D$42) +($G25*'fnd base rates'!D$43) +($H25*'fnd base rates'!D$44) +($I25*'fnd base rates'!D$45) +($J25*'fnd base rates'!D$46) +($K25*'fnd base rates'!D$47) +($L25*'fnd base rates'!D$48) +($M25*'fnd base rates'!D$49) +($N25*'fnd base rates'!D$50) +($O25*'fnd base rates'!D$51) +($P25*'fnd base rates'!D$52)) *$R25 -> 705.64977 | V25: =(($C25*'fnd base rates'!E$39) +($D25*'fnd base rates'!E$40) +($E25*'fnd base rates'!E$41) +($F25*'fnd base rates'!E$42) +($G25*'fnd base rates'!E$43) +($H25*'fnd base rates'!E$44) +($I25*'fnd base rates'!E$45) +($J25*'fnd base rates'!E$46) +($K25*'fnd base rates'!E$47) +($L25*'fnd base rates'!E$48) +($M25*'fnd base rates'!E$49) +($N25*'fnd base rates'!E$50) +($O25*'fnd base rates'!E$51) +($P25*'fnd base rates'!E$52)) *$R25 -> 6720.186698 | W25: =(($C25*'fnd base rates'!F$39) +($D25*'fnd base rates'!F$40) +($E25*'fnd base rates'!F$41) +($F25*'fnd base rates'!F$42) +($G25*'fnd base rates'!F$43) +($H25*'fnd base rates'!F$44) +($I25*'fnd base rates'!F$45) +($J25*'fnd base rates'!F$46) +($K25*'fnd base rates'!F$47) +($L25*'fnd base rates'!F$48) +($M25*'fnd base rates'!F$49) +($N25*'fnd base rates'!F$50) +($O25*'fnd base rates'!F$51) +($P25*'fnd base rates'!F$52)) *$R25 -> 808.8769001 | X25: =(($C25*'fnd base rates'!G$39) +($D25*'fnd base rates'!G$40) +($E25*'fnd base rates'!G$41) +($F25*'fnd base rates'!G$42) +($G25*'fnd base rates'!G$43) +($H25*'fnd base rates'!G$44) +($I25*'fnd base rates'!G$45) +($J25*'fnd base rates'!G$46) +($K25*'fnd base rates'!G$47) +($L25*'fnd base rates'!G$48) +($M25*'fnd base rates'!G$49) +($N25*'fnd base rates'!G$50) +($O25*'fnd base rates'!G$51) +($P25*'fnd base rates'!G$52)) *$R25 -> 214.7561167 | Y25: =(($C25*'fnd base rates'!H$39) +($D25*'fnd base rates'!H$40) +($E25*'fnd base rates'!H$41) +($F25*'fnd base rates'!H$42) +($G25*'fnd base rates'!H$43) +($H25*'fnd base rates'!H$44) +($I25*'fnd base rates'!H$45) +($J25*'fnd base rates'!H$46) +($K25*'fnd base rates'!H$47) +($L25*'fnd base rates'!H$48) +($M25*'fnd base rates'!H$49) +($N25*'fnd base rates'!H$50) +($O25*'fnd base rates'!H$51) +($P25*'fnd base rates'!H$52)) -> 712.75825 | Z25: =(($C25*'fnd base rates'!I$39) +($D25*'fnd base rates'!I$40) +($E25*'fnd base rates'!I$41) +($F25*'fnd base rates'!I$42) +($G25*'fnd base rates'!I$43) +($H25*'fnd base rates'!I$44) +($I25*'fnd base rates'!I$45) +($J25*'fnd base rates'!I$46) +($K25*'fnd base rates'!I$47) +($L25*'fnd base rates'!I$48) +($M25*'fnd base rates'!I$49) +($N25*'fnd base rates'!I$50) +($O25*'fnd base rates'!I$51) +($P25*'fnd base rates'!I$52)) *$R25 -> 392.87493 | AA25: =(($C25*'fnd base rates'!J$39) +($D25*'fnd base rates'!J$40) +($E25*'fnd base rates'!J$41) +($F25*'fnd base rates'!J$42) +($G25*'fnd base rates'!J$43) +($H25*'fnd base rates'!J$44) +($I25*'fnd base rates'!J$45) +($J25*'fnd base rates'!J$46) +($K25*'fnd base rates'!J$47) +($L25*'fnd base rates'!J$48) +($M25*'fnd base rates'!J$49) +($N25*'fnd base rates'!J$50) +($O25*'fnd base rates'!J$51) +($P25*'fnd base rates'!J$52)) *$R25 -> 529.20252 | AB25: =(($C25*'fnd base rates'!K$39) +($D25*'fnd base rates'!K$40) +($E25*'fnd base rates'!K$41) +($F25*'fnd base rates'!K$42) +($G25*'fnd base rates'!K$43) +($H25*'fnd base rates'!K$44) +($I25*'fnd base rates'!K$45) +($J25*'fnd base rates'!K$46) +($K25*'fnd base rates'!K$47) +($L25*'fnd base rates'!K$48) +($M25*'fnd base rates'!K$49) +($N25*'fnd base rates'!K$50) +($O25*'fnd base rates'!K$51) +($P25*'fnd base rates'!K$52)) *$R25 -> 1507.035293 | AC25: =(($C25*'fnd base rates'!L$39) +($D25*'fnd base rates'!L$40) +($E25*'fnd base rates'!L$41) +($F25*'fnd base rates'!L$42) +($G25*'fnd base rates'!L$43) +($H25*'fnd base rates'!L$44) +($I25*'fnd base rates'!L$45) +($J25*'fnd base rates'!L$46) +($K25*'fnd base rates'!L$47) +($L25*'fnd base rates'!L$48) +($M25*'fnd base rates'!L$49) +($N25*'fnd base rates'!L$50) +($O25*'fnd base rates'!L$51) +($P25*'fnd base rates'!L$52)) -> 1086.183625 | AD25: =(($C25*'fnd base rates'!M$39) +($D25*'fnd base rates'!M$40) +($E25*'fnd base rates'!M$41) +($F25*'fnd base rates'!M$42) +($G25*'fnd base rates'!M$43) +($H25*'fnd base rates'!M$44) +($I25*'fnd base rates'!M$45) +($J25*'fnd base rates'!M$46) +($K25*'fnd base rates'!M$47) +($L25*'fnd base rates'!M$48) +($M25*'fnd base rates'!M$49) +($N25*'fnd base rates'!M$50) +($O25*'fnd base rates'!M$51) +($P25*'fnd base rates'!M$52)) -> 0 | AE25: 13169.34605 | AG25: 412035050 | AH25: 412 | AI25: 035 | AJ25: 050 | AK25: 1 | AL25: 1 | AM25: 13169.34605 | AN25: 13169 | AO25: 0 | AP25: 13169
A26: 412035073 | B26: ACADEMY OF THE PACIFIC RIM | C26: ='fnd enro'!C26 -> 0 | D26: ='fnd enro'!D26 -> 0 | E26: ='fnd enro'!E26 -> 0 | F26: ='fnd enro'!F26 -> 0 | G26: ='fnd enro'!G26 -> 1 | H26: ='fnd enro'!H26 -> 0 | I26: ='fnd enro'!I26 -> 0.0375 | J26: ='fnd enro'!J26 -> 0 | K26: ='fnd enro'!K26 -> 0 | L26: ='fnd enro'!L26 -> 0 | M26: ='fnd enro'!M26 -> 0 | N26: ='fnd enro'!N26 -> 0 | O26: ='fnd enro'!O26 -> 1 | P26: ='fnd enro'!P26 -> 0 | Q26: ='fnd enro'!Q26 -> 1 | R26: 1.071 | T26: =(($C26*'fnd base rates'!C$39) +($D26*'fnd base rates'!C$40) +($E26*'fnd base rates'!C$41) +($F26*'fnd base rates'!C$42) +($G26*'fnd base rates'!C$43) +($H26*'fnd base rates'!C$44) +($I26*'fnd base rates'!C$45) +($J26*'fnd base rates'!C$46) +($K26*'fnd base rates'!C$47) +($L26*'fnd base rates'!C$48) +($M26*'fnd base rates'!C$49) +($N26*'fnd base rates'!C$50) +($O26*'fnd base rates'!C$51) +($P26*'fnd base rates'!C$52)) *$R26 -> 491.8219425 | U26: =(($C26*'fnd base rates'!D$39) +($D26*'fnd base rates'!D$40) +($E26*'fnd base rates'!D$41) +($F26*'fnd base rates'!D$42) +($G26*'fnd base rates'!D$43) +($H26*'fnd base rates'!D$44) +($I26*'fnd base rates'!D$45) +($J26*'fnd base rates'!D$46) +($K26*'fnd base rates'!D$47) +($L26*'fnd base rates'!D$48) +($M26*'fnd base rates'!D$49) +($N26*'fnd base rates'!D$50) +($O26*'fnd base rates'!D$51) +($P26*'fnd base rates'!D$52)) *$R26 -> 705.64977 | V26: =(($C26*'fnd base rates'!E$39) +($D26*'fnd base rates'!E$40) +($E26*'fnd base rates'!E$41) +($F26*'fnd base rates'!E$42) +($G26*'fnd base rates'!E$43) +($H26*'fnd base rates'!E$44) +($I26*'fnd base rates'!E$45) +($J26*'fnd base rates'!E$46) +($K26*'fnd base rates'!E$47) +($L26*'fnd base rates'!E$48) +($M26*'fnd base rates'!E$49) +($N26*'fnd base rates'!E$50) +($O26*'fnd base rates'!E$51) +($P26*'fnd base rates'!E$52)) *$R26 -> 6092.098748 | W26: =(($C26*'fnd base rates'!F$39) +($D26*'fnd base rates'!F$40) +($E26*'fnd base rates'!F$41) +($F26*'fnd base rates'!F$42) +($G26*'fnd base rates'!F$43) +($H26*'fnd base rates'!F$44) +($I26*'fnd base rates'!F$45) +($J26*'fnd base rates'!F$46) +($K26*'fnd base rates'!F$47) +($L26*'fnd base rates'!F$48) +($M26*'fnd base rates'!F$49) +($N26*'fnd base rates'!F$50) +($O26*'fnd base rates'!F$51) +($P26*'fnd base rates'!F$52)) *$R26 -> 908.9297201 | X26: =(($C26*'fnd base rates'!G$39) +($D26*'fnd base rates'!G$40) +($E26*'fnd base rates'!G$41) +($F26*'fnd base rates'!G$42) +($G26*'fnd base rates'!G$43) +($H26*'fnd base rates'!G$44) +($I26*'fnd base rates'!G$45) +($J26*'fnd base rates'!G$46) +($K26*'fnd base rates'!G$47) +($L26*'fnd base rates'!G$48) +($M26*'fnd base rates'!G$49) +($N26*'fnd base rates'!G$50) +($O26*'fnd base rates'!G$51) +($P26*'fnd base rates'!G$52)) *$R26 -> 218.9758567 | Y26: =(($C26*'fnd base rates'!H$39) +($D26*'fnd base rates'!H$40) +($E26*'fnd base rates'!H$41) +($F26*'fnd base rates'!H$42) +($G26*'fnd base rates'!H$43) +($H26*'fnd base rates'!H$44) +($I26*'fnd base rates'!H$45) +($J26*'fnd base rates'!H$46) +($K26*'fnd base rates'!H$47) +($L26*'fnd base rates'!H$48) +($M26*'fnd base rates'!H$49) +($N26*'fnd base rates'!H$50) +($O26*'fnd base rates'!H$51) +($P26*'fnd base rates'!H$52)) -> 450.38825 | Z26: =(($C26*'fnd base rates'!I$39) +($D26*'fnd base rates'!I$40) +($E26*'fnd base rates'!I$41) +($F26*'fnd base rates'!I$42) +($G26*'fnd base rates'!I$43) +($H26*'fnd base rates'!I$44) +($I26*'fnd base rates'!I$45) +($J26*'fnd base rates'!I$46) +($K26*'fnd base rates'!I$47) +($L26*'fnd base rates'!I$48) +($M26*'fnd base rates'!I$49) +($N26*'fnd base rates'!I$50) +($O26*'fnd base rates'!I$51) +($P26*'fnd base rates'!I$52)) *$R26 -> 313.40673 | AA26: =(($C26*'fnd base rates'!J$39) +($D26*'fnd base rates'!J$40) +($E26*'fnd base rates'!J$41) +($F26*'fnd base rates'!J$42) +($G26*'fnd base rates'!J$43) +($H26*'fnd base rates'!J$44) +($I26*'fnd base rates'!J$45) +($J26*'fnd base rates'!J$46) +($K26*'fnd base rates'!J$47) +($L26*'fnd base rates'!J$48) +($M26*'fnd base rates'!J$49) +($N26*'fnd base rates'!J$50) +($O26*'fnd base rates'!J$51) +($P26*'fnd base rates'!J$52)) *$R26 -> 229.49388 | AB26: =(($C26*'fnd base rates'!K$39) +($D26*'fnd base rates'!K$40) +($E26*'fnd base rates'!K$41) +($F26*'fnd base rates'!K$42) +($G26*'fnd base rates'!K$43) +($H26*'fnd base rates'!K$44) +($I26*'fnd base rates'!K$45) +($J26*'fnd base rates'!K$46) +($K26*'fnd base rates'!K$47) +($L26*'fnd base rates'!K$48) +($M26*'fnd base rates'!K$49) +($N26*'fnd base rates'!K$50) +($O26*'fnd base rates'!K$51) +($P26*'fnd base rates'!K$52)) *$R26 -> 1536.648443 | AC26: =(($C26*'fnd base rates'!L$39) +($D26*'fnd base rates'!L$40) +($E26*'fnd base rates'!L$41) +($F26*'fnd base rates'!L$42) +($G26*'fnd base rates'!L$43) +($H26*'fnd base rates'!L$44) +($I26*'fnd base rates'!L$45) +($J26*'fnd base rates'!L$46) +($K26*'fnd base rates'!L$47) +($L26*'fnd base rates'!L$48) +($M26*'fnd base rates'!L$49) +($N26*'fnd base rates'!L$50) +($O26*'fnd base rates'!L$51) +($P26*'fnd base rates'!L$52)) -> 1114.413625 | AD26: =(($C26*'fnd base rates'!M$39) +($D26*'fnd base rates'!M$40) +($E26*'fnd base rates'!M$41) +($F26*'fnd base rates'!M$42) +($G26*'fnd base rates'!M$43) +($H26*'fnd base rates'!M$44) +($I26*'fnd base rates'!M$45) +($J26*'fnd base rates'!M$46) +($K26*'fnd base rates'!M$47) +($L26*'fnd base rates'!M$48) +($M26*'fnd base rates'!M$49) +($N26*'fnd base rates'!M$50) +($O26*'fnd base rates'!M$51) +($P26*'fnd base rates'!M$52)) -> 0 | AE26: 12061.82697 | AG26: 412035073 | AH26: 412 | AI26: 035 | AJ26: 073 | AK26: 1 | AL26: 1 | AM26: 12061.82697 | AN26: 12062 | AO26: 0 | AP26: 12062
A27: 412035088 | B27: ACADEMY OF THE PACIFIC RIM | C27: ='fnd enro'!C27 -> 0 | D27: ='fnd enro'!D27 -> 0 | E27: ='fnd enro'!E27 -> 0 | F27: ='fnd enro'!F27 -> 0 | G27: ='fnd enro'!G27 -> 0 | H27: ='fnd enro'!H27 -> 1 | I27: ='fnd enro'!I27 -> 0.0375 | J27: ='fnd enro'!J27 -> 0 | K27: ='fnd enro'!K27 -> 0 | L27: ='fnd enro'!L27 -> 0 | M27: ='fnd enro'!M27 -> 0 | N27: ='fnd enro'!N27 -> 0 | O27: ='fnd enro'!O27 -> 0 | P27: ='fnd enro'!P27 -> 0 | Q27: ='fnd enro'!Q27 -> 1 | R27: 1.071 | T27: =(($C27*'fnd base rates'!C$39) +($D27*'fnd base rates'!C$40) +($E27*'fnd base rates'!C$41) +($F27*'fnd base rates'!C$42) +($G27*'fnd base rates'!C$43) +($H27*'fnd base rates'!C$44) +($I27*'fnd base rates'!C$45) +($J27*'fnd base rates'!C$46) +($K27*'fnd base rates'!C$47) +($L27*'fnd base rates'!C$48) +($M27*'fnd base rates'!C$49) +($N27*'fnd base rates'!C$50) +($O27*'fnd base rates'!C$51) +($P27*'fnd base rates'!C$52)) *$R27 -> 491.8219425 | U27: =(($C27*'fnd base rates'!D$39) +($D27*'fnd base rates'!D$40) +($E27*'fnd base rates'!D$41) +($F27*'fnd base rates'!D$42) +($G27*'fnd base rates'!D$43) +($H27*'fnd base rates'!D$44) +($I27*'fnd base rates'!D$45) +($J27*'fnd base rates'!D$46) +($K27*'fnd base rates'!D$47) +($L27*'fnd base rates'!D$48) +($M27*'fnd base rates'!D$49) +($N27*'fnd base rates'!D$50) +($O27*'fnd base rates'!D$51) +($P27*'fnd base rates'!D$52)) *$R27 -> 705.64977 | V27: =(($C27*'fnd base rates'!E$39) +($D27*'fnd base rates'!E$40) +($E27*'fnd base rates'!E$41) +($F27*'fnd base rates'!E$42) +($G27*'fnd base rates'!E$43) +($H27*'fnd base rates'!E$44) +($I27*'fnd base rates'!E$45) +($J27*'fnd base rates'!E$46) +($K27*'fnd base rates'!E$47) +($L27*'fnd base rates'!E$48) +($M27*'fnd base rates'!E$49) +($N27*'fnd base rates'!E$50) +($O27*'fnd base rates'!E$51) +($P27*'fnd base rates'!E$52)) *$R27 -> 4520.952458 | W27: =(($C27*'fnd base rates'!F$39) +($D27*'fnd base rates'!F$40) +($E27*'fnd base rates'!F$41) +($F27*'fnd base rates'!F$42) +($G27*'fnd base rates'!F$43) +($H27*'fnd base rates'!F$44) +($I27*'fnd base rates'!F$45) +($J27*'fnd base rates'!F$46) +($K27*'fnd base rates'!F$47) +($L27*'fnd base rates'!F$48) +($M27*'fnd base rates'!F$49) +($N27*'fnd base rates'!F$50) +($O27*'fnd base rates'!F$51) +($P27*'fnd base rates'!F$52)) *$R27 -> 808.8769001 | X27: =(($C27*'fnd base rates'!G$39) +($D27*'fnd base rates'!G$40) +($E27*'fnd base rates'!G$41) +($F27*'fnd base rates'!G$42) +($G27*'fnd base rates'!G$43) +($H27*'fnd base rates'!G$44) +($I27*'fnd base rates'!G$45) +($J27*'fnd base rates'!G$46) +($K27*'fnd base rates'!G$47) +($L27*'fnd base rates'!G$48) +($M27*'fnd base rates'!G$49) +($N27*'fnd base rates'!G$50) +($O27*'fnd base rates'!G$51) +($P27*'fnd base rates'!G$52)) *$R27 -> 150.6888967 | Y27: =(($C27*'fnd base rates'!H$39) +($D27*'fnd base rates'!H$40) +($E27*'fnd base rates'!H$41) +($F27*'fnd base rates'!H$42) +($G27*'fnd base rates'!H$43) +($H27*'fnd base rates'!H$44) +($I27*'fnd base rates'!H$45) +($J27*'fnd base rates'!H$46) +($K27*'fnd base rates'!H$47) +($L27*'fnd base rates'!H$48) +($M27*'fnd base rates'!H$49) +($N27*'fnd base rates'!H$50) +($O27*'fnd base rates'!H$51) +($P27*'fnd base rates'!H$52)) -> 712.75825 | Z27: =(($C27*'fnd base rates'!I$39) +($D27*'fnd base rates'!I$40) +($E27*'fnd base rates'!I$41) +($F27*'fnd base rates'!I$42) +($G27*'fnd base rates'!I$43) +($H27*'fnd base rates'!I$44) +($I27*'fnd base rates'!I$45) +($J27*'fnd base rates'!I$46) +($K27*'fnd base rates'!I$47) +($L27*'fnd base rates'!I$48) +($M27*'fnd base rates'!I$49) +($N27*'fnd base rates'!I$50) +($O27*'fnd base rates'!I$51) +($P27*'fnd base rates'!I$52)) *$R27 -> 392.87493 | AA27: =(($C27*'fnd base rates'!J$39) +($D27*'fnd base rates'!J$40) +($E27*'fnd base rates'!J$41) +($F27*'fnd base rates'!J$42) +($G27*'fnd base rates'!J$43) +($H27*'fnd base rates'!J$44) +($I27*'fnd base rates'!J$45) +($J27*'fnd base rates'!J$46) +($K27*'fnd base rates'!J$47) +($L27*'fnd base rates'!J$48) +($M27*'fnd base rates'!J$49) +($N27*'fnd base rates'!J$50) +($O27*'fnd base rates'!J$51) +($P27*'fnd base rates'!J$52)) *$R27 -> 529.20252 | AB27: =(($C27*'fnd base rates'!K$39) +($D27*'fnd base rates'!K$40) +($E27*'fnd base rates'!K$41) +($F27*'fnd base rates'!K$42) +($G27*'fnd base rates'!K$43) +($H27*'fnd base rates'!K$44) +($I27*'fnd base rates'!K$45) +($J27*'fnd base rates'!K$46) +($K27*'fnd base rates'!K$47) +($L27*'fnd base rates'!K$48) +($M27*'fnd base rates'!K$49) +($N27*'fnd base rates'!K$50) +($O27*'fnd base rates'!K$51) +($P27*'fnd base rates'!K$52)) *$R27 -> 1057.440203 | AC27: =(($C27*'fnd base rates'!L$39) +($D27*'fnd base rates'!L$40) +($E27*'fnd base rates'!L$41) +($F27*'fnd base rates'!L$42) +($G27*'fnd base rates'!L$43) +($H27*'fnd base rates'!L$44) +($I27*'fnd base rates'!L$45) +($J27*'fnd base rates'!L$46) +($K27*'fnd base rates'!L$47) +($L27*'fnd base rates'!L$48) +($M27*'fnd base rates'!L$49) +($N27*'fnd base rates'!L$50) +($O27*'fnd base rates'!L$51) +($P27*'fnd base rates'!L$52)) -> 810.273625 | AD27: =(($C27*'fnd base rates'!M$39) +($D27*'fnd base rates'!M$40) +($E27*'fnd base rates'!M$41) +($F27*'fnd base rates'!M$42) +($G27*'fnd base rates'!M$43) +($H27*'fnd base rates'!M$44) +($I27*'fnd base rates'!M$45) +($J27*'fnd base rates'!M$46) +($K27*'fnd base rates'!M$47) +($L27*'fnd base rates'!M$48) +($M27*'fnd base rates'!M$49) +($N27*'fnd base rates'!M$50) +($O27*'fnd base rates'!M$51) +($P27*'fnd base rates'!M$52)) -> 0 | AE27: 10180.5395 | AG27: 412035088 | AH27: 412 | AI27: 035 | AJ27: 088 | AK27: 1 | AL27: 1 | AM27: 10180.5395 | AN27: 10181 | AO27: 0 | AP27: 10181
A28: 412035189 | B28: ACADEMY OF THE PACIFIC RIM | C28: ='fnd enro'!C28 -> 0 | D28: ='fnd enro'!D28 -> 0 | E28: ='fnd enro'!E28 -> 0 | F28: ='fnd enro'!F28 -> 0 | G28: ='fnd enro'!G28 -> 0 | H28: ='fnd enro'!H28 -> 2 | I28: ='fnd enro'!I28 -> 0.075 | J28: ='fnd enro'!J28 -> 0 | K28: ='fnd enro'!K28 -> 0 | L28: ='fnd enro'!L28 -> 0 | M28: ='fnd enro'!M28 -> 0 | N28: ='fnd enro'!N28 -> 0 | O28: ='fnd enro'!O28 -> 0 | P28: ='fnd enro'!P28 -> 1 | Q28: ='fnd enro'!Q28 -> 2 | R28: 1.071 | T28: =(($C28*'fnd base rates'!C$39) +($D28*'fnd base rates'!C$40) +($E28*'fnd base rates'!C$41) +($F28*'fnd base rates'!C$42) +($G28*'fnd base rates'!C$43) +($H28*'fnd base rates'!C$44) +($I28*'fnd base rates'!C$45) +($J28*'fnd base rates'!C$46) +($K28*'fnd base rates'!C$47) +($L28*'fnd base rates'!C$48) +($M28*'fnd base rates'!C$49) +($N28*'fnd base rates'!C$50) +($O28*'fnd base rates'!C$51) +($P28*'fnd base rates'!C$52)) *$R28 -> 983.643885 | U28: =(($C28*'fnd base rates'!D$39) +($D28*'fnd base rates'!D$40) +($E28*'fnd base rates'!D$41) +($F28*'fnd base rates'!D$42) +($G28*'fnd base rates'!D$43) +($H28*'fnd base rates'!D$44) +($I28*'fnd base rates'!D$45) +($J28*'fnd base rates'!D$46) +($K28*'fnd base rates'!D$47) +($L28*'fnd base rates'!D$48) +($M28*'fnd base rates'!D$49) +($N28*'fnd base rates'!D$50) +($O28*'fnd base rates'!D$51) +($P28*'fnd base rates'!D$52)) *$R28 -> 1411.29954 | V28: =(($C28*'fnd base rates'!E$39) +($D28*'fnd base rates'!E$40) +($E28*'fnd base rates'!E$41) +($F28*'fnd base rates'!E$42) +($G28*'fnd base rates'!E$43) +($H28*'fnd base rates'!E$44) +($I28*'fnd base rates'!E$45) +($J28*'fnd base rates'!E$46) +($K28*'fnd base rates'!E$47) +($L28*'fnd base rates'!E$48) +($M28*'fnd base rates'!E$49) +($N28*'fnd base rates'!E$50) +($O28*'fnd base rates'!E$51) +($P28*'fnd base rates'!E$52)) *$R28 -> 11241.13916 | W28: =(($C28*'fnd base rates'!F$39) +($D28*'fnd base rates'!F$40) +($E28*'fnd base rates'!F$41) +($F28*'fnd base rates'!F$42) +($G28*'fnd base rates'!F$43) +($H28*'fnd base rates'!F$44) +($I28*'fnd base rates'!F$45) +($J28*'fnd base rates'!F$46) +($K28*'fnd base rates'!F$47) +($L28*'fnd base rates'!F$48) +($M28*'fnd base rates'!F$49) +($N28*'fnd base rates'!F$50) +($O28*'fnd base rates'!F$51) +($P28*'fnd base rates'!F$52)) *$R28 -> 1617.7538 | X28: =(($C28*'fnd base rates'!G$39) +($D28*'fnd base rates'!G$40) +($E28*'fnd base rates'!G$41) +($F28*'fnd base rates'!G$42) +($G28*'fnd base rates'!G$43) +($H28*'fnd base rates'!G$44) +($I28*'fnd base rates'!G$45) +($J28*'fnd base rates'!G$46) +($K28*'fnd base rates'!G$47) +($L28*'fnd base rates'!G$48) +($M28*'fnd base rates'!G$49) +($N28*'fnd base rates'!G$50) +($O28*'fnd base rates'!G$51) +($P28*'fnd base rates'!G$52)) *$R28 -> 365.4450135 | Y28: =(($C28*'fnd base rates'!H$39) +($D28*'fnd base rates'!H$40) +($E28*'fnd base rates'!H$41) +($F28*'fnd base rates'!H$42) +($G28*'fnd base rates'!H$43) +($H28*'fnd base rates'!H$44) +($I28*'fnd base rates'!H$45) +($J28*'fnd base rates'!H$46) +($K28*'fnd base rates'!H$47) +($L28*'fnd base rates'!H$48) +($M28*'fnd base rates'!H$49) +($N28*'fnd base rates'!H$50) +($O28*'fnd base rates'!H$51) +($P28*'fnd base rates'!H$52)) -> 1425.5165 | Z28: =(($C28*'fnd base rates'!I$39) +($D28*'fnd base rates'!I$40) +($E28*'fnd base rates'!I$41) +($F28*'fnd base rates'!I$42) +($G28*'fnd base rates'!I$43) +($H28*'fnd base rates'!I$44) +($I28*'fnd base rates'!I$45) +($J28*'fnd base rates'!I$46) +($K28*'fnd base rates'!I$47) +($L28*'fnd base rates'!I$48) +($M28*'fnd base rates'!I$49) +($N28*'fnd base rates'!I$50) +($O28*'fnd base rates'!I$51) +($P28*'fnd base rates'!I$52)) *$R28 -> 785.74986 | AA28: =(($C28*'fnd base rates'!J$39) +($D28*'fnd base rates'!J$40) +($E28*'fnd base rates'!J$41) +($F28*'fnd base rates'!J$42) +($G28*'fnd base rates'!J$43) +($H28*'fnd base rates'!J$44) +($I28*'fnd base rates'!J$45) +($J28*'fnd base rates'!J$46) +($K28*'fnd base rates'!J$47) +($L28*'fnd base rates'!J$48) +($M28*'fnd base rates'!J$49) +($N28*'fnd base rates'!J$50) +($O28*'fnd base rates'!J$51) +($P28*'fnd base rates'!J$52)) *$R28 -> 1058.40504 | AB28: =(($C28*'fnd base rates'!K$39) +($D28*'fnd base rates'!K$40) +($E28*'fnd base rates'!K$41) +($F28*'fnd base rates'!K$42) +($G28*'fnd base rates'!K$43) +($H28*'fnd base rates'!K$44) +($I28*'fnd base rates'!K$45) +($J28*'fnd base rates'!K$46) +($K28*'fnd base rates'!K$47) +($L28*'fnd base rates'!K$48) +($M28*'fnd base rates'!K$49) +($N28*'fnd base rates'!K$50) +($O28*'fnd base rates'!K$51) +($P28*'fnd base rates'!K$52)) *$R28 -> 2564.475496 | AC28: =(($C28*'fnd base rates'!L$39) +($D28*'fnd base rates'!L$40) +($E28*'fnd base rates'!L$41) +($F28*'fnd base rates'!L$42) +($G28*'fnd base rates'!L$43) +($H28*'fnd base rates'!L$44) +($I28*'fnd base rates'!L$45) +($J28*'fnd base rates'!L$46) +($K28*'fnd base rates'!L$47) +($L28*'fnd base rates'!L$48) +($M28*'fnd base rates'!L$49) +($N28*'fnd base rates'!L$50) +($O28*'fnd base rates'!L$51) +($P28*'fnd base rates'!L$52)) -> 1896.45725 | AD28: =(($C28*'fnd base rates'!M$39) +($D28*'fnd base rates'!M$40) +($E28*'fnd base rates'!M$41) +($F28*'fnd base rates'!M$42) +($G28*'fnd base rates'!M$43) +($H28*'fnd base rates'!M$44) +($I28*'fnd base rates'!M$45) +($J28*'fnd base rates'!M$46) +($K28*'fnd base rates'!M$47) +($L28*'fnd base rates'!M$48) +($M28*'fnd base rates'!M$49) +($N28*'fnd base rates'!M$50) +($O28*'fnd base rates'!M$51) +($P28*'fnd base rates'!M$52)) -> 0 | AE28: 23349.88554 | AG28: 412035189 | AH28: 412 | AI28: 035 | AJ28: 189 | AK28: 1 | AL28: 2 | AM28: 23349.88554 | AN28: 11675 | AO28: 0 | AP28: 11675
A29: 412035220 | B29: ACADEMY OF THE PACIFIC RIM | C29: ='fnd enro'!C29 -> 0 | D29: ='fnd enro'!D29 -> 0 | E29: ='fnd enro'!E29 -> 0 | F29: ='fnd enro'!F29 -> 0 | G29: ='fnd enro'!G29 -> 0 | H29: ='fnd enro'!H29 -> 1 | I29: ='fnd enro'!I29 -> 0.0375 | J29: ='fnd enro'!J29 -> 0 | K29: ='fnd enro'!K29 -> 0 | L29: ='fnd enro'!L29 -> 0 | M29: ='fnd enro'!M29 -> 0 | N29: ='fnd enro'!N29 -> 0 | O29: ='fnd enro'!O29 -> 0 | P29: ='fnd enro'!P29 -> 1 | Q29: ='fnd enro'!Q29 -> 1 | R29: 1.071 | T29: =(($C29*'fnd base rates'!C$39) +($D29*'fnd base rates'!C$40) +($E29*'fnd base rates'!C$41) +($F29*'fnd base rates'!C$42) +($G29*'fnd base rates'!C$43) +($H29*'fnd base rates'!C$44) +($I29*'fnd base rates'!C$45) +($J29*'fnd base rates'!C$46) +($K29*'fnd base rates'!C$47) +($L29*'fnd base rates'!C$48) +($M29*'fnd base rates'!C$49) +($N29*'fnd base rates'!C$50) +($O29*'fnd base rates'!C$51) +($P29*'fnd base rates'!C$52)) *$R29 -> 491.8219425 | U29: =(($C29*'fnd base rates'!D$39) +($D29*'fnd base rates'!D$40) +($E29*'fnd base rates'!D$41) +($F29*'fnd base rates'!D$42) +($G29*'fnd base rates'!D$43) +($H29*'fnd base rates'!D$44) +($I29*'fnd base rates'!D$45) +($J29*'fnd base rates'!D$46) +($K29*'fnd base rates'!D$47) +($L29*'fnd base rates'!D$48) +($M29*'fnd base rates'!D$49) +($N29*'fnd base rates'!D$50) +($O29*'fnd base rates'!D$51) +($P29*'fnd base rates'!D$52)) *$R29 -> 705.64977 | V29: =(($C29*'fnd base rates'!E$39) +($D29*'fnd base rates'!E$40) +($E29*'fnd base rates'!E$41) +($F29*'fnd base rates'!E$42) +($G29*'fnd base rates'!E$43) +($H29*'fnd base rates'!E$44) +($I29*'fnd base rates'!E$45) +($J29*'fnd base rates'!E$46) +($K29*'fnd base rates'!E$47) +($L29*'fnd base rates'!E$48) +($M29*'fnd base rates'!E$49) +($N29*'fnd base rates'!E$50) +($O29*'fnd base rates'!E$51) +($P29*'fnd base rates'!E$52)) *$R29 -> 6720.186698 | W29: =(($C29*'fnd base rates'!F$39) +($D29*'fnd base rates'!F$40) +($E29*'fnd base rates'!F$41) +($F29*'fnd base rates'!F$42) +($G29*'fnd base rates'!F$43) +($H29*'fnd base rates'!F$44) +($I29*'fnd base rates'!F$45) +($J29*'fnd base rates'!F$46) +($K29*'fnd base rates'!F$47) +($L29*'fnd base rates'!F$48) +($M29*'fnd base rates'!F$49) +($N29*'fnd base rates'!F$50) +($O29*'fnd base rates'!F$51) +($P29*'fnd base rates'!F$52)) *$R29 -> 808.8769001 | X29: =(($C29*'fnd base rates'!G$39) +($D29*'fnd base rates'!G$40) +($E29*'fnd base rates'!G$41) +($F29*'fnd base rates'!G$42) +($G29*'fnd base rates'!G$43) +($H29*'fnd base rates'!G$44) +($I29*'fnd base rates'!G$45) +($J29*'fnd base rates'!G$46) +($K29*'fnd base rates'!G$47) +($L29*'fnd base rates'!G$48) +($M29*'fnd base rates'!G$49) +($N29*'fnd base rates'!G$50) +($O29*'fnd base rates'!G$51) +($P29*'fnd base rates'!G$52)) *$R29 -> 214.7561167 | Y29: =(($C29*'fnd base rates'!H$39) +($D29*'fnd base rates'!H$40) +($E29*'fnd base rates'!H$41) +($F29*'fnd base rates'!H$42) +($G29*'fnd base rates'!H$43) +($H29*'fnd base rates'!H$44) +($I29*'fnd base rates'!H$45) +($J29*'fnd base rates'!H$46) +($K29*'fnd base rates'!H$47) +($L29*'fnd base rates'!H$48) +($M29*'fnd base rates'!H$49) +($N29*'fnd base rates'!H$50) +($O29*'fnd base rates'!H$51) +($P29*'fnd base rates'!H$52)) -> 712.75825 | Z29: =(($C29*'fnd base rates'!I$39) +($D29*'fnd base rates'!I$40) +($E29*'fnd base rates'!I$41) +($F29*'fnd base rates'!I$42) +($G29*'fnd base rates'!I$43) +($H29*'fnd base rates'!I$44) +($I29*'fnd base rates'!I$45) +($J29*'fnd base rates'!I$46) +($K29*'fnd base rates'!I$47) +($L29*'fnd base rates'!I$48) +($M29*'fnd base rates'!I$49) +($N29*'fnd base rates'!I$50) +($O29*'fnd base rates'!I$51) +($P29*'fnd base rates'!I$52)) *$R29 -> 392.87493 | AA29: =(($C29*'fnd base rates'!J$39) +($D29*'fnd base rates'!J$40) +($E29*'fnd base rates'!J$41) +($F29*'fnd base rates'!J$42) +($G29*'fnd base rates'!J$43) +($H29*'fnd base rates'!J$44) +($I29*'fnd base rates'!J$45) +($J29*'fnd base rates'!J$46) +($K29*'fnd base rates'!J$47) +($L29*'fnd base rates'!J$48) +($M29*'fnd base rates'!J$49) +($N29*'fnd base rates'!J$50) +($O29*'fnd base rates'!J$51) +($P29*'fnd base rates'!J$52)) *$R29 -> 529.20252 | AB29: =(($C29*'fnd base rates'!K$39) +($D29*'fnd base rates'!K$40) +($E29*'fnd base rates'!K$41) +($F29*'fnd base rates'!K$42) +($G29*'fnd base rates'!K$43) +($H29*'fnd base rates'!K$44) +($I29*'fnd base rates'!K$45) +($J29*'fnd base rates'!K$46) +($K29*'fnd base rates'!K$47) +($L29*'fnd base rates'!K$48) +($M29*'fnd base rates'!K$49) +($N29*'fnd base rates'!K$50) +($O29*'fnd base rates'!K$51) +($P29*'fnd base rates'!K$52)) *$R29 -> 1507.035293 | AC29: =(($C29*'fnd base rates'!L$39) +($D29*'fnd base rates'!L$40) +($E29*'fnd base rates'!L$41) +($F29*'fnd base rates'!L$42) +($G29*'fnd base rates'!L$43) +($H29*'fnd base rates'!L$44) +($I29*'fnd base rates'!L$45) +($J29*'fnd base rates'!L$46) +($K29*'fnd base rates'!L$47) +($L29*'fnd base rates'!L$48) +($M29*'fnd base rates'!L$49) +($N29*'fnd base rates'!L$50) +($O29*'fnd base rates'!L$51) +($P29*'fnd base rates'!L$52)) -> 1086.183625 | AD29: =(($C29*'fnd base rates'!M$39) +($D29*'fnd base rates'!M$40) +($E29*'fnd base rates'!M$41) +($F29*'fnd base rates'!M$42) +($G29*'fnd base rates'!M$43) +($H29*'fnd base rates'!M$44) +($I29*'fnd base rates'!M$45) +($J29*'fnd base rates'!M$46) +($K29*'fnd base rates'!M$47) +($L29*'fnd base rates'!M$48) +($M29*'fnd base rates'!M$49) +($N29*'fnd base rates'!M$50) +($O29*'fnd base rates'!M$51) +($P29*'fnd base rates'!M$52)) -> 0 | AE29: 13169.34605 | AG29: 412035220 | AH29: 412 | AI29: 035 | AJ29: 220 | AK29: 1 | AL29: 1 | AM29: 13169.34605 | AN29: 13169 | AO29: 0 | AP29: 13169
A30: 412035244 | B30: ACADEMY OF THE PACIFIC RIM | C30: ='fnd enro'!C30 -> 0 | D30: ='fnd enro'!D30 -> 0 | E30: ='fnd enro'!E30 -> 0 | F30: ='fnd enro'!F30 -> 2 | G30: ='fnd enro'!G30 -> 5 | H30: ='fnd enro'!H30 -> 11 | I30: ='fnd enro'!I30 -> 0.675 | J30: ='fnd enro'!J30 -> 0 | K30: ='fnd enro'!K30 -> 0 | L30: ='fnd enro'!L30 -> 0 | M30: ='fnd enro'!M30 -> 0 | N30: ='fnd enro'!N30 -> 0 | O30: ='fnd enro'!O30 -> 6 | P30: ='fnd enro'!P30 -> 8 | Q30: ='fnd enro'!Q30 -> 18 | R30: 1.071 | T30: =(($C30*'fnd base rates'!C$39) +($D30*'fnd base rates'!C$40) +($E30*'fnd base rates'!C$41) +($F30*'fnd base rates'!C$42) +($G30*'fnd base rates'!C$43) +($H30*'fnd base rates'!C$44) +($I30*'fnd base rates'!C$45) +($J30*'fnd base rates'!C$46) +($K30*'fnd base rates'!C$47) +($L30*'fnd base rates'!C$48) +($M30*'fnd base rates'!C$49) +($N30*'fnd base rates'!C$50) +($O30*'fnd base rates'!C$51) +($P30*'fnd base rates'!C$52)) *$R30 -> 8852.794965 | U30: =(($C30*'fnd base rates'!D$39) +($D30*'fnd base rates'!D$40) +($E30*'fnd base rates'!D$41) +($F30*'fnd base rates'!D$42) +($G30*'fnd base rates'!D$43) +($H30*'fnd base rates'!D$44) +($I30*'fnd base rates'!D$45) +($J30*'fnd base rates'!D$46) +($K30*'fnd base rates'!D$47) +($L30*'fnd base rates'!D$48) +($M30*'fnd base rates'!D$49) +($N30*'fnd base rates'!D$50) +($O30*'fnd base rates'!D$51) +($P30*'fnd base rates'!D$52)) *$R30 -> 12701.69586 | V30: =(($C30*'fnd base rates'!E$39) +($D30*'fnd base rates'!E$40) +($E30*'fnd base rates'!E$41) +($F30*'fnd base rates'!E$42) +($G30*'fnd base rates'!E$43) +($H30*'fnd base rates'!E$44) +($I30*'fnd base rates'!E$45) +($J30*'fnd base rates'!E$46) +($K30*'fnd base rates'!E$47) +($L30*'fnd base rates'!E$48) +($M30*'fnd base rates'!E$49) +($N30*'fnd base rates'!E$50) +($O30*'fnd base rates'!E$51) +($P30*'fnd base rates'!E$52)) *$R30 -> 107834.4964 | W30: =(($C30*'fnd base rates'!F$39) +($D30*'fnd base rates'!F$40) +($E30*'fnd base rates'!F$41) +($F30*'fnd base rates'!F$42) +($G30*'fnd base rates'!F$43) +($H30*'fnd base rates'!F$44) +($I30*'fnd base rates'!F$45) +($J30*'fnd base rates'!F$46) +($K30*'fnd base rates'!F$47) +($L30*'fnd base rates'!F$48) +($M30*'fnd base rates'!F$49) +($N30*'fnd base rates'!F$50) +($O30*'fnd base rates'!F$51) +($P30*'fnd base rates'!F$52)) *$R30 -> 15725.1393 | X30: =(($C30*'fnd base rates'!G$39) +($D30*'fnd base rates'!G$40) +($E30*'fnd base rates'!G$41) +($F30*'fnd base rates'!G$42) +($G30*'fnd base rates'!G$43) +($H30*'fnd base rates'!G$44) +($I30*'fnd base rates'!G$45) +($J30*'fnd base rates'!G$46) +($K30*'fnd base rates'!G$47) +($L30*'fnd base rates'!G$48) +($M30*'fnd base rates'!G$49) +($N30*'fnd base rates'!G$50) +($O30*'fnd base rates'!G$51) +($P30*'fnd base rates'!G$52)) *$R30 -> 3617.352301 | Y30: =(($C30*'fnd base rates'!H$39) +($D30*'fnd base rates'!H$40) +($E30*'fnd base rates'!H$41) +($F30*'fnd base rates'!H$42) +($G30*'fnd base rates'!H$43) +($H30*'fnd base rates'!H$44) +($I30*'fnd base rates'!H$45) +($J30*'fnd base rates'!H$46) +($K30*'fnd base rates'!H$47) +($L30*'fnd base rates'!H$48) +($M30*'fnd base rates'!H$49) +($N30*'fnd base rates'!H$50) +($O30*'fnd base rates'!H$51) +($P30*'fnd base rates'!H$52)) -> 10993.0585 | Z30: =(($C30*'fnd base rates'!I$39) +($D30*'fnd base rates'!I$40) +($E30*'fnd base rates'!I$41) +($F30*'fnd base rates'!I$42) +($G30*'fnd base rates'!I$43) +($H30*'fnd base rates'!I$44) +($I30*'fnd base rates'!I$45) +($J30*'fnd base rates'!I$46) +($K30*'fnd base rates'!I$47) +($L30*'fnd base rates'!I$48) +($M30*'fnd base rates'!I$49) +($N30*'fnd base rates'!I$50) +($O30*'fnd base rates'!I$51) +($P30*'fnd base rates'!I$52)) *$R30 -> 6359.55516 | AA30: =(($C30*'fnd base rates'!J$39) +($D30*'fnd base rates'!J$40) +($E30*'fnd base rates'!J$41) +($F30*'fnd base rates'!J$42) +($G30*'fnd base rates'!J$43) +($H30*'fnd base rates'!J$44) +($I30*'fnd base rates'!J$45) +($J30*'fnd base rates'!J$46) +($K30*'fnd base rates'!J$47) +($L30*'fnd base rates'!J$48) +($M30*'fnd base rates'!J$49) +($N30*'fnd base rates'!J$50) +($O30*'fnd base rates'!J$51) +($P30*'fnd base rates'!J$52)) *$R30 -> 7249.7061 | AB30: =(($C30*'fnd base rates'!K$39) +($D30*'fnd base rates'!K$40) +($E30*'fnd base rates'!K$41) +($F30*'fnd base rates'!K$42) +($G30*'fnd base rates'!K$43) +($H30*'fnd base rates'!K$44) +($I30*'fnd base rates'!K$45) +($J30*'fnd base rates'!K$46) +($K30*'fnd base rates'!K$47) +($L30*'fnd base rates'!K$48) +($M30*'fnd base rates'!K$49) +($N30*'fnd base rates'!K$50) +($O30*'fnd base rates'!K$51) +($P30*'fnd base rates'!K$52)) *$R30 -> 25384.3646 | AC30: =(($C30*'fnd base rates'!L$39) +($D30*'fnd base rates'!L$40) +($E30*'fnd base rates'!L$41) +($F30*'fnd base rates'!L$42) +($G30*'fnd base rates'!L$43) +($H30*'fnd base rates'!L$44) +($I30*'fnd base rates'!L$45) +($J30*'fnd base rates'!L$46) +($K30*'fnd base rates'!L$47) +($L30*'fnd base rates'!L$48) +($M30*'fnd base rates'!L$49) +($N30*'fnd base rates'!L$50) +($O30*'fnd base rates'!L$51) +($P30*'fnd base rates'!L$52)) -> 18719.69525 | AD30: =(($C30*'fnd base rates'!M$39) +($D30*'fnd base rates'!M$40) +($E30*'fnd base rates'!M$41) +($F30*'fnd base rates'!M$42) +($G30*'fnd base rates'!M$43) +($H30*'fnd base rates'!M$44) +($I30*'fnd base rates'!M$45) +($J30*'fnd base rates'!M$46) +($K30*'fnd base rates'!M$47) +($L30*'fnd base rates'!M$48) +($M30*'fnd base rates'!M$49) +($N30*'fnd base rates'!M$50) +($O30*'fnd base rates'!M$51) +($P30*'fnd base rates'!M$52)) -> 0 | AE30: 217437.8584 | AG30: 412035244 | AH30: 412 | AI30: 035 | AJ30: 244 | AK30: 1 | AL30: 18 | AM30: 217437.8584 | AN30: 12080 | AO30: 0 | AP30: 12080
A31: 412035314 | B31: ACADEMY OF THE PACIFIC RIM | C31: ='fnd enro'!C31 -> 0 | D31: ='fnd enro'!D31 -> 0 | E31: ='fnd enro'!E31 -> 0 | F31: ='fnd enro'!F31 -> 0 | G31: ='fnd enro'!G31 -> 1 | H31: ='fnd enro'!H31 -> 0 | I31: ='fnd enro'!I31 -> 0.0375 | J31: ='fnd enro'!J31 -> 0 | K31: ='fnd enro'!K31 -> 0 | L31: ='fnd enro'!L31 -> 0 | M31: ='fnd enro'!M31 -> 0 | N31: ='fnd enro'!N31 -> 0 | O31: ='fnd enro'!O31 -> 1 | P31: ='fnd enro'!P31 -> 0 | Q31: ='fnd enro'!Q31 -> 1 | R31: 1.071 | T31: =(($C31*'fnd base rates'!C$39) +($D31*'fnd base rates'!C$40) +($E31*'fnd base rates'!C$41) +($F31*'fnd base rates'!C$42) +($G31*'fnd base rates'!C$43) +($H31*'fnd base rates'!C$44) +($I31*'fnd base rates'!C$45) +($J31*'fnd base rates'!C$46) +($K31*'fnd base rates'!C$47) +($L31*'fnd base rates'!C$48) +($M31*'fnd base rates'!C$49) +($N31*'fnd base rates'!C$50) +($O31*'fnd base rates'!C$51) +($P31*'fnd base rates'!C$52)) *$R31 -> 491.8219425 | U31: =(($C31*'fnd base rates'!D$39) +($D31*'fnd base rates'!D$40) +($E31*'fnd base rates'!D$41) +($F31*'fnd base rates'!D$42) +($G31*'fnd base rates'!D$43) +($H31*'fnd base rates'!D$44) +($I31*'fnd base rates'!D$45) +($J31*'fnd base rates'!D$46) +($K31*'fnd base rates'!D$47) +($L31*'fnd base rates'!D$48) +($M31*'fnd base rates'!D$49) +($N31*'fnd base rates'!D$50) +($O31*'fnd base rates'!D$51) +($P31*'fnd base rates'!D$52)) *$R31 -> 705.64977 | V31: =(($C31*'fnd base rates'!E$39) +($D31*'fnd base rates'!E$40) +($E31*'fnd base rates'!E$41) +($F31*'fnd base rates'!E$42) +($G31*'fnd base rates'!E$43) +($H31*'fnd base rates'!E$44) +($I31*'fnd base rates'!E$45) +($J31*'fnd base rates'!E$46) +($K31*'fnd base rates'!E$47) +($L31*'fnd base rates'!E$48) +($M31*'fnd base rates'!E$49) +($N31*'fnd base rates'!E$50) +($O31*'fnd base rates'!E$51) +($P31*'fnd base rates'!E$52)) *$R31 -> 6092.098748 | W31: =(($C31*'fnd base rates'!F$39) +($D31*'fnd base rates'!F$40) +($E31*'fnd base rates'!F$41) +($F31*'fnd base rates'!F$42) +($G31*'fnd base rates'!F$43) +($H31*'fnd base rates'!F$44) +($I31*'fnd base rates'!F$45) +($J31*'fnd base rates'!F$46) +($K31*'fnd base rates'!F$47) +($L31*'fnd base rates'!F$48) +($M31*'fnd base rates'!F$49) +($N31*'fnd base rates'!F$50) +($O31*'fnd base rates'!F$51) +($P31*'fnd base rates'!F$52)) *$R31 -> 908.9297201 | X31: =(($C31*'fnd base rates'!G$39) +($D31*'fnd base rates'!G$40) +($E31*'fnd base rates'!G$41) +($F31*'fnd base rates'!G$42) +($G31*'fnd base rates'!G$43) +($H31*'fnd base rates'!G$44) +($I31*'fnd base rates'!G$45) +($J31*'fnd base rates'!G$46) +($K31*'fnd base rates'!G$47) +($L31*'fnd base rates'!G$48) +($M31*'fnd base rates'!G$49) +($N31*'fnd base rates'!G$50) +($O31*'fnd base rates'!G$51) +($P31*'fnd base rates'!G$52)) *$R31 -> 218.9758567 | Y31: =(($C31*'fnd base rates'!H$39) +($D31*'fnd base rates'!H$40) +($E31*'fnd base rates'!H$41) +($F31*'fnd base rates'!H$42) +($G31*'fnd base rates'!H$43) +($H31*'fnd base rates'!H$44) +($I31*'fnd base rates'!H$45) +($J31*'fnd base rates'!H$46) +($K31*'fnd base rates'!H$47) +($L31*'fnd base rates'!H$48) +($M31*'fnd base rates'!H$49) +($N31*'fnd base rates'!H$50) +($O31*'fnd base rates'!H$51) +($P31*'fnd base rates'!H$52)) -> 450.38825 | Z31: =(($C31*'fnd base rates'!I$39) +($D31*'fnd base rates'!I$40) +($E31*'fnd base rates'!I$41) +($F31*'fnd base rates'!I$42) +($G31*'fnd base rates'!I$43) +($H31*'fnd base rates'!I$44) +($I31*'fnd base rates'!I$45) +($J31*'fnd base rates'!I$46) +($K31*'fnd base rates'!I$47) +($L31*'fnd base rates'!I$48) +($M31*'fnd base rates'!I$49) +($N31*'fnd base rates'!I$50) +($O31*'fnd base rates'!I$51) +($P31*'fnd base rates'!I$52)) *$R31 -> 313.40673 | AA31: =(($C31*'fnd base rates'!J$39) +($D31*'fnd base rates'!J$40) +($E31*'fnd base rates'!J$41) +($F31*'fnd base rates'!J$42) +($G31*'fnd base rates'!J$43) +($H31*'fnd base rates'!J$44) +($I31*'fnd base rates'!J$45) +($J31*'fnd base rates'!J$46) +($K31*'fnd base rates'!J$47) +($L31*'fnd base rates'!J$48) +($M31*'fnd base rates'!J$49) +($N31*'fnd base rates'!J$50) +($O31*'fnd base rates'!J$51) +($P31*'fnd base rates'!J$52)) *$R31 -> 229.49388 | AB31: =(($C31*'fnd base rates'!K$39) +($D31*'fnd base rates'!K$40) +($E31*'fnd base rates'!K$41) +($F31*'fnd base rates'!K$42) +($G31*'fnd base rates'!K$43) +($H31*'fnd base rates'!K$44) +($I31*'fnd base rates'!K$45) +($J31*'fnd base rates'!K$46) +($K31*'fnd base rates'!K$47) +($L31*'fnd base rates'!K$48) +($M31*'fnd base rates'!K$49) +($N31*'fnd base rates'!K$50) +($O31*'fnd base rates'!K$51) +($P31*'fnd base rates'!K$52)) *$R31 -> 1536.648443 | AC31: =(($C31*'fnd base rates'!L$39) +($D31*'fnd base rates'!L$40) +($E31*'fnd base rates'!L$41) +($F31*'fnd base rates'!L$42) +($G31*'fnd base rates'!L$43) +($H31*'fnd base rates'!L$44) +($I31*'fnd base rates'!L$45) +($J31*'fnd base rates'!L$46) +($K31*'fnd base rates'!L$47) +($L31*'fnd base rates'!L$48) +($M31*'fnd base rates'!L$49) +($N31*'fnd base rates'!L$50) +($O31*'fnd base rates'!L$51) +($P31*'fnd base rates'!L$52)) -> 1114.413625 | AD31: =(($C31*'fnd base rates'!M$39) +($D31*'fnd base rates'!M$40) +($E31*'fnd base rates'!M$41) +($F31*'fnd base rates'!M$42) +($G31*'fnd base rates'!M$43) +($H31*'fnd base rates'!M$44) +($I31*'fnd base rates'!M$45) +($J31*'fnd base rates'!M$46) +($K31*'fnd base rates'!M$47) +($L31*'fnd base rates'!M$48) +($M31*'fnd base rates'!M$49) +($N31*'fnd base rates'!M$50) +($O31*'fnd base rates'!M$51) +($P31*'fnd base rates'!M$52)) -> 0 | AE31: 12061.82697 | AG31: 412035314 | AH31: 412 | AI31: 035 | AJ31: 314 | AK31: 1 | AL31: 1 | AM31: 12061.82697 | AN31: 12062 | AO31: 0 | AP31: 12062
A32: 412035336 | B32: ACADEMY OF THE PACIFIC RIM | C32: ='fnd enro'!C32 -> 0 | D32: ='fnd enro'!D32 -> 0 | E32: ='fnd enro'!E32 -> 0 | F32: ='fnd enro'!F32 -> 0 | G32: ='fnd enro'!G32 -> 1 | H32: ='fnd enro'!H32 -> 0 | I32: ='fnd enro'!I32 -> 0.0375 | J32: ='fnd enro'!J32 -> 0 | K32: ='fnd enro'!K32 -> 0 | L32: ='fnd enro'!L32 -> 0 | M32: ='fnd enro'!M32 -> 0 | N32: ='fnd enro'!N32 -> 0 | O32: ='fnd enro'!O32 -> 0 | P32: ='fnd enro'!P32 -> 0 | Q32: ='fnd enro'!Q32 -> 1 | R32: 1.071 | T32: =(($C32*'fnd base rates'!C$39) +($D32*'fnd base rates'!C$40) +($E32*'fnd base rates'!C$41) +($F32*'fnd base rates'!C$42) +($G32*'fnd base rates'!C$43) +($H32*'fnd base rates'!C$44) +($I32*'fnd base rates'!C$45) +($J32*'fnd base rates'!C$46) +($K32*'fnd base rates'!C$47) +($L32*'fnd base rates'!C$48) +($M32*'fnd base rates'!C$49) +($N32*'fnd base rates'!C$50) +($O32*'fnd base rates'!C$51) +($P32*'fnd base rates'!C$52)) *$R32 -> 491.8219425 | U32: =(($C32*'fnd base rates'!D$39) +($D32*'fnd base rates'!D$40) +($E32*'fnd base rates'!D$41) +($F32*'fnd base rates'!D$42) +($G32*'fnd base rates'!D$43) +($H32*'fnd base rates'!D$44) +($I32*'fnd base rates'!D$45) +($J32*'fnd base rates'!D$46) +($K32*'fnd base rates'!D$47) +($L32*'fnd base rates'!D$48) +($M32*'fnd base rates'!D$49) +($N32*'fnd base rates'!D$50) +($O32*'fnd base rates'!D$51) +($P32*'fnd base rates'!D$52)) *$R32 -> 705.64977 | V32: =(($C32*'fnd base rates'!E$39) +($D32*'fnd base rates'!E$40) +($E32*'fnd base rates'!E$41) +($F32*'fnd base rates'!E$42) +($G32*'fnd base rates'!E$43) +($H32*'fnd base rates'!E$44) +($I32*'fnd base rates'!E$45) +($J32*'fnd base rates'!E$46) +($K32*'fnd base rates'!E$47) +($L32*'fnd base rates'!E$48) +($M32*'fnd base rates'!E$49) +($N32*'fnd base rates'!E$50) +($O32*'fnd base rates'!E$51) +($P32*'fnd base rates'!E$52)) *$R32 -> 3181.035068 | W32: =(($C32*'fnd base rates'!F$39) +($D32*'fnd base rates'!F$40) +($E32*'fnd base rates'!F$41) +($F32*'fnd base rates'!F$42) +($G32*'fnd base rates'!F$43) +($H32*'fnd base rates'!F$44) +($I32*'fnd base rates'!F$45) +($J32*'fnd base rates'!F$46) +($K32*'fnd base rates'!F$47) +($L32*'fnd base rates'!F$48) +($M32*'fnd base rates'!F$49) +($N32*'fnd base rates'!F$50) +($O32*'fnd base rates'!F$51) +($P32*'fnd base rates'!F$52)) *$R32 -> 908.9297201 | X32: =(($C32*'fnd base rates'!G$39) +($D32*'fnd base rates'!G$40) +($E32*'fnd base rates'!G$41) +($F32*'fnd base rates'!G$42) +($G32*'fnd base rates'!G$43) +($H32*'fnd base rates'!G$44) +($I32*'fnd base rates'!G$45) +($J32*'fnd base rates'!G$46) +($K32*'fnd base rates'!G$47) +($L32*'fnd base rates'!G$48) +($M32*'fnd base rates'!G$49) +($N32*'fnd base rates'!G$50) +($O32*'fnd base rates'!G$51) +($P32*'fnd base rates'!G$52)) *$R32 -> 154.9086367 | Y32: =(($C32*'fnd base rates'!H$39) +($D32*'fnd base rates'!H$40) +($E32*'fnd base rates'!H$41) +($F32*'fnd base rates'!H$42) +($G32*'fnd base rates'!H$43) +($H32*'fnd base rates'!H$44) +($I32*'fnd base rates'!H$45) +($J32*'fnd base rates'!H$46) +($K32*'fnd base rates'!H$47) +($L32*'fnd base rates'!H$48) +($M32*'fnd base rates'!H$49) +($N32*'fnd base rates'!H$50) +($O32*'fnd base rates'!H$51) +($P32*'fnd base rates'!H$52)) -> 450.38825 | Z32: =(($C32*'fnd base rates'!I$39) +($D32*'fnd base rates'!I$40) +($E32*'fnd base rates'!I$41) +($F32*'fnd base rates'!I$42) +($G32*'fnd base rates'!I$43) +($H32*'fnd base rates'!I$44) +($I32*'fnd base rates'!I$45) +($J32*'fnd base rates'!I$46) +($K32*'fnd base rates'!I$47) +($L32*'fnd base rates'!I$48) +($M32*'fnd base rates'!I$49) +($N32*'fnd base rates'!I$50) +($O32*'fnd base rates'!I$51) +($P32*'fnd base rates'!I$52)) *$R32 -> 313.40673 | AA32: =(($C32*'fnd base rates'!J$39) +($D32*'fnd base rates'!J$40) +($E32*'fnd base rates'!J$41) +($F32*'fnd base rates'!J$42) +($G32*'fnd base rates'!J$43) +($H32*'fnd base rates'!J$44) +($I32*'fnd base rates'!J$45) +($J32*'fnd base rates'!J$46) +($K32*'fnd base rates'!J$47) +($L32*'fnd base rates'!J$48) +($M32*'fnd base rates'!J$49) +($N32*'fnd base rates'!J$50) +($O32*'fnd base rates'!J$51) +($P32*'fnd base rates'!J$52)) *$R32 -> 229.49388 | AB32: =(($C32*'fnd base rates'!K$39) +($D32*'fnd base rates'!K$40) +($E32*'fnd base rates'!K$41) +($F32*'fnd base rates'!K$42) +($G32*'fnd base rates'!K$43) +($H32*'fnd base rates'!K$44) +($I32*'fnd base rates'!K$45) +($J32*'fnd base rates'!K$46) +($K32*'fnd base rates'!K$47) +($L32*'fnd base rates'!K$48) +($M32*'fnd base rates'!K$49) +($N32*'fnd base rates'!K$50) +($O32*'fnd base rates'!K$51) +($P32*'fnd base rates'!K$52)) *$R32 -> 1087.053353 | AC32: =(($C32*'fnd base rates'!L$39) +($D32*'fnd base rates'!L$40) +($E32*'fnd base rates'!L$41) +($F32*'fnd base rates'!L$42) +($G32*'fnd base rates'!L$43) +($H32*'fnd base rates'!L$44) +($I32*'fnd base rates'!L$45) +($J32*'fnd base rates'!L$46) +($K32*'fnd base rates'!L$47) +($L32*'fnd base rates'!L$48) +($M32*'fnd base rates'!L$49) +($N32*'fnd base rates'!L$50) +($O32*'fnd base rates'!L$51) +($P32*'fnd base rates'!L$52)) -> 838.503625 | AD32: =(($C32*'fnd base rates'!M$39) +($D32*'fnd base rates'!M$40) +($E32*'fnd base rates'!M$41) +($F32*'fnd base rates'!M$42) +($G32*'fnd base rates'!M$43) +($H32*'fnd base rates'!M$44) +($I32*'fnd base rates'!M$45) +($J32*'fnd base rates'!M$46) +($K32*'fnd base rates'!M$47) +($L32*'fnd base rates'!M$48) +($M32*'fnd base rates'!M$49) +($N32*'fnd base rates'!M$50) +($O32*'fnd base rates'!M$51) +($P32*'fnd base rates'!M$52)) -> 0 | AE32: 8361.190975 | AG32: 412035336 | AH32: 412 | AI32: 035 | AJ32: 336 | AK32: 1 | AL32: 1 | AM32: 8361.190975 | AN32: 8361 | AO32: 0 | AP32: 8361
